{"text_format":"3","workbook":"xlsx","n_sheets":1,"sheets":["Úverová kalkulačka"],"not_rendered":{"charts":1,"images":1,"defined_names":23,"pivot_tables":1},"read":"whole","date_system":"1900"}

{"sheet":"Úverová kalkulačka","index":0,"n_rows":376,"n_cols":14,"rows_kept":376,"merged":[[1,1,1,7],[3,1,3,3],[4,1,4,2],[5,1,5,2],[6,1,6,2],[7,1,7,2],[9,1,9,3],[10,1,10,2],[11,1,11,2],[12,1,12,2],[13,1,13,2]]}
[{"$nulls":8}," "]
[null,"Jednoduchá úverová kalkulačka"]
[{"$nulls":10},"Označenia riadkov","Zaplatená istina","Zaplatené úroky","Zostatok úveru"]
[null,"Podrobnosti o pôžičke",{"$nulls":8},"2019",{"v":316.3513498451523,"d":"316 EUR"},{"v":226.28003995725135,"d":"226 EUR"},{"v":9937.307055372852,"d":"9,937 EUR"}]
[null,"Výška pôžičky",null,{"v":10000,"d":"10,000.00 EUR"},{"$nulls":6},"2020",{"v":1105.7687510242613,"d":"1,106 EUR"},{"v":739.1779743039109,"d":"739 EUR"},{"v":9619.505761840908,"d":"9,620 EUR"}]
[null,"Ročná úroková sadzba",null,{"v":0.055,"d":"5.50%"},{"$nulls":6},"2021",{"v":1939.7154987549939,"d":"1,940 EUR"},{"v":1207.546562098947,"d":"1,208 EUR"},{"v":8826.47019757306,"d":"8,826 EUR"}]
[null,"Obdobie úveru v rokoch",null,10,{"$nulls":6},"2022",{"v":2820.703398200693,"d":"2,821 EUR"},{"v":1628.8739981790168,"d":"1,629 EUR"},{"v":7988.701193915229,"d":"7,989 EUR"}]
[null,"Počiatočný dátum pôžičky",null,{"$f":"TODAY()","v":"2019-07-17"},{"$nulls":6},"2023",{"v":3751.385940079671,"d":"3,751 EUR"},{"v":2000.5067918258076,"d":"2,001 EUR"},{"v":7103.675433263734,"d":"7,104 EUR"}]
[{"$nulls":10},"2024",{"v":4734.566292844213,"d":"4,735 EUR"},{"v":2319.641774587034,"d":"2,320 EUR"},{"v":6168.727263067806,"d":"6,169 EUR"}]
[null,"Súhrn pôžičky",{"$nulls":8},"2025",{"v":5773.2057456813,"d":"5,773 EUR"},{"v":2583.3176572757166,"d":"2,583 EUR"},{"v":5181.040667019757,"d":"5,181 EUR"}]
[null,"Mesačná splátka",null,{"$f":"IFERROR(IF(ÚverJeDobrý,MesačnáSplátka,\"\"), \"\")","v":{"v":108.52627796048073,"d":"108.53 EUR"}},{"$nulls":6},"2026",{"v":6870.432627764929,"d":"6,870 EUR"},{"v":2788.406110717856,"d":"2,788 EUR"},{"v":4137.640783357165,"d":"4,138 EUR"}]
[null,"Počet splátok",null,{"$f":"IFERROR(IF(ÚverJeDobrý,RokyÚveru*12,\"\"), \"\")","v":120},{"$nulls":6},"2027",{"v":8029.551730624387,"d":"8,030 EUR"},{"v":2931.6023433841656,"d":"2,932 EUR"},{"v":3035.384944730651,"d":"3,035 EUR"}]
[null,"Celkový úrok",null,{"$f":"IFERROR(IF(ÚverJeDobrý,CelkovéNákladyNaÚver-VýškaÚveru,\"\"), \"\")","v":{"v":3023.1533552576875,"d":"3,023.15 EUR"}},{"$nulls":6},"2028",{"v":9254.05426200815,"d":"9,254 EUR"},{"v":3009.415147526172,"d":"3,009 EUR"},{"v":1870.9532126497452,"d":"1,871 EUR"}]
[null,"Celkové náklady na úver",null,{"$f":"IFERROR(IF(ÚverJeDobrý,MesačnáSplátka*PočetSplátok,\"\"), \"\")","v":{"v":13023.153355257688,"d":"13,023.15 EUR"}},{"$nulls":6},"2029",{"v":9999.999999999998,"d":"10,000 EUR"},{"v":3023.1533552576902,"d":"3,023 EUR"},{"v":640.8383779971373,"d":"641 EUR"}]
[{"$nulls":10},"Celkový súčet",null,null,{"v":9937.307055372852,"d":"9,937 EUR"}]
[null,"Číslo platby","Dátum platby","Počiatočný zostatok","Platba","Istina","Úroky","Konečný zostatok"]
[null,{"$f":"IFERROR(IF(ÚverNieJeSplatený*ÚverJeDobrý,ČísloPlatby,\"\"), \"\")","v":1},{"$f":"IFERROR(IF(ÚverNieJeSplatený*ÚverJeDobrý,DátumPlatby,PočiatočnýDátumÚveru), PočiatočnýDátumÚveru)","v":"2019-08-17"},{"$f":"IFERROR(IF(ÚverNieJeSplatený*ÚverJeDobrý,HodnotaÚveru,\"\"), \"\")","v":{"v":10000,"d":"10,000.00 EUR"}},{"$f":"IFERROR(IF(ÚverNieJeSplatený*ÚverJeDobrý,MesačnáSplátka,0), 0)","v":{"v":108.52627796048073,"d":"108.53 EUR"}},{"$f":"IFERROR(IF(ÚverNieJeSplatený*ÚverJeDobrý,Istina,0), 0)","v":{"v":62.69294462714739,"d":"62.69 EUR"}},{"$f":"IFERROR(IF(ÚverNieJeSplatený*ÚverJeDobrý,SumaÚrokov,0), 0)","v":{"v":45.833333333333336,"d":"45.83 EUR"}},{"$f":"IFERROR(IF(ÚverNieJeSplatený*ÚverJeDobrý,KonečnýZostatok,0), 0)","v":{"v":9937.307055372852,"d":"9,937.31 EUR"}}]
[null,{"$f":"IFERROR(IF(ÚverNieJeSplatený*ÚverJeDobrý,ČísloPlatby,\"\"), \"\")","v":2},{"$f":"IFERROR(IF(ÚverNieJeSplatený*ÚverJeDobrý,DátumPlatby,PočiatočnýDátumÚveru), PočiatočnýDátumÚveru)","v":"2019-09-17"},{"$f":"IFERROR(IF(ÚverNieJeSplatený*ÚverJeDobrý,HodnotaÚveru,\"\"), \"\")","v":{"v":9937.307055372852,"d":"9,937.31 EUR"}},{"$f":"IFERROR(IF(ÚverNieJeSplatený*ÚverJeDobrý,MesačnáSplátka,0), 0)","v":{"v":108.52627796048073,"d":"108.53 EUR"}},{"$f":"IFERROR(IF(ÚverNieJeSplatený*ÚverJeDobrý,Istina,0), 0)","v":{"v":62.98028729002182,"d":"62.98 EUR"}},{"$f":"IFERROR(IF(ÚverNieJeSplatený*ÚverJeDobrý,SumaÚrokov,0), 0)","v":{"v":45.545990670458906,"d":"45.55 EUR"}},{"$f":"IFERROR(IF(ÚverNieJeSplatený*ÚverJeDobrý,KonečnýZostatok,0), 0)","v":{"v":9874.32676808283,"d":"9,874.33 EUR"}}]
[null,{"$f":"IFERROR(IF(ÚverNieJeSplatený*ÚverJeDobrý,ČísloPlatby,\"\"), \"\")","v":3},{"$f":"IFERROR(IF(ÚverNieJeSplatený*ÚverJeDobrý,DátumPlatby,PočiatočnýDátumÚveru), PočiatočnýDátumÚveru)","v":"2019-10-17"},{"$f":"IFERROR(IF(ÚverNieJeSplatený*ÚverJeDobrý,HodnotaÚveru,\"\"), \"\")","v":{"v":9874.32676808283,"d":"9,874.33 EUR"}},{"$f":"IFERROR(IF(ÚverNieJeSplatený*ÚverJeDobrý,MesačnáSplátka,0), 0)","v":{"v":108.52627796048073,"d":"108.53 EUR"}},{"$f":"IFERROR(IF(ÚverNieJeSplatený*ÚverJeDobrý,Istina,0), 0)","v":{"v":63.268946940101095,"d":"63.27 EUR"}},{"$f":"IFERROR(IF(ÚverNieJeSplatený*ÚverJeDobrý,SumaÚrokov,0), 0)","v":{"v":45.257331020379645,"d":"45.26 EUR"}},{"$f":"IFERROR(IF(ÚverNieJeSplatený*ÚverJeDobrý,KonečnýZostatok,0), 0)","v":{"v":9811.05782114273,"d":"9,811.06 EUR"}}]
[null,{"$f":"IFERROR(IF(ÚverNieJeSplatený*ÚverJeDobrý,ČísloPlatby,\"\"), \"\")","v":4},{"$f":"IFERROR(IF(ÚverNieJeSplatený*ÚverJeDobrý,DátumPlatby,PočiatočnýDátumÚveru), PočiatočnýDátumÚveru)","v":"2019-11-17"},{"$f":"IFERROR(IF(ÚverNieJeSplatený*ÚverJeDobrý,HodnotaÚveru,\"\"), \"\")","v":{"v":9811.05782114273,"d":"9,811.06 EUR"}},{"$f":"IFERROR(IF(ÚverNieJeSplatený*ÚverJeDobrý,MesačnáSplátka,0), 0)","v":{"v":108.52627796048073,"d":"108.53 EUR"}},{"$f":"IFERROR(IF(ÚverNieJeSplatený*ÚverJeDobrý,Istina,0), 0)","v":{"v":63.55892961357656,"d":"63.56 EUR"}},{"$f":"IFERROR(IF(ÚverNieJeSplatený*ÚverJeDobrý,SumaÚrokov,0), 0)","v":{"v":44.96734834690417,"d":"44.97 EUR"}},{"$f":"IFERROR(IF(ÚverNieJeSplatený*ÚverJeDobrý,KonečnýZostatok,0), 0)","v":{"v":9747.498891529152,"d":"9,747.50 EUR"}}]
[null,{"$f":"IFERROR(IF(ÚverNieJeSplatený*ÚverJeDobrý,ČísloPlatby,\"\"), \"\")","v":5},{"$f":"IFERROR(IF(ÚverNieJeSplatený*ÚverJeDobrý,DátumPlatby,PočiatočnýDátumÚveru), PočiatočnýDátumÚveru)","v":"2019-12-17"},{"$f":"IFERROR(IF(ÚverNieJeSplatený*ÚverJeDobrý,HodnotaÚveru,\"\"), \"\")","v":{"v":9747.498891529152,"d":"9,747.50 EUR"}},{"$f":"IFERROR(IF(ÚverNieJeSplatený*ÚverJeDobrý,MesačnáSplátka,0), 0)","v":{"v":108.52627796048073,"d":"108.53 EUR"}},{"$f":"IFERROR(IF(ÚverNieJeSplatený*ÚverJeDobrý,Istina,0), 0)","v":{"v":63.850241374305455,"d":"63.85 EUR"}},{"$f":"IFERROR(IF(ÚverNieJeSplatený*ÚverJeDobrý,SumaÚrokov,0), 0)","v":{"v":44.67603658617527,"d":"44.68 EUR"}},{"$f":"IFERROR(IF(ÚverNieJeSplatený*ÚverJeDobrý,KonečnýZostatok,0), 0)","v":{"v":9683.648650154846,"d":"9,683.65 EUR"}}]
[null,{"$f":"IFERROR(IF(ÚverNieJeSplatený*ÚverJeDobrý,ČísloPlatby,\"\"), \"\")","v":6},{"$f":"IFERROR(IF(ÚverNieJeSplatený*ÚverJeDobrý,DátumPlatby,PočiatočnýDátumÚveru), PočiatočnýDátumÚveru)","v":"2020-01-17"},{"$f":"IFERROR(IF(ÚverNieJeSplatený*ÚverJeDobrý,HodnotaÚveru,\"\"), \"\")","v":{"v":9683.648650154846,"d":"9,683.65 EUR"}},{"$f":"IFERROR(IF(ÚverNieJeSplatený*ÚverJeDobrý,MesačnáSplátka,0), 0)","v":{"v":108.52627796048073,"d":"108.53 EUR"}},{"$f":"IFERROR(IF(ÚverNieJeSplatený*ÚverJeDobrý,Istina,0), 0)","v":{"v":64.14288831393768,"d":"64.14 EUR"}},{"$f":"IFERROR(IF(ÚverNieJeSplatený*ÚverJeDobrý,SumaÚrokov,0), 0)","v":{"v":44.383389646543044,"d":"44.38 EUR"}},{"$f":"IFERROR(IF(ÚverNieJeSplatený*ÚverJeDobrý,KonečnýZostatok,0), 0)","v":{"v":9619.505761840908,"d":"9,619.51 EUR"}}]
[null,{"$f":"IFERROR(IF(ÚverNieJeSplatený*ÚverJeDobrý,ČísloPlatby,\"\"), \"\")","v":7},{"$f":"IFERROR(IF(ÚverNieJeSplatený*ÚverJeDobrý,DátumPlatby,PočiatočnýDátumÚveru), PočiatočnýDátumÚveru)","v":"2020-02-17"},{"$f":"IFERROR(IF(ÚverNieJeSplatený*ÚverJeDobrý,HodnotaÚveru,\"\"), \"\")","v":{"v":9619.505761840908,"d":"9,619.51 EUR"}},{"$f":"IFERROR(IF(ÚverNieJeSplatený*ÚverJeDobrý,MesačnáSplátka,0), 0)","v":{"v":108.52627796048073,"d":"108.53 EUR"}},{"$f":"IFERROR(IF(ÚverNieJeSplatený*ÚverJeDobrý,Istina,0), 0)","v":{"v":64.43687655204323,"d":"64.44 EUR"}},{"$f":"IFERROR(IF(ÚverNieJeSplatený*ÚverJeDobrý,SumaÚrokov,0), 0)","v":{"v":44.089401408437496,"d":"44.09 EUR"}},{"$f":"IFERROR(IF(ÚverNieJeSplatený*ÚverJeDobrý,KonečnýZostatok,0), 0)","v":{"v":9555.068885288867,"d":"9,555.07 EUR"}}]
[null,{"$f":"IFERROR(IF(ÚverNieJeSplatený*ÚverJeDobrý,ČísloPlatby,\"\"), \"\")","v":8},{"$f":"IFERROR(IF(ÚverNieJeSplatený*ÚverJeDobrý,DátumPlatby,PočiatočnýDátumÚveru), PočiatočnýDátumÚveru)","v":"2020-03-17"},{"$f":"IFERROR(IF(ÚverNieJeSplatený*ÚverJeDobrý,HodnotaÚveru,\"\"), \"\")","v":{"v":9555.068885288867,"d":"9,555.07 EUR"}},{"$f":"IFERROR(IF(ÚverNieJeSplatený*ÚverJeDobrý,MesačnáSplátka,0), 0)","v":{"v":108.52627796048073,"d":"108.53 EUR"}},{"$f":"IFERROR(IF(ÚverNieJeSplatený*ÚverJeDobrý,Istina,0), 0)","v":{"v":64.73221223624009,"d":"64.73 EUR"}},{"$f":"IFERROR(IF(ÚverNieJeSplatený*ÚverJeDobrý,SumaÚrokov,0), 0)","v":{"v":43.79406572424063,"d":"43.79 EUR"}},{"$f":"IFERROR(IF(ÚverNieJeSplatený*ÚverJeDobrý,KonečnýZostatok,0), 0)","v":{"v":9490.336673052625,"d":"9,490.34 EUR"}}]
[null,{"$f":"IFERROR(IF(ÚverNieJeSplatený*ÚverJeDobrý,ČísloPlatby,\"\"), \"\")","v":9},{"$f":"IFERROR(IF(ÚverNieJeSplatený*ÚverJeDobrý,DátumPlatby,PočiatočnýDátumÚveru), PočiatočnýDátumÚveru)","v":"2020-04-17"},{"$f":"IFERROR(IF(ÚverNieJeSplatený*ÚverJeDobrý,HodnotaÚveru,\"\"), \"\")","v":{"v":9490.336673052625,"d":"9,490.34 EUR"}},{"$f":"IFERROR(IF(ÚverNieJeSplatený*ÚverJeDobrý,MesačnáSplátka,0), 0)","v":{"v":108.52627796048073,"d":"108.53 EUR"}},{"$f":"IFERROR(IF(ÚverNieJeSplatený*ÚverJeDobrý,Istina,0), 0)","v":{"v":65.02890154232287,"d":"65.03 EUR"}},{"$f":"IFERROR(IF(ÚverNieJeSplatený*ÚverJeDobrý,SumaÚrokov,0), 0)","v":{"v":43.49737641815786,"d":"43.50 EUR"}},{"$f":"IFERROR(IF(ÚverNieJeSplatený*ÚverJeDobrý,KonečnýZostatok,0), 0)","v":{"v":9425.307771510303,"d":"9,425.31 EUR"}}]
[null,{"$f":"IFERROR(IF(ÚverNieJeSplatený*ÚverJeDobrý,ČísloPlatby,\"\"), \"\")","v":10},{"$f":"IFERROR(IF(ÚverNieJeSplatený*ÚverJeDobrý,DátumPlatby,PočiatočnýDátumÚveru), PočiatočnýDátumÚveru)","v":"2020-05-17"},{"$f":"IFERROR(IF(ÚverNieJeSplatený*ÚverJeDobrý,HodnotaÚveru,\"\"), \"\")","v":{"v":9425.307771510303,"d":"9,425.31 EUR"}},{"$f":"IFERROR(IF(ÚverNieJeSplatený*ÚverJeDobrý,MesačnáSplátka,0), 0)","v":{"v":108.52627796048073,"d":"108.53 EUR"}},{"$f":"IFERROR(IF(ÚverNieJeSplatený*ÚverJeDobrý,Istina,0), 0)","v":{"v":65.32695067439184,"d":"65.33 EUR"}},{"$f":"IFERROR(IF(ÚverNieJeSplatený*ÚverJeDobrý,SumaÚrokov,0), 0)","v":{"v":43.19932728608889,"d":"43.20 EUR"}},{"$f":"IFERROR(IF(ÚverNieJeSplatený*ÚverJeDobrý,KonečnýZostatok,0), 0)","v":{"v":9359.98082083591,"d":"9,359.98 EUR"}}]
[null,{"$f":"IFERROR(IF(ÚverNieJeSplatený*ÚverJeDobrý,ČísloPlatby,\"\"), \"\")","v":11},{"$f":"IFERROR(IF(ÚverNieJeSplatený*ÚverJeDobrý,DátumPlatby,PočiatočnýDátumÚveru), PočiatočnýDátumÚveru)","v":"2020-06-17"},{"$f":"IFERROR(IF(ÚverNieJeSplatený*ÚverJeDobrý,HodnotaÚveru,\"\"), \"\")","v":{"v":9359.98082083591,"d":"9,359.98 EUR"}},{"$f":"IFERROR(IF(ÚverNieJeSplatený*ÚverJeDobrý,MesačnáSplátka,0), 0)","v":{"v":108.52627796048073,"d":"108.53 EUR"}},{"$f":"IFERROR(IF(ÚverNieJeSplatený*ÚverJeDobrý,Istina,0), 0)","v":{"v":65.6263658649828,"d":"65.63 EUR"}},{"$f":"IFERROR(IF(ÚverNieJeSplatený*ÚverJeDobrý,SumaÚrokov,0), 0)","v":{"v":42.89991209549792,"d":"42.90 EUR"}},{"$f":"IFERROR(IF(ÚverNieJeSplatený*ÚverJeDobrý,KonečnýZostatok,0), 0)","v":{"v":9294.354454970928,"d":"9,294.35 EUR"}}]
[null,{"$f":"IFERROR(IF(ÚverNieJeSplatený*ÚverJeDobrý,ČísloPlatby,\"\"), \"\")","v":12},{"$f":"IFERROR(IF(ÚverNieJeSplatený*ÚverJeDobrý,DátumPlatby,PočiatočnýDátumÚveru), PočiatočnýDátumÚveru)","v":"2020-07-17"},{"$f":"IFERROR(IF(ÚverNieJeSplatený*ÚverJeDobrý,HodnotaÚveru,\"\"), \"\")","v":{"v":9294.354454970928,"d":"9,294.35 EUR"}},{"$f":"IFERROR(IF(ÚverNieJeSplatený*ÚverJeDobrý,MesačnáSplátka,0), 0)","v":{"v":108.52627796048073,"d":"108.53 EUR"}},{"$f":"IFERROR(IF(ÚverNieJeSplatený*ÚverJeDobrý,Istina,0), 0)","v":{"v":65.92715337519732,"d":"65.93 EUR"}},{"$f":"IFERROR(IF(ÚverNieJeSplatený*ÚverJeDobrý,SumaÚrokov,0), 0)","v":{"v":42.59912458528342,"d":"42.60 EUR"}},{"$f":"IFERROR(IF(ÚverNieJeSplatený*ÚverJeDobrý,KonečnýZostatok,0), 0)","v":{"v":9228.427301595733,"d":"9,228.43 EUR"}}]
[null,{"$f":"IFERROR(IF(ÚverNieJeSplatený*ÚverJeDobrý,ČísloPlatby,\"\"), \"\")","v":13},{"$f":"IFERROR(IF(ÚverNieJeSplatený*ÚverJeDobrý,DátumPlatby,PočiatočnýDátumÚveru), PočiatočnýDátumÚveru)","v":"2020-08-17"},{"$f":"IFERROR(IF(ÚverNieJeSplatený*ÚverJeDobrý,HodnotaÚveru,\"\"), \"\")","v":{"v":9228.427301595733,"d":"9,228.43 EUR"}},{"$f":"IFERROR(IF(ÚverNieJeSplatený*ÚverJeDobrý,MesačnáSplátka,0), 0)","v":{"v":108.52627796048073,"d":"108.53 EUR"}},{"$f":"IFERROR(IF(ÚverNieJeSplatený*ÚverJeDobrý,Istina,0), 0)","v":{"v":66.22931949483362,"d":"66.23 EUR"}},{"$f":"IFERROR(IF(ÚverNieJeSplatený*ÚverJeDobrý,SumaÚrokov,0), 0)","v":{"v":42.296958465647094,"d":"42.30 EUR"}},{"$f":"IFERROR(IF(ÚverNieJeSplatený*ÚverJeDobrý,KonečnýZostatok,0), 0)","v":{"v":9162.197982100897,"d":"9,162.20 EUR"}}]
[null,{"$f":"IFERROR(IF(ÚverNieJeSplatený*ÚverJeDobrý,ČísloPlatby,\"\"), \"\")","v":14},{"$f":"IFERROR(IF(ÚverNieJeSplatený*ÚverJeDobrý,DátumPlatby,PočiatočnýDátumÚveru), PočiatočnýDátumÚveru)","v":"2020-09-17"},{"$f":"IFERROR(IF(ÚverNieJeSplatený*ÚverJeDobrý,HodnotaÚveru,\"\"), \"\")","v":{"v":9162.197982100897,"d":"9,162.20 EUR"}},{"$f":"IFERROR(IF(ÚverNieJeSplatený*ÚverJeDobrý,MesačnáSplátka,0), 0)","v":{"v":108.52627796048073,"d":"108.53 EUR"}},{"$f":"IFERROR(IF(ÚverNieJeSplatený*ÚverJeDobrý,Istina,0), 0)","v":{"v":66.53287054251828,"d":"66.53 EUR"}},{"$f":"IFERROR(IF(ÚverNieJeSplatený*ÚverJeDobrý,SumaÚrokov,0), 0)","v":{"v":41.99340741796244,"d":"41.99 EUR"}},{"$f":"IFERROR(IF(ÚverNieJeSplatený*ÚverJeDobrý,KonečnýZostatok,0), 0)","v":{"v":9095.665111558377,"d":"9,095.67 EUR"}}]
[null,{"$f":"IFERROR(IF(ÚverNieJeSplatený*ÚverJeDobrý,ČísloPlatby,\"\"), \"\")","v":15},{"$f":"IFERROR(IF(ÚverNieJeSplatený*ÚverJeDobrý,DátumPlatby,PočiatočnýDátumÚveru), PočiatočnýDátumÚveru)","v":"2020-10-17"},{"$f":"IFERROR(IF(ÚverNieJeSplatený*ÚverJeDobrý,HodnotaÚveru,\"\"), \"\")","v":{"v":9095.665111558377,"d":"9,095.67 EUR"}},{"$f":"IFERROR(IF(ÚverNieJeSplatený*ÚverJeDobrý,MesačnáSplátka,0), 0)","v":{"v":108.52627796048073,"d":"108.53 EUR"}},{"$f":"IFERROR(IF(ÚverNieJeSplatený*ÚverJeDobrý,Istina,0), 0)","v":{"v":66.83781286583816,"d":"66.84 EUR"}},{"$f":"IFERROR(IF(ÚverNieJeSplatený*ÚverJeDobrý,SumaÚrokov,0), 0)","v":{"v":41.68846509464256,"d":"41.69 EUR"}},{"$f":"IFERROR(IF(ÚverNieJeSplatený*ÚverJeDobrý,KonečnýZostatok,0), 0)","v":{"v":9028.82729869254,"d":"9,028.83 EUR"}}]
[null,{"$f":"IFERROR(IF(ÚverNieJeSplatený*ÚverJeDobrý,ČísloPlatby,\"\"), \"\")","v":16},{"$f":"IFERROR(IF(ÚverNieJeSplatený*ÚverJeDobrý,DátumPlatby,PočiatočnýDátumÚveru), PočiatočnýDátumÚveru)","v":"2020-11-17"},{"$f":"IFERROR(IF(ÚverNieJeSplatený*ÚverJeDobrý,HodnotaÚveru,\"\"), \"\")","v":{"v":9028.82729869254,"d":"9,028.83 EUR"}},{"$f":"IFERROR(IF(ÚverNieJeSplatený*ÚverJeDobrý,MesačnáSplátka,0), 0)","v":{"v":108.52627796048073,"d":"108.53 EUR"}},{"$f":"IFERROR(IF(ÚverNieJeSplatený*ÚverJeDobrý,Istina,0), 0)","v":{"v":67.14415284147324,"d":"67.14 EUR"}},{"$f":"IFERROR(IF(ÚverNieJeSplatený*ÚverJeDobrý,SumaÚrokov,0), 0)","v":{"v":41.382125119007476,"d":"41.38 EUR"}},{"$f":"IFERROR(IF(ÚverNieJeSplatený*ÚverJeDobrý,KonečnýZostatok,0), 0)","v":{"v":8961.683145851068,"d":"8,961.68 EUR"}}]
[null,{"$f":"IFERROR(IF(ÚverNieJeSplatený*ÚverJeDobrý,ČísloPlatby,\"\"), \"\")","v":17},{"$f":"IFERROR(IF(ÚverNieJeSplatený*ÚverJeDobrý,DátumPlatby,PočiatočnýDátumÚveru), PočiatočnýDátumÚveru)","v":"2020-12-17"},{"$f":"IFERROR(IF(ÚverNieJeSplatený*ÚverJeDobrý,HodnotaÚveru,\"\"), \"\")","v":{"v":8961.683145851068,"d":"8,961.68 EUR"}},{"$f":"IFERROR(IF(ÚverNieJeSplatený*ÚverJeDobrý,MesačnáSplátka,0), 0)","v":{"v":108.52627796048073,"d":"108.53 EUR"}},{"$f":"IFERROR(IF(ÚverNieJeSplatený*ÚverJeDobrý,Istina,0), 0)","v":{"v":67.45189687533001,"d":"67.45 EUR"}},{"$f":"IFERROR(IF(ÚverNieJeSplatený*ÚverJeDobrý,SumaÚrokov,0), 0)","v":{"v":41.074381085150726,"d":"41.07 EUR"}},{"$f":"IFERROR(IF(ÚverNieJeSplatený*ÚverJeDobrý,KonečnýZostatok,0), 0)","v":{"v":8894.231248975735,"d":"8,894.23 EUR"}}]
[null,{"$f":"IFERROR(IF(ÚverNieJeSplatený*ÚverJeDobrý,ČísloPlatby,\"\"), \"\")","v":18},{"$f":"IFERROR(IF(ÚverNieJeSplatený*ÚverJeDobrý,DátumPlatby,PočiatočnýDátumÚveru), PočiatočnýDátumÚveru)","v":"2021-01-17"},{"$f":"IFERROR(IF(ÚverNieJeSplatený*ÚverJeDobrý,HodnotaÚveru,\"\"), \"\")","v":{"v":8894.231248975735,"d":"8,894.23 EUR"}},{"$f":"IFERROR(IF(ÚverNieJeSplatený*ÚverJeDobrý,MesačnáSplátka,0), 0)","v":{"v":108.52627796048073,"d":"108.53 EUR"}},{"$f":"IFERROR(IF(ÚverNieJeSplatený*ÚverJeDobrý,Istina,0), 0)","v":{"v":67.76105140267526,"d":"67.76 EUR"}},{"$f":"IFERROR(IF(ÚverNieJeSplatený*ÚverJeDobrý,SumaÚrokov,0), 0)","v":{"v":40.76522655780546,"d":"40.77 EUR"}},{"$f":"IFERROR(IF(ÚverNieJeSplatený*ÚverJeDobrý,KonečnýZostatok,0), 0)","v":{"v":8826.47019757306,"d":"8,826.47 EUR"}}]
[null,{"$f":"IFERROR(IF(ÚverNieJeSplatený*ÚverJeDobrý,ČísloPlatby,\"\"), \"\")","v":19},{"$f":"IFERROR(IF(ÚverNieJeSplatený*ÚverJeDobrý,DátumPlatby,PočiatočnýDátumÚveru), PočiatočnýDátumÚveru)","v":"2021-02-17"},{"$f":"IFERROR(IF(ÚverNieJeSplatený*ÚverJeDobrý,HodnotaÚveru,\"\"), \"\")","v":{"v":8826.47019757306,"d":"8,826.47 EUR"}},{"$f":"IFERROR(IF(ÚverNieJeSplatený*ÚverJeDobrý,MesačnáSplátka,0), 0)","v":{"v":108.52627796048073,"d":"108.53 EUR"}},{"$f":"IFERROR(IF(ÚverNieJeSplatený*ÚverJeDobrý,Istina,0), 0)","v":{"v":68.07162288827085,"d":"68.07 EUR"}},{"$f":"IFERROR(IF(ÚverNieJeSplatený*ÚverJeDobrý,SumaÚrokov,0), 0)","v":{"v":40.45465507220987,"d":"40.45 EUR"}},{"$f":"IFERROR(IF(ÚverNieJeSplatený*ÚverJeDobrý,KonečnýZostatok,0), 0)","v":{"v":8758.398574684792,"d":"8,758.40 EUR"}}]
[null,{"$f":"IFERROR(IF(ÚverNieJeSplatený*ÚverJeDobrý,ČísloPlatby,\"\"), \"\")","v":20},{"$f":"IFERROR(IF(ÚverNieJeSplatený*ÚverJeDobrý,DátumPlatby,PočiatočnýDátumÚveru), PočiatočnýDátumÚveru)","v":"2021-03-17"},{"$f":"IFERROR(IF(ÚverNieJeSplatený*ÚverJeDobrý,HodnotaÚveru,\"\"), \"\")","v":{"v":8758.398574684792,"d":"8,758.40 EUR"}},{"$f":"IFERROR(IF(ÚverNieJeSplatený*ÚverJeDobrý,MesačnáSplátka,0), 0)","v":{"v":108.52627796048073,"d":"108.53 EUR"}},{"$f":"IFERROR(IF(ÚverNieJeSplatený*ÚverJeDobrý,Istina,0), 0)","v":{"v":68.38361782650877,"d":"68.38 EUR"}},{"$f":"IFERROR(IF(ÚverNieJeSplatený*ÚverJeDobrý,SumaÚrokov,0), 0)","v":{"v":40.142660133971965,"d":"40.14 EUR"}},{"$f":"IFERROR(IF(ÚverNieJeSplatený*ÚverJeDobrý,KonečnýZostatok,0), 0)","v":{"v":8690.014956858282,"d":"8,690.01 EUR"}}]
[null,{"$f":"IFERROR(IF(ÚverNieJeSplatený*ÚverJeDobrý,ČísloPlatby,\"\"), \"\")","v":21},{"$f":"IFERROR(IF(ÚverNieJeSplatený*ÚverJeDobrý,DátumPlatby,PočiatočnýDátumÚveru), PočiatočnýDátumÚveru)","v":"2021-04-17"},{"$f":"IFERROR(IF(ÚverNieJeSplatený*ÚverJeDobrý,HodnotaÚveru,\"\"), \"\")","v":{"v":8690.014956858282,"d":"8,690.01 EUR"}},{"$f":"IFERROR(IF(ÚverNieJeSplatený*ÚverJeDobrý,MesačnáSplátka,0), 0)","v":{"v":108.52627796048073,"d":"108.53 EUR"}},{"$f":"IFERROR(IF(ÚverNieJeSplatený*ÚverJeDobrý,Istina,0), 0)","v":{"v":68.69704274154692,"d":"68.70 EUR"}},{"$f":"IFERROR(IF(ÚverNieJeSplatený*ÚverJeDobrý,SumaÚrokov,0), 0)","v":{"v":39.82923521893379,"d":"39.83 EUR"}},{"$f":"IFERROR(IF(ÚverNieJeSplatený*ÚverJeDobrý,KonečnýZostatok,0), 0)","v":{"v":8621.317914116735,"d":"8,621.32 EUR"}}]
[null,{"$f":"IFERROR(IF(ÚverNieJeSplatený*ÚverJeDobrý,ČísloPlatby,\"\"), \"\")","v":22},{"$f":"IFERROR(IF(ÚverNieJeSplatený*ÚverJeDobrý,DátumPlatby,PočiatočnýDátumÚveru), PočiatočnýDátumÚveru)","v":"2021-05-17"},{"$f":"IFERROR(IF(ÚverNieJeSplatený*ÚverJeDobrý,HodnotaÚveru,\"\"), \"\")","v":{"v":8621.317914116735,"d":"8,621.32 EUR"}},{"$f":"IFERROR(IF(ÚverNieJeSplatený*ÚverJeDobrý,MesačnáSplátka,0), 0)","v":{"v":108.52627796048073,"d":"108.53 EUR"}},{"$f":"IFERROR(IF(ÚverNieJeSplatený*ÚverJeDobrý,Istina,0), 0)","v":{"v":69.01190418744568,"d":"69.01 EUR"}},{"$f":"IFERROR(IF(ÚverNieJeSplatený*ÚverJeDobrý,SumaÚrokov,0), 0)","v":{"v":39.51437377303504,"d":"39.51 EUR"}},{"$f":"IFERROR(IF(ÚverNieJeSplatený*ÚverJeDobrý,KonečnýZostatok,0), 0)","v":{"v":8552.306009929285,"d":"8,552.31 EUR"}}]
[null,{"$f":"IFERROR(IF(ÚverNieJeSplatený*ÚverJeDobrý,ČísloPlatby,\"\"), \"\")","v":23},{"$f":"IFERROR(IF(ÚverNieJeSplatený*ÚverJeDobrý,DátumPlatby,PočiatočnýDátumÚveru), PočiatočnýDátumÚveru)","v":"2021-06-17"},{"$f":"IFERROR(IF(ÚverNieJeSplatený*ÚverJeDobrý,HodnotaÚveru,\"\"), \"\")","v":{"v":8552.306009929285,"d":"8,552.31 EUR"}},{"$f":"IFERROR(IF(ÚverNieJeSplatený*ÚverJeDobrý,MesačnáSplátka,0), 0)","v":{"v":108.52627796048073,"d":"108.53 EUR"}},{"$f":"IFERROR(IF(ÚverNieJeSplatený*ÚverJeDobrý,Istina,0), 0)","v":{"v":69.32820874830482,"d":"69.33 EUR"}},{"$f":"IFERROR(IF(ÚverNieJeSplatený*ÚverJeDobrý,SumaÚrokov,0), 0)","v":{"v":39.19806921217591,"d":"39.20 EUR"}},{"$f":"IFERROR(IF(ÚverNieJeSplatený*ÚverJeDobrý,KonečnýZostatok,0), 0)","v":{"v":8482.977801180983,"d":"8,482.98 EUR"}}]
[null,{"$f":"IFERROR(IF(ÚverNieJeSplatený*ÚverJeDobrý,ČísloPlatby,\"\"), \"\")","v":24},{"$f":"IFERROR(IF(ÚverNieJeSplatený*ÚverJeDobrý,DátumPlatby,PočiatočnýDátumÚveru), PočiatočnýDátumÚveru)","v":"2021-07-17"},{"$f":"IFERROR(IF(ÚverNieJeSplatený*ÚverJeDobrý,HodnotaÚveru,\"\"), \"\")","v":{"v":8482.977801180983,"d":"8,482.98 EUR"}},{"$f":"IFERROR(IF(ÚverNieJeSplatený*ÚverJeDobrý,MesačnáSplátka,0), 0)","v":{"v":108.52627796048073,"d":"108.53 EUR"}},{"$f":"IFERROR(IF(ÚverNieJeSplatený*ÚverJeDobrý,Istina,0), 0)","v":{"v":69.6459630384012,"d":"69.65 EUR"}},{"$f":"IFERROR(IF(ÚverNieJeSplatený*ÚverJeDobrý,SumaÚrokov,0), 0)","v":{"v":38.880314922079506,"d":"38.88 EUR"}},{"$f":"IFERROR(IF(ÚverNieJeSplatený*ÚverJeDobrý,KonečnýZostatok,0), 0)","v":{"v":8413.331838142582,"d":"8,413.33 EUR"}}]
[null,{"$f":"IFERROR(IF(ÚverNieJeSplatený*ÚverJeDobrý,ČísloPlatby,\"\"), \"\")","v":25},{"$f":"IFERROR(IF(ÚverNieJeSplatený*ÚverJeDobrý,DátumPlatby,PočiatočnýDátumÚveru), PočiatočnýDátumÚveru)","v":"2021-08-17"},{"$f":"IFERROR(IF(ÚverNieJeSplatený*ÚverJeDobrý,HodnotaÚveru,\"\"), \"\")","v":{"v":8413.331838142582,"d":"8,413.33 EUR"}},{"$f":"IFERROR(IF(ÚverNieJeSplatený*ÚverJeDobrý,MesačnáSplátka,0), 0)","v":{"v":108.52627796048073,"d":"108.53 EUR"}},{"$f":"IFERROR(IF(ÚverNieJeSplatený*ÚverJeDobrý,Istina,0), 0)","v":{"v":69.96517370232722,"d":"69.97 EUR"}},{"$f":"IFERROR(IF(ÚverNieJeSplatený*ÚverJeDobrý,SumaÚrokov,0), 0)","v":{"v":38.561104258153506,"d":"38.56 EUR"}},{"$f":"IFERROR(IF(ÚverNieJeSplatený*ÚverJeDobrý,KonečnýZostatok,0), 0)","v":{"v":8343.366664440255,"d":"8,343.37 EUR"}}]
[null,{"$f":"IFERROR(IF(ÚverNieJeSplatený*ÚverJeDobrý,ČísloPlatby,\"\"), \"\")","v":26},{"$f":"IFERROR(IF(ÚverNieJeSplatený*ÚverJeDobrý,DátumPlatby,PočiatočnýDátumÚveru), PočiatočnýDátumÚveru)","v":"2021-09-17"},{"$f":"IFERROR(IF(ÚverNieJeSplatený*ÚverJeDobrý,HodnotaÚveru,\"\"), \"\")","v":{"v":8343.366664440255,"d":"8,343.37 EUR"}},{"$f":"IFERROR(IF(ÚverNieJeSplatený*ÚverJeDobrý,MesačnáSplátka,0), 0)","v":{"v":108.52627796048073,"d":"108.53 EUR"}},{"$f":"IFERROR(IF(ÚverNieJeSplatený*ÚverJeDobrý,Istina,0), 0)","v":{"v":70.28584741512955,"d":"70.29 EUR"}},{"$f":"IFERROR(IF(ÚverNieJeSplatený*ÚverJeDobrý,SumaÚrokov,0), 0)","v":{"v":38.240430545351174,"d":"38.24 EUR"}},{"$f":"IFERROR(IF(ÚverNieJeSplatený*ÚverJeDobrý,KonečnýZostatok,0), 0)","v":{"v":8273.080817025126,"d":"8,273.08 EUR"}}]
[null,{"$f":"IFERROR(IF(ÚverNieJeSplatený*ÚverJeDobrý,ČísloPlatby,\"\"), \"\")","v":27},{"$f":"IFERROR(IF(ÚverNieJeSplatený*ÚverJeDobrý,DátumPlatby,PočiatočnýDátumÚveru), PočiatočnýDátumÚveru)","v":"2021-10-17"},{"$f":"IFERROR(IF(ÚverNieJeSplatený*ÚverJeDobrý,HodnotaÚveru,\"\"), \"\")","v":{"v":8273.080817025126,"d":"8,273.08 EUR"}},{"$f":"IFERROR(IF(ÚverNieJeSplatený*ÚverJeDobrý,MesačnáSplátka,0), 0)","v":{"v":108.52627796048073,"d":"108.53 EUR"}},{"$f":"IFERROR(IF(ÚverNieJeSplatený*ÚverJeDobrý,Istina,0), 0)","v":{"v":70.6079908824489,"d":"70.61 EUR"}},{"$f":"IFERROR(IF(ÚverNieJeSplatený*ÚverJeDobrý,SumaÚrokov,0), 0)","v":{"v":37.91828707803184,"d":"37.92 EUR"}},{"$f":"IFERROR(IF(ÚverNieJeSplatený*ÚverJeDobrý,KonečnýZostatok,0), 0)","v":{"v":8202.472826142679,"d":"8,202.47 EUR"}}]
[null,{"$f":"IFERROR(IF(ÚverNieJeSplatený*ÚverJeDobrý,ČísloPlatby,\"\"), \"\")","v":28},{"$f":"IFERROR(IF(ÚverNieJeSplatený*ÚverJeDobrý,DátumPlatby,PočiatočnýDátumÚveru), PočiatočnýDátumÚveru)","v":"2021-11-17"},{"$f":"IFERROR(IF(ÚverNieJeSplatený*ÚverJeDobrý,HodnotaÚveru,\"\"), \"\")","v":{"v":8202.472826142679,"d":"8,202.47 EUR"}},{"$f":"IFERROR(IF(ÚverNieJeSplatený*ÚverJeDobrý,MesačnáSplátka,0), 0)","v":{"v":108.52627796048073,"d":"108.53 EUR"}},{"$f":"IFERROR(IF(ÚverNieJeSplatený*ÚverJeDobrý,Istina,0), 0)","v":{"v":70.93161084066011,"d":"70.93 EUR"}},{"$f":"IFERROR(IF(ÚverNieJeSplatený*ÚverJeDobrý,SumaÚrokov,0), 0)","v":{"v":37.59466711982061,"d":"37.59 EUR"}},{"$f":"IFERROR(IF(ÚverNieJeSplatený*ÚverJeDobrý,KonečnýZostatok,0), 0)","v":{"v":8131.541215302017,"d":"8,131.54 EUR"}}]
[null,{"$f":"IFERROR(IF(ÚverNieJeSplatený*ÚverJeDobrý,ČísloPlatby,\"\"), \"\")","v":29},{"$f":"IFERROR(IF(ÚverNieJeSplatený*ÚverJeDobrý,DátumPlatby,PočiatočnýDátumÚveru), PočiatočnýDátumÚveru)","v":"2021-12-17"},{"$f":"IFERROR(IF(ÚverNieJeSplatený*ÚverJeDobrý,HodnotaÚveru,\"\"), \"\")","v":{"v":8131.541215302017,"d":"8,131.54 EUR"}},{"$f":"IFERROR(IF(ÚverNieJeSplatený*ÚverJeDobrý,MesačnáSplátka,0), 0)","v":{"v":108.52627796048073,"d":"108.53 EUR"}},{"$f":"IFERROR(IF(ÚverNieJeSplatený*ÚverJeDobrý,Istina,0), 0)","v":{"v":71.25671405701314,"d":"71.26 EUR"}},{"$f":"IFERROR(IF(ÚverNieJeSplatený*ÚverJeDobrý,SumaÚrokov,0), 0)","v":{"v":37.269563903467585,"d":"37.27 EUR"}},{"$f":"IFERROR(IF(ÚverNieJeSplatený*ÚverJeDobrý,KonečnýZostatok,0), 0)","v":{"v":8060.284501245003,"d":"8,060.28 EUR"}}]
[null,{"$f":"IFERROR(IF(ÚverNieJeSplatený*ÚverJeDobrý,ČísloPlatby,\"\"), \"\")","v":30},{"$f":"IFERROR(IF(ÚverNieJeSplatený*ÚverJeDobrý,DátumPlatby,PočiatočnýDátumÚveru), PočiatočnýDátumÚveru)","v":"2022-01-17"},{"$f":"IFERROR(IF(ÚverNieJeSplatený*ÚverJeDobrý,HodnotaÚveru,\"\"), \"\")","v":{"v":8060.284501245003,"d":"8,060.28 EUR"}},{"$f":"IFERROR(IF(ÚverNieJeSplatený*ÚverJeDobrý,MesačnáSplátka,0), 0)","v":{"v":108.52627796048073,"d":"108.53 EUR"}},{"$f":"IFERROR(IF(ÚverNieJeSplatený*ÚverJeDobrý,Istina,0), 0)","v":{"v":71.58330732977446,"d":"71.58 EUR"}},{"$f":"IFERROR(IF(ÚverNieJeSplatený*ÚverJeDobrý,SumaÚrokov,0), 0)","v":{"v":36.94297063070627,"d":"36.94 EUR"}},{"$f":"IFERROR(IF(ÚverNieJeSplatený*ÚverJeDobrý,KonečnýZostatok,0), 0)","v":{"v":7988.701193915229,"d":"7,988.70 EUR"}}]
[null,{"$f":"IFERROR(IF(ÚverNieJeSplatený*ÚverJeDobrý,ČísloPlatby,\"\"), \"\")","v":31},{"$f":"IFERROR(IF(ÚverNieJeSplatený*ÚverJeDobrý,DátumPlatby,PočiatočnýDátumÚveru), PočiatočnýDátumÚveru)","v":"2022-02-17"},{"$f":"IFERROR(IF(ÚverNieJeSplatený*ÚverJeDobrý,HodnotaÚveru,\"\"), \"\")","v":{"v":7988.701193915229,"d":"7,988.70 EUR"}},{"$f":"IFERROR(IF(ÚverNieJeSplatený*ÚverJeDobrý,MesačnáSplátka,0), 0)","v":{"v":108.52627796048073,"d":"108.53 EUR"}},{"$f":"IFERROR(IF(ÚverNieJeSplatený*ÚverJeDobrý,Istina,0), 0)","v":{"v":71.91139748836926,"d":"71.91 EUR"}},{"$f":"IFERROR(IF(ÚverNieJeSplatený*ÚverJeDobrý,SumaÚrokov,0), 0)","v":{"v":36.61488047211147,"d":"36.61 EUR"}},{"$f":"IFERROR(IF(ÚverNieJeSplatený*ÚverJeDobrý,KonečnýZostatok,0), 0)","v":{"v":7916.7897964268595,"d":"7,916.79 EUR"}}]
[null,{"$f":"IFERROR(IF(ÚverNieJeSplatený*ÚverJeDobrý,ČísloPlatby,\"\"), \"\")","v":32},{"$f":"IFERROR(IF(ÚverNieJeSplatený*ÚverJeDobrý,DátumPlatby,PočiatočnýDátumÚveru), PočiatočnýDátumÚveru)","v":"2022-03-17"},{"$f":"IFERROR(IF(ÚverNieJeSplatený*ÚverJeDobrý,HodnotaÚveru,\"\"), \"\")","v":{"v":7916.7897964268595,"d":"7,916.79 EUR"}},{"$f":"IFERROR(IF(ÚverNieJeSplatený*ÚverJeDobrý,MesačnáSplátka,0), 0)","v":{"v":108.52627796048073,"d":"108.53 EUR"}},{"$f":"IFERROR(IF(ÚverNieJeSplatený*ÚverJeDobrý,Istina,0), 0)","v":{"v":72.24099139352428,"d":"72.24 EUR"}},{"$f":"IFERROR(IF(ÚverNieJeSplatený*ÚverJeDobrý,SumaÚrokov,0), 0)","v":{"v":36.285286566956444,"d":"36.29 EUR"}},{"$f":"IFERROR(IF(ÚverNieJeSplatený*ÚverJeDobrý,KonečnýZostatok,0), 0)","v":{"v":7844.548805033334,"d":"7,844.55 EUR"}}]
[null,{"$f":"IFERROR(IF(ÚverNieJeSplatený*ÚverJeDobrý,ČísloPlatby,\"\"), \"\")","v":33},{"$f":"IFERROR(IF(ÚverNieJeSplatený*ÚverJeDobrý,DátumPlatby,PočiatočnýDátumÚveru), PočiatočnýDátumÚveru)","v":"2022-04-17"},{"$f":"IFERROR(IF(ÚverNieJeSplatený*ÚverJeDobrý,HodnotaÚveru,\"\"), \"\")","v":{"v":7844.548805033334,"d":"7,844.55 EUR"}},{"$f":"IFERROR(IF(ÚverNieJeSplatený*ÚverJeDobrý,MesačnáSplátka,0), 0)","v":{"v":108.52627796048073,"d":"108.53 EUR"}},{"$f":"IFERROR(IF(ÚverNieJeSplatený*ÚverJeDobrý,Istina,0), 0)","v":{"v":72.57209593741128,"d":"72.57 EUR"}},{"$f":"IFERROR(IF(ÚverNieJeSplatený*ÚverJeDobrý,SumaÚrokov,0), 0)","v":{"v":35.95418202306946,"d":"35.95 EUR"}},{"$f":"IFERROR(IF(ÚverNieJeSplatený*ÚverJeDobrý,KonečnýZostatok,0), 0)","v":{"v":7771.97670909592,"d":"7,771.98 EUR"}}]
[null,{"$f":"IFERROR(IF(ÚverNieJeSplatený*ÚverJeDobrý,ČísloPlatby,\"\"), \"\")","v":34},{"$f":"IFERROR(IF(ÚverNieJeSplatený*ÚverJeDobrý,DátumPlatby,PočiatočnýDátumÚveru), PočiatočnýDátumÚveru)","v":"2022-05-17"},{"$f":"IFERROR(IF(ÚverNieJeSplatený*ÚverJeDobrý,HodnotaÚveru,\"\"), \"\")","v":{"v":7771.97670909592,"d":"7,771.98 EUR"}},{"$f":"IFERROR(IF(ÚverNieJeSplatený*ÚverJeDobrý,MesačnáSplátka,0), 0)","v":{"v":108.52627796048073,"d":"108.53 EUR"}},{"$f":"IFERROR(IF(ÚverNieJeSplatený*ÚverJeDobrý,Istina,0), 0)","v":{"v":72.90471804379106,"d":"72.90 EUR"}},{"$f":"IFERROR(IF(ÚverNieJeSplatený*ÚverJeDobrý,SumaÚrokov,0), 0)","v":{"v":35.621559916689655,"d":"35.62 EUR"}},{"$f":"IFERROR(IF(ÚverNieJeSplatený*ÚverJeDobrý,KonečnýZostatok,0), 0)","v":{"v":7699.07199105213,"d":"7,699.07 EUR"}}]
[null,{"$f":"IFERROR(IF(ÚverNieJeSplatený*ÚverJeDobrý,ČísloPlatby,\"\"), \"\")","v":35},{"$f":"IFERROR(IF(ÚverNieJeSplatený*ÚverJeDobrý,DátumPlatby,PočiatočnýDátumÚveru), PočiatočnýDátumÚveru)","v":"2022-06-17"},{"$f":"IFERROR(IF(ÚverNieJeSplatený*ÚverJeDobrý,HodnotaÚveru,\"\"), \"\")","v":{"v":7699.07199105213,"d":"7,699.07 EUR"}},{"$f":"IFERROR(IF(ÚverNieJeSplatený*ÚverJeDobrý,MesačnáSplátka,0), 0)","v":{"v":108.52627796048073,"d":"108.53 EUR"}},{"$f":"IFERROR(IF(ÚverNieJeSplatený*ÚverJeDobrý,Istina,0), 0)","v":{"v":73.23886466815844,"d":"73.24 EUR"}},{"$f":"IFERROR(IF(ÚverNieJeSplatený*ÚverJeDobrý,SumaÚrokov,0), 0)","v":{"v":35.28741329232228,"d":"35.29 EUR"}},{"$f":"IFERROR(IF(ÚverNieJeSplatený*ÚverJeDobrý,KonečnýZostatok,0), 0)","v":{"v":7625.833126383972,"d":"7,625.83 EUR"}}]
[null,{"$f":"IFERROR(IF(ÚverNieJeSplatený*ÚverJeDobrý,ČísloPlatby,\"\"), \"\")","v":36},{"$f":"IFERROR(IF(ÚverNieJeSplatený*ÚverJeDobrý,DátumPlatby,PočiatočnýDátumÚveru), PočiatočnýDátumÚveru)","v":"2022-07-17"},{"$f":"IFERROR(IF(ÚverNieJeSplatený*ÚverJeDobrý,HodnotaÚveru,\"\"), \"\")","v":{"v":7625.833126383972,"d":"7,625.83 EUR"}},{"$f":"IFERROR(IF(ÚverNieJeSplatený*ÚverJeDobrý,MesačnáSplátka,0), 0)","v":{"v":108.52627796048073,"d":"108.53 EUR"}},{"$f":"IFERROR(IF(ÚverNieJeSplatený*ÚverJeDobrý,Istina,0), 0)","v":{"v":73.5745427978875,"d":"73.57 EUR"}},{"$f":"IFERROR(IF(ÚverNieJeSplatený*ÚverJeDobrý,SumaÚrokov,0), 0)","v":{"v":34.95173516259322,"d":"34.95 EUR"}},{"$f":"IFERROR(IF(ÚverNieJeSplatený*ÚverJeDobrý,KonečnýZostatok,0), 0)","v":{"v":7552.258583586085,"d":"7,552.26 EUR"}}]
[null,{"$f":"IFERROR(IF(ÚverNieJeSplatený*ÚverJeDobrý,ČísloPlatby,\"\"), \"\")","v":37},{"$f":"IFERROR(IF(ÚverNieJeSplatený*ÚverJeDobrý,DátumPlatby,PočiatočnýDátumÚveru), PočiatočnýDátumÚveru)","v":"2022-08-17"},{"$f":"IFERROR(IF(ÚverNieJeSplatený*ÚverJeDobrý,HodnotaÚveru,\"\"), \"\")","v":{"v":7552.258583586085,"d":"7,552.26 EUR"}},{"$f":"IFERROR(IF(ÚverNieJeSplatený*ÚverJeDobrý,MesačnáSplátka,0), 0)","v":{"v":108.52627796048073,"d":"108.53 EUR"}},{"$f":"IFERROR(IF(ÚverNieJeSplatený*ÚverJeDobrý,Istina,0), 0)","v":{"v":73.91175945237782,"d":"73.91 EUR"}},{"$f":"IFERROR(IF(ÚverNieJeSplatený*ÚverJeDobrý,SumaÚrokov,0), 0)","v":{"v":34.614518508102904,"d":"34.61 EUR"}},{"$f":"IFERROR(IF(ÚverNieJeSplatený*ÚverJeDobrý,KonečnýZostatok,0), 0)","v":{"v":7478.346824133705,"d":"7,478.35 EUR"}}]
[null,{"$f":"IFERROR(IF(ÚverNieJeSplatený*ÚverJeDobrý,ČísloPlatby,\"\"), \"\")","v":38},{"$f":"IFERROR(IF(ÚverNieJeSplatený*ÚverJeDobrý,DátumPlatby,PočiatočnýDátumÚveru), PočiatočnýDátumÚveru)","v":"2022-09-17"},{"$f":"IFERROR(IF(ÚverNieJeSplatený*ÚverJeDobrý,HodnotaÚveru,\"\"), \"\")","v":{"v":7478.346824133705,"d":"7,478.35 EUR"}},{"$f":"IFERROR(IF(ÚverNieJeSplatený*ÚverJeDobrý,MesačnáSplátka,0), 0)","v":{"v":108.52627796048073,"d":"108.53 EUR"}},{"$f":"IFERROR(IF(ÚverNieJeSplatený*ÚverJeDobrý,Istina,0), 0)","v":{"v":74.25052168320121,"d":"74.25 EUR"}},{"$f":"IFERROR(IF(ÚverNieJeSplatený*ÚverJeDobrý,SumaÚrokov,0), 0)","v":{"v":34.275756277279505,"d":"34.28 EUR"}},{"$f":"IFERROR(IF(ÚverNieJeSplatený*ÚverJeDobrý,KonečnýZostatok,0), 0)","v":{"v":7404.096302450503,"d":"7,404.10 EUR"}}]
[null,{"$f":"IFERROR(IF(ÚverNieJeSplatený*ÚverJeDobrý,ČísloPlatby,\"\"), \"\")","v":39},{"$f":"IFERROR(IF(ÚverNieJeSplatený*ÚverJeDobrý,DátumPlatby,PočiatočnýDátumÚveru), PočiatočnýDátumÚveru)","v":"2022-10-17"},{"$f":"IFERROR(IF(ÚverNieJeSplatený*ÚverJeDobrý,HodnotaÚveru,\"\"), \"\")","v":{"v":7404.096302450503,"d":"7,404.10 EUR"}},{"$f":"IFERROR(IF(ÚverNieJeSplatený*ÚverJeDobrý,MesačnáSplátka,0), 0)","v":{"v":108.52627796048073,"d":"108.53 EUR"}},{"$f":"IFERROR(IF(ÚverNieJeSplatený*ÚverJeDobrý,Istina,0), 0)","v":{"v":74.59083657424922,"d":"74.59 EUR"}},{"$f":"IFERROR(IF(ÚverNieJeSplatený*ÚverJeDobrý,SumaÚrokov,0), 0)","v":{"v":33.9354413862315,"d":"33.94 EUR"}},{"$f":"IFERROR(IF(ÚverNieJeSplatený*ÚverJeDobrý,KonečnýZostatok,0), 0)","v":{"v":7329.505465876257,"d":"7,329.51 EUR"}}]
[null,{"$f":"IFERROR(IF(ÚverNieJeSplatený*ÚverJeDobrý,ČísloPlatby,\"\"), \"\")","v":40},{"$f":"IFERROR(IF(ÚverNieJeSplatený*ÚverJeDobrý,DátumPlatby,PočiatočnýDátumÚveru), PočiatočnýDátumÚveru)","v":"2022-11-17"},{"$f":"IFERROR(IF(ÚverNieJeSplatený*ÚverJeDobrý,HodnotaÚveru,\"\"), \"\")","v":{"v":7329.505465876257,"d":"7,329.51 EUR"}},{"$f":"IFERROR(IF(ÚverNieJeSplatený*ÚverJeDobrý,MesačnáSplátka,0), 0)","v":{"v":108.52627796048073,"d":"108.53 EUR"}},{"$f":"IFERROR(IF(ÚverNieJeSplatený*ÚverJeDobrý,Istina,0), 0)","v":{"v":74.9327112418812,"d":"74.93 EUR"}},{"$f":"IFERROR(IF(ÚverNieJeSplatený*ÚverJeDobrý,SumaÚrokov,0), 0)","v":{"v":33.593566718599526,"d":"33.59 EUR"}},{"$f":"IFERROR(IF(ÚverNieJeSplatený*ÚverJeDobrý,KonečnýZostatok,0), 0)","v":{"v":7254.572754634376,"d":"7,254.57 EUR"}}]
[null,{"$f":"IFERROR(IF(ÚverNieJeSplatený*ÚverJeDobrý,ČísloPlatby,\"\"), \"\")","v":41},{"$f":"IFERROR(IF(ÚverNieJeSplatený*ÚverJeDobrý,DátumPlatby,PočiatočnýDátumÚveru), PočiatočnýDátumÚveru)","v":"2022-12-17"},{"$f":"IFERROR(IF(ÚverNieJeSplatený*ÚverJeDobrý,HodnotaÚveru,\"\"), \"\")","v":{"v":7254.572754634376,"d":"7,254.57 EUR"}},{"$f":"IFERROR(IF(ÚverNieJeSplatený*ÚverJeDobrý,MesačnáSplátka,0), 0)","v":{"v":108.52627796048073,"d":"108.53 EUR"}},{"$f":"IFERROR(IF(ÚverNieJeSplatený*ÚverJeDobrý,Istina,0), 0)","v":{"v":75.27615283507315,"d":"75.28 EUR"}},{"$f":"IFERROR(IF(ÚverNieJeSplatený*ÚverJeDobrý,SumaÚrokov,0), 0)","v":{"v":33.25012512540757,"d":"33.25 EUR"}},{"$f":"IFERROR(IF(ÚverNieJeSplatený*ÚverJeDobrý,KonečnýZostatok,0), 0)","v":{"v":7179.296601799301,"d":"7,179.30 EUR"}}]
[null,{"$f":"IFERROR(IF(ÚverNieJeSplatený*ÚverJeDobrý,ČísloPlatby,\"\"), \"\")","v":42},{"$f":"IFERROR(IF(ÚverNieJeSplatený*ÚverJeDobrý,DátumPlatby,PočiatočnýDátumÚveru), PočiatočnýDátumÚveru)","v":"2023-01-17"},{"$f":"IFERROR(IF(ÚverNieJeSplatený*ÚverJeDobrý,HodnotaÚveru,\"\"), \"\")","v":{"v":7179.296601799301,"d":"7,179.30 EUR"}},{"$f":"IFERROR(IF(ÚverNieJeSplatený*ÚverJeDobrý,MesačnáSplátka,0), 0)","v":{"v":108.52627796048073,"d":"108.53 EUR"}},{"$f":"IFERROR(IF(ÚverNieJeSplatený*ÚverJeDobrý,Istina,0), 0)","v":{"v":75.62116853556724,"d":"75.62 EUR"}},{"$f":"IFERROR(IF(ÚverNieJeSplatený*ÚverJeDobrý,SumaÚrokov,0), 0)","v":{"v":32.90510942491348,"d":"32.91 EUR"}},{"$f":"IFERROR(IF(ÚverNieJeSplatený*ÚverJeDobrý,KonečnýZostatok,0), 0)","v":{"v":7103.675433263734,"d":"7,103.68 EUR"}}]
[null,{"$f":"IFERROR(IF(ÚverNieJeSplatený*ÚverJeDobrý,ČísloPlatby,\"\"), \"\")","v":43},{"$f":"IFERROR(IF(ÚverNieJeSplatený*ÚverJeDobrý,DátumPlatby,PočiatočnýDátumÚveru), PočiatočnýDátumÚveru)","v":"2023-02-17"},{"$f":"IFERROR(IF(ÚverNieJeSplatený*ÚverJeDobrý,HodnotaÚveru,\"\"), \"\")","v":{"v":7103.675433263734,"d":"7,103.68 EUR"}},{"$f":"IFERROR(IF(ÚverNieJeSplatený*ÚverJeDobrý,MesačnáSplátka,0), 0)","v":{"v":108.52627796048073,"d":"108.53 EUR"}},{"$f":"IFERROR(IF(ÚverNieJeSplatený*ÚverJeDobrý,Istina,0), 0)","v":{"v":75.96776555802192,"d":"75.97 EUR"}},{"$f":"IFERROR(IF(ÚverNieJeSplatený*ÚverJeDobrý,SumaÚrokov,0), 0)","v":{"v":32.558512402458796,"d":"32.56 EUR"}},{"$f":"IFERROR(IF(ÚverNieJeSplatený*ÚverJeDobrý,KonečnýZostatok,0), 0)","v":{"v":7027.707667705709,"d":"7,027.71 EUR"}}]
[null,{"$f":"IFERROR(IF(ÚverNieJeSplatený*ÚverJeDobrý,ČísloPlatby,\"\"), \"\")","v":44},{"$f":"IFERROR(IF(ÚverNieJeSplatený*ÚverJeDobrý,DátumPlatby,PočiatočnýDátumÚveru), PočiatočnýDátumÚveru)","v":"2023-03-17"},{"$f":"IFERROR(IF(ÚverNieJeSplatený*ÚverJeDobrý,HodnotaÚveru,\"\"), \"\")","v":{"v":7027.707667705709,"d":"7,027.71 EUR"}},{"$f":"IFERROR(IF(ÚverNieJeSplatený*ÚverJeDobrý,MesačnáSplátka,0), 0)","v":{"v":108.52627796048073,"d":"108.53 EUR"}},{"$f":"IFERROR(IF(ÚverNieJeSplatený*ÚverJeDobrý,Istina,0), 0)","v":{"v":76.31595115016286,"d":"76.32 EUR"}},{"$f":"IFERROR(IF(ÚverNieJeSplatený*ÚverJeDobrý,SumaÚrokov,0), 0)","v":{"v":32.210326810317866,"d":"32.21 EUR"}},{"$f":"IFERROR(IF(ÚverNieJeSplatený*ÚverJeDobrý,KonečnýZostatok,0), 0)","v":{"v":6951.391716555551,"d":"6,951.39 EUR"}}]
[null,{"$f":"IFERROR(IF(ÚverNieJeSplatený*ÚverJeDobrý,ČísloPlatby,\"\"), \"\")","v":45},{"$f":"IFERROR(IF(ÚverNieJeSplatený*ÚverJeDobrý,DátumPlatby,PočiatočnýDátumÚveru), PočiatočnýDátumÚveru)","v":"2023-04-17"},{"$f":"IFERROR(IF(ÚverNieJeSplatený*ÚverJeDobrý,HodnotaÚveru,\"\"), \"\")","v":{"v":6951.391716555551,"d":"6,951.39 EUR"}},{"$f":"IFERROR(IF(ÚverNieJeSplatený*ÚverJeDobrý,MesačnáSplátka,0), 0)","v":{"v":108.52627796048073,"d":"108.53 EUR"}},{"$f":"IFERROR(IF(ÚverNieJeSplatený*ÚverJeDobrý,Istina,0), 0)","v":{"v":76.66573259293443,"d":"76.67 EUR"}},{"$f":"IFERROR(IF(ÚverNieJeSplatený*ÚverJeDobrý,SumaÚrokov,0), 0)","v":{"v":31.860545367546287,"d":"31.86 EUR"}},{"$f":"IFERROR(IF(ÚverNieJeSplatený*ÚverJeDobrý,KonečnýZostatok,0), 0)","v":{"v":6874.725983962615,"d":"6,874.73 EUR"}}]
[null,{"$f":"IFERROR(IF(ÚverNieJeSplatený*ÚverJeDobrý,ČísloPlatby,\"\"), \"\")","v":46},{"$f":"IFERROR(IF(ÚverNieJeSplatený*ÚverJeDobrý,DátumPlatby,PočiatočnýDátumÚveru), PočiatočnýDátumÚveru)","v":"2023-05-17"},{"$f":"IFERROR(IF(ÚverNieJeSplatený*ÚverJeDobrý,HodnotaÚveru,\"\"), \"\")","v":{"v":6874.725983962615,"d":"6,874.73 EUR"}},{"$f":"IFERROR(IF(ÚverNieJeSplatený*ÚverJeDobrý,MesačnáSplátka,0), 0)","v":{"v":108.52627796048073,"d":"108.53 EUR"}},{"$f":"IFERROR(IF(ÚverNieJeSplatený*ÚverJeDobrý,Istina,0), 0)","v":{"v":77.01711720065207,"d":"77.02 EUR"}},{"$f":"IFERROR(IF(ÚverNieJeSplatený*ÚverJeDobrý,SumaÚrokov,0), 0)","v":{"v":31.509160759828674,"d":"31.51 EUR"}},{"$f":"IFERROR(IF(ÚverNieJeSplatený*ÚverJeDobrý,KonečnýZostatok,0), 0)","v":{"v":6797.70886676196,"d":"6,797.71 EUR"}}]
[null,{"$f":"IFERROR(IF(ÚverNieJeSplatený*ÚverJeDobrý,ČísloPlatby,\"\"), \"\")","v":47},{"$f":"IFERROR(IF(ÚverNieJeSplatený*ÚverJeDobrý,DátumPlatby,PočiatočnýDátumÚveru), PočiatočnýDátumÚveru)","v":"2023-06-17"},{"$f":"IFERROR(IF(ÚverNieJeSplatený*ÚverJeDobrý,HodnotaÚveru,\"\"), \"\")","v":{"v":6797.70886676196,"d":"6,797.71 EUR"}},{"$f":"IFERROR(IF(ÚverNieJeSplatený*ÚverJeDobrý,MesačnáSplátka,0), 0)","v":{"v":108.52627796048073,"d":"108.53 EUR"}},{"$f":"IFERROR(IF(ÚverNieJeSplatený*ÚverJeDobrý,Istina,0), 0)","v":{"v":77.37011232115503,"d":"77.37 EUR"}},{"$f":"IFERROR(IF(ÚverNieJeSplatený*ÚverJeDobrý,SumaÚrokov,0), 0)","v":{"v":31.15616563932568,"d":"31.16 EUR"}},{"$f":"IFERROR(IF(ÚverNieJeSplatený*ÚverJeDobrý,KonečnýZostatok,0), 0)","v":{"v":6720.338754440809,"d":"6,720.34 EUR"}}]
[null,{"$f":"IFERROR(IF(ÚverNieJeSplatený*ÚverJeDobrý,ČísloPlatby,\"\"), \"\")","v":48},{"$f":"IFERROR(IF(ÚverNieJeSplatený*ÚverJeDobrý,DátumPlatby,PočiatočnýDátumÚveru), PočiatočnýDátumÚveru)","v":"2023-07-17"},{"$f":"IFERROR(IF(ÚverNieJeSplatený*ÚverJeDobrý,HodnotaÚveru,\"\"), \"\")","v":{"v":6720.338754440809,"d":"6,720.34 EUR"}},{"$f":"IFERROR(IF(ÚverNieJeSplatený*ÚverJeDobrý,MesačnáSplátka,0), 0)","v":{"v":108.52627796048073,"d":"108.53 EUR"}},{"$f":"IFERROR(IF(ÚverNieJeSplatený*ÚverJeDobrý,Istina,0), 0)","v":{"v":77.72472533596034,"d":"77.72 EUR"}},{"$f":"IFERROR(IF(ÚverNieJeSplatený*ÚverJeDobrý,SumaÚrokov,0), 0)","v":{"v":30.80155262452039,"d":"30.80 EUR"}},{"$f":"IFERROR(IF(ÚverNieJeSplatený*ÚverJeDobrý,KonečnýZostatok,0), 0)","v":{"v":6642.614029104847,"d":"6,642.61 EUR"}}]
[null,{"$f":"IFERROR(IF(ÚverNieJeSplatený*ÚverJeDobrý,ČísloPlatby,\"\"), \"\")","v":49},{"$f":"IFERROR(IF(ÚverNieJeSplatený*ÚverJeDobrý,DátumPlatby,PočiatočnýDátumÚveru), PočiatočnýDátumÚveru)","v":"2023-08-17"},{"$f":"IFERROR(IF(ÚverNieJeSplatený*ÚverJeDobrý,HodnotaÚveru,\"\"), \"\")","v":{"v":6642.614029104847,"d":"6,642.61 EUR"}},{"$f":"IFERROR(IF(ÚverNieJeSplatený*ÚverJeDobrý,MesačnáSplátka,0), 0)","v":{"v":108.52627796048073,"d":"108.53 EUR"}},{"$f":"IFERROR(IF(ÚverNieJeSplatený*ÚverJeDobrý,Istina,0), 0)","v":{"v":78.08096366041683,"d":"78.08 EUR"}},{"$f":"IFERROR(IF(ÚverNieJeSplatený*ÚverJeDobrý,SumaÚrokov,0), 0)","v":{"v":30.445314300063902,"d":"30.45 EUR"}},{"$f":"IFERROR(IF(ÚverNieJeSplatený*ÚverJeDobrý,KonečnýZostatok,0), 0)","v":{"v":6564.53306544443,"d":"6,564.53 EUR"}}]
[null,{"$f":"IFERROR(IF(ÚverNieJeSplatený*ÚverJeDobrý,ČísloPlatby,\"\"), \"\")","v":50},{"$f":"IFERROR(IF(ÚverNieJeSplatený*ÚverJeDobrý,DátumPlatby,PočiatočnýDátumÚveru), PočiatočnýDátumÚveru)","v":"2023-09-17"},{"$f":"IFERROR(IF(ÚverNieJeSplatený*ÚverJeDobrý,HodnotaÚveru,\"\"), \"\")","v":{"v":6564.53306544443,"d":"6,564.53 EUR"}},{"$f":"IFERROR(IF(ÚverNieJeSplatený*ÚverJeDobrý,MesačnáSplátka,0), 0)","v":{"v":108.52627796048073,"d":"108.53 EUR"}},{"$f":"IFERROR(IF(ÚverNieJeSplatený*ÚverJeDobrý,Istina,0), 0)","v":{"v":78.43883474386041,"d":"78.44 EUR"}},{"$f":"IFERROR(IF(ÚverNieJeSplatený*ÚverJeDobrý,SumaÚrokov,0), 0)","v":{"v":30.08744321662033,"d":"30.09 EUR"}},{"$f":"IFERROR(IF(ÚverNieJeSplatený*ÚverJeDobrý,KonečnýZostatok,0), 0)","v":{"v":6486.094230700569,"d":"6,486.09 EUR"}}]
[null,{"$f":"IFERROR(IF(ÚverNieJeSplatený*ÚverJeDobrý,ČísloPlatby,\"\"), \"\")","v":51},{"$f":"IFERROR(IF(ÚverNieJeSplatený*ÚverJeDobrý,DátumPlatby,PočiatočnýDátumÚveru), PočiatočnýDátumÚveru)","v":"2023-10-17"},{"$f":"IFERROR(IF(ÚverNieJeSplatený*ÚverJeDobrý,HodnotaÚveru,\"\"), \"\")","v":{"v":6486.094230700569,"d":"6,486.09 EUR"}},{"$f":"IFERROR(IF(ÚverNieJeSplatený*ÚverJeDobrý,MesačnáSplátka,0), 0)","v":{"v":108.52627796048073,"d":"108.53 EUR"}},{"$f":"IFERROR(IF(ÚverNieJeSplatený*ÚverJeDobrý,Istina,0), 0)","v":{"v":78.79834606976975,"d":"78.80 EUR"}},{"$f":"IFERROR(IF(ÚverNieJeSplatený*ÚverJeDobrý,SumaÚrokov,0), 0)","v":{"v":29.727931890710963,"d":"29.73 EUR"}},{"$f":"IFERROR(IF(ÚverNieJeSplatený*ÚverJeDobrý,KonečnýZostatok,0), 0)","v":{"v":6407.295884630799,"d":"6,407.30 EUR"}}]
[null,{"$f":"IFERROR(IF(ÚverNieJeSplatený*ÚverJeDobrý,ČísloPlatby,\"\"), \"\")","v":52},{"$f":"IFERROR(IF(ÚverNieJeSplatený*ÚverJeDobrý,DátumPlatby,PočiatočnýDátumÚveru), PočiatočnýDátumÚveru)","v":"2023-11-17"},{"$f":"IFERROR(IF(ÚverNieJeSplatený*ÚverJeDobrý,HodnotaÚveru,\"\"), \"\")","v":{"v":6407.295884630799,"d":"6,407.30 EUR"}},{"$f":"IFERROR(IF(ÚverNieJeSplatený*ÚverJeDobrý,MesačnáSplátka,0), 0)","v":{"v":108.52627796048073,"d":"108.53 EUR"}},{"$f":"IFERROR(IF(ÚverNieJeSplatený*ÚverJeDobrý,Istina,0), 0)","v":{"v":79.15950515592287,"d":"79.16 EUR"}},{"$f":"IFERROR(IF(ÚverNieJeSplatený*ÚverJeDobrý,SumaÚrokov,0), 0)","v":{"v":29.36677280455785,"d":"29.37 EUR"}},{"$f":"IFERROR(IF(ÚverNieJeSplatený*ÚverJeDobrý,KonečnýZostatok,0), 0)","v":{"v":6328.136379474876,"d":"6,328.14 EUR"}}]
[null,{"$f":"IFERROR(IF(ÚverNieJeSplatený*ÚverJeDobrý,ČísloPlatby,\"\"), \"\")","v":53},{"$f":"IFERROR(IF(ÚverNieJeSplatený*ÚverJeDobrý,DátumPlatby,PočiatočnýDátumÚveru), PočiatočnýDátumÚveru)","v":"2023-12-17"},{"$f":"IFERROR(IF(ÚverNieJeSplatený*ÚverJeDobrý,HodnotaÚveru,\"\"), \"\")","v":{"v":6328.136379474876,"d":"6,328.14 EUR"}},{"$f":"IFERROR(IF(ÚverNieJeSplatený*ÚverJeDobrý,MesačnáSplátka,0), 0)","v":{"v":108.52627796048073,"d":"108.53 EUR"}},{"$f":"IFERROR(IF(ÚverNieJeSplatený*ÚverJeDobrý,Istina,0), 0)","v":{"v":79.52231955455417,"d":"79.52 EUR"}},{"$f":"IFERROR(IF(ÚverNieJeSplatený*ÚverJeDobrý,SumaÚrokov,0), 0)","v":{"v":29.003958405926536,"d":"29.00 EUR"}},{"$f":"IFERROR(IF(ÚverNieJeSplatený*ÚverJeDobrý,KonečnýZostatok,0), 0)","v":{"v":6248.614059920319,"d":"6,248.61 EUR"}}]
[null,{"$f":"IFERROR(IF(ÚverNieJeSplatený*ÚverJeDobrý,ČísloPlatby,\"\"), \"\")","v":54},{"$f":"IFERROR(IF(ÚverNieJeSplatený*ÚverJeDobrý,DátumPlatby,PočiatočnýDátumÚveru), PočiatočnýDátumÚveru)","v":"2024-01-17"},{"$f":"IFERROR(IF(ÚverNieJeSplatený*ÚverJeDobrý,HodnotaÚveru,\"\"), \"\")","v":{"v":6248.614059920319,"d":"6,248.61 EUR"}},{"$f":"IFERROR(IF(ÚverNieJeSplatený*ÚverJeDobrý,MesačnáSplátka,0), 0)","v":{"v":108.52627796048073,"d":"108.53 EUR"}},{"$f":"IFERROR(IF(ÚverNieJeSplatený*ÚverJeDobrý,Istina,0), 0)","v":{"v":79.88679685251256,"d":"79.89 EUR"}},{"$f":"IFERROR(IF(ÚverNieJeSplatený*ÚverJeDobrý,SumaÚrokov,0), 0)","v":{"v":28.639481107968166,"d":"28.64 EUR"}},{"$f":"IFERROR(IF(ÚverNieJeSplatený*ÚverJeDobrý,KonečnýZostatok,0), 0)","v":{"v":6168.727263067806,"d":"6,168.73 EUR"}}]
[null,{"$f":"IFERROR(IF(ÚverNieJeSplatený*ÚverJeDobrý,ČísloPlatby,\"\"), \"\")","v":55},{"$f":"IFERROR(IF(ÚverNieJeSplatený*ÚverJeDobrý,DátumPlatby,PočiatočnýDátumÚveru), PočiatočnýDátumÚveru)","v":"2024-02-17"},{"$f":"IFERROR(IF(ÚverNieJeSplatený*ÚverJeDobrý,HodnotaÚveru,\"\"), \"\")","v":{"v":6168.727263067806,"d":"6,168.73 EUR"}},{"$f":"IFERROR(IF(ÚverNieJeSplatený*ÚverJeDobrý,MesačnáSplátka,0), 0)","v":{"v":108.52627796048073,"d":"108.53 EUR"}},{"$f":"IFERROR(IF(ÚverNieJeSplatený*ÚverJeDobrý,Istina,0), 0)","v":{"v":80.2529446714199,"d":"80.25 EUR"}},{"$f":"IFERROR(IF(ÚverNieJeSplatený*ÚverJeDobrý,SumaÚrokov,0), 0)","v":{"v":28.273333289060815,"d":"28.27 EUR"}},{"$f":"IFERROR(IF(ÚverNieJeSplatený*ÚverJeDobrý,KonečnýZostatok,0), 0)","v":{"v":6088.474318396387,"d":"6,088.47 EUR"}}]
[null,{"$f":"IFERROR(IF(ÚverNieJeSplatený*ÚverJeDobrý,ČísloPlatby,\"\"), \"\")","v":56},{"$f":"IFERROR(IF(ÚverNieJeSplatený*ÚverJeDobrý,DátumPlatby,PočiatočnýDátumÚveru), PočiatočnýDátumÚveru)","v":"2024-03-17"},{"$f":"IFERROR(IF(ÚverNieJeSplatený*ÚverJeDobrý,HodnotaÚveru,\"\"), \"\")","v":{"v":6088.474318396387,"d":"6,088.47 EUR"}},{"$f":"IFERROR(IF(ÚverNieJeSplatený*ÚverJeDobrý,MesačnáSplátka,0), 0)","v":{"v":108.52627796048073,"d":"108.53 EUR"}},{"$f":"IFERROR(IF(ÚverNieJeSplatený*ÚverJeDobrý,Istina,0), 0)","v":{"v":80.62077066783058,"d":"80.62 EUR"}},{"$f":"IFERROR(IF(ÚverNieJeSplatený*ÚverJeDobrý,SumaÚrokov,0), 0)","v":{"v":27.905507292650142,"d":"27.91 EUR"}},{"$f":"IFERROR(IF(ÚverNieJeSplatený*ÚverJeDobrý,KonečnýZostatok,0), 0)","v":{"v":6007.853547728558,"d":"6,007.85 EUR"}}]
[null,{"$f":"IFERROR(IF(ÚverNieJeSplatený*ÚverJeDobrý,ČísloPlatby,\"\"), \"\")","v":57},{"$f":"IFERROR(IF(ÚverNieJeSplatený*ÚverJeDobrý,DátumPlatby,PočiatočnýDátumÚveru), PočiatočnýDátumÚveru)","v":"2024-04-17"},{"$f":"IFERROR(IF(ÚverNieJeSplatený*ÚverJeDobrý,HodnotaÚveru,\"\"), \"\")","v":{"v":6007.853547728558,"d":"6,007.85 EUR"}},{"$f":"IFERROR(IF(ÚverNieJeSplatený*ÚverJeDobrý,MesačnáSplátka,0), 0)","v":{"v":108.52627796048073,"d":"108.53 EUR"}},{"$f":"IFERROR(IF(ÚverNieJeSplatený*ÚverJeDobrý,Istina,0), 0)","v":{"v":80.99028253339146,"d":"80.99 EUR"}},{"$f":"IFERROR(IF(ÚverNieJeSplatený*ÚverJeDobrý,SumaÚrokov,0), 0)","v":{"v":27.53599542708925,"d":"27.54 EUR"}},{"$f":"IFERROR(IF(ÚverNieJeSplatený*ÚverJeDobrý,KonečnýZostatok,0), 0)","v":{"v":5926.863265195167,"d":"5,926.86 EUR"}}]
[null,{"$f":"IFERROR(IF(ÚverNieJeSplatený*ÚverJeDobrý,ČísloPlatby,\"\"), \"\")","v":58},{"$f":"IFERROR(IF(ÚverNieJeSplatený*ÚverJeDobrý,DátumPlatby,PočiatočnýDátumÚveru), PočiatočnýDátumÚveru)","v":"2024-05-17"},{"$f":"IFERROR(IF(ÚverNieJeSplatený*ÚverJeDobrý,HodnotaÚveru,\"\"), \"\")","v":{"v":5926.863265195167,"d":"5,926.86 EUR"}},{"$f":"IFERROR(IF(ÚverNieJeSplatený*ÚverJeDobrý,MesačnáSplátka,0), 0)","v":{"v":108.52627796048073,"d":"108.53 EUR"}},{"$f":"IFERROR(IF(ÚverNieJeSplatený*ÚverJeDobrý,Istina,0), 0)","v":{"v":81.36148799500285,"d":"81.36 EUR"}},{"$f":"IFERROR(IF(ÚverNieJeSplatený*ÚverJeDobrý,SumaÚrokov,0), 0)","v":{"v":27.164789965477876,"d":"27.16 EUR"}},{"$f":"IFERROR(IF(ÚverNieJeSplatený*ÚverJeDobrý,KonečnýZostatok,0), 0)","v":{"v":5845.501777200164,"d":"5,845.50 EUR"}}]
[null,{"$f":"IFERROR(IF(ÚverNieJeSplatený*ÚverJeDobrý,ČísloPlatby,\"\"), \"\")","v":59},{"$f":"IFERROR(IF(ÚverNieJeSplatený*ÚverJeDobrý,DátumPlatby,PočiatočnýDátumÚveru), PočiatočnýDátumÚveru)","v":"2024-06-17"},{"$f":"IFERROR(IF(ÚverNieJeSplatený*ÚverJeDobrý,HodnotaÚveru,\"\"), \"\")","v":{"v":5845.501777200164,"d":"5,845.50 EUR"}},{"$f":"IFERROR(IF(ÚverNieJeSplatený*ÚverJeDobrý,MesačnáSplátka,0), 0)","v":{"v":108.52627796048073,"d":"108.53 EUR"}},{"$f":"IFERROR(IF(ÚverNieJeSplatený*ÚverJeDobrý,Istina,0), 0)","v":{"v":81.73439481497995,"d":"81.73 EUR"}},{"$f":"IFERROR(IF(ÚverNieJeSplatený*ÚverJeDobrý,SumaÚrokov,0), 0)","v":{"v":26.79188314550078,"d":"26.79 EUR"}},{"$f":"IFERROR(IF(ÚverNieJeSplatený*ÚverJeDobrý,KonečnýZostatok,0), 0)","v":{"v":5763.767382385183,"d":"5,763.77 EUR"}}]
[null,{"$f":"IFERROR(IF(ÚverNieJeSplatený*ÚverJeDobrý,ČísloPlatby,\"\"), \"\")","v":60},{"$f":"IFERROR(IF(ÚverNieJeSplatený*ÚverJeDobrý,DátumPlatby,PočiatočnýDátumÚveru), PočiatočnýDátumÚveru)","v":"2024-07-17"},{"$f":"IFERROR(IF(ÚverNieJeSplatený*ÚverJeDobrý,HodnotaÚveru,\"\"), \"\")","v":{"v":5763.767382385183,"d":"5,763.77 EUR"}},{"$f":"IFERROR(IF(ÚverNieJeSplatený*ÚverJeDobrý,MesačnáSplátka,0), 0)","v":{"v":108.52627796048073,"d":"108.53 EUR"}},{"$f":"IFERROR(IF(ÚverNieJeSplatený*ÚverJeDobrý,Istina,0), 0)","v":{"v":82.10901079121527,"d":"82.11 EUR"}},{"$f":"IFERROR(IF(ÚverNieJeSplatený*ÚverJeDobrý,SumaÚrokov,0), 0)","v":{"v":26.417267169265454,"d":"26.42 EUR"}},{"$f":"IFERROR(IF(ÚverNieJeSplatený*ÚverJeDobrý,KonečnýZostatok,0), 0)","v":{"v":5681.658371593968,"d":"5,681.66 EUR"}}]
[null,{"$f":"IFERROR(IF(ÚverNieJeSplatený*ÚverJeDobrý,ČísloPlatby,\"\"), \"\")","v":61},{"$f":"IFERROR(IF(ÚverNieJeSplatený*ÚverJeDobrý,DátumPlatby,PočiatočnýDátumÚveru), PočiatočnýDátumÚveru)","v":"2024-08-17"},{"$f":"IFERROR(IF(ÚverNieJeSplatený*ÚverJeDobrý,HodnotaÚveru,\"\"), \"\")","v":{"v":5681.658371593968,"d":"5,681.66 EUR"}},{"$f":"IFERROR(IF(ÚverNieJeSplatený*ÚverJeDobrý,MesačnáSplátka,0), 0)","v":{"v":108.52627796048073,"d":"108.53 EUR"}},{"$f":"IFERROR(IF(ÚverNieJeSplatený*ÚverJeDobrý,Istina,0), 0)","v":{"v":82.48534375734167,"d":"82.49 EUR"}},{"$f":"IFERROR(IF(ÚverNieJeSplatený*ÚverJeDobrý,SumaÚrokov,0), 0)","v":{"v":26.040934203139052,"d":"26.04 EUR"}},{"$f":"IFERROR(IF(ÚverNieJeSplatený*ÚverJeDobrý,KonečnýZostatok,0), 0)","v":{"v":5599.173027836623,"d":"5,599.17 EUR"}}]
[null,{"$f":"IFERROR(IF(ÚverNieJeSplatený*ÚverJeDobrý,ČísloPlatby,\"\"), \"\")","v":62},{"$f":"IFERROR(IF(ÚverNieJeSplatený*ÚverJeDobrý,DátumPlatby,PočiatočnýDátumÚveru), PočiatočnýDátumÚveru)","v":"2024-09-17"},{"$f":"IFERROR(IF(ÚverNieJeSplatený*ÚverJeDobrý,HodnotaÚveru,\"\"), \"\")","v":{"v":5599.173027836623,"d":"5,599.17 EUR"}},{"$f":"IFERROR(IF(ÚverNieJeSplatený*ÚverJeDobrý,MesačnáSplátka,0), 0)","v":{"v":108.52627796048073,"d":"108.53 EUR"}},{"$f":"IFERROR(IF(ÚverNieJeSplatený*ÚverJeDobrý,Istina,0), 0)","v":{"v":82.86340158289616,"d":"82.86 EUR"}},{"$f":"IFERROR(IF(ÚverNieJeSplatený*ÚverJeDobrý,SumaÚrokov,0), 0)","v":{"v":25.662876377584567,"d":"25.66 EUR"}},{"$f":"IFERROR(IF(ÚverNieJeSplatený*ÚverJeDobrý,KonečnýZostatok,0), 0)","v":{"v":5516.309626253729,"d":"5,516.31 EUR"}}]
[null,{"$f":"IFERROR(IF(ÚverNieJeSplatený*ÚverJeDobrý,ČísloPlatby,\"\"), \"\")","v":63},{"$f":"IFERROR(IF(ÚverNieJeSplatený*ÚverJeDobrý,DátumPlatby,PočiatočnýDátumÚveru), PočiatočnýDátumÚveru)","v":"2024-10-17"},{"$f":"IFERROR(IF(ÚverNieJeSplatený*ÚverJeDobrý,HodnotaÚveru,\"\"), \"\")","v":{"v":5516.309626253729,"d":"5,516.31 EUR"}},{"$f":"IFERROR(IF(ÚverNieJeSplatený*ÚverJeDobrý,MesačnáSplátka,0), 0)","v":{"v":108.52627796048073,"d":"108.53 EUR"}},{"$f":"IFERROR(IF(ÚverNieJeSplatený*ÚverJeDobrý,Istina,0), 0)","v":{"v":83.24319217348443,"d":"83.24 EUR"}},{"$f":"IFERROR(IF(ÚverNieJeSplatený*ÚverJeDobrý,SumaÚrokov,0), 0)","v":{"v":25.28308578699629,"d":"25.28 EUR"}},{"$f":"IFERROR(IF(ÚverNieJeSplatený*ÚverJeDobrý,KonečnýZostatok,0), 0)","v":{"v":5433.066434080246,"d":"5,433.07 EUR"}}]
[null,{"$f":"IFERROR(IF(ÚverNieJeSplatený*ÚverJeDobrý,ČísloPlatby,\"\"), \"\")","v":64},{"$f":"IFERROR(IF(ÚverNieJeSplatený*ÚverJeDobrý,DátumPlatby,PočiatočnýDátumÚveru), PočiatočnýDátumÚveru)","v":"2024-11-17"},{"$f":"IFERROR(IF(ÚverNieJeSplatený*ÚverJeDobrý,HodnotaÚveru,\"\"), \"\")","v":{"v":5433.066434080246,"d":"5,433.07 EUR"}},{"$f":"IFERROR(IF(ÚverNieJeSplatený*ÚverJeDobrý,MesačnáSplátka,0), 0)","v":{"v":108.52627796048073,"d":"108.53 EUR"}},{"$f":"IFERROR(IF(ÚverNieJeSplatený*ÚverJeDobrý,Istina,0), 0)","v":{"v":83.62472347094625,"d":"83.62 EUR"}},{"$f":"IFERROR(IF(ÚverNieJeSplatený*ÚverJeDobrý,SumaÚrokov,0), 0)","v":{"v":24.90155448953449,"d":"24.90 EUR"}},{"$f":"IFERROR(IF(ÚverNieJeSplatený*ÚverJeDobrý,KonečnýZostatok,0), 0)","v":{"v":5349.441710609297,"d":"5,349.44 EUR"}}]
[null,{"$f":"IFERROR(IF(ÚverNieJeSplatený*ÚverJeDobrý,ČísloPlatby,\"\"), \"\")","v":65},{"$f":"IFERROR(IF(ÚverNieJeSplatený*ÚverJeDobrý,DátumPlatby,PočiatočnýDátumÚveru), PočiatočnýDátumÚveru)","v":"2024-12-17"},{"$f":"IFERROR(IF(ÚverNieJeSplatený*ÚverJeDobrý,HodnotaÚveru,\"\"), \"\")","v":{"v":5349.441710609297,"d":"5,349.44 EUR"}},{"$f":"IFERROR(IF(ÚverNieJeSplatený*ÚverJeDobrý,MesačnáSplátka,0), 0)","v":{"v":108.52627796048073,"d":"108.53 EUR"}},{"$f":"IFERROR(IF(ÚverNieJeSplatený*ÚverJeDobrý,Istina,0), 0)","v":{"v":84.00800345352141,"d":"84.01 EUR"}},{"$f":"IFERROR(IF(ÚverNieJeSplatený*ÚverJeDobrý,SumaÚrokov,0), 0)","v":{"v":24.51827450695932,"d":"24.52 EUR"}},{"$f":"IFERROR(IF(ÚverNieJeSplatený*ÚverJeDobrý,KonečnýZostatok,0), 0)","v":{"v":5265.433707155773,"d":"5,265.43 EUR"}}]
[null,{"$f":"IFERROR(IF(ÚverNieJeSplatený*ÚverJeDobrý,ČísloPlatby,\"\"), \"\")","v":66},{"$f":"IFERROR(IF(ÚverNieJeSplatený*ÚverJeDobrý,DátumPlatby,PočiatočnýDátumÚveru), PočiatočnýDátumÚveru)","v":"2025-01-17"},{"$f":"IFERROR(IF(ÚverNieJeSplatený*ÚverJeDobrý,HodnotaÚveru,\"\"), \"\")","v":{"v":5265.433707155773,"d":"5,265.43 EUR"}},{"$f":"IFERROR(IF(ÚverNieJeSplatený*ÚverJeDobrý,MesačnáSplátka,0), 0)","v":{"v":108.52627796048073,"d":"108.53 EUR"}},{"$f":"IFERROR(IF(ÚverNieJeSplatený*ÚverJeDobrý,Istina,0), 0)","v":{"v":84.39304013601671,"d":"84.39 EUR"}},{"$f":"IFERROR(IF(ÚverNieJeSplatený*ÚverJeDobrý,SumaÚrokov,0), 0)","v":{"v":24.13323782446401,"d":"24.13 EUR"}},{"$f":"IFERROR(IF(ÚverNieJeSplatený*ÚverJeDobrý,KonečnýZostatok,0), 0)","v":{"v":5181.040667019757,"d":"5,181.04 EUR"}}]
[null,{"$f":"IFERROR(IF(ÚverNieJeSplatený*ÚverJeDobrý,ČísloPlatby,\"\"), \"\")","v":67},{"$f":"IFERROR(IF(ÚverNieJeSplatený*ÚverJeDobrý,DátumPlatby,PočiatočnýDátumÚveru), PočiatočnýDátumÚveru)","v":"2025-02-17"},{"$f":"IFERROR(IF(ÚverNieJeSplatený*ÚverJeDobrý,HodnotaÚveru,\"\"), \"\")","v":{"v":5181.040667019757,"d":"5,181.04 EUR"}},{"$f":"IFERROR(IF(ÚverNieJeSplatený*ÚverJeDobrý,MesačnáSplátka,0), 0)","v":{"v":108.52627796048073,"d":"108.53 EUR"}},{"$f":"IFERROR(IF(ÚverNieJeSplatený*ÚverJeDobrý,Istina,0), 0)","v":{"v":84.77984156997344,"d":"84.78 EUR"}},{"$f":"IFERROR(IF(ÚverNieJeSplatený*ÚverJeDobrý,SumaÚrokov,0), 0)","v":{"v":23.74643639050727,"d":"23.75 EUR"}},{"$f":"IFERROR(IF(ÚverNieJeSplatený*ÚverJeDobrý,KonečnýZostatok,0), 0)","v":{"v":5096.2608254497845,"d":"5,096.26 EUR"}}]
[null,{"$f":"IFERROR(IF(ÚverNieJeSplatený*ÚverJeDobrý,ČísloPlatby,\"\"), \"\")","v":68},{"$f":"IFERROR(IF(ÚverNieJeSplatený*ÚverJeDobrý,DátumPlatby,PočiatočnýDátumÚveru), PočiatočnýDátumÚveru)","v":"2025-03-17"},{"$f":"IFERROR(IF(ÚverNieJeSplatený*ÚverJeDobrý,HodnotaÚveru,\"\"), \"\")","v":{"v":5096.2608254497845,"d":"5,096.26 EUR"}},{"$f":"IFERROR(IF(ÚverNieJeSplatený*ÚverJeDobrý,MesačnáSplátka,0), 0)","v":{"v":108.52627796048073,"d":"108.53 EUR"}},{"$f":"IFERROR(IF(ÚverNieJeSplatený*ÚverJeDobrý,Istina,0), 0)","v":{"v":85.16841584383582,"d":"85.17 EUR"}},{"$f":"IFERROR(IF(ÚverNieJeSplatený*ÚverJeDobrý,SumaÚrokov,0), 0)","v":{"v":23.357862116644892,"d":"23.36 EUR"}},{"$f":"IFERROR(IF(ÚverNieJeSplatený*ÚverJeDobrý,KonečnýZostatok,0), 0)","v":{"v":5011.092409605948,"d":"5,011.09 EUR"}}]
[null,{"$f":"IFERROR(IF(ÚverNieJeSplatený*ÚverJeDobrý,ČísloPlatby,\"\"), \"\")","v":69},{"$f":"IFERROR(IF(ÚverNieJeSplatený*ÚverJeDobrý,DátumPlatby,PočiatočnýDátumÚveru), PočiatočnýDátumÚveru)","v":"2025-04-17"},{"$f":"IFERROR(IF(ÚverNieJeSplatený*ÚverJeDobrý,HodnotaÚveru,\"\"), \"\")","v":{"v":5011.092409605948,"d":"5,011.09 EUR"}},{"$f":"IFERROR(IF(ÚverNieJeSplatený*ÚverJeDobrý,MesačnáSplátka,0), 0)","v":{"v":108.52627796048073,"d":"108.53 EUR"}},{"$f":"IFERROR(IF(ÚverNieJeSplatený*ÚverJeDobrý,Istina,0), 0)","v":{"v":85.55877108312008,"d":"85.56 EUR"}},{"$f":"IFERROR(IF(ÚverNieJeSplatený*ÚverJeDobrý,SumaÚrokov,0), 0)","v":{"v":22.96750687736064,"d":"22.97 EUR"}},{"$f":"IFERROR(IF(ÚverNieJeSplatený*ÚverJeDobrý,KonečnýZostatok,0), 0)","v":{"v":4925.533638522824,"d":"4,925.53 EUR"}}]
[null,{"$f":"IFERROR(IF(ÚverNieJeSplatený*ÚverJeDobrý,ČísloPlatby,\"\"), \"\")","v":70},{"$f":"IFERROR(IF(ÚverNieJeSplatený*ÚverJeDobrý,DátumPlatby,PočiatočnýDátumÚveru), PočiatočnýDátumÚveru)","v":"2025-05-17"},{"$f":"IFERROR(IF(ÚverNieJeSplatený*ÚverJeDobrý,HodnotaÚveru,\"\"), \"\")","v":{"v":4925.533638522824,"d":"4,925.53 EUR"}},{"$f":"IFERROR(IF(ÚverNieJeSplatený*ÚverJeDobrý,MesačnáSplátka,0), 0)","v":{"v":108.52627796048073,"d":"108.53 EUR"}},{"$f":"IFERROR(IF(ÚverNieJeSplatený*ÚverJeDobrý,Istina,0), 0)","v":{"v":85.95091545058438,"d":"85.95 EUR"}},{"$f":"IFERROR(IF(ÚverNieJeSplatený*ÚverJeDobrý,SumaÚrokov,0), 0)","v":{"v":22.575362509896344,"d":"22.58 EUR"}},{"$f":"IFERROR(IF(ÚverNieJeSplatený*ÚverJeDobrý,KonečnýZostatok,0), 0)","v":{"v":4839.582723072239,"d":"4,839.58 EUR"}}]
[null,{"$f":"IFERROR(IF(ÚverNieJeSplatený*ÚverJeDobrý,ČísloPlatby,\"\"), \"\")","v":71},{"$f":"IFERROR(IF(ÚverNieJeSplatený*ÚverJeDobrý,DátumPlatby,PočiatočnýDátumÚveru), PočiatočnýDátumÚveru)","v":"2025-06-17"},{"$f":"IFERROR(IF(ÚverNieJeSplatený*ÚverJeDobrý,HodnotaÚveru,\"\"), \"\")","v":{"v":4839.582723072239,"d":"4,839.58 EUR"}},{"$f":"IFERROR(IF(ÚverNieJeSplatený*ÚverJeDobrý,MesačnáSplátka,0), 0)","v":{"v":108.52627796048073,"d":"108.53 EUR"}},{"$f":"IFERROR(IF(ÚverNieJeSplatený*ÚverJeDobrý,Istina,0), 0)","v":{"v":86.34485714639956,"d":"86.34 EUR"}},{"$f":"IFERROR(IF(ÚverNieJeSplatený*ÚverJeDobrý,SumaÚrokov,0), 0)","v":{"v":22.18142081408116,"d":"22.18 EUR"}},{"$f":"IFERROR(IF(ÚverNieJeSplatený*ÚverJeDobrý,KonečnýZostatok,0), 0)","v":{"v":4753.237865925843,"d":"4,753.24 EUR"}}]
[null,{"$f":"IFERROR(IF(ÚverNieJeSplatený*ÚverJeDobrý,ČísloPlatby,\"\"), \"\")","v":72},{"$f":"IFERROR(IF(ÚverNieJeSplatený*ÚverJeDobrý,DátumPlatby,PočiatočnýDátumÚveru), PočiatočnýDátumÚveru)","v":"2025-07-17"},{"$f":"IFERROR(IF(ÚverNieJeSplatený*ÚverJeDobrý,HodnotaÚveru,\"\"), \"\")","v":{"v":4753.237865925843,"d":"4,753.24 EUR"}},{"$f":"IFERROR(IF(ÚverNieJeSplatený*ÚverJeDobrý,MesačnáSplátka,0), 0)","v":{"v":108.52627796048073,"d":"108.53 EUR"}},{"$f":"IFERROR(IF(ÚverNieJeSplatený*ÚverJeDobrý,Istina,0), 0)","v":{"v":86.74060440832056,"d":"86.74 EUR"}},{"$f":"IFERROR(IF(ÚverNieJeSplatený*ÚverJeDobrý,SumaÚrokov,0), 0)","v":{"v":21.785673552160162,"d":"21.79 EUR"}},{"$f":"IFERROR(IF(ÚverNieJeSplatený*ÚverJeDobrý,KonečnýZostatok,0), 0)","v":{"v":4666.497261517523,"d":"4,666.50 EUR"}}]
[null,{"$f":"IFERROR(IF(ÚverNieJeSplatený*ÚverJeDobrý,ČísloPlatby,\"\"), \"\")","v":73},{"$f":"IFERROR(IF(ÚverNieJeSplatený*ÚverJeDobrý,DátumPlatby,PočiatočnýDátumÚveru), PočiatočnýDátumÚveru)","v":"2025-08-17"},{"$f":"IFERROR(IF(ÚverNieJeSplatený*ÚverJeDobrý,HodnotaÚveru,\"\"), \"\")","v":{"v":4666.497261517523,"d":"4,666.50 EUR"}},{"$f":"IFERROR(IF(ÚverNieJeSplatený*ÚverJeDobrý,MesačnáSplátka,0), 0)","v":{"v":108.52627796048073,"d":"108.53 EUR"}},{"$f":"IFERROR(IF(ÚverNieJeSplatený*ÚverJeDobrý,Istina,0), 0)","v":{"v":87.1381655118587,"d":"87.14 EUR"}},{"$f":"IFERROR(IF(ÚverNieJeSplatený*ÚverJeDobrý,SumaÚrokov,0), 0)","v":{"v":21.38811244862203,"d":"21.39 EUR"}},{"$f":"IFERROR(IF(ÚverNieJeSplatený*ÚverJeDobrý,KonečnýZostatok,0), 0)","v":{"v":4579.3590960056645,"d":"4,579.36 EUR"}}]
[null,{"$f":"IFERROR(IF(ÚverNieJeSplatený*ÚverJeDobrý,ČísloPlatby,\"\"), \"\")","v":74},{"$f":"IFERROR(IF(ÚverNieJeSplatený*ÚverJeDobrý,DátumPlatby,PočiatočnýDátumÚveru), PočiatočnýDátumÚveru)","v":"2025-09-17"},{"$f":"IFERROR(IF(ÚverNieJeSplatený*ÚverJeDobrý,HodnotaÚveru,\"\"), \"\")","v":{"v":4579.3590960056645,"d":"4,579.36 EUR"}},{"$f":"IFERROR(IF(ÚverNieJeSplatený*ÚverJeDobrý,MesačnáSplátka,0), 0)","v":{"v":108.52627796048073,"d":"108.53 EUR"}},{"$f":"IFERROR(IF(ÚverNieJeSplatený*ÚverJeDobrý,Istina,0), 0)","v":{"v":87.53754877045472,"d":"87.54 EUR"}},{"$f":"IFERROR(IF(ÚverNieJeSplatený*ÚverJeDobrý,SumaÚrokov,0), 0)","v":{"v":20.988729190026014,"d":"20.99 EUR"}},{"$f":"IFERROR(IF(ÚverNieJeSplatený*ÚverJeDobrý,KonečnýZostatok,0), 0)","v":{"v":4491.821547235208,"d":"4,491.82 EUR"}}]
[null,{"$f":"IFERROR(IF(ÚverNieJeSplatený*ÚverJeDobrý,ČísloPlatby,\"\"), \"\")","v":75},{"$f":"IFERROR(IF(ÚverNieJeSplatený*ÚverJeDobrý,DátumPlatby,PočiatočnýDátumÚveru), PočiatočnýDátumÚveru)","v":"2025-10-17"},{"$f":"IFERROR(IF(ÚverNieJeSplatený*ÚverJeDobrý,HodnotaÚveru,\"\"), \"\")","v":{"v":4491.821547235208,"d":"4,491.82 EUR"}},{"$f":"IFERROR(IF(ÚverNieJeSplatený*ÚverJeDobrý,MesačnáSplátka,0), 0)","v":{"v":108.52627796048073,"d":"108.53 EUR"}},{"$f":"IFERROR(IF(ÚverNieJeSplatený*ÚverJeDobrý,Istina,0), 0)","v":{"v":87.93876253565263,"d":"87.94 EUR"}},{"$f":"IFERROR(IF(ÚverNieJeSplatený*ÚverJeDobrý,SumaÚrokov,0), 0)","v":{"v":20.587515424828098,"d":"20.59 EUR"}},{"$f":"IFERROR(IF(ÚverNieJeSplatený*ÚverJeDobrý,KonečnýZostatok,0), 0)","v":{"v":4403.8827846995555,"d":"4,403.88 EUR"}}]
[null,{"$f":"IFERROR(IF(ÚverNieJeSplatený*ÚverJeDobrý,ČísloPlatby,\"\"), \"\")","v":76},{"$f":"IFERROR(IF(ÚverNieJeSplatený*ÚverJeDobrý,DátumPlatby,PočiatočnýDátumÚveru), PočiatočnýDátumÚveru)","v":"2025-11-17"},{"$f":"IFERROR(IF(ÚverNieJeSplatený*ÚverJeDobrý,HodnotaÚveru,\"\"), \"\")","v":{"v":4403.8827846995555,"d":"4,403.88 EUR"}},{"$f":"IFERROR(IF(ÚverNieJeSplatený*ÚverJeDobrý,MesačnáSplátka,0), 0)","v":{"v":108.52627796048073,"d":"108.53 EUR"}},{"$f":"IFERROR(IF(ÚverNieJeSplatený*ÚverJeDobrý,Istina,0), 0)","v":{"v":88.34181519727439,"d":"88.34 EUR"}},{"$f":"IFERROR(IF(ÚverNieJeSplatený*ÚverJeDobrý,SumaÚrokov,0), 0)","v":{"v":20.184462763206355,"d":"20.18 EUR"}},{"$f":"IFERROR(IF(ÚverNieJeSplatený*ÚverJeDobrý,KonečnýZostatok,0), 0)","v":{"v":4315.540969502281,"d":"4,315.54 EUR"}}]
[null,{"$f":"IFERROR(IF(ÚverNieJeSplatený*ÚverJeDobrý,ČísloPlatby,\"\"), \"\")","v":77},{"$f":"IFERROR(IF(ÚverNieJeSplatený*ÚverJeDobrý,DátumPlatby,PočiatočnýDátumÚveru), PočiatočnýDátumÚveru)","v":"2025-12-17"},{"$f":"IFERROR(IF(ÚverNieJeSplatený*ÚverJeDobrý,HodnotaÚveru,\"\"), \"\")","v":{"v":4315.540969502281,"d":"4,315.54 EUR"}},{"$f":"IFERROR(IF(ÚverNieJeSplatený*ÚverJeDobrý,MesačnáSplátka,0), 0)","v":{"v":108.52627796048073,"d":"108.53 EUR"}},{"$f":"IFERROR(IF(ÚverNieJeSplatený*ÚverJeDobrý,Istina,0), 0)","v":{"v":88.74671518359521,"d":"88.75 EUR"}},{"$f":"IFERROR(IF(ÚverNieJeSplatený*ÚverJeDobrý,SumaÚrokov,0), 0)","v":{"v":19.779562776885513,"d":"19.78 EUR"}},{"$f":"IFERROR(IF(ÚverNieJeSplatený*ÚverJeDobrý,KonečnýZostatok,0), 0)","v":{"v":4226.794254318684,"d":"4,226.79 EUR"}}]
[null,{"$f":"IFERROR(IF(ÚverNieJeSplatený*ÚverJeDobrý,ČísloPlatby,\"\"), \"\")","v":78},{"$f":"IFERROR(IF(ÚverNieJeSplatený*ÚverJeDobrý,DátumPlatby,PočiatočnýDátumÚveru), PočiatočnýDátumÚveru)","v":"2026-01-17"},{"$f":"IFERROR(IF(ÚverNieJeSplatený*ÚverJeDobrý,HodnotaÚveru,\"\"), \"\")","v":{"v":4226.794254318684,"d":"4,226.79 EUR"}},{"$f":"IFERROR(IF(ÚverNieJeSplatený*ÚverJeDobrý,MesačnáSplátka,0), 0)","v":{"v":108.52627796048073,"d":"108.53 EUR"}},{"$f":"IFERROR(IF(ÚverNieJeSplatený*ÚverJeDobrý,Istina,0), 0)","v":{"v":89.15347096152003,"d":"89.15 EUR"}},{"$f":"IFERROR(IF(ÚverNieJeSplatený*ÚverJeDobrý,SumaÚrokov,0), 0)","v":{"v":19.3728069989607,"d":"19.37 EUR"}},{"$f":"IFERROR(IF(ÚverNieJeSplatený*ÚverJeDobrý,KonečnýZostatok,0), 0)","v":{"v":4137.640783357165,"d":"4,137.64 EUR"}}]
[null,{"$f":"IFERROR(IF(ÚverNieJeSplatený*ÚverJeDobrý,ČísloPlatby,\"\"), \"\")","v":79},{"$f":"IFERROR(IF(ÚverNieJeSplatený*ÚverJeDobrý,DátumPlatby,PočiatočnýDátumÚveru), PočiatočnýDátumÚveru)","v":"2026-02-17"},{"$f":"IFERROR(IF(ÚverNieJeSplatený*ÚverJeDobrý,HodnotaÚveru,\"\"), \"\")","v":{"v":4137.640783357165,"d":"4,137.64 EUR"}},{"$f":"IFERROR(IF(ÚverNieJeSplatený*ÚverJeDobrý,MesačnáSplátka,0), 0)","v":{"v":108.52627796048073,"d":"108.53 EUR"}},{"$f":"IFERROR(IF(ÚverNieJeSplatený*ÚverJeDobrý,Istina,0), 0)","v":{"v":89.56209103676032,"d":"89.56 EUR"}},{"$f":"IFERROR(IF(ÚverNieJeSplatený*ÚverJeDobrý,SumaÚrokov,0), 0)","v":{"v":18.9641869237204,"d":"18.96 EUR"}},{"$f":"IFERROR(IF(ÚverNieJeSplatený*ÚverJeDobrý,KonečnýZostatok,0), 0)","v":{"v":4048.078692320407,"d":"4,048.08 EUR"}}]
[null,{"$f":"IFERROR(IF(ÚverNieJeSplatený*ÚverJeDobrý,ČísloPlatby,\"\"), \"\")","v":80},{"$f":"IFERROR(IF(ÚverNieJeSplatený*ÚverJeDobrý,DátumPlatby,PočiatočnýDátumÚveru), PočiatočnýDátumÚveru)","v":"2026-03-17"},{"$f":"IFERROR(IF(ÚverNieJeSplatený*ÚverJeDobrý,HodnotaÚveru,\"\"), \"\")","v":{"v":4048.078692320407,"d":"4,048.08 EUR"}},{"$f":"IFERROR(IF(ÚverNieJeSplatený*ÚverJeDobrý,MesačnáSplátka,0), 0)","v":{"v":108.52627796048073,"d":"108.53 EUR"}},{"$f":"IFERROR(IF(ÚverNieJeSplatený*ÚverJeDobrý,Istina,0), 0)","v":{"v":89.97258395401214,"d":"89.97 EUR"}},{"$f":"IFERROR(IF(ÚverNieJeSplatený*ÚverJeDobrý,SumaÚrokov,0), 0)","v":{"v":18.553694006468582,"d":"18.55 EUR"}},{"$f":"IFERROR(IF(ÚverNieJeSplatený*ÚverJeDobrý,KonečnýZostatok,0), 0)","v":{"v":3958.1061083663935,"d":"3,958.11 EUR"}}]
[null,{"$f":"IFERROR(IF(ÚverNieJeSplatený*ÚverJeDobrý,ČísloPlatby,\"\"), \"\")","v":81},{"$f":"IFERROR(IF(ÚverNieJeSplatený*ÚverJeDobrý,DátumPlatby,PočiatočnýDátumÚveru), PočiatočnýDátumÚveru)","v":"2026-04-17"},{"$f":"IFERROR(IF(ÚverNieJeSplatený*ÚverJeDobrý,HodnotaÚveru,\"\"), \"\")","v":{"v":3958.1061083663935,"d":"3,958.11 EUR"}},{"$f":"IFERROR(IF(ÚverNieJeSplatený*ÚverJeDobrý,MesačnáSplátka,0), 0)","v":{"v":108.52627796048073,"d":"108.53 EUR"}},{"$f":"IFERROR(IF(ÚverNieJeSplatený*ÚverJeDobrý,Istina,0), 0)","v":{"v":90.3849582971347,"d":"90.38 EUR"}},{"$f":"IFERROR(IF(ÚverNieJeSplatený*ÚverJeDobrý,SumaÚrokov,0), 0)","v":{"v":18.141319663346028,"d":"18.14 EUR"}},{"$f":"IFERROR(IF(ÚverNieJeSplatený*ÚverJeDobrý,KonečnýZostatok,0), 0)","v":{"v":3867.7211500692556,"d":"3,867.72 EUR"}}]
[null,{"$f":"IFERROR(IF(ÚverNieJeSplatený*ÚverJeDobrý,ČísloPlatby,\"\"), \"\")","v":82},{"$f":"IFERROR(IF(ÚverNieJeSplatený*ÚverJeDobrý,DátumPlatby,PočiatočnýDátumÚveru), PočiatočnýDátumÚveru)","v":"2026-05-17"},{"$f":"IFERROR(IF(ÚverNieJeSplatený*ÚverJeDobrý,HodnotaÚveru,\"\"), \"\")","v":{"v":3867.7211500692556,"d":"3,867.72 EUR"}},{"$f":"IFERROR(IF(ÚverNieJeSplatený*ÚverJeDobrý,MesačnáSplátka,0), 0)","v":{"v":108.52627796048073,"d":"108.53 EUR"}},{"$f":"IFERROR(IF(ÚverNieJeSplatený*ÚverJeDobrý,Istina,0), 0)","v":{"v":90.79922268932991,"d":"90.80 EUR"}},{"$f":"IFERROR(IF(ÚverNieJeSplatený*ÚverJeDobrý,SumaÚrokov,0), 0)","v":{"v":17.727055271150828,"d":"17.73 EUR"}},{"$f":"IFERROR(IF(ÚverNieJeSplatený*ÚverJeDobrý,KonečnýZostatok,0), 0)","v":{"v":3776.9219273799263,"d":"3,776.92 EUR"}}]
[null,{"$f":"IFERROR(IF(ÚverNieJeSplatený*ÚverJeDobrý,ČísloPlatby,\"\"), \"\")","v":83},{"$f":"IFERROR(IF(ÚverNieJeSplatený*ÚverJeDobrý,DátumPlatby,PočiatočnýDátumÚveru), PočiatočnýDátumÚveru)","v":"2026-06-17"},{"$f":"IFERROR(IF(ÚverNieJeSplatený*ÚverJeDobrý,HodnotaÚveru,\"\"), \"\")","v":{"v":3776.9219273799263,"d":"3,776.92 EUR"}},{"$f":"IFERROR(IF(ÚverNieJeSplatený*ÚverJeDobrý,MesačnáSplátka,0), 0)","v":{"v":108.52627796048073,"d":"108.53 EUR"}},{"$f":"IFERROR(IF(ÚverNieJeSplatený*ÚverJeDobrý,Istina,0), 0)","v":{"v":91.21538579332265,"d":"91.22 EUR"}},{"$f":"IFERROR(IF(ÚverNieJeSplatený*ÚverJeDobrý,SumaÚrokov,0), 0)","v":{"v":17.310892167158062,"d":"17.31 EUR"}},{"$f":"IFERROR(IF(ÚverNieJeSplatený*ÚverJeDobrý,KonečnýZostatok,0), 0)","v":{"v":3685.7065415866073,"d":"3,685.71 EUR"}}]
[null,{"$f":"IFERROR(IF(ÚverNieJeSplatený*ÚverJeDobrý,ČísloPlatby,\"\"), \"\")","v":84},{"$f":"IFERROR(IF(ÚverNieJeSplatený*ÚverJeDobrý,DátumPlatby,PočiatočnýDátumÚveru), PočiatočnýDátumÚveru)","v":"2026-07-17"},{"$f":"IFERROR(IF(ÚverNieJeSplatený*ÚverJeDobrý,HodnotaÚveru,\"\"), \"\")","v":{"v":3685.7065415866073,"d":"3,685.71 EUR"}},{"$f":"IFERROR(IF(ÚverNieJeSplatený*ÚverJeDobrý,MesačnáSplátka,0), 0)","v":{"v":108.52627796048073,"d":"108.53 EUR"}},{"$f":"IFERROR(IF(ÚverNieJeSplatený*ÚverJeDobrý,Istina,0), 0)","v":{"v":91.63345631154205,"d":"91.63 EUR"}},{"$f":"IFERROR(IF(ÚverNieJeSplatený*ÚverJeDobrý,SumaÚrokov,0), 0)","v":{"v":16.892821648938668,"d":"16.89 EUR"}},{"$f":"IFERROR(IF(ÚverNieJeSplatený*ÚverJeDobrý,KonečnýZostatok,0), 0)","v":{"v":3594.073085275062,"d":"3,594.07 EUR"}}]
[null,{"$f":"IFERROR(IF(ÚverNieJeSplatený*ÚverJeDobrý,ČísloPlatby,\"\"), \"\")","v":85},{"$f":"IFERROR(IF(ÚverNieJeSplatený*ÚverJeDobrý,DátumPlatby,PočiatočnýDátumÚveru), PočiatočnýDátumÚveru)","v":"2026-08-17"},{"$f":"IFERROR(IF(ÚverNieJeSplatený*ÚverJeDobrý,HodnotaÚveru,\"\"), \"\")","v":{"v":3594.073085275062,"d":"3,594.07 EUR"}},{"$f":"IFERROR(IF(ÚverNieJeSplatený*ÚverJeDobrý,MesačnáSplátka,0), 0)","v":{"v":108.52627796048073,"d":"108.53 EUR"}},{"$f":"IFERROR(IF(ÚverNieJeSplatený*ÚverJeDobrý,Istina,0), 0)","v":{"v":92.0534429863033,"d":"92.05 EUR"}},{"$f":"IFERROR(IF(ÚverNieJeSplatený*ÚverJeDobrý,SumaÚrokov,0), 0)","v":{"v":16.472834974177438,"d":"16.47 EUR"}},{"$f":"IFERROR(IF(ÚverNieJeSplatený*ÚverJeDobrý,KonečnýZostatok,0), 0)","v":{"v":3502.0196422887584,"d":"3,502.02 EUR"}}]
[null,{"$f":"IFERROR(IF(ÚverNieJeSplatený*ÚverJeDobrý,ČísloPlatby,\"\"), \"\")","v":86},{"$f":"IFERROR(IF(ÚverNieJeSplatený*ÚverJeDobrý,DátumPlatby,PočiatočnýDátumÚveru), PočiatočnýDátumÚveru)","v":"2026-09-17"},{"$f":"IFERROR(IF(ÚverNieJeSplatený*ÚverJeDobrý,HodnotaÚveru,\"\"), \"\")","v":{"v":3502.0196422887584,"d":"3,502.02 EUR"}},{"$f":"IFERROR(IF(ÚverNieJeSplatený*ÚverJeDobrý,MesačnáSplátka,0), 0)","v":{"v":108.52627796048073,"d":"108.53 EUR"}},{"$f":"IFERROR(IF(ÚverNieJeSplatený*ÚverJeDobrý,Istina,0), 0)","v":{"v":92.47535459999051,"d":"92.48 EUR"}},{"$f":"IFERROR(IF(ÚverNieJeSplatený*ÚverJeDobrý,SumaÚrokov,0), 0)","v":{"v":16.050923360490213,"d":"16.05 EUR"}},{"$f":"IFERROR(IF(ÚverNieJeSplatený*ÚverJeDobrý,KonečnýZostatok,0), 0)","v":{"v":3409.5442876887664,"d":"3,409.54 EUR"}}]
[null,{"$f":"IFERROR(IF(ÚverNieJeSplatený*ÚverJeDobrý,ČísloPlatby,\"\"), \"\")","v":87},{"$f":"IFERROR(IF(ÚverNieJeSplatený*ÚverJeDobrý,DátumPlatby,PočiatočnýDátumÚveru), PočiatočnýDátumÚveru)","v":"2026-10-17"},{"$f":"IFERROR(IF(ÚverNieJeSplatený*ÚverJeDobrý,HodnotaÚveru,\"\"), \"\")","v":{"v":3409.5442876887664,"d":"3,409.54 EUR"}},{"$f":"IFERROR(IF(ÚverNieJeSplatený*ÚverJeDobrý,MesačnáSplátka,0), 0)","v":{"v":108.52627796048073,"d":"108.53 EUR"}},{"$f":"IFERROR(IF(ÚverNieJeSplatený*ÚverJeDobrý,Istina,0), 0)","v":{"v":92.89919997524046,"d":"92.90 EUR"}},{"$f":"IFERROR(IF(ÚverNieJeSplatený*ÚverJeDobrý,SumaÚrokov,0), 0)","v":{"v":15.627077985240252,"d":"15.63 EUR"}},{"$f":"IFERROR(IF(ÚverNieJeSplatený*ÚverJeDobrý,KonečnýZostatok,0), 0)","v":{"v":3316.6450877135267,"d":"3,316.65 EUR"}}]
[null,{"$f":"IFERROR(IF(ÚverNieJeSplatený*ÚverJeDobrý,ČísloPlatby,\"\"), \"\")","v":88},{"$f":"IFERROR(IF(ÚverNieJeSplatený*ÚverJeDobrý,DátumPlatby,PočiatočnýDátumÚveru), PočiatočnýDátumÚveru)","v":"2026-11-17"},{"$f":"IFERROR(IF(ÚverNieJeSplatený*ÚverJeDobrý,HodnotaÚveru,\"\"), \"\")","v":{"v":3316.6450877135267,"d":"3,316.65 EUR"}},{"$f":"IFERROR(IF(ÚverNieJeSplatený*ÚverJeDobrý,MesačnáSplátka,0), 0)","v":{"v":108.52627796048073,"d":"108.53 EUR"}},{"$f":"IFERROR(IF(ÚverNieJeSplatený*ÚverJeDobrý,Istina,0), 0)","v":{"v":93.32498797512699,"d":"93.32 EUR"}},{"$f":"IFERROR(IF(ÚverNieJeSplatený*ÚverJeDobrý,SumaÚrokov,0), 0)","v":{"v":15.201289985353732,"d":"15.20 EUR"}},{"$f":"IFERROR(IF(ÚverNieJeSplatený*ÚverJeDobrý,KonečnýZostatok,0), 0)","v":{"v":3223.320099738399,"d":"3,223.32 EUR"}}]
[null,{"$f":"IFERROR(IF(ÚverNieJeSplatený*ÚverJeDobrý,ČísloPlatby,\"\"), \"\")","v":89},{"$f":"IFERROR(IF(ÚverNieJeSplatený*ÚverJeDobrý,DátumPlatby,PočiatočnýDátumÚveru), PočiatočnýDátumÚveru)","v":"2026-12-17"},{"$f":"IFERROR(IF(ÚverNieJeSplatený*ÚverJeDobrý,HodnotaÚveru,\"\"), \"\")","v":{"v":3223.320099738399,"d":"3,223.32 EUR"}},{"$f":"IFERROR(IF(ÚverNieJeSplatený*ÚverJeDobrý,MesačnáSplátka,0), 0)","v":{"v":108.52627796048073,"d":"108.53 EUR"}},{"$f":"IFERROR(IF(ÚverNieJeSplatený*ÚverJeDobrý,Istina,0), 0)","v":{"v":93.75272750334632,"d":"93.75 EUR"}},{"$f":"IFERROR(IF(ÚverNieJeSplatený*ÚverJeDobrý,SumaÚrokov,0), 0)","v":{"v":14.7735504571344,"d":"14.77 EUR"}},{"$f":"IFERROR(IF(ÚverNieJeSplatený*ÚverJeDobrý,KonečnýZostatok,0), 0)","v":{"v":3129.567372235055,"d":"3,129.57 EUR"}}]
[null,{"$f":"IFERROR(IF(ÚverNieJeSplatený*ÚverJeDobrý,ČísloPlatby,\"\"), \"\")","v":90},{"$f":"IFERROR(IF(ÚverNieJeSplatený*ÚverJeDobrý,DátumPlatby,PočiatočnýDátumÚveru), PočiatočnýDátumÚveru)","v":"2027-01-17"},{"$f":"IFERROR(IF(ÚverNieJeSplatený*ÚverJeDobrý,HodnotaÚveru,\"\"), \"\")","v":{"v":3129.567372235055,"d":"3,129.57 EUR"}},{"$f":"IFERROR(IF(ÚverNieJeSplatený*ÚverJeDobrý,MesačnáSplátka,0), 0)","v":{"v":108.52627796048073,"d":"108.53 EUR"}},{"$f":"IFERROR(IF(ÚverNieJeSplatený*ÚverJeDobrý,Istina,0), 0)","v":{"v":94.18242750440332,"d":"94.18 EUR"}},{"$f":"IFERROR(IF(ÚverNieJeSplatený*ÚverJeDobrý,SumaÚrokov,0), 0)","v":{"v":14.343850456077401,"d":"14.34 EUR"}},{"$f":"IFERROR(IF(ÚverNieJeSplatený*ÚverJeDobrý,KonečnýZostatok,0), 0)","v":{"v":3035.384944730651,"d":"3,035.38 EUR"}}]
[null,{"$f":"IFERROR(IF(ÚverNieJeSplatený*ÚverJeDobrý,ČísloPlatby,\"\"), \"\")","v":91},{"$f":"IFERROR(IF(ÚverNieJeSplatený*ÚverJeDobrý,DátumPlatby,PočiatočnýDátumÚveru), PočiatočnýDátumÚveru)","v":"2027-02-17"},{"$f":"IFERROR(IF(ÚverNieJeSplatený*ÚverJeDobrý,HodnotaÚveru,\"\"), \"\")","v":{"v":3035.384944730651,"d":"3,035.38 EUR"}},{"$f":"IFERROR(IF(ÚverNieJeSplatený*ÚverJeDobrý,MesačnáSplátka,0), 0)","v":{"v":108.52627796048073,"d":"108.53 EUR"}},{"$f":"IFERROR(IF(ÚverNieJeSplatený*ÚverJeDobrý,Istina,0), 0)","v":{"v":94.61409696379852,"d":"94.61 EUR"}},{"$f":"IFERROR(IF(ÚverNieJeSplatený*ÚverJeDobrý,SumaÚrokov,0), 0)","v":{"v":13.912180996682217,"d":"13.91 EUR"}},{"$f":"IFERROR(IF(ÚverNieJeSplatený*ÚverJeDobrý,KonečnýZostatok,0), 0)","v":{"v":2940.770847766853,"d":"2,940.77 EUR"}}]
[null,{"$f":"IFERROR(IF(ÚverNieJeSplatený*ÚverJeDobrý,ČísloPlatby,\"\"), \"\")","v":92},{"$f":"IFERROR(IF(ÚverNieJeSplatený*ÚverJeDobrý,DátumPlatby,PočiatočnýDátumÚveru), PočiatočnýDátumÚveru)","v":"2027-03-17"},{"$f":"IFERROR(IF(ÚverNieJeSplatený*ÚverJeDobrý,HodnotaÚveru,\"\"), \"\")","v":{"v":2940.770847766853,"d":"2,940.77 EUR"}},{"$f":"IFERROR(IF(ÚverNieJeSplatený*ÚverJeDobrý,MesačnáSplátka,0), 0)","v":{"v":108.52627796048073,"d":"108.53 EUR"}},{"$f":"IFERROR(IF(ÚverNieJeSplatený*ÚverJeDobrý,Istina,0), 0)","v":{"v":95.04774490821592,"d":"95.05 EUR"}},{"$f":"IFERROR(IF(ÚverNieJeSplatený*ÚverJeDobrý,SumaÚrokov,0), 0)","v":{"v":13.478533052264805,"d":"13.48 EUR"}},{"$f":"IFERROR(IF(ÚverNieJeSplatený*ÚverJeDobrý,KonečnýZostatok,0), 0)","v":{"v":2845.7231028586375,"d":"2,845.72 EUR"}}]
[null,{"$f":"IFERROR(IF(ÚverNieJeSplatený*ÚverJeDobrý,ČísloPlatby,\"\"), \"\")","v":93},{"$f":"IFERROR(IF(ÚverNieJeSplatený*ÚverJeDobrý,DátumPlatby,PočiatočnýDátumÚveru), PočiatočnýDátumÚveru)","v":"2027-04-17"},{"$f":"IFERROR(IF(ÚverNieJeSplatený*ÚverJeDobrý,HodnotaÚveru,\"\"), \"\")","v":{"v":2845.7231028586375,"d":"2,845.72 EUR"}},{"$f":"IFERROR(IF(ÚverNieJeSplatený*ÚverJeDobrý,MesačnáSplátka,0), 0)","v":{"v":108.52627796048073,"d":"108.53 EUR"}},{"$f":"IFERROR(IF(ÚverNieJeSplatený*ÚverJeDobrý,Istina,0), 0)","v":{"v":95.48338040571191,"d":"95.48 EUR"}},{"$f":"IFERROR(IF(ÚverNieJeSplatený*ÚverJeDobrý,SumaÚrokov,0), 0)","v":{"v":13.042897554768816,"d":"13.04 EUR"}},{"$f":"IFERROR(IF(ÚverNieJeSplatený*ÚverJeDobrý,KonečnýZostatok,0), 0)","v":{"v":2750.239722452923,"d":"2,750.24 EUR"}}]
[null,{"$f":"IFERROR(IF(ÚverNieJeSplatený*ÚverJeDobrý,ČísloPlatby,\"\"), \"\")","v":94},{"$f":"IFERROR(IF(ÚverNieJeSplatený*ÚverJeDobrý,DátumPlatby,PočiatočnýDátumÚveru), PočiatočnýDátumÚveru)","v":"2027-05-17"},{"$f":"IFERROR(IF(ÚverNieJeSplatený*ÚverJeDobrý,HodnotaÚveru,\"\"), \"\")","v":{"v":2750.239722452923,"d":"2,750.24 EUR"}},{"$f":"IFERROR(IF(ÚverNieJeSplatený*ÚverJeDobrý,MesačnáSplátka,0), 0)","v":{"v":108.52627796048073,"d":"108.53 EUR"}},{"$f":"IFERROR(IF(ÚverNieJeSplatený*ÚverJeDobrý,Istina,0), 0)","v":{"v":95.92101256590476,"d":"95.92 EUR"}},{"$f":"IFERROR(IF(ÚverNieJeSplatený*ÚverJeDobrý,SumaÚrokov,0), 0)","v":{"v":12.605265394575971,"d":"12.61 EUR"}},{"$f":"IFERROR(IF(ÚverNieJeSplatený*ÚverJeDobrý,KonečnýZostatok,0), 0)","v":{"v":2654.3187098870203,"d":"2,654.32 EUR"}}]
[null,{"$f":"IFERROR(IF(ÚverNieJeSplatený*ÚverJeDobrý,ČísloPlatby,\"\"), \"\")","v":95},{"$f":"IFERROR(IF(ÚverNieJeSplatený*ÚverJeDobrý,DátumPlatby,PočiatočnýDátumÚveru), PočiatočnýDátumÚveru)","v":"2027-06-17"},{"$f":"IFERROR(IF(ÚverNieJeSplatený*ÚverJeDobrý,HodnotaÚveru,\"\"), \"\")","v":{"v":2654.3187098870203,"d":"2,654.32 EUR"}},{"$f":"IFERROR(IF(ÚverNieJeSplatený*ÚverJeDobrý,MesačnáSplátka,0), 0)","v":{"v":108.52627796048073,"d":"108.53 EUR"}},{"$f":"IFERROR(IF(ÚverNieJeSplatený*ÚverJeDobrý,Istina,0), 0)","v":{"v":96.36065054016515,"d":"96.36 EUR"}},{"$f":"IFERROR(IF(ÚverNieJeSplatený*ÚverJeDobrý,SumaÚrokov,0), 0)","v":{"v":12.165627420315575,"d":"12.17 EUR"}},{"$f":"IFERROR(IF(ÚverNieJeSplatený*ÚverJeDobrý,KonečnýZostatok,0), 0)","v":{"v":2557.9580593468545,"d":"2,557.96 EUR"}}]
[null,{"$f":"IFERROR(IF(ÚverNieJeSplatený*ÚverJeDobrý,ČísloPlatby,\"\"), \"\")","v":96},{"$f":"IFERROR(IF(ÚverNieJeSplatený*ÚverJeDobrý,DátumPlatby,PočiatočnýDátumÚveru), PočiatočnýDátumÚveru)","v":"2027-07-17"},{"$f":"IFERROR(IF(ÚverNieJeSplatený*ÚverJeDobrý,HodnotaÚveru,\"\"), \"\")","v":{"v":2557.9580593468545,"d":"2,557.96 EUR"}},{"$f":"IFERROR(IF(ÚverNieJeSplatený*ÚverJeDobrý,MesačnáSplátka,0), 0)","v":{"v":108.52627796048073,"d":"108.53 EUR"}},{"$f":"IFERROR(IF(ÚverNieJeSplatený*ÚverJeDobrý,Istina,0), 0)","v":{"v":96.80230352180759,"d":"96.80 EUR"}},{"$f":"IFERROR(IF(ÚverNieJeSplatený*ÚverJeDobrý,SumaÚrokov,0), 0)","v":{"v":11.72397443867315,"d":"11.72 EUR"}},{"$f":"IFERROR(IF(ÚverNieJeSplatený*ÚverJeDobrý,KonečnýZostatok,0), 0)","v":{"v":2461.1557558250443,"d":"2,461.16 EUR"}}]
[null,{"$f":"IFERROR(IF(ÚverNieJeSplatený*ÚverJeDobrý,ČísloPlatby,\"\"), \"\")","v":97},{"$f":"IFERROR(IF(ÚverNieJeSplatený*ÚverJeDobrý,DátumPlatby,PočiatočnýDátumÚveru), PočiatočnýDátumÚveru)","v":"2027-08-17"},{"$f":"IFERROR(IF(ÚverNieJeSplatený*ÚverJeDobrý,HodnotaÚveru,\"\"), \"\")","v":{"v":2461.1557558250443,"d":"2,461.16 EUR"}},{"$f":"IFERROR(IF(ÚverNieJeSplatený*ÚverJeDobrý,MesačnáSplátka,0), 0)","v":{"v":108.52627796048073,"d":"108.53 EUR"}},{"$f":"IFERROR(IF(ÚverNieJeSplatený*ÚverJeDobrý,Istina,0), 0)","v":{"v":97.24598074628253,"d":"97.25 EUR"}},{"$f":"IFERROR(IF(ÚverNieJeSplatený*ÚverJeDobrý,SumaÚrokov,0), 0)","v":{"v":11.280297214198198,"d":"11.28 EUR"}},{"$f":"IFERROR(IF(ÚverNieJeSplatený*ÚverJeDobrý,KonečnýZostatok,0), 0)","v":{"v":2363.9097750787605,"d":"2,363.91 EUR"}}]
[null,{"$f":"IFERROR(IF(ÚverNieJeSplatený*ÚverJeDobrý,ČísloPlatby,\"\"), \"\")","v":98},{"$f":"IFERROR(IF(ÚverNieJeSplatený*ÚverJeDobrý,DátumPlatby,PočiatočnýDátumÚveru), PočiatočnýDátumÚveru)","v":"2027-09-17"},{"$f":"IFERROR(IF(ÚverNieJeSplatený*ÚverJeDobrý,HodnotaÚveru,\"\"), \"\")","v":{"v":2363.9097750787605,"d":"2,363.91 EUR"}},{"$f":"IFERROR(IF(ÚverNieJeSplatený*ÚverJeDobrý,MesačnáSplátka,0), 0)","v":{"v":108.52627796048073,"d":"108.53 EUR"}},{"$f":"IFERROR(IF(ÚverNieJeSplatený*ÚverJeDobrý,Istina,0), 0)","v":{"v":97.69169149136965,"d":"97.69 EUR"}},{"$f":"IFERROR(IF(ÚverNieJeSplatený*ÚverJeDobrý,SumaÚrokov,0), 0)","v":{"v":10.834586469111072,"d":"10.83 EUR"}},{"$f":"IFERROR(IF(ÚverNieJeSplatený*ÚverJeDobrý,KonečnýZostatok,0), 0)","v":{"v":2266.2180835873896,"d":"2,266.22 EUR"}}]
[null,{"$f":"IFERROR(IF(ÚverNieJeSplatený*ÚverJeDobrý,ČísloPlatby,\"\"), \"\")","v":99},{"$f":"IFERROR(IF(ÚverNieJeSplatený*ÚverJeDobrý,DátumPlatby,PočiatočnýDátumÚveru), PočiatočnýDátumÚveru)","v":"2027-10-17"},{"$f":"IFERROR(IF(ÚverNieJeSplatený*ÚverJeDobrý,HodnotaÚveru,\"\"), \"\")","v":{"v":2266.2180835873896,"d":"2,266.22 EUR"}},{"$f":"IFERROR(IF(ÚverNieJeSplatený*ÚverJeDobrý,MesačnáSplátka,0), 0)","v":{"v":108.52627796048073,"d":"108.53 EUR"}},{"$f":"IFERROR(IF(ÚverNieJeSplatený*ÚverJeDobrý,Istina,0), 0)","v":{"v":98.13944507737176,"d":"98.14 EUR"}},{"$f":"IFERROR(IF(ÚverNieJeSplatený*ÚverJeDobrý,SumaÚrokov,0), 0)","v":{"v":10.386832883108958,"d":"10.39 EUR"}},{"$f":"IFERROR(IF(ÚverNieJeSplatený*ÚverJeDobrý,KonečnýZostatok,0), 0)","v":{"v":2168.07863851002,"d":"2,168.08 EUR"}}]
[null,{"$f":"IFERROR(IF(ÚverNieJeSplatený*ÚverJeDobrý,ČísloPlatby,\"\"), \"\")","v":100},{"$f":"IFERROR(IF(ÚverNieJeSplatený*ÚverJeDobrý,DátumPlatby,PočiatočnýDátumÚveru), PočiatočnýDátumÚveru)","v":"2027-11-17"},{"$f":"IFERROR(IF(ÚverNieJeSplatený*ÚverJeDobrý,HodnotaÚveru,\"\"), \"\")","v":{"v":2168.07863851002,"d":"2,168.08 EUR"}},{"$f":"IFERROR(IF(ÚverNieJeSplatený*ÚverJeDobrý,MesačnáSplátka,0), 0)","v":{"v":108.52627796048073,"d":"108.53 EUR"}},{"$f":"IFERROR(IF(ÚverNieJeSplatený*ÚverJeDobrý,Istina,0), 0)","v":{"v":98.58925086730973,"d":"98.59 EUR"}},{"$f":"IFERROR(IF(ÚverNieJeSplatený*ÚverJeDobrý,SumaÚrokov,0), 0)","v":{"v":9.937027093171004,"d":"9.94 EUR"}},{"$f":"IFERROR(IF(ÚverNieJeSplatený*ÚverJeDobrý,KonečnýZostatok,0), 0)","v":{"v":2069.4893876427104,"d":"2,069.49 EUR"}}]
[null,{"$f":"IFERROR(IF(ÚverNieJeSplatený*ÚverJeDobrý,ČísloPlatby,\"\"), \"\")","v":101},{"$f":"IFERROR(IF(ÚverNieJeSplatený*ÚverJeDobrý,DátumPlatby,PočiatočnýDátumÚveru), PočiatočnýDátumÚveru)","v":"2027-12-17"},{"$f":"IFERROR(IF(ÚverNieJeSplatený*ÚverJeDobrý,HodnotaÚveru,\"\"), \"\")","v":{"v":2069.4893876427104,"d":"2,069.49 EUR"}},{"$f":"IFERROR(IF(ÚverNieJeSplatený*ÚverJeDobrý,MesačnáSplátka,0), 0)","v":{"v":108.52627796048073,"d":"108.53 EUR"}},{"$f":"IFERROR(IF(ÚverNieJeSplatený*ÚverJeDobrý,Istina,0), 0)","v":{"v":99.04111826711822,"d":"99.04 EUR"}},{"$f":"IFERROR(IF(ÚverNieJeSplatený*ÚverJeDobrý,SumaÚrokov,0), 0)","v":{"v":9.485159693362503,"d":"9.49 EUR"}},{"$f":"IFERROR(IF(ÚverNieJeSplatený*ÚverJeDobrý,KonečnýZostatok,0), 0)","v":{"v":1970.4482693755872,"d":"1,970.45 EUR"}}]
[null,{"$f":"IFERROR(IF(ÚverNieJeSplatený*ÚverJeDobrý,ČísloPlatby,\"\"), \"\")","v":102},{"$f":"IFERROR(IF(ÚverNieJeSplatený*ÚverJeDobrý,DátumPlatby,PočiatočnýDátumÚveru), PočiatočnýDátumÚveru)","v":"2028-01-17"},{"$f":"IFERROR(IF(ÚverNieJeSplatený*ÚverJeDobrý,HodnotaÚveru,\"\"), \"\")","v":{"v":1970.4482693755872,"d":"1,970.45 EUR"}},{"$f":"IFERROR(IF(ÚverNieJeSplatený*ÚverJeDobrý,MesačnáSplátka,0), 0)","v":{"v":108.52627796048073,"d":"108.53 EUR"}},{"$f":"IFERROR(IF(ÚverNieJeSplatený*ÚverJeDobrý,Istina,0), 0)","v":{"v":99.49505672584253,"d":"99.50 EUR"}},{"$f":"IFERROR(IF(ÚverNieJeSplatený*ÚverJeDobrý,SumaÚrokov,0), 0)","v":{"v":9.03122123463821,"d":"9.03 EUR"}},{"$f":"IFERROR(IF(ÚverNieJeSplatený*ÚverJeDobrý,KonečnýZostatok,0), 0)","v":{"v":1870.9532126497452,"d":"1,870.95 EUR"}}]
[null,{"$f":"IFERROR(IF(ÚverNieJeSplatený*ÚverJeDobrý,ČísloPlatby,\"\"), \"\")","v":103},{"$f":"IFERROR(IF(ÚverNieJeSplatený*ÚverJeDobrý,DátumPlatby,PočiatočnýDátumÚveru), PočiatočnýDátumÚveru)","v":"2028-02-17"},{"$f":"IFERROR(IF(ÚverNieJeSplatený*ÚverJeDobrý,HodnotaÚveru,\"\"), \"\")","v":{"v":1870.9532126497452,"d":"1,870.95 EUR"}},{"$f":"IFERROR(IF(ÚverNieJeSplatený*ÚverJeDobrý,MesačnáSplátka,0), 0)","v":{"v":108.52627796048073,"d":"108.53 EUR"}},{"$f":"IFERROR(IF(ÚverNieJeSplatený*ÚverJeDobrý,Istina,0), 0)","v":{"v":99.95107573583596,"d":"99.95 EUR"}},{"$f":"IFERROR(IF(ÚverNieJeSplatený*ÚverJeDobrý,SumaÚrokov,0), 0)","v":{"v":8.575202224644766,"d":"8.58 EUR"}},{"$f":"IFERROR(IF(ÚverNieJeSplatený*ÚverJeDobrý,KonečnýZostatok,0), 0)","v":{"v":1771.0021369139104,"d":"1,771.00 EUR"}}]
[null,{"$f":"IFERROR(IF(ÚverNieJeSplatený*ÚverJeDobrý,ČísloPlatby,\"\"), \"\")","v":104},{"$f":"IFERROR(IF(ÚverNieJeSplatený*ÚverJeDobrý,DátumPlatby,PočiatočnýDátumÚveru), PočiatočnýDátumÚveru)","v":"2028-03-17"},{"$f":"IFERROR(IF(ÚverNieJeSplatený*ÚverJeDobrý,HodnotaÚveru,\"\"), \"\")","v":{"v":1771.0021369139104,"d":"1,771.00 EUR"}},{"$f":"IFERROR(IF(ÚverNieJeSplatený*ÚverJeDobrý,MesačnáSplátka,0), 0)","v":{"v":108.52627796048073,"d":"108.53 EUR"}},{"$f":"IFERROR(IF(ÚverNieJeSplatený*ÚverJeDobrý,Istina,0), 0)","v":{"v":100.40918483295853,"d":"100.41 EUR"}},{"$f":"IFERROR(IF(ÚverNieJeSplatený*ÚverJeDobrý,SumaÚrokov,0), 0)","v":{"v":8.117093127522184,"d":"8.12 EUR"}},{"$f":"IFERROR(IF(ÚverNieJeSplatený*ÚverJeDobrý,KonečnýZostatok,0), 0)","v":{"v":1670.5929520809568,"d":"1,670.59 EUR"}}]
[null,{"$f":"IFERROR(IF(ÚverNieJeSplatený*ÚverJeDobrý,ČísloPlatby,\"\"), \"\")","v":105},{"$f":"IFERROR(IF(ÚverNieJeSplatený*ÚverJeDobrý,DátumPlatby,PočiatočnýDátumÚveru), PočiatočnýDátumÚveru)","v":"2028-04-17"},{"$f":"IFERROR(IF(ÚverNieJeSplatený*ÚverJeDobrý,HodnotaÚveru,\"\"), \"\")","v":{"v":1670.5929520809568,"d":"1,670.59 EUR"}},{"$f":"IFERROR(IF(ÚverNieJeSplatený*ÚverJeDobrý,MesačnáSplátka,0), 0)","v":{"v":108.52627796048073,"d":"108.53 EUR"}},{"$f":"IFERROR(IF(ÚverNieJeSplatený*ÚverJeDobrý,Istina,0), 0)","v":{"v":100.86939359677626,"d":"100.87 EUR"}},{"$f":"IFERROR(IF(ÚverNieJeSplatený*ÚverJeDobrý,SumaÚrokov,0), 0)","v":{"v":7.656884363704458,"d":"7.66 EUR"}},{"$f":"IFERROR(IF(ÚverNieJeSplatený*ÚverJeDobrý,KonečnýZostatok,0), 0)","v":{"v":1569.7235584841746,"d":"1,569.72 EUR"}}]
[null,{"$f":"IFERROR(IF(ÚverNieJeSplatený*ÚverJeDobrý,ČísloPlatby,\"\"), \"\")","v":106},{"$f":"IFERROR(IF(ÚverNieJeSplatený*ÚverJeDobrý,DátumPlatby,PočiatočnýDátumÚveru), PočiatočnýDátumÚveru)","v":"2028-05-17"},{"$f":"IFERROR(IF(ÚverNieJeSplatený*ÚverJeDobrý,HodnotaÚveru,\"\"), \"\")","v":{"v":1569.7235584841746,"d":"1,569.72 EUR"}},{"$f":"IFERROR(IF(ÚverNieJeSplatený*ÚverJeDobrý,MesačnáSplátka,0), 0)","v":{"v":108.52627796048073,"d":"108.53 EUR"}},{"$f":"IFERROR(IF(ÚverNieJeSplatený*ÚverJeDobrý,Istina,0), 0)","v":{"v":101.3317116507615,"d":"101.33 EUR"}},{"$f":"IFERROR(IF(ÚverNieJeSplatený*ÚverJeDobrý,SumaÚrokov,0), 0)","v":{"v":7.1945663097192325,"d":"7.19 EUR"}},{"$f":"IFERROR(IF(ÚverNieJeSplatený*ÚverJeDobrý,KonečnýZostatok,0), 0)","v":{"v":1468.3918468334177,"d":"1,468.39 EUR"}}]
[null,{"$f":"IFERROR(IF(ÚverNieJeSplatený*ÚverJeDobrý,ČísloPlatby,\"\"), \"\")","v":107},{"$f":"IFERROR(IF(ÚverNieJeSplatený*ÚverJeDobrý,DátumPlatby,PočiatočnýDátumÚveru), PočiatočnýDátumÚveru)","v":"2028-06-17"},{"$f":"IFERROR(IF(ÚverNieJeSplatený*ÚverJeDobrý,HodnotaÚveru,\"\"), \"\")","v":{"v":1468.3918468334177,"d":"1,468.39 EUR"}},{"$f":"IFERROR(IF(ÚverNieJeSplatený*ÚverJeDobrý,MesačnáSplátka,0), 0)","v":{"v":108.52627796048073,"d":"108.53 EUR"}},{"$f":"IFERROR(IF(ÚverNieJeSplatený*ÚverJeDobrý,Istina,0), 0)","v":{"v":101.79614866249415,"d":"101.80 EUR"}},{"$f":"IFERROR(IF(ÚverNieJeSplatený*ÚverJeDobrý,SumaÚrokov,0), 0)","v":{"v":6.730129297986575,"d":"6.73 EUR"}},{"$f":"IFERROR(IF(ÚverNieJeSplatený*ÚverJeDobrý,KonečnýZostatok,0), 0)","v":{"v":1366.5956981709169,"d":"1,366.60 EUR"}}]
[null,{"$f":"IFERROR(IF(ÚverNieJeSplatený*ÚverJeDobrý,ČísloPlatby,\"\"), \"\")","v":108},{"$f":"IFERROR(IF(ÚverNieJeSplatený*ÚverJeDobrý,DátumPlatby,PočiatočnýDátumÚveru), PočiatočnýDátumÚveru)","v":"2028-07-17"},{"$f":"IFERROR(IF(ÚverNieJeSplatený*ÚverJeDobrý,HodnotaÚveru,\"\"), \"\")","v":{"v":1366.5956981709169,"d":"1,366.60 EUR"}},{"$f":"IFERROR(IF(ÚverNieJeSplatený*ÚverJeDobrý,MesačnáSplátka,0), 0)","v":{"v":108.52627796048073,"d":"108.53 EUR"}},{"$f":"IFERROR(IF(ÚverNieJeSplatený*ÚverJeDobrý,Istina,0), 0)","v":{"v":102.2627143438639,"d":"102.26 EUR"}},{"$f":"IFERROR(IF(ÚverNieJeSplatený*ÚverJeDobrý,SumaÚrokov,0), 0)","v":{"v":6.2635636166168105,"d":"6.26 EUR"}},{"$f":"IFERROR(IF(ÚverNieJeSplatený*ÚverJeDobrý,KonečnýZostatok,0), 0)","v":{"v":1264.3329838270583,"d":"1,264.33 EUR"}}]
[null,{"$f":"IFERROR(IF(ÚverNieJeSplatený*ÚverJeDobrý,ČísloPlatby,\"\"), \"\")","v":109},{"$f":"IFERROR(IF(ÚverNieJeSplatený*ÚverJeDobrý,DátumPlatby,PočiatočnýDátumÚveru), PočiatočnýDátumÚveru)","v":"2028-08-17"},{"$f":"IFERROR(IF(ÚverNieJeSplatený*ÚverJeDobrý,HodnotaÚveru,\"\"), \"\")","v":{"v":1264.3329838270583,"d":"1,264.33 EUR"}},{"$f":"IFERROR(IF(ÚverNieJeSplatený*ÚverJeDobrý,MesačnáSplátka,0), 0)","v":{"v":108.52627796048073,"d":"108.53 EUR"}},{"$f":"IFERROR(IF(ÚverNieJeSplatený*ÚverJeDobrý,Istina,0), 0)","v":{"v":102.73141845127329,"d":"102.73 EUR"}},{"$f":"IFERROR(IF(ÚverNieJeSplatený*ÚverJeDobrý,SumaÚrokov,0), 0)","v":{"v":5.794859509207435,"d":"5.79 EUR"}},{"$f":"IFERROR(IF(ÚverNieJeSplatený*ÚverJeDobrý,KonečnýZostatok,0), 0)","v":{"v":1161.6015653757859,"d":"1,161.60 EUR"}}]
[null,{"$f":"IFERROR(IF(ÚverNieJeSplatený*ÚverJeDobrý,ČísloPlatby,\"\"), \"\")","v":110},{"$f":"IFERROR(IF(ÚverNieJeSplatený*ÚverJeDobrý,DátumPlatby,PočiatočnýDátumÚveru), PočiatočnýDátumÚveru)","v":"2028-09-17"},{"$f":"IFERROR(IF(ÚverNieJeSplatený*ÚverJeDobrý,HodnotaÚveru,\"\"), \"\")","v":{"v":1161.6015653757859,"d":"1,161.60 EUR"}},{"$f":"IFERROR(IF(ÚverNieJeSplatený*ÚverJeDobrý,MesačnáSplátka,0), 0)","v":{"v":108.52627796048073,"d":"108.53 EUR"}},{"$f":"IFERROR(IF(ÚverNieJeSplatený*ÚverJeDobrý,Istina,0), 0)","v":{"v":103.20227078584162,"d":"103.20 EUR"}},{"$f":"IFERROR(IF(ÚverNieJeSplatený*ÚverJeDobrý,SumaÚrokov,0), 0)","v":{"v":5.324007174639099,"d":"5.32 EUR"}},{"$f":"IFERROR(IF(ÚverNieJeSplatený*ÚverJeDobrý,KonečnýZostatok,0), 0)","v":{"v":1058.3992945899427,"d":"1,058.40 EUR"}}]
[null,{"$f":"IFERROR(IF(ÚverNieJeSplatený*ÚverJeDobrý,ČísloPlatby,\"\"), \"\")","v":111},{"$f":"IFERROR(IF(ÚverNieJeSplatený*ÚverJeDobrý,DátumPlatby,PočiatočnýDátumÚveru), PočiatočnýDátumÚveru)","v":"2028-10-17"},{"$f":"IFERROR(IF(ÚverNieJeSplatený*ÚverJeDobrý,HodnotaÚveru,\"\"), \"\")","v":{"v":1058.3992945899427,"d":"1,058.40 EUR"}},{"$f":"IFERROR(IF(ÚverNieJeSplatený*ÚverJeDobrý,MesačnáSplátka,0), 0)","v":{"v":108.52627796048073,"d":"108.53 EUR"}},{"$f":"IFERROR(IF(ÚverNieJeSplatený*ÚverJeDobrý,Istina,0), 0)","v":{"v":103.67528119361006,"d":"103.68 EUR"}},{"$f":"IFERROR(IF(ÚverNieJeSplatený*ÚverJeDobrý,SumaÚrokov,0), 0)","v":{"v":4.850996766870658,"d":"4.85 EUR"}},{"$f":"IFERROR(IF(ÚverNieJeSplatený*ÚverJeDobrý,KonečnýZostatok,0), 0)","v":{"v":954.7240133963332,"d":"954.72 EUR"}}]
[null,{"$f":"IFERROR(IF(ÚverNieJeSplatený*ÚverJeDobrý,ČísloPlatby,\"\"), \"\")","v":112},{"$f":"IFERROR(IF(ÚverNieJeSplatený*ÚverJeDobrý,DátumPlatby,PočiatočnýDátumÚveru), PočiatočnýDátumÚveru)","v":"2028-11-17"},{"$f":"IFERROR(IF(ÚverNieJeSplatený*ÚverJeDobrý,HodnotaÚveru,\"\"), \"\")","v":{"v":954.7240133963332,"d":"954.72 EUR"}},{"$f":"IFERROR(IF(ÚverNieJeSplatený*ÚverJeDobrý,MesačnáSplátka,0), 0)","v":{"v":108.52627796048073,"d":"108.53 EUR"}},{"$f":"IFERROR(IF(ÚverNieJeSplatený*ÚverJeDobrý,Istina,0), 0)","v":{"v":104.15045956574744,"d":"104.15 EUR"}},{"$f":"IFERROR(IF(ÚverNieJeSplatený*ÚverJeDobrý,SumaÚrokov,0), 0)","v":{"v":4.375818394733279,"d":"4.38 EUR"}},{"$f":"IFERROR(IF(ÚverNieJeSplatený*ÚverJeDobrý,KonečnýZostatok,0), 0)","v":{"v":850.5735538305817,"d":"850.57 EUR"}}]
[null,{"$f":"IFERROR(IF(ÚverNieJeSplatený*ÚverJeDobrý,ČísloPlatby,\"\"), \"\")","v":113},{"$f":"IFERROR(IF(ÚverNieJeSplatený*ÚverJeDobrý,DátumPlatby,PočiatočnýDátumÚveru), PočiatočnýDátumÚveru)","v":"2028-12-17"},{"$f":"IFERROR(IF(ÚverNieJeSplatený*ÚverJeDobrý,HodnotaÚveru,\"\"), \"\")","v":{"v":850.5735538305817,"d":"850.57 EUR"}},{"$f":"IFERROR(IF(ÚverNieJeSplatený*ÚverJeDobrý,MesačnáSplátka,0), 0)","v":{"v":108.52627796048073,"d":"108.53 EUR"}},{"$f":"IFERROR(IF(ÚverNieJeSplatený*ÚverJeDobrý,Istina,0), 0)","v":{"v":104.62781583875713,"d":"104.63 EUR"}},{"$f":"IFERROR(IF(ÚverNieJeSplatený*ÚverJeDobrý,SumaÚrokov,0), 0)","v":{"v":3.8984621217236026,"d":"3.90 EUR"}},{"$f":"IFERROR(IF(ÚverNieJeSplatený*ÚverJeDobrý,KonečnýZostatok,0), 0)","v":{"v":745.945737991824,"d":"745.95 EUR"}}]
[null,{"$f":"IFERROR(IF(ÚverNieJeSplatený*ÚverJeDobrý,ČísloPlatby,\"\"), \"\")","v":114},{"$f":"IFERROR(IF(ÚverNieJeSplatený*ÚverJeDobrý,DátumPlatby,PočiatočnýDátumÚveru), PočiatočnýDátumÚveru)","v":"2029-01-17"},{"$f":"IFERROR(IF(ÚverNieJeSplatený*ÚverJeDobrý,HodnotaÚveru,\"\"), \"\")","v":{"v":745.945737991824,"d":"745.95 EUR"}},{"$f":"IFERROR(IF(ÚverNieJeSplatený*ÚverJeDobrý,MesačnáSplátka,0), 0)","v":{"v":108.52627796048073,"d":"108.53 EUR"}},{"$f":"IFERROR(IF(ÚverNieJeSplatený*ÚverJeDobrý,Istina,0), 0)","v":{"v":105.10735999468474,"d":"105.11 EUR"}},{"$f":"IFERROR(IF(ÚverNieJeSplatený*ÚverJeDobrý,SumaÚrokov,0), 0)","v":{"v":3.4189179657959654,"d":"3.42 EUR"}},{"$f":"IFERROR(IF(ÚverNieJeSplatený*ÚverJeDobrý,KonečnýZostatok,0), 0)","v":{"v":640.8383779971373,"d":"640.84 EUR"}}]
[null,{"$f":"IFERROR(IF(ÚverNieJeSplatený*ÚverJeDobrý,ČísloPlatby,\"\"), \"\")","v":115},{"$f":"IFERROR(IF(ÚverNieJeSplatený*ÚverJeDobrý,DátumPlatby,PočiatočnýDátumÚveru), PočiatočnýDátumÚveru)","v":"2029-02-17"},{"$f":"IFERROR(IF(ÚverNieJeSplatený*ÚverJeDobrý,HodnotaÚveru,\"\"), \"\")","v":{"v":640.8383779971373,"d":"640.84 EUR"}},{"$f":"IFERROR(IF(ÚverNieJeSplatený*ÚverJeDobrý,MesačnáSplátka,0), 0)","v":{"v":108.52627796048073,"d":"108.53 EUR"}},{"$f":"IFERROR(IF(ÚverNieJeSplatený*ÚverJeDobrý,Istina,0), 0)","v":{"v":105.58910206132707,"d":"105.59 EUR"}},{"$f":"IFERROR(IF(ÚverNieJeSplatený*ÚverJeDobrý,SumaÚrokov,0), 0)","v":{"v":2.9371758991536607,"d":"2.94 EUR"}},{"$f":"IFERROR(IF(ÚverNieJeSplatený*ÚverJeDobrý,KonečnýZostatok,0), 0)","v":{"v":535.2492759358101,"d":"535.25 EUR"}}]
[null,{"$f":"IFERROR(IF(ÚverNieJeSplatený*ÚverJeDobrý,ČísloPlatby,\"\"), \"\")","v":116},{"$f":"IFERROR(IF(ÚverNieJeSplatený*ÚverJeDobrý,DátumPlatby,PočiatočnýDátumÚveru), PočiatočnýDátumÚveru)","v":"2029-03-17"},{"$f":"IFERROR(IF(ÚverNieJeSplatený*ÚverJeDobrý,HodnotaÚveru,\"\"), \"\")","v":{"v":535.2492759358101,"d":"535.25 EUR"}},{"$f":"IFERROR(IF(ÚverNieJeSplatený*ÚverJeDobrý,MesačnáSplátka,0), 0)","v":{"v":108.52627796048073,"d":"108.53 EUR"}},{"$f":"IFERROR(IF(ÚverNieJeSplatený*ÚverJeDobrý,Istina,0), 0)","v":{"v":106.07305211244147,"d":"106.07 EUR"}},{"$f":"IFERROR(IF(ÚverNieJeSplatený*ÚverJeDobrý,SumaÚrokov,0), 0)","v":{"v":2.4532258480392444,"d":"2.45 EUR"}},{"$f":"IFERROR(IF(ÚverNieJeSplatený*ÚverJeDobrý,KonečnýZostatok,0), 0)","v":{"v":429.1762238233714,"d":"429.18 EUR"}}]
[null,{"$f":"IFERROR(IF(ÚverNieJeSplatený*ÚverJeDobrý,ČísloPlatby,\"\"), \"\")","v":117},{"$f":"IFERROR(IF(ÚverNieJeSplatený*ÚverJeDobrý,DátumPlatby,PočiatočnýDátumÚveru), PočiatočnýDátumÚveru)","v":"2029-04-17"},{"$f":"IFERROR(IF(ÚverNieJeSplatený*ÚverJeDobrý,HodnotaÚveru,\"\"), \"\")","v":{"v":429.1762238233714,"d":"429.18 EUR"}},{"$f":"IFERROR(IF(ÚverNieJeSplatený*ÚverJeDobrý,MesačnáSplátka,0), 0)","v":{"v":108.52627796048073,"d":"108.53 EUR"}},{"$f":"IFERROR(IF(ÚverNieJeSplatený*ÚverJeDobrý,Istina,0), 0)","v":{"v":106.55922026795685,"d":"106.56 EUR"}},{"$f":"IFERROR(IF(ÚverNieJeSplatený*ÚverJeDobrý,SumaÚrokov,0), 0)","v":{"v":1.9670576925238876,"d":"1.97 EUR"}},{"$f":"IFERROR(IF(ÚverNieJeSplatený*ÚverJeDobrý,KonečnýZostatok,0), 0)","v":{"v":322.61700355541325,"d":"322.62 EUR"}}]
[null,{"$f":"IFERROR(IF(ÚverNieJeSplatený*ÚverJeDobrý,ČísloPlatby,\"\"), \"\")","v":118},{"$f":"IFERROR(IF(ÚverNieJeSplatený*ÚverJeDobrý,DátumPlatby,PočiatočnýDátumÚveru), PočiatočnýDátumÚveru)","v":"2029-05-17"},{"$f":"IFERROR(IF(ÚverNieJeSplatený*ÚverJeDobrý,HodnotaÚveru,\"\"), \"\")","v":{"v":322.61700355541325,"d":"322.62 EUR"}},{"$f":"IFERROR(IF(ÚverNieJeSplatený*ÚverJeDobrý,MesačnáSplátka,0), 0)","v":{"v":108.52627796048073,"d":"108.53 EUR"}},{"$f":"IFERROR(IF(ÚverNieJeSplatený*ÚverJeDobrý,Istina,0), 0)","v":{"v":107.04761669418498,"d":"107.05 EUR"}},{"$f":"IFERROR(IF(ÚverNieJeSplatený*ÚverJeDobrý,SumaÚrokov,0), 0)","v":{"v":1.4786612662957521,"d":"1.48 EUR"}},{"$f":"IFERROR(IF(ÚverNieJeSplatený*ÚverJeDobrý,KonečnýZostatok,0), 0)","v":{"v":215.5693868612252,"d":"215.57 EUR"}}]
[null,{"$f":"IFERROR(IF(ÚverNieJeSplatený*ÚverJeDobrý,ČísloPlatby,\"\"), \"\")","v":119},{"$f":"IFERROR(IF(ÚverNieJeSplatený*ÚverJeDobrý,DátumPlatby,PočiatočnýDátumÚveru), PočiatočnýDátumÚveru)","v":"2029-06-17"},{"$f":"IFERROR(IF(ÚverNieJeSplatený*ÚverJeDobrý,HodnotaÚveru,\"\"), \"\")","v":{"v":215.5693868612252,"d":"215.57 EUR"}},{"$f":"IFERROR(IF(ÚverNieJeSplatený*ÚverJeDobrý,MesačnáSplátka,0), 0)","v":{"v":108.52627796048073,"d":"108.53 EUR"}},{"$f":"IFERROR(IF(ÚverNieJeSplatený*ÚverJeDobrý,Istina,0), 0)","v":{"v":107.5382516040333,"d":"107.54 EUR"}},{"$f":"IFERROR(IF(ÚverNieJeSplatený*ÚverJeDobrý,SumaÚrokov,0), 0)","v":{"v":0.9880263564474041,"d":"0.99 EUR"}},{"$f":"IFERROR(IF(ÚverNieJeSplatený*ÚverJeDobrý,KonečnýZostatok,0), 0)","v":{"v":108.03113525719527,"d":"108.03 EUR"}}]
[null,{"$f":"IFERROR(IF(ÚverNieJeSplatený*ÚverJeDobrý,ČísloPlatby,\"\"), \"\")","v":120},{"$f":"IFERROR(IF(ÚverNieJeSplatený*ÚverJeDobrý,DátumPlatby,PočiatočnýDátumÚveru), PočiatočnýDátumÚveru)","v":"2029-07-17"},{"$f":"IFERROR(IF(ÚverNieJeSplatený*ÚverJeDobrý,HodnotaÚveru,\"\"), \"\")","v":{"v":108.03113525719527,"d":"108.03 EUR"}},{"$f":"IFERROR(IF(ÚverNieJeSplatený*ÚverJeDobrý,MesačnáSplátka,0), 0)","v":{"v":108.52627796048073,"d":"108.53 EUR"}},{"$f":"IFERROR(IF(ÚverNieJeSplatený*ÚverJeDobrý,Istina,0), 0)","v":{"v":108.03113525721848,"d":"108.03 EUR"}},{"$f":"IFERROR(IF(ÚverNieJeSplatený*ÚverJeDobrý,SumaÚrokov,0), 0)","v":{"v":0.49514270326225146,"d":"0.50 EUR"}},{"$f":"IFERROR(IF(ÚverNieJeSplatený*ÚverJeDobrý,KonečnýZostatok,0), 0)","v":{"v":-2.546585164964199e-11,"d":"-0.00 EUR"}}]
[null,{"$f":"IFERROR(IF(ÚverNieJeSplatený*ÚverJeDobrý,ČísloPlatby,\"\"), \"\")","v":""},{"$f":"IFERROR(IF(ÚverNieJeSplatený*ÚverJeDobrý,DátumPlatby,PočiatočnýDátumÚveru), PočiatočnýDátumÚveru)","v":"2019-07-17"},{"$f":"IFERROR(IF(ÚverNieJeSplatený*ÚverJeDobrý,HodnotaÚveru,\"\"), \"\")","v":""},{"$f":"IFERROR(IF(ÚverNieJeSplatený*ÚverJeDobrý,MesačnáSplátka,0), 0)","v":{"v":0,"d":"0.00 EUR"}},{"$f":"IFERROR(IF(ÚverNieJeSplatený*ÚverJeDobrý,Istina,0), 0)","v":{"v":0,"d":"0.00 EUR"}},{"$f":"IFERROR(IF(ÚverNieJeSplatený*ÚverJeDobrý,SumaÚrokov,0), 0)","v":{"v":0,"d":"0.00 EUR"}},{"$f":"IFERROR(IF(ÚverNieJeSplatený*ÚverJeDobrý,KonečnýZostatok,0), 0)","v":{"v":0,"d":"0.00 EUR"}}]
[null,{"$f":"IFERROR(IF(ÚverNieJeSplatený*ÚverJeDobrý,ČísloPlatby,\"\"), \"\")","v":""},{"$f":"IFERROR(IF(ÚverNieJeSplatený*ÚverJeDobrý,DátumPlatby,PočiatočnýDátumÚveru), PočiatočnýDátumÚveru)","v":"2019-07-17"},{"$f":"IFERROR(IF(ÚverNieJeSplatený*ÚverJeDobrý,HodnotaÚveru,\"\"), \"\")","v":""},{"$f":"IFERROR(IF(ÚverNieJeSplatený*ÚverJeDobrý,MesačnáSplátka,0), 0)","v":{"v":0,"d":"0.00 EUR"}},{"$f":"IFERROR(IF(ÚverNieJeSplatený*ÚverJeDobrý,Istina,0), 0)","v":{"v":0,"d":"0.00 EUR"}},{"$f":"IFERROR(IF(ÚverNieJeSplatený*ÚverJeDobrý,SumaÚrokov,0), 0)","v":{"v":0,"d":"0.00 EUR"}},{"$f":"IFERROR(IF(ÚverNieJeSplatený*ÚverJeDobrý,KonečnýZostatok,0), 0)","v":{"v":0,"d":"0.00 EUR"}}]
[null,{"$f":"IFERROR(IF(ÚverNieJeSplatený*ÚverJeDobrý,ČísloPlatby,\"\"), \"\")","v":""},{"$f":"IFERROR(IF(ÚverNieJeSplatený*ÚverJeDobrý,DátumPlatby,PočiatočnýDátumÚveru), PočiatočnýDátumÚveru)","v":"2019-07-17"},{"$f":"IFERROR(IF(ÚverNieJeSplatený*ÚverJeDobrý,HodnotaÚveru,\"\"), \"\")","v":""},{"$f":"IFERROR(IF(ÚverNieJeSplatený*ÚverJeDobrý,MesačnáSplátka,0), 0)","v":{"v":0,"d":"0.00 EUR"}},{"$f":"IFERROR(IF(ÚverNieJeSplatený*ÚverJeDobrý,Istina,0), 0)","v":{"v":0,"d":"0.00 EUR"}},{"$f":"IFERROR(IF(ÚverNieJeSplatený*ÚverJeDobrý,SumaÚrokov,0), 0)","v":{"v":0,"d":"0.00 EUR"}},{"$f":"IFERROR(IF(ÚverNieJeSplatený*ÚverJeDobrý,KonečnýZostatok,0), 0)","v":{"v":0,"d":"0.00 EUR"}}]
[null,{"$f":"IFERROR(IF(ÚverNieJeSplatený*ÚverJeDobrý,ČísloPlatby,\"\"), \"\")","v":""},{"$f":"IFERROR(IF(ÚverNieJeSplatený*ÚverJeDobrý,DátumPlatby,PočiatočnýDátumÚveru), PočiatočnýDátumÚveru)","v":"2019-07-17"},{"$f":"IFERROR(IF(ÚverNieJeSplatený*ÚverJeDobrý,HodnotaÚveru,\"\"), \"\")","v":""},{"$f":"IFERROR(IF(ÚverNieJeSplatený*ÚverJeDobrý,MesačnáSplátka,0), 0)","v":{"v":0,"d":"0.00 EUR"}},{"$f":"IFERROR(IF(ÚverNieJeSplatený*ÚverJeDobrý,Istina,0), 0)","v":{"v":0,"d":"0.00 EUR"}},{"$f":"IFERROR(IF(ÚverNieJeSplatený*ÚverJeDobrý,SumaÚrokov,0), 0)","v":{"v":0,"d":"0.00 EUR"}},{"$f":"IFERROR(IF(ÚverNieJeSplatený*ÚverJeDobrý,KonečnýZostatok,0), 0)","v":{"v":0,"d":"0.00 EUR"}}]
[null,{"$f":"IFERROR(IF(ÚverNieJeSplatený*ÚverJeDobrý,ČísloPlatby,\"\"), \"\")","v":""},{"$f":"IFERROR(IF(ÚverNieJeSplatený*ÚverJeDobrý,DátumPlatby,PočiatočnýDátumÚveru), PočiatočnýDátumÚveru)","v":"2019-07-17"},{"$f":"IFERROR(IF(ÚverNieJeSplatený*ÚverJeDobrý,HodnotaÚveru,\"\"), \"\")","v":""},{"$f":"IFERROR(IF(ÚverNieJeSplatený*ÚverJeDobrý,MesačnáSplátka,0), 0)","v":{"v":0,"d":"0.00 EUR"}},{"$f":"IFERROR(IF(ÚverNieJeSplatený*ÚverJeDobrý,Istina,0), 0)","v":{"v":0,"d":"0.00 EUR"}},{"$f":"IFERROR(IF(ÚverNieJeSplatený*ÚverJeDobrý,SumaÚrokov,0), 0)","v":{"v":0,"d":"0.00 EUR"}},{"$f":"IFERROR(IF(ÚverNieJeSplatený*ÚverJeDobrý,KonečnýZostatok,0), 0)","v":{"v":0,"d":"0.00 EUR"}}]
[null,{"$f":"IFERROR(IF(ÚverNieJeSplatený*ÚverJeDobrý,ČísloPlatby,\"\"), \"\")","v":""},{"$f":"IFERROR(IF(ÚverNieJeSplatený*ÚverJeDobrý,DátumPlatby,PočiatočnýDátumÚveru), PočiatočnýDátumÚveru)","v":"2019-07-17"},{"$f":"IFERROR(IF(ÚverNieJeSplatený*ÚverJeDobrý,HodnotaÚveru,\"\"), \"\")","v":""},{"$f":"IFERROR(IF(ÚverNieJeSplatený*ÚverJeDobrý,MesačnáSplátka,0), 0)","v":{"v":0,"d":"0.00 EUR"}},{"$f":"IFERROR(IF(ÚverNieJeSplatený*ÚverJeDobrý,Istina,0), 0)","v":{"v":0,"d":"0.00 EUR"}},{"$f":"IFERROR(IF(ÚverNieJeSplatený*ÚverJeDobrý,SumaÚrokov,0), 0)","v":{"v":0,"d":"0.00 EUR"}},{"$f":"IFERROR(IF(ÚverNieJeSplatený*ÚverJeDobrý,KonečnýZostatok,0), 0)","v":{"v":0,"d":"0.00 EUR"}}]
[null,{"$f":"IFERROR(IF(ÚverNieJeSplatený*ÚverJeDobrý,ČísloPlatby,\"\"), \"\")","v":""},{"$f":"IFERROR(IF(ÚverNieJeSplatený*ÚverJeDobrý,DátumPlatby,PočiatočnýDátumÚveru), PočiatočnýDátumÚveru)","v":"2019-07-17"},{"$f":"IFERROR(IF(ÚverNieJeSplatený*ÚverJeDobrý,HodnotaÚveru,\"\"), \"\")","v":""},{"$f":"IFERROR(IF(ÚverNieJeSplatený*ÚverJeDobrý,MesačnáSplátka,0), 0)","v":{"v":0,"d":"0.00 EUR"}},{"$f":"IFERROR(IF(ÚverNieJeSplatený*ÚverJeDobrý,Istina,0), 0)","v":{"v":0,"d":"0.00 EUR"}},{"$f":"IFERROR(IF(ÚverNieJeSplatený*ÚverJeDobrý,SumaÚrokov,0), 0)","v":{"v":0,"d":"0.00 EUR"}},{"$f":"IFERROR(IF(ÚverNieJeSplatený*ÚverJeDobrý,KonečnýZostatok,0), 0)","v":{"v":0,"d":"0.00 EUR"}}]
[null,{"$f":"IFERROR(IF(ÚverNieJeSplatený*ÚverJeDobrý,ČísloPlatby,\"\"), \"\")","v":""},{"$f":"IFERROR(IF(ÚverNieJeSplatený*ÚverJeDobrý,DátumPlatby,PočiatočnýDátumÚveru), PočiatočnýDátumÚveru)","v":"2019-07-17"},{"$f":"IFERROR(IF(ÚverNieJeSplatený*ÚverJeDobrý,HodnotaÚveru,\"\"), \"\")","v":""},{"$f":"IFERROR(IF(ÚverNieJeSplatený*ÚverJeDobrý,MesačnáSplátka,0), 0)","v":{"v":0,"d":"0.00 EUR"}},{"$f":"IFERROR(IF(ÚverNieJeSplatený*ÚverJeDobrý,Istina,0), 0)","v":{"v":0,"d":"0.00 EUR"}},{"$f":"IFERROR(IF(ÚverNieJeSplatený*ÚverJeDobrý,SumaÚrokov,0), 0)","v":{"v":0,"d":"0.00 EUR"}},{"$f":"IFERROR(IF(ÚverNieJeSplatený*ÚverJeDobrý,KonečnýZostatok,0), 0)","v":{"v":0,"d":"0.00 EUR"}}]
[null,{"$f":"IFERROR(IF(ÚverNieJeSplatený*ÚverJeDobrý,ČísloPlatby,\"\"), \"\")","v":""},{"$f":"IFERROR(IF(ÚverNieJeSplatený*ÚverJeDobrý,DátumPlatby,PočiatočnýDátumÚveru), PočiatočnýDátumÚveru)","v":"2019-07-17"},{"$f":"IFERROR(IF(ÚverNieJeSplatený*ÚverJeDobrý,HodnotaÚveru,\"\"), \"\")","v":""},{"$f":"IFERROR(IF(ÚverNieJeSplatený*ÚverJeDobrý,MesačnáSplátka,0), 0)","v":{"v":0,"d":"0.00 EUR"}},{"$f":"IFERROR(IF(ÚverNieJeSplatený*ÚverJeDobrý,Istina,0), 0)","v":{"v":0,"d":"0.00 EUR"}},{"$f":"IFERROR(IF(ÚverNieJeSplatený*ÚverJeDobrý,SumaÚrokov,0), 0)","v":{"v":0,"d":"0.00 EUR"}},{"$f":"IFERROR(IF(ÚverNieJeSplatený*ÚverJeDobrý,KonečnýZostatok,0), 0)","v":{"v":0,"d":"0.00 EUR"}}]
[null,{"$f":"IFERROR(IF(ÚverNieJeSplatený*ÚverJeDobrý,ČísloPlatby,\"\"), \"\")","v":""},{"$f":"IFERROR(IF(ÚverNieJeSplatený*ÚverJeDobrý,DátumPlatby,PočiatočnýDátumÚveru), PočiatočnýDátumÚveru)","v":"2019-07-17"},{"$f":"IFERROR(IF(ÚverNieJeSplatený*ÚverJeDobrý,HodnotaÚveru,\"\"), \"\")","v":""},{"$f":"IFERROR(IF(ÚverNieJeSplatený*ÚverJeDobrý,MesačnáSplátka,0), 0)","v":{"v":0,"d":"0.00 EUR"}},{"$f":"IFERROR(IF(ÚverNieJeSplatený*ÚverJeDobrý,Istina,0), 0)","v":{"v":0,"d":"0.00 EUR"}},{"$f":"IFERROR(IF(ÚverNieJeSplatený*ÚverJeDobrý,SumaÚrokov,0), 0)","v":{"v":0,"d":"0.00 EUR"}},{"$f":"IFERROR(IF(ÚverNieJeSplatený*ÚverJeDobrý,KonečnýZostatok,0), 0)","v":{"v":0,"d":"0.00 EUR"}}]
[null,{"$f":"IFERROR(IF(ÚverNieJeSplatený*ÚverJeDobrý,ČísloPlatby,\"\"), \"\")","v":""},{"$f":"IFERROR(IF(ÚverNieJeSplatený*ÚverJeDobrý,DátumPlatby,PočiatočnýDátumÚveru), PočiatočnýDátumÚveru)","v":"2019-07-17"},{"$f":"IFERROR(IF(ÚverNieJeSplatený*ÚverJeDobrý,HodnotaÚveru,\"\"), \"\")","v":""},{"$f":"IFERROR(IF(ÚverNieJeSplatený*ÚverJeDobrý,MesačnáSplátka,0), 0)","v":{"v":0,"d":"0.00 EUR"}},{"$f":"IFERROR(IF(ÚverNieJeSplatený*ÚverJeDobrý,Istina,0), 0)","v":{"v":0,"d":"0.00 EUR"}},{"$f":"IFERROR(IF(ÚverNieJeSplatený*ÚverJeDobrý,SumaÚrokov,0), 0)","v":{"v":0,"d":"0.00 EUR"}},{"$f":"IFERROR(IF(ÚverNieJeSplatený*ÚverJeDobrý,KonečnýZostatok,0), 0)","v":{"v":0,"d":"0.00 EUR"}}]
[null,{"$f":"IFERROR(IF(ÚverNieJeSplatený*ÚverJeDobrý,ČísloPlatby,\"\"), \"\")","v":""},{"$f":"IFERROR(IF(ÚverNieJeSplatený*ÚverJeDobrý,DátumPlatby,PočiatočnýDátumÚveru), PočiatočnýDátumÚveru)","v":"2019-07-17"},{"$f":"IFERROR(IF(ÚverNieJeSplatený*ÚverJeDobrý,HodnotaÚveru,\"\"), \"\")","v":""},{"$f":"IFERROR(IF(ÚverNieJeSplatený*ÚverJeDobrý,MesačnáSplátka,0), 0)","v":{"v":0,"d":"0.00 EUR"}},{"$f":"IFERROR(IF(ÚverNieJeSplatený*ÚverJeDobrý,Istina,0), 0)","v":{"v":0,"d":"0.00 EUR"}},{"$f":"IFERROR(IF(ÚverNieJeSplatený*ÚverJeDobrý,SumaÚrokov,0), 0)","v":{"v":0,"d":"0.00 EUR"}},{"$f":"IFERROR(IF(ÚverNieJeSplatený*ÚverJeDobrý,KonečnýZostatok,0), 0)","v":{"v":0,"d":"0.00 EUR"}}]
[null,{"$f":"IFERROR(IF(ÚverNieJeSplatený*ÚverJeDobrý,ČísloPlatby,\"\"), \"\")","v":""},{"$f":"IFERROR(IF(ÚverNieJeSplatený*ÚverJeDobrý,DátumPlatby,PočiatočnýDátumÚveru), PočiatočnýDátumÚveru)","v":"2019-07-17"},{"$f":"IFERROR(IF(ÚverNieJeSplatený*ÚverJeDobrý,HodnotaÚveru,\"\"), \"\")","v":""},{"$f":"IFERROR(IF(ÚverNieJeSplatený*ÚverJeDobrý,MesačnáSplátka,0), 0)","v":{"v":0,"d":"0.00 EUR"}},{"$f":"IFERROR(IF(ÚverNieJeSplatený*ÚverJeDobrý,Istina,0), 0)","v":{"v":0,"d":"0.00 EUR"}},{"$f":"IFERROR(IF(ÚverNieJeSplatený*ÚverJeDobrý,SumaÚrokov,0), 0)","v":{"v":0,"d":"0.00 EUR"}},{"$f":"IFERROR(IF(ÚverNieJeSplatený*ÚverJeDobrý,KonečnýZostatok,0), 0)","v":{"v":0,"d":"0.00 EUR"}}]
[null,{"$f":"IFERROR(IF(ÚverNieJeSplatený*ÚverJeDobrý,ČísloPlatby,\"\"), \"\")","v":""},{"$f":"IFERROR(IF(ÚverNieJeSplatený*ÚverJeDobrý,DátumPlatby,PočiatočnýDátumÚveru), PočiatočnýDátumÚveru)","v":"2019-07-17"},{"$f":"IFERROR(IF(ÚverNieJeSplatený*ÚverJeDobrý,HodnotaÚveru,\"\"), \"\")","v":""},{"$f":"IFERROR(IF(ÚverNieJeSplatený*ÚverJeDobrý,MesačnáSplátka,0), 0)","v":{"v":0,"d":"0.00 EUR"}},{"$f":"IFERROR(IF(ÚverNieJeSplatený*ÚverJeDobrý,Istina,0), 0)","v":{"v":0,"d":"0.00 EUR"}},{"$f":"IFERROR(IF(ÚverNieJeSplatený*ÚverJeDobrý,SumaÚrokov,0), 0)","v":{"v":0,"d":"0.00 EUR"}},{"$f":"IFERROR(IF(ÚverNieJeSplatený*ÚverJeDobrý,KonečnýZostatok,0), 0)","v":{"v":0,"d":"0.00 EUR"}}]
[null,{"$f":"IFERROR(IF(ÚverNieJeSplatený*ÚverJeDobrý,ČísloPlatby,\"\"), \"\")","v":""},{"$f":"IFERROR(IF(ÚverNieJeSplatený*ÚverJeDobrý,DátumPlatby,PočiatočnýDátumÚveru), PočiatočnýDátumÚveru)","v":"2019-07-17"},{"$f":"IFERROR(IF(ÚverNieJeSplatený*ÚverJeDobrý,HodnotaÚveru,\"\"), \"\")","v":""},{"$f":"IFERROR(IF(ÚverNieJeSplatený*ÚverJeDobrý,MesačnáSplátka,0), 0)","v":{"v":0,"d":"0.00 EUR"}},{"$f":"IFERROR(IF(ÚverNieJeSplatený*ÚverJeDobrý,Istina,0), 0)","v":{"v":0,"d":"0.00 EUR"}},{"$f":"IFERROR(IF(ÚverNieJeSplatený*ÚverJeDobrý,SumaÚrokov,0), 0)","v":{"v":0,"d":"0.00 EUR"}},{"$f":"IFERROR(IF(ÚverNieJeSplatený*ÚverJeDobrý,KonečnýZostatok,0), 0)","v":{"v":0,"d":"0.00 EUR"}}]
[null,{"$f":"IFERROR(IF(ÚverNieJeSplatený*ÚverJeDobrý,ČísloPlatby,\"\"), \"\")","v":""},{"$f":"IFERROR(IF(ÚverNieJeSplatený*ÚverJeDobrý,DátumPlatby,PočiatočnýDátumÚveru), PočiatočnýDátumÚveru)","v":"2019-07-17"},{"$f":"IFERROR(IF(ÚverNieJeSplatený*ÚverJeDobrý,HodnotaÚveru,\"\"), \"\")","v":""},{"$f":"IFERROR(IF(ÚverNieJeSplatený*ÚverJeDobrý,MesačnáSplátka,0), 0)","v":{"v":0,"d":"0.00 EUR"}},{"$f":"IFERROR(IF(ÚverNieJeSplatený*ÚverJeDobrý,Istina,0), 0)","v":{"v":0,"d":"0.00 EUR"}},{"$f":"IFERROR(IF(ÚverNieJeSplatený*ÚverJeDobrý,SumaÚrokov,0), 0)","v":{"v":0,"d":"0.00 EUR"}},{"$f":"IFERROR(IF(ÚverNieJeSplatený*ÚverJeDobrý,KonečnýZostatok,0), 0)","v":{"v":0,"d":"0.00 EUR"}}]
[null,{"$f":"IFERROR(IF(ÚverNieJeSplatený*ÚverJeDobrý,ČísloPlatby,\"\"), \"\")","v":""},{"$f":"IFERROR(IF(ÚverNieJeSplatený*ÚverJeDobrý,DátumPlatby,PočiatočnýDátumÚveru), PočiatočnýDátumÚveru)","v":"2019-07-17"},{"$f":"IFERROR(IF(ÚverNieJeSplatený*ÚverJeDobrý,HodnotaÚveru,\"\"), \"\")","v":""},{"$f":"IFERROR(IF(ÚverNieJeSplatený*ÚverJeDobrý,MesačnáSplátka,0), 0)","v":{"v":0,"d":"0.00 EUR"}},{"$f":"IFERROR(IF(ÚverNieJeSplatený*ÚverJeDobrý,Istina,0), 0)","v":{"v":0,"d":"0.00 EUR"}},{"$f":"IFERROR(IF(ÚverNieJeSplatený*ÚverJeDobrý,SumaÚrokov,0), 0)","v":{"v":0,"d":"0.00 EUR"}},{"$f":"IFERROR(IF(ÚverNieJeSplatený*ÚverJeDobrý,KonečnýZostatok,0), 0)","v":{"v":0,"d":"0.00 EUR"}}]
[null,{"$f":"IFERROR(IF(ÚverNieJeSplatený*ÚverJeDobrý,ČísloPlatby,\"\"), \"\")","v":""},{"$f":"IFERROR(IF(ÚverNieJeSplatený*ÚverJeDobrý,DátumPlatby,PočiatočnýDátumÚveru), PočiatočnýDátumÚveru)","v":"2019-07-17"},{"$f":"IFERROR(IF(ÚverNieJeSplatený*ÚverJeDobrý,HodnotaÚveru,\"\"), \"\")","v":""},{"$f":"IFERROR(IF(ÚverNieJeSplatený*ÚverJeDobrý,MesačnáSplátka,0), 0)","v":{"v":0,"d":"0.00 EUR"}},{"$f":"IFERROR(IF(ÚverNieJeSplatený*ÚverJeDobrý,Istina,0), 0)","v":{"v":0,"d":"0.00 EUR"}},{"$f":"IFERROR(IF(ÚverNieJeSplatený*ÚverJeDobrý,SumaÚrokov,0), 0)","v":{"v":0,"d":"0.00 EUR"}},{"$f":"IFERROR(IF(ÚverNieJeSplatený*ÚverJeDobrý,KonečnýZostatok,0), 0)","v":{"v":0,"d":"0.00 EUR"}}]
[null,{"$f":"IFERROR(IF(ÚverNieJeSplatený*ÚverJeDobrý,ČísloPlatby,\"\"), \"\")","v":""},{"$f":"IFERROR(IF(ÚverNieJeSplatený*ÚverJeDobrý,DátumPlatby,PočiatočnýDátumÚveru), PočiatočnýDátumÚveru)","v":"2019-07-17"},{"$f":"IFERROR(IF(ÚverNieJeSplatený*ÚverJeDobrý,HodnotaÚveru,\"\"), \"\")","v":""},{"$f":"IFERROR(IF(ÚverNieJeSplatený*ÚverJeDobrý,MesačnáSplátka,0), 0)","v":{"v":0,"d":"0.00 EUR"}},{"$f":"IFERROR(IF(ÚverNieJeSplatený*ÚverJeDobrý,Istina,0), 0)","v":{"v":0,"d":"0.00 EUR"}},{"$f":"IFERROR(IF(ÚverNieJeSplatený*ÚverJeDobrý,SumaÚrokov,0), 0)","v":{"v":0,"d":"0.00 EUR"}},{"$f":"IFERROR(IF(ÚverNieJeSplatený*ÚverJeDobrý,KonečnýZostatok,0), 0)","v":{"v":0,"d":"0.00 EUR"}}]
[null,{"$f":"IFERROR(IF(ÚverNieJeSplatený*ÚverJeDobrý,ČísloPlatby,\"\"), \"\")","v":""},{"$f":"IFERROR(IF(ÚverNieJeSplatený*ÚverJeDobrý,DátumPlatby,PočiatočnýDátumÚveru), PočiatočnýDátumÚveru)","v":"2019-07-17"},{"$f":"IFERROR(IF(ÚverNieJeSplatený*ÚverJeDobrý,HodnotaÚveru,\"\"), \"\")","v":""},{"$f":"IFERROR(IF(ÚverNieJeSplatený*ÚverJeDobrý,MesačnáSplátka,0), 0)","v":{"v":0,"d":"0.00 EUR"}},{"$f":"IFERROR(IF(ÚverNieJeSplatený*ÚverJeDobrý,Istina,0), 0)","v":{"v":0,"d":"0.00 EUR"}},{"$f":"IFERROR(IF(ÚverNieJeSplatený*ÚverJeDobrý,SumaÚrokov,0), 0)","v":{"v":0,"d":"0.00 EUR"}},{"$f":"IFERROR(IF(ÚverNieJeSplatený*ÚverJeDobrý,KonečnýZostatok,0), 0)","v":{"v":0,"d":"0.00 EUR"}}]
[null,{"$f":"IFERROR(IF(ÚverNieJeSplatený*ÚverJeDobrý,ČísloPlatby,\"\"), \"\")","v":""},{"$f":"IFERROR(IF(ÚverNieJeSplatený*ÚverJeDobrý,DátumPlatby,PočiatočnýDátumÚveru), PočiatočnýDátumÚveru)","v":"2019-07-17"},{"$f":"IFERROR(IF(ÚverNieJeSplatený*ÚverJeDobrý,HodnotaÚveru,\"\"), \"\")","v":""},{"$f":"IFERROR(IF(ÚverNieJeSplatený*ÚverJeDobrý,MesačnáSplátka,0), 0)","v":{"v":0,"d":"0.00 EUR"}},{"$f":"IFERROR(IF(ÚverNieJeSplatený*ÚverJeDobrý,Istina,0), 0)","v":{"v":0,"d":"0.00 EUR"}},{"$f":"IFERROR(IF(ÚverNieJeSplatený*ÚverJeDobrý,SumaÚrokov,0), 0)","v":{"v":0,"d":"0.00 EUR"}},{"$f":"IFERROR(IF(ÚverNieJeSplatený*ÚverJeDobrý,KonečnýZostatok,0), 0)","v":{"v":0,"d":"0.00 EUR"}}]
[null,{"$f":"IFERROR(IF(ÚverNieJeSplatený*ÚverJeDobrý,ČísloPlatby,\"\"), \"\")","v":""},{"$f":"IFERROR(IF(ÚverNieJeSplatený*ÚverJeDobrý,DátumPlatby,PočiatočnýDátumÚveru), PočiatočnýDátumÚveru)","v":"2019-07-17"},{"$f":"IFERROR(IF(ÚverNieJeSplatený*ÚverJeDobrý,HodnotaÚveru,\"\"), \"\")","v":""},{"$f":"IFERROR(IF(ÚverNieJeSplatený*ÚverJeDobrý,MesačnáSplátka,0), 0)","v":{"v":0,"d":"0.00 EUR"}},{"$f":"IFERROR(IF(ÚverNieJeSplatený*ÚverJeDobrý,Istina,0), 0)","v":{"v":0,"d":"0.00 EUR"}},{"$f":"IFERROR(IF(ÚverNieJeSplatený*ÚverJeDobrý,SumaÚrokov,0), 0)","v":{"v":0,"d":"0.00 EUR"}},{"$f":"IFERROR(IF(ÚverNieJeSplatený*ÚverJeDobrý,KonečnýZostatok,0), 0)","v":{"v":0,"d":"0.00 EUR"}}]
[null,{"$f":"IFERROR(IF(ÚverNieJeSplatený*ÚverJeDobrý,ČísloPlatby,\"\"), \"\")","v":""},{"$f":"IFERROR(IF(ÚverNieJeSplatený*ÚverJeDobrý,DátumPlatby,PočiatočnýDátumÚveru), PočiatočnýDátumÚveru)","v":"2019-07-17"},{"$f":"IFERROR(IF(ÚverNieJeSplatený*ÚverJeDobrý,HodnotaÚveru,\"\"), \"\")","v":""},{"$f":"IFERROR(IF(ÚverNieJeSplatený*ÚverJeDobrý,MesačnáSplátka,0), 0)","v":{"v":0,"d":"0.00 EUR"}},{"$f":"IFERROR(IF(ÚverNieJeSplatený*ÚverJeDobrý,Istina,0), 0)","v":{"v":0,"d":"0.00 EUR"}},{"$f":"IFERROR(IF(ÚverNieJeSplatený*ÚverJeDobrý,SumaÚrokov,0), 0)","v":{"v":0,"d":"0.00 EUR"}},{"$f":"IFERROR(IF(ÚverNieJeSplatený*ÚverJeDobrý,KonečnýZostatok,0), 0)","v":{"v":0,"d":"0.00 EUR"}}]
[null,{"$f":"IFERROR(IF(ÚverNieJeSplatený*ÚverJeDobrý,ČísloPlatby,\"\"), \"\")","v":""},{"$f":"IFERROR(IF(ÚverNieJeSplatený*ÚverJeDobrý,DátumPlatby,PočiatočnýDátumÚveru), PočiatočnýDátumÚveru)","v":"2019-07-17"},{"$f":"IFERROR(IF(ÚverNieJeSplatený*ÚverJeDobrý,HodnotaÚveru,\"\"), \"\")","v":""},{"$f":"IFERROR(IF(ÚverNieJeSplatený*ÚverJeDobrý,MesačnáSplátka,0), 0)","v":{"v":0,"d":"0.00 EUR"}},{"$f":"IFERROR(IF(ÚverNieJeSplatený*ÚverJeDobrý,Istina,0), 0)","v":{"v":0,"d":"0.00 EUR"}},{"$f":"IFERROR(IF(ÚverNieJeSplatený*ÚverJeDobrý,SumaÚrokov,0), 0)","v":{"v":0,"d":"0.00 EUR"}},{"$f":"IFERROR(IF(ÚverNieJeSplatený*ÚverJeDobrý,KonečnýZostatok,0), 0)","v":{"v":0,"d":"0.00 EUR"}}]
[null,{"$f":"IFERROR(IF(ÚverNieJeSplatený*ÚverJeDobrý,ČísloPlatby,\"\"), \"\")","v":""},{"$f":"IFERROR(IF(ÚverNieJeSplatený*ÚverJeDobrý,DátumPlatby,PočiatočnýDátumÚveru), PočiatočnýDátumÚveru)","v":"2019-07-17"},{"$f":"IFERROR(IF(ÚverNieJeSplatený*ÚverJeDobrý,HodnotaÚveru,\"\"), \"\")","v":""},{"$f":"IFERROR(IF(ÚverNieJeSplatený*ÚverJeDobrý,MesačnáSplátka,0), 0)","v":{"v":0,"d":"0.00 EUR"}},{"$f":"IFERROR(IF(ÚverNieJeSplatený*ÚverJeDobrý,Istina,0), 0)","v":{"v":0,"d":"0.00 EUR"}},{"$f":"IFERROR(IF(ÚverNieJeSplatený*ÚverJeDobrý,SumaÚrokov,0), 0)","v":{"v":0,"d":"0.00 EUR"}},{"$f":"IFERROR(IF(ÚverNieJeSplatený*ÚverJeDobrý,KonečnýZostatok,0), 0)","v":{"v":0,"d":"0.00 EUR"}}]
[null,{"$f":"IFERROR(IF(ÚverNieJeSplatený*ÚverJeDobrý,ČísloPlatby,\"\"), \"\")","v":""},{"$f":"IFERROR(IF(ÚverNieJeSplatený*ÚverJeDobrý,DátumPlatby,PočiatočnýDátumÚveru), PočiatočnýDátumÚveru)","v":"2019-07-17"},{"$f":"IFERROR(IF(ÚverNieJeSplatený*ÚverJeDobrý,HodnotaÚveru,\"\"), \"\")","v":""},{"$f":"IFERROR(IF(ÚverNieJeSplatený*ÚverJeDobrý,MesačnáSplátka,0), 0)","v":{"v":0,"d":"0.00 EUR"}},{"$f":"IFERROR(IF(ÚverNieJeSplatený*ÚverJeDobrý,Istina,0), 0)","v":{"v":0,"d":"0.00 EUR"}},{"$f":"IFERROR(IF(ÚverNieJeSplatený*ÚverJeDobrý,SumaÚrokov,0), 0)","v":{"v":0,"d":"0.00 EUR"}},{"$f":"IFERROR(IF(ÚverNieJeSplatený*ÚverJeDobrý,KonečnýZostatok,0), 0)","v":{"v":0,"d":"0.00 EUR"}}]
[null,{"$f":"IFERROR(IF(ÚverNieJeSplatený*ÚverJeDobrý,ČísloPlatby,\"\"), \"\")","v":""},{"$f":"IFERROR(IF(ÚverNieJeSplatený*ÚverJeDobrý,DátumPlatby,PočiatočnýDátumÚveru), PočiatočnýDátumÚveru)","v":"2019-07-17"},{"$f":"IFERROR(IF(ÚverNieJeSplatený*ÚverJeDobrý,HodnotaÚveru,\"\"), \"\")","v":""},{"$f":"IFERROR(IF(ÚverNieJeSplatený*ÚverJeDobrý,MesačnáSplátka,0), 0)","v":{"v":0,"d":"0.00 EUR"}},{"$f":"IFERROR(IF(ÚverNieJeSplatený*ÚverJeDobrý,Istina,0), 0)","v":{"v":0,"d":"0.00 EUR"}},{"$f":"IFERROR(IF(ÚverNieJeSplatený*ÚverJeDobrý,SumaÚrokov,0), 0)","v":{"v":0,"d":"0.00 EUR"}},{"$f":"IFERROR(IF(ÚverNieJeSplatený*ÚverJeDobrý,KonečnýZostatok,0), 0)","v":{"v":0,"d":"0.00 EUR"}}]
[null,{"$f":"IFERROR(IF(ÚverNieJeSplatený*ÚverJeDobrý,ČísloPlatby,\"\"), \"\")","v":""},{"$f":"IFERROR(IF(ÚverNieJeSplatený*ÚverJeDobrý,DátumPlatby,PočiatočnýDátumÚveru), PočiatočnýDátumÚveru)","v":"2019-07-17"},{"$f":"IFERROR(IF(ÚverNieJeSplatený*ÚverJeDobrý,HodnotaÚveru,\"\"), \"\")","v":""},{"$f":"IFERROR(IF(ÚverNieJeSplatený*ÚverJeDobrý,MesačnáSplátka,0), 0)","v":{"v":0,"d":"0.00 EUR"}},{"$f":"IFERROR(IF(ÚverNieJeSplatený*ÚverJeDobrý,Istina,0), 0)","v":{"v":0,"d":"0.00 EUR"}},{"$f":"IFERROR(IF(ÚverNieJeSplatený*ÚverJeDobrý,SumaÚrokov,0), 0)","v":{"v":0,"d":"0.00 EUR"}},{"$f":"IFERROR(IF(ÚverNieJeSplatený*ÚverJeDobrý,KonečnýZostatok,0), 0)","v":{"v":0,"d":"0.00 EUR"}}]
[null,{"$f":"IFERROR(IF(ÚverNieJeSplatený*ÚverJeDobrý,ČísloPlatby,\"\"), \"\")","v":""},{"$f":"IFERROR(IF(ÚverNieJeSplatený*ÚverJeDobrý,DátumPlatby,PočiatočnýDátumÚveru), PočiatočnýDátumÚveru)","v":"2019-07-17"},{"$f":"IFERROR(IF(ÚverNieJeSplatený*ÚverJeDobrý,HodnotaÚveru,\"\"), \"\")","v":""},{"$f":"IFERROR(IF(ÚverNieJeSplatený*ÚverJeDobrý,MesačnáSplátka,0), 0)","v":{"v":0,"d":"0.00 EUR"}},{"$f":"IFERROR(IF(ÚverNieJeSplatený*ÚverJeDobrý,Istina,0), 0)","v":{"v":0,"d":"0.00 EUR"}},{"$f":"IFERROR(IF(ÚverNieJeSplatený*ÚverJeDobrý,SumaÚrokov,0), 0)","v":{"v":0,"d":"0.00 EUR"}},{"$f":"IFERROR(IF(ÚverNieJeSplatený*ÚverJeDobrý,KonečnýZostatok,0), 0)","v":{"v":0,"d":"0.00 EUR"}}]
[null,{"$f":"IFERROR(IF(ÚverNieJeSplatený*ÚverJeDobrý,ČísloPlatby,\"\"), \"\")","v":""},{"$f":"IFERROR(IF(ÚverNieJeSplatený*ÚverJeDobrý,DátumPlatby,PočiatočnýDátumÚveru), PočiatočnýDátumÚveru)","v":"2019-07-17"},{"$f":"IFERROR(IF(ÚverNieJeSplatený*ÚverJeDobrý,HodnotaÚveru,\"\"), \"\")","v":""},{"$f":"IFERROR(IF(ÚverNieJeSplatený*ÚverJeDobrý,MesačnáSplátka,0), 0)","v":{"v":0,"d":"0.00 EUR"}},{"$f":"IFERROR(IF(ÚverNieJeSplatený*ÚverJeDobrý,Istina,0), 0)","v":{"v":0,"d":"0.00 EUR"}},{"$f":"IFERROR(IF(ÚverNieJeSplatený*ÚverJeDobrý,SumaÚrokov,0), 0)","v":{"v":0,"d":"0.00 EUR"}},{"$f":"IFERROR(IF(ÚverNieJeSplatený*ÚverJeDobrý,KonečnýZostatok,0), 0)","v":{"v":0,"d":"0.00 EUR"}}]
[null,{"$f":"IFERROR(IF(ÚverNieJeSplatený*ÚverJeDobrý,ČísloPlatby,\"\"), \"\")","v":""},{"$f":"IFERROR(IF(ÚverNieJeSplatený*ÚverJeDobrý,DátumPlatby,PočiatočnýDátumÚveru), PočiatočnýDátumÚveru)","v":"2019-07-17"},{"$f":"IFERROR(IF(ÚverNieJeSplatený*ÚverJeDobrý,HodnotaÚveru,\"\"), \"\")","v":""},{"$f":"IFERROR(IF(ÚverNieJeSplatený*ÚverJeDobrý,MesačnáSplátka,0), 0)","v":{"v":0,"d":"0.00 EUR"}},{"$f":"IFERROR(IF(ÚverNieJeSplatený*ÚverJeDobrý,Istina,0), 0)","v":{"v":0,"d":"0.00 EUR"}},{"$f":"IFERROR(IF(ÚverNieJeSplatený*ÚverJeDobrý,SumaÚrokov,0), 0)","v":{"v":0,"d":"0.00 EUR"}},{"$f":"IFERROR(IF(ÚverNieJeSplatený*ÚverJeDobrý,KonečnýZostatok,0), 0)","v":{"v":0,"d":"0.00 EUR"}}]
[null,{"$f":"IFERROR(IF(ÚverNieJeSplatený*ÚverJeDobrý,ČísloPlatby,\"\"), \"\")","v":""},{"$f":"IFERROR(IF(ÚverNieJeSplatený*ÚverJeDobrý,DátumPlatby,PočiatočnýDátumÚveru), PočiatočnýDátumÚveru)","v":"2019-07-17"},{"$f":"IFERROR(IF(ÚverNieJeSplatený*ÚverJeDobrý,HodnotaÚveru,\"\"), \"\")","v":""},{"$f":"IFERROR(IF(ÚverNieJeSplatený*ÚverJeDobrý,MesačnáSplátka,0), 0)","v":{"v":0,"d":"0.00 EUR"}},{"$f":"IFERROR(IF(ÚverNieJeSplatený*ÚverJeDobrý,Istina,0), 0)","v":{"v":0,"d":"0.00 EUR"}},{"$f":"IFERROR(IF(ÚverNieJeSplatený*ÚverJeDobrý,SumaÚrokov,0), 0)","v":{"v":0,"d":"0.00 EUR"}},{"$f":"IFERROR(IF(ÚverNieJeSplatený*ÚverJeDobrý,KonečnýZostatok,0), 0)","v":{"v":0,"d":"0.00 EUR"}}]
[null,{"$f":"IFERROR(IF(ÚverNieJeSplatený*ÚverJeDobrý,ČísloPlatby,\"\"), \"\")","v":""},{"$f":"IFERROR(IF(ÚverNieJeSplatený*ÚverJeDobrý,DátumPlatby,PočiatočnýDátumÚveru), PočiatočnýDátumÚveru)","v":"2019-07-17"},{"$f":"IFERROR(IF(ÚverNieJeSplatený*ÚverJeDobrý,HodnotaÚveru,\"\"), \"\")","v":""},{"$f":"IFERROR(IF(ÚverNieJeSplatený*ÚverJeDobrý,MesačnáSplátka,0), 0)","v":{"v":0,"d":"0.00 EUR"}},{"$f":"IFERROR(IF(ÚverNieJeSplatený*ÚverJeDobrý,Istina,0), 0)","v":{"v":0,"d":"0.00 EUR"}},{"$f":"IFERROR(IF(ÚverNieJeSplatený*ÚverJeDobrý,SumaÚrokov,0), 0)","v":{"v":0,"d":"0.00 EUR"}},{"$f":"IFERROR(IF(ÚverNieJeSplatený*ÚverJeDobrý,KonečnýZostatok,0), 0)","v":{"v":0,"d":"0.00 EUR"}}]
[null,{"$f":"IFERROR(IF(ÚverNieJeSplatený*ÚverJeDobrý,ČísloPlatby,\"\"), \"\")","v":""},{"$f":"IFERROR(IF(ÚverNieJeSplatený*ÚverJeDobrý,DátumPlatby,PočiatočnýDátumÚveru), PočiatočnýDátumÚveru)","v":"2019-07-17"},{"$f":"IFERROR(IF(ÚverNieJeSplatený*ÚverJeDobrý,HodnotaÚveru,\"\"), \"\")","v":""},{"$f":"IFERROR(IF(ÚverNieJeSplatený*ÚverJeDobrý,MesačnáSplátka,0), 0)","v":{"v":0,"d":"0.00 EUR"}},{"$f":"IFERROR(IF(ÚverNieJeSplatený*ÚverJeDobrý,Istina,0), 0)","v":{"v":0,"d":"0.00 EUR"}},{"$f":"IFERROR(IF(ÚverNieJeSplatený*ÚverJeDobrý,SumaÚrokov,0), 0)","v":{"v":0,"d":"0.00 EUR"}},{"$f":"IFERROR(IF(ÚverNieJeSplatený*ÚverJeDobrý,KonečnýZostatok,0), 0)","v":{"v":0,"d":"0.00 EUR"}}]
[null,{"$f":"IFERROR(IF(ÚverNieJeSplatený*ÚverJeDobrý,ČísloPlatby,\"\"), \"\")","v":""},{"$f":"IFERROR(IF(ÚverNieJeSplatený*ÚverJeDobrý,DátumPlatby,PočiatočnýDátumÚveru), PočiatočnýDátumÚveru)","v":"2019-07-17"},{"$f":"IFERROR(IF(ÚverNieJeSplatený*ÚverJeDobrý,HodnotaÚveru,\"\"), \"\")","v":""},{"$f":"IFERROR(IF(ÚverNieJeSplatený*ÚverJeDobrý,MesačnáSplátka,0), 0)","v":{"v":0,"d":"0.00 EUR"}},{"$f":"IFERROR(IF(ÚverNieJeSplatený*ÚverJeDobrý,Istina,0), 0)","v":{"v":0,"d":"0.00 EUR"}},{"$f":"IFERROR(IF(ÚverNieJeSplatený*ÚverJeDobrý,SumaÚrokov,0), 0)","v":{"v":0,"d":"0.00 EUR"}},{"$f":"IFERROR(IF(ÚverNieJeSplatený*ÚverJeDobrý,KonečnýZostatok,0), 0)","v":{"v":0,"d":"0.00 EUR"}}]
[null,{"$f":"IFERROR(IF(ÚverNieJeSplatený*ÚverJeDobrý,ČísloPlatby,\"\"), \"\")","v":""},{"$f":"IFERROR(IF(ÚverNieJeSplatený*ÚverJeDobrý,DátumPlatby,PočiatočnýDátumÚveru), PočiatočnýDátumÚveru)","v":"2019-07-17"},{"$f":"IFERROR(IF(ÚverNieJeSplatený*ÚverJeDobrý,HodnotaÚveru,\"\"), \"\")","v":""},{"$f":"IFERROR(IF(ÚverNieJeSplatený*ÚverJeDobrý,MesačnáSplátka,0), 0)","v":{"v":0,"d":"0.00 EUR"}},{"$f":"IFERROR(IF(ÚverNieJeSplatený*ÚverJeDobrý,Istina,0), 0)","v":{"v":0,"d":"0.00 EUR"}},{"$f":"IFERROR(IF(ÚverNieJeSplatený*ÚverJeDobrý,SumaÚrokov,0), 0)","v":{"v":0,"d":"0.00 EUR"}},{"$f":"IFERROR(IF(ÚverNieJeSplatený*ÚverJeDobrý,KonečnýZostatok,0), 0)","v":{"v":0,"d":"0.00 EUR"}}]
[null,{"$f":"IFERROR(IF(ÚverNieJeSplatený*ÚverJeDobrý,ČísloPlatby,\"\"), \"\")","v":""},{"$f":"IFERROR(IF(ÚverNieJeSplatený*ÚverJeDobrý,DátumPlatby,PočiatočnýDátumÚveru), PočiatočnýDátumÚveru)","v":"2019-07-17"},{"$f":"IFERROR(IF(ÚverNieJeSplatený*ÚverJeDobrý,HodnotaÚveru,\"\"), \"\")","v":""},{"$f":"IFERROR(IF(ÚverNieJeSplatený*ÚverJeDobrý,MesačnáSplátka,0), 0)","v":{"v":0,"d":"0.00 EUR"}},{"$f":"IFERROR(IF(ÚverNieJeSplatený*ÚverJeDobrý,Istina,0), 0)","v":{"v":0,"d":"0.00 EUR"}},{"$f":"IFERROR(IF(ÚverNieJeSplatený*ÚverJeDobrý,SumaÚrokov,0), 0)","v":{"v":0,"d":"0.00 EUR"}},{"$f":"IFERROR(IF(ÚverNieJeSplatený*ÚverJeDobrý,KonečnýZostatok,0), 0)","v":{"v":0,"d":"0.00 EUR"}}]
[null,{"$f":"IFERROR(IF(ÚverNieJeSplatený*ÚverJeDobrý,ČísloPlatby,\"\"), \"\")","v":""},{"$f":"IFERROR(IF(ÚverNieJeSplatený*ÚverJeDobrý,DátumPlatby,PočiatočnýDátumÚveru), PočiatočnýDátumÚveru)","v":"2019-07-17"},{"$f":"IFERROR(IF(ÚverNieJeSplatený*ÚverJeDobrý,HodnotaÚveru,\"\"), \"\")","v":""},{"$f":"IFERROR(IF(ÚverNieJeSplatený*ÚverJeDobrý,MesačnáSplátka,0), 0)","v":{"v":0,"d":"0.00 EUR"}},{"$f":"IFERROR(IF(ÚverNieJeSplatený*ÚverJeDobrý,Istina,0), 0)","v":{"v":0,"d":"0.00 EUR"}},{"$f":"IFERROR(IF(ÚverNieJeSplatený*ÚverJeDobrý,SumaÚrokov,0), 0)","v":{"v":0,"d":"0.00 EUR"}},{"$f":"IFERROR(IF(ÚverNieJeSplatený*ÚverJeDobrý,KonečnýZostatok,0), 0)","v":{"v":0,"d":"0.00 EUR"}}]
[null,{"$f":"IFERROR(IF(ÚverNieJeSplatený*ÚverJeDobrý,ČísloPlatby,\"\"), \"\")","v":""},{"$f":"IFERROR(IF(ÚverNieJeSplatený*ÚverJeDobrý,DátumPlatby,PočiatočnýDátumÚveru), PočiatočnýDátumÚveru)","v":"2019-07-17"},{"$f":"IFERROR(IF(ÚverNieJeSplatený*ÚverJeDobrý,HodnotaÚveru,\"\"), \"\")","v":""},{"$f":"IFERROR(IF(ÚverNieJeSplatený*ÚverJeDobrý,MesačnáSplátka,0), 0)","v":{"v":0,"d":"0.00 EUR"}},{"$f":"IFERROR(IF(ÚverNieJeSplatený*ÚverJeDobrý,Istina,0), 0)","v":{"v":0,"d":"0.00 EUR"}},{"$f":"IFERROR(IF(ÚverNieJeSplatený*ÚverJeDobrý,SumaÚrokov,0), 0)","v":{"v":0,"d":"0.00 EUR"}},{"$f":"IFERROR(IF(ÚverNieJeSplatený*ÚverJeDobrý,KonečnýZostatok,0), 0)","v":{"v":0,"d":"0.00 EUR"}}]
[null,{"$f":"IFERROR(IF(ÚverNieJeSplatený*ÚverJeDobrý,ČísloPlatby,\"\"), \"\")","v":""},{"$f":"IFERROR(IF(ÚverNieJeSplatený*ÚverJeDobrý,DátumPlatby,PočiatočnýDátumÚveru), PočiatočnýDátumÚveru)","v":"2019-07-17"},{"$f":"IFERROR(IF(ÚverNieJeSplatený*ÚverJeDobrý,HodnotaÚveru,\"\"), \"\")","v":""},{"$f":"IFERROR(IF(ÚverNieJeSplatený*ÚverJeDobrý,MesačnáSplátka,0), 0)","v":{"v":0,"d":"0.00 EUR"}},{"$f":"IFERROR(IF(ÚverNieJeSplatený*ÚverJeDobrý,Istina,0), 0)","v":{"v":0,"d":"0.00 EUR"}},{"$f":"IFERROR(IF(ÚverNieJeSplatený*ÚverJeDobrý,SumaÚrokov,0), 0)","v":{"v":0,"d":"0.00 EUR"}},{"$f":"IFERROR(IF(ÚverNieJeSplatený*ÚverJeDobrý,KonečnýZostatok,0), 0)","v":{"v":0,"d":"0.00 EUR"}}]
[null,{"$f":"IFERROR(IF(ÚverNieJeSplatený*ÚverJeDobrý,ČísloPlatby,\"\"), \"\")","v":""},{"$f":"IFERROR(IF(ÚverNieJeSplatený*ÚverJeDobrý,DátumPlatby,PočiatočnýDátumÚveru), PočiatočnýDátumÚveru)","v":"2019-07-17"},{"$f":"IFERROR(IF(ÚverNieJeSplatený*ÚverJeDobrý,HodnotaÚveru,\"\"), \"\")","v":""},{"$f":"IFERROR(IF(ÚverNieJeSplatený*ÚverJeDobrý,MesačnáSplátka,0), 0)","v":{"v":0,"d":"0.00 EUR"}},{"$f":"IFERROR(IF(ÚverNieJeSplatený*ÚverJeDobrý,Istina,0), 0)","v":{"v":0,"d":"0.00 EUR"}},{"$f":"IFERROR(IF(ÚverNieJeSplatený*ÚverJeDobrý,SumaÚrokov,0), 0)","v":{"v":0,"d":"0.00 EUR"}},{"$f":"IFERROR(IF(ÚverNieJeSplatený*ÚverJeDobrý,KonečnýZostatok,0), 0)","v":{"v":0,"d":"0.00 EUR"}}]
[null,{"$f":"IFERROR(IF(ÚverNieJeSplatený*ÚverJeDobrý,ČísloPlatby,\"\"), \"\")","v":""},{"$f":"IFERROR(IF(ÚverNieJeSplatený*ÚverJeDobrý,DátumPlatby,PočiatočnýDátumÚveru), PočiatočnýDátumÚveru)","v":"2019-07-17"},{"$f":"IFERROR(IF(ÚverNieJeSplatený*ÚverJeDobrý,HodnotaÚveru,\"\"), \"\")","v":""},{"$f":"IFERROR(IF(ÚverNieJeSplatený*ÚverJeDobrý,MesačnáSplátka,0), 0)","v":{"v":0,"d":"0.00 EUR"}},{"$f":"IFERROR(IF(ÚverNieJeSplatený*ÚverJeDobrý,Istina,0), 0)","v":{"v":0,"d":"0.00 EUR"}},{"$f":"IFERROR(IF(ÚverNieJeSplatený*ÚverJeDobrý,SumaÚrokov,0), 0)","v":{"v":0,"d":"0.00 EUR"}},{"$f":"IFERROR(IF(ÚverNieJeSplatený*ÚverJeDobrý,KonečnýZostatok,0), 0)","v":{"v":0,"d":"0.00 EUR"}}]
[null,{"$f":"IFERROR(IF(ÚverNieJeSplatený*ÚverJeDobrý,ČísloPlatby,\"\"), \"\")","v":""},{"$f":"IFERROR(IF(ÚverNieJeSplatený*ÚverJeDobrý,DátumPlatby,PočiatočnýDátumÚveru), PočiatočnýDátumÚveru)","v":"2019-07-17"},{"$f":"IFERROR(IF(ÚverNieJeSplatený*ÚverJeDobrý,HodnotaÚveru,\"\"), \"\")","v":""},{"$f":"IFERROR(IF(ÚverNieJeSplatený*ÚverJeDobrý,MesačnáSplátka,0), 0)","v":{"v":0,"d":"0.00 EUR"}},{"$f":"IFERROR(IF(ÚverNieJeSplatený*ÚverJeDobrý,Istina,0), 0)","v":{"v":0,"d":"0.00 EUR"}},{"$f":"IFERROR(IF(ÚverNieJeSplatený*ÚverJeDobrý,SumaÚrokov,0), 0)","v":{"v":0,"d":"0.00 EUR"}},{"$f":"IFERROR(IF(ÚverNieJeSplatený*ÚverJeDobrý,KonečnýZostatok,0), 0)","v":{"v":0,"d":"0.00 EUR"}}]
[null,{"$f":"IFERROR(IF(ÚverNieJeSplatený*ÚverJeDobrý,ČísloPlatby,\"\"), \"\")","v":""},{"$f":"IFERROR(IF(ÚverNieJeSplatený*ÚverJeDobrý,DátumPlatby,PočiatočnýDátumÚveru), PočiatočnýDátumÚveru)","v":"2019-07-17"},{"$f":"IFERROR(IF(ÚverNieJeSplatený*ÚverJeDobrý,HodnotaÚveru,\"\"), \"\")","v":""},{"$f":"IFERROR(IF(ÚverNieJeSplatený*ÚverJeDobrý,MesačnáSplátka,0), 0)","v":{"v":0,"d":"0.00 EUR"}},{"$f":"IFERROR(IF(ÚverNieJeSplatený*ÚverJeDobrý,Istina,0), 0)","v":{"v":0,"d":"0.00 EUR"}},{"$f":"IFERROR(IF(ÚverNieJeSplatený*ÚverJeDobrý,SumaÚrokov,0), 0)","v":{"v":0,"d":"0.00 EUR"}},{"$f":"IFERROR(IF(ÚverNieJeSplatený*ÚverJeDobrý,KonečnýZostatok,0), 0)","v":{"v":0,"d":"0.00 EUR"}}]
[null,{"$f":"IFERROR(IF(ÚverNieJeSplatený*ÚverJeDobrý,ČísloPlatby,\"\"), \"\")","v":""},{"$f":"IFERROR(IF(ÚverNieJeSplatený*ÚverJeDobrý,DátumPlatby,PočiatočnýDátumÚveru), PočiatočnýDátumÚveru)","v":"2019-07-17"},{"$f":"IFERROR(IF(ÚverNieJeSplatený*ÚverJeDobrý,HodnotaÚveru,\"\"), \"\")","v":""},{"$f":"IFERROR(IF(ÚverNieJeSplatený*ÚverJeDobrý,MesačnáSplátka,0), 0)","v":{"v":0,"d":"0.00 EUR"}},{"$f":"IFERROR(IF(ÚverNieJeSplatený*ÚverJeDobrý,Istina,0), 0)","v":{"v":0,"d":"0.00 EUR"}},{"$f":"IFERROR(IF(ÚverNieJeSplatený*ÚverJeDobrý,SumaÚrokov,0), 0)","v":{"v":0,"d":"0.00 EUR"}},{"$f":"IFERROR(IF(ÚverNieJeSplatený*ÚverJeDobrý,KonečnýZostatok,0), 0)","v":{"v":0,"d":"0.00 EUR"}}]
[null,{"$f":"IFERROR(IF(ÚverNieJeSplatený*ÚverJeDobrý,ČísloPlatby,\"\"), \"\")","v":""},{"$f":"IFERROR(IF(ÚverNieJeSplatený*ÚverJeDobrý,DátumPlatby,PočiatočnýDátumÚveru), PočiatočnýDátumÚveru)","v":"2019-07-17"},{"$f":"IFERROR(IF(ÚverNieJeSplatený*ÚverJeDobrý,HodnotaÚveru,\"\"), \"\")","v":""},{"$f":"IFERROR(IF(ÚverNieJeSplatený*ÚverJeDobrý,MesačnáSplátka,0), 0)","v":{"v":0,"d":"0.00 EUR"}},{"$f":"IFERROR(IF(ÚverNieJeSplatený*ÚverJeDobrý,Istina,0), 0)","v":{"v":0,"d":"0.00 EUR"}},{"$f":"IFERROR(IF(ÚverNieJeSplatený*ÚverJeDobrý,SumaÚrokov,0), 0)","v":{"v":0,"d":"0.00 EUR"}},{"$f":"IFERROR(IF(ÚverNieJeSplatený*ÚverJeDobrý,KonečnýZostatok,0), 0)","v":{"v":0,"d":"0.00 EUR"}}]
[null,{"$f":"IFERROR(IF(ÚverNieJeSplatený*ÚverJeDobrý,ČísloPlatby,\"\"), \"\")","v":""},{"$f":"IFERROR(IF(ÚverNieJeSplatený*ÚverJeDobrý,DátumPlatby,PočiatočnýDátumÚveru), PočiatočnýDátumÚveru)","v":"2019-07-17"},{"$f":"IFERROR(IF(ÚverNieJeSplatený*ÚverJeDobrý,HodnotaÚveru,\"\"), \"\")","v":""},{"$f":"IFERROR(IF(ÚverNieJeSplatený*ÚverJeDobrý,MesačnáSplátka,0), 0)","v":{"v":0,"d":"0.00 EUR"}},{"$f":"IFERROR(IF(ÚverNieJeSplatený*ÚverJeDobrý,Istina,0), 0)","v":{"v":0,"d":"0.00 EUR"}},{"$f":"IFERROR(IF(ÚverNieJeSplatený*ÚverJeDobrý,SumaÚrokov,0), 0)","v":{"v":0,"d":"0.00 EUR"}},{"$f":"IFERROR(IF(ÚverNieJeSplatený*ÚverJeDobrý,KonečnýZostatok,0), 0)","v":{"v":0,"d":"0.00 EUR"}}]
[null,{"$f":"IFERROR(IF(ÚverNieJeSplatený*ÚverJeDobrý,ČísloPlatby,\"\"), \"\")","v":""},{"$f":"IFERROR(IF(ÚverNieJeSplatený*ÚverJeDobrý,DátumPlatby,PočiatočnýDátumÚveru), PočiatočnýDátumÚveru)","v":"2019-07-17"},{"$f":"IFERROR(IF(ÚverNieJeSplatený*ÚverJeDobrý,HodnotaÚveru,\"\"), \"\")","v":""},{"$f":"IFERROR(IF(ÚverNieJeSplatený*ÚverJeDobrý,MesačnáSplátka,0), 0)","v":{"v":0,"d":"0.00 EUR"}},{"$f":"IFERROR(IF(ÚverNieJeSplatený*ÚverJeDobrý,Istina,0), 0)","v":{"v":0,"d":"0.00 EUR"}},{"$f":"IFERROR(IF(ÚverNieJeSplatený*ÚverJeDobrý,SumaÚrokov,0), 0)","v":{"v":0,"d":"0.00 EUR"}},{"$f":"IFERROR(IF(ÚverNieJeSplatený*ÚverJeDobrý,KonečnýZostatok,0), 0)","v":{"v":0,"d":"0.00 EUR"}}]
[null,{"$f":"IFERROR(IF(ÚverNieJeSplatený*ÚverJeDobrý,ČísloPlatby,\"\"), \"\")","v":""},{"$f":"IFERROR(IF(ÚverNieJeSplatený*ÚverJeDobrý,DátumPlatby,PočiatočnýDátumÚveru), PočiatočnýDátumÚveru)","v":"2019-07-17"},{"$f":"IFERROR(IF(ÚverNieJeSplatený*ÚverJeDobrý,HodnotaÚveru,\"\"), \"\")","v":""},{"$f":"IFERROR(IF(ÚverNieJeSplatený*ÚverJeDobrý,MesačnáSplátka,0), 0)","v":{"v":0,"d":"0.00 EUR"}},{"$f":"IFERROR(IF(ÚverNieJeSplatený*ÚverJeDobrý,Istina,0), 0)","v":{"v":0,"d":"0.00 EUR"}},{"$f":"IFERROR(IF(ÚverNieJeSplatený*ÚverJeDobrý,SumaÚrokov,0), 0)","v":{"v":0,"d":"0.00 EUR"}},{"$f":"IFERROR(IF(ÚverNieJeSplatený*ÚverJeDobrý,KonečnýZostatok,0), 0)","v":{"v":0,"d":"0.00 EUR"}}]
[null,{"$f":"IFERROR(IF(ÚverNieJeSplatený*ÚverJeDobrý,ČísloPlatby,\"\"), \"\")","v":""},{"$f":"IFERROR(IF(ÚverNieJeSplatený*ÚverJeDobrý,DátumPlatby,PočiatočnýDátumÚveru), PočiatočnýDátumÚveru)","v":"2019-07-17"},{"$f":"IFERROR(IF(ÚverNieJeSplatený*ÚverJeDobrý,HodnotaÚveru,\"\"), \"\")","v":""},{"$f":"IFERROR(IF(ÚverNieJeSplatený*ÚverJeDobrý,MesačnáSplátka,0), 0)","v":{"v":0,"d":"0.00 EUR"}},{"$f":"IFERROR(IF(ÚverNieJeSplatený*ÚverJeDobrý,Istina,0), 0)","v":{"v":0,"d":"0.00 EUR"}},{"$f":"IFERROR(IF(ÚverNieJeSplatený*ÚverJeDobrý,SumaÚrokov,0), 0)","v":{"v":0,"d":"0.00 EUR"}},{"$f":"IFERROR(IF(ÚverNieJeSplatený*ÚverJeDobrý,KonečnýZostatok,0), 0)","v":{"v":0,"d":"0.00 EUR"}}]
[null,{"$f":"IFERROR(IF(ÚverNieJeSplatený*ÚverJeDobrý,ČísloPlatby,\"\"), \"\")","v":""},{"$f":"IFERROR(IF(ÚverNieJeSplatený*ÚverJeDobrý,DátumPlatby,PočiatočnýDátumÚveru), PočiatočnýDátumÚveru)","v":"2019-07-17"},{"$f":"IFERROR(IF(ÚverNieJeSplatený*ÚverJeDobrý,HodnotaÚveru,\"\"), \"\")","v":""},{"$f":"IFERROR(IF(ÚverNieJeSplatený*ÚverJeDobrý,MesačnáSplátka,0), 0)","v":{"v":0,"d":"0.00 EUR"}},{"$f":"IFERROR(IF(ÚverNieJeSplatený*ÚverJeDobrý,Istina,0), 0)","v":{"v":0,"d":"0.00 EUR"}},{"$f":"IFERROR(IF(ÚverNieJeSplatený*ÚverJeDobrý,SumaÚrokov,0), 0)","v":{"v":0,"d":"0.00 EUR"}},{"$f":"IFERROR(IF(ÚverNieJeSplatený*ÚverJeDobrý,KonečnýZostatok,0), 0)","v":{"v":0,"d":"0.00 EUR"}}]
[null,{"$f":"IFERROR(IF(ÚverNieJeSplatený*ÚverJeDobrý,ČísloPlatby,\"\"), \"\")","v":""},{"$f":"IFERROR(IF(ÚverNieJeSplatený*ÚverJeDobrý,DátumPlatby,PočiatočnýDátumÚveru), PočiatočnýDátumÚveru)","v":"2019-07-17"},{"$f":"IFERROR(IF(ÚverNieJeSplatený*ÚverJeDobrý,HodnotaÚveru,\"\"), \"\")","v":""},{"$f":"IFERROR(IF(ÚverNieJeSplatený*ÚverJeDobrý,MesačnáSplátka,0), 0)","v":{"v":0,"d":"0.00 EUR"}},{"$f":"IFERROR(IF(ÚverNieJeSplatený*ÚverJeDobrý,Istina,0), 0)","v":{"v":0,"d":"0.00 EUR"}},{"$f":"IFERROR(IF(ÚverNieJeSplatený*ÚverJeDobrý,SumaÚrokov,0), 0)","v":{"v":0,"d":"0.00 EUR"}},{"$f":"IFERROR(IF(ÚverNieJeSplatený*ÚverJeDobrý,KonečnýZostatok,0), 0)","v":{"v":0,"d":"0.00 EUR"}}]
[null,{"$f":"IFERROR(IF(ÚverNieJeSplatený*ÚverJeDobrý,ČísloPlatby,\"\"), \"\")","v":""},{"$f":"IFERROR(IF(ÚverNieJeSplatený*ÚverJeDobrý,DátumPlatby,PočiatočnýDátumÚveru), PočiatočnýDátumÚveru)","v":"2019-07-17"},{"$f":"IFERROR(IF(ÚverNieJeSplatený*ÚverJeDobrý,HodnotaÚveru,\"\"), \"\")","v":""},{"$f":"IFERROR(IF(ÚverNieJeSplatený*ÚverJeDobrý,MesačnáSplátka,0), 0)","v":{"v":0,"d":"0.00 EUR"}},{"$f":"IFERROR(IF(ÚverNieJeSplatený*ÚverJeDobrý,Istina,0), 0)","v":{"v":0,"d":"0.00 EUR"}},{"$f":"IFERROR(IF(ÚverNieJeSplatený*ÚverJeDobrý,SumaÚrokov,0), 0)","v":{"v":0,"d":"0.00 EUR"}},{"$f":"IFERROR(IF(ÚverNieJeSplatený*ÚverJeDobrý,KonečnýZostatok,0), 0)","v":{"v":0,"d":"0.00 EUR"}}]
[null,{"$f":"IFERROR(IF(ÚverNieJeSplatený*ÚverJeDobrý,ČísloPlatby,\"\"), \"\")","v":""},{"$f":"IFERROR(IF(ÚverNieJeSplatený*ÚverJeDobrý,DátumPlatby,PočiatočnýDátumÚveru), PočiatočnýDátumÚveru)","v":"2019-07-17"},{"$f":"IFERROR(IF(ÚverNieJeSplatený*ÚverJeDobrý,HodnotaÚveru,\"\"), \"\")","v":""},{"$f":"IFERROR(IF(ÚverNieJeSplatený*ÚverJeDobrý,MesačnáSplátka,0), 0)","v":{"v":0,"d":"0.00 EUR"}},{"$f":"IFERROR(IF(ÚverNieJeSplatený*ÚverJeDobrý,Istina,0), 0)","v":{"v":0,"d":"0.00 EUR"}},{"$f":"IFERROR(IF(ÚverNieJeSplatený*ÚverJeDobrý,SumaÚrokov,0), 0)","v":{"v":0,"d":"0.00 EUR"}},{"$f":"IFERROR(IF(ÚverNieJeSplatený*ÚverJeDobrý,KonečnýZostatok,0), 0)","v":{"v":0,"d":"0.00 EUR"}}]
[null,{"$f":"IFERROR(IF(ÚverNieJeSplatený*ÚverJeDobrý,ČísloPlatby,\"\"), \"\")","v":""},{"$f":"IFERROR(IF(ÚverNieJeSplatený*ÚverJeDobrý,DátumPlatby,PočiatočnýDátumÚveru), PočiatočnýDátumÚveru)","v":"2019-07-17"},{"$f":"IFERROR(IF(ÚverNieJeSplatený*ÚverJeDobrý,HodnotaÚveru,\"\"), \"\")","v":""},{"$f":"IFERROR(IF(ÚverNieJeSplatený*ÚverJeDobrý,MesačnáSplátka,0), 0)","v":{"v":0,"d":"0.00 EUR"}},{"$f":"IFERROR(IF(ÚverNieJeSplatený*ÚverJeDobrý,Istina,0), 0)","v":{"v":0,"d":"0.00 EUR"}},{"$f":"IFERROR(IF(ÚverNieJeSplatený*ÚverJeDobrý,SumaÚrokov,0), 0)","v":{"v":0,"d":"0.00 EUR"}},{"$f":"IFERROR(IF(ÚverNieJeSplatený*ÚverJeDobrý,KonečnýZostatok,0), 0)","v":{"v":0,"d":"0.00 EUR"}}]
[null,{"$f":"IFERROR(IF(ÚverNieJeSplatený*ÚverJeDobrý,ČísloPlatby,\"\"), \"\")","v":""},{"$f":"IFERROR(IF(ÚverNieJeSplatený*ÚverJeDobrý,DátumPlatby,PočiatočnýDátumÚveru), PočiatočnýDátumÚveru)","v":"2019-07-17"},{"$f":"IFERROR(IF(ÚverNieJeSplatený*ÚverJeDobrý,HodnotaÚveru,\"\"), \"\")","v":""},{"$f":"IFERROR(IF(ÚverNieJeSplatený*ÚverJeDobrý,MesačnáSplátka,0), 0)","v":{"v":0,"d":"0.00 EUR"}},{"$f":"IFERROR(IF(ÚverNieJeSplatený*ÚverJeDobrý,Istina,0), 0)","v":{"v":0,"d":"0.00 EUR"}},{"$f":"IFERROR(IF(ÚverNieJeSplatený*ÚverJeDobrý,SumaÚrokov,0), 0)","v":{"v":0,"d":"0.00 EUR"}},{"$f":"IFERROR(IF(ÚverNieJeSplatený*ÚverJeDobrý,KonečnýZostatok,0), 0)","v":{"v":0,"d":"0.00 EUR"}}]
[null,{"$f":"IFERROR(IF(ÚverNieJeSplatený*ÚverJeDobrý,ČísloPlatby,\"\"), \"\")","v":""},{"$f":"IFERROR(IF(ÚverNieJeSplatený*ÚverJeDobrý,DátumPlatby,PočiatočnýDátumÚveru), PočiatočnýDátumÚveru)","v":"2019-07-17"},{"$f":"IFERROR(IF(ÚverNieJeSplatený*ÚverJeDobrý,HodnotaÚveru,\"\"), \"\")","v":""},{"$f":"IFERROR(IF(ÚverNieJeSplatený*ÚverJeDobrý,MesačnáSplátka,0), 0)","v":{"v":0,"d":"0.00 EUR"}},{"$f":"IFERROR(IF(ÚverNieJeSplatený*ÚverJeDobrý,Istina,0), 0)","v":{"v":0,"d":"0.00 EUR"}},{"$f":"IFERROR(IF(ÚverNieJeSplatený*ÚverJeDobrý,SumaÚrokov,0), 0)","v":{"v":0,"d":"0.00 EUR"}},{"$f":"IFERROR(IF(ÚverNieJeSplatený*ÚverJeDobrý,KonečnýZostatok,0), 0)","v":{"v":0,"d":"0.00 EUR"}}]
[null,{"$f":"IFERROR(IF(ÚverNieJeSplatený*ÚverJeDobrý,ČísloPlatby,\"\"), \"\")","v":""},{"$f":"IFERROR(IF(ÚverNieJeSplatený*ÚverJeDobrý,DátumPlatby,PočiatočnýDátumÚveru), PočiatočnýDátumÚveru)","v":"2019-07-17"},{"$f":"IFERROR(IF(ÚverNieJeSplatený*ÚverJeDobrý,HodnotaÚveru,\"\"), \"\")","v":""},{"$f":"IFERROR(IF(ÚverNieJeSplatený*ÚverJeDobrý,MesačnáSplátka,0), 0)","v":{"v":0,"d":"0.00 EUR"}},{"$f":"IFERROR(IF(ÚverNieJeSplatený*ÚverJeDobrý,Istina,0), 0)","v":{"v":0,"d":"0.00 EUR"}},{"$f":"IFERROR(IF(ÚverNieJeSplatený*ÚverJeDobrý,SumaÚrokov,0), 0)","v":{"v":0,"d":"0.00 EUR"}},{"$f":"IFERROR(IF(ÚverNieJeSplatený*ÚverJeDobrý,KonečnýZostatok,0), 0)","v":{"v":0,"d":"0.00 EUR"}}]
[null,{"$f":"IFERROR(IF(ÚverNieJeSplatený*ÚverJeDobrý,ČísloPlatby,\"\"), \"\")","v":""},{"$f":"IFERROR(IF(ÚverNieJeSplatený*ÚverJeDobrý,DátumPlatby,PočiatočnýDátumÚveru), PočiatočnýDátumÚveru)","v":"2019-07-17"},{"$f":"IFERROR(IF(ÚverNieJeSplatený*ÚverJeDobrý,HodnotaÚveru,\"\"), \"\")","v":""},{"$f":"IFERROR(IF(ÚverNieJeSplatený*ÚverJeDobrý,MesačnáSplátka,0), 0)","v":{"v":0,"d":"0.00 EUR"}},{"$f":"IFERROR(IF(ÚverNieJeSplatený*ÚverJeDobrý,Istina,0), 0)","v":{"v":0,"d":"0.00 EUR"}},{"$f":"IFERROR(IF(ÚverNieJeSplatený*ÚverJeDobrý,SumaÚrokov,0), 0)","v":{"v":0,"d":"0.00 EUR"}},{"$f":"IFERROR(IF(ÚverNieJeSplatený*ÚverJeDobrý,KonečnýZostatok,0), 0)","v":{"v":0,"d":"0.00 EUR"}}]
[null,{"$f":"IFERROR(IF(ÚverNieJeSplatený*ÚverJeDobrý,ČísloPlatby,\"\"), \"\")","v":""},{"$f":"IFERROR(IF(ÚverNieJeSplatený*ÚverJeDobrý,DátumPlatby,PočiatočnýDátumÚveru), PočiatočnýDátumÚveru)","v":"2019-07-17"},{"$f":"IFERROR(IF(ÚverNieJeSplatený*ÚverJeDobrý,HodnotaÚveru,\"\"), \"\")","v":""},{"$f":"IFERROR(IF(ÚverNieJeSplatený*ÚverJeDobrý,MesačnáSplátka,0), 0)","v":{"v":0,"d":"0.00 EUR"}},{"$f":"IFERROR(IF(ÚverNieJeSplatený*ÚverJeDobrý,Istina,0), 0)","v":{"v":0,"d":"0.00 EUR"}},{"$f":"IFERROR(IF(ÚverNieJeSplatený*ÚverJeDobrý,SumaÚrokov,0), 0)","v":{"v":0,"d":"0.00 EUR"}},{"$f":"IFERROR(IF(ÚverNieJeSplatený*ÚverJeDobrý,KonečnýZostatok,0), 0)","v":{"v":0,"d":"0.00 EUR"}}]
[null,{"$f":"IFERROR(IF(ÚverNieJeSplatený*ÚverJeDobrý,ČísloPlatby,\"\"), \"\")","v":""},{"$f":"IFERROR(IF(ÚverNieJeSplatený*ÚverJeDobrý,DátumPlatby,PočiatočnýDátumÚveru), PočiatočnýDátumÚveru)","v":"2019-07-17"},{"$f":"IFERROR(IF(ÚverNieJeSplatený*ÚverJeDobrý,HodnotaÚveru,\"\"), \"\")","v":""},{"$f":"IFERROR(IF(ÚverNieJeSplatený*ÚverJeDobrý,MesačnáSplátka,0), 0)","v":{"v":0,"d":"0.00 EUR"}},{"$f":"IFERROR(IF(ÚverNieJeSplatený*ÚverJeDobrý,Istina,0), 0)","v":{"v":0,"d":"0.00 EUR"}},{"$f":"IFERROR(IF(ÚverNieJeSplatený*ÚverJeDobrý,SumaÚrokov,0), 0)","v":{"v":0,"d":"0.00 EUR"}},{"$f":"IFERROR(IF(ÚverNieJeSplatený*ÚverJeDobrý,KonečnýZostatok,0), 0)","v":{"v":0,"d":"0.00 EUR"}}]
[null,{"$f":"IFERROR(IF(ÚverNieJeSplatený*ÚverJeDobrý,ČísloPlatby,\"\"), \"\")","v":""},{"$f":"IFERROR(IF(ÚverNieJeSplatený*ÚverJeDobrý,DátumPlatby,PočiatočnýDátumÚveru), PočiatočnýDátumÚveru)","v":"2019-07-17"},{"$f":"IFERROR(IF(ÚverNieJeSplatený*ÚverJeDobrý,HodnotaÚveru,\"\"), \"\")","v":""},{"$f":"IFERROR(IF(ÚverNieJeSplatený*ÚverJeDobrý,MesačnáSplátka,0), 0)","v":{"v":0,"d":"0.00 EUR"}},{"$f":"IFERROR(IF(ÚverNieJeSplatený*ÚverJeDobrý,Istina,0), 0)","v":{"v":0,"d":"0.00 EUR"}},{"$f":"IFERROR(IF(ÚverNieJeSplatený*ÚverJeDobrý,SumaÚrokov,0), 0)","v":{"v":0,"d":"0.00 EUR"}},{"$f":"IFERROR(IF(ÚverNieJeSplatený*ÚverJeDobrý,KonečnýZostatok,0), 0)","v":{"v":0,"d":"0.00 EUR"}}]
[null,{"$f":"IFERROR(IF(ÚverNieJeSplatený*ÚverJeDobrý,ČísloPlatby,\"\"), \"\")","v":""},{"$f":"IFERROR(IF(ÚverNieJeSplatený*ÚverJeDobrý,DátumPlatby,PočiatočnýDátumÚveru), PočiatočnýDátumÚveru)","v":"2019-07-17"},{"$f":"IFERROR(IF(ÚverNieJeSplatený*ÚverJeDobrý,HodnotaÚveru,\"\"), \"\")","v":""},{"$f":"IFERROR(IF(ÚverNieJeSplatený*ÚverJeDobrý,MesačnáSplátka,0), 0)","v":{"v":0,"d":"0.00 EUR"}},{"$f":"IFERROR(IF(ÚverNieJeSplatený*ÚverJeDobrý,Istina,0), 0)","v":{"v":0,"d":"0.00 EUR"}},{"$f":"IFERROR(IF(ÚverNieJeSplatený*ÚverJeDobrý,SumaÚrokov,0), 0)","v":{"v":0,"d":"0.00 EUR"}},{"$f":"IFERROR(IF(ÚverNieJeSplatený*ÚverJeDobrý,KonečnýZostatok,0), 0)","v":{"v":0,"d":"0.00 EUR"}}]
[null,{"$f":"IFERROR(IF(ÚverNieJeSplatený*ÚverJeDobrý,ČísloPlatby,\"\"), \"\")","v":""},{"$f":"IFERROR(IF(ÚverNieJeSplatený*ÚverJeDobrý,DátumPlatby,PočiatočnýDátumÚveru), PočiatočnýDátumÚveru)","v":"2019-07-17"},{"$f":"IFERROR(IF(ÚverNieJeSplatený*ÚverJeDobrý,HodnotaÚveru,\"\"), \"\")","v":""},{"$f":"IFERROR(IF(ÚverNieJeSplatený*ÚverJeDobrý,MesačnáSplátka,0), 0)","v":{"v":0,"d":"0.00 EUR"}},{"$f":"IFERROR(IF(ÚverNieJeSplatený*ÚverJeDobrý,Istina,0), 0)","v":{"v":0,"d":"0.00 EUR"}},{"$f":"IFERROR(IF(ÚverNieJeSplatený*ÚverJeDobrý,SumaÚrokov,0), 0)","v":{"v":0,"d":"0.00 EUR"}},{"$f":"IFERROR(IF(ÚverNieJeSplatený*ÚverJeDobrý,KonečnýZostatok,0), 0)","v":{"v":0,"d":"0.00 EUR"}}]
[null,{"$f":"IFERROR(IF(ÚverNieJeSplatený*ÚverJeDobrý,ČísloPlatby,\"\"), \"\")","v":""},{"$f":"IFERROR(IF(ÚverNieJeSplatený*ÚverJeDobrý,DátumPlatby,PočiatočnýDátumÚveru), PočiatočnýDátumÚveru)","v":"2019-07-17"},{"$f":"IFERROR(IF(ÚverNieJeSplatený*ÚverJeDobrý,HodnotaÚveru,\"\"), \"\")","v":""},{"$f":"IFERROR(IF(ÚverNieJeSplatený*ÚverJeDobrý,MesačnáSplátka,0), 0)","v":{"v":0,"d":"0.00 EUR"}},{"$f":"IFERROR(IF(ÚverNieJeSplatený*ÚverJeDobrý,Istina,0), 0)","v":{"v":0,"d":"0.00 EUR"}},{"$f":"IFERROR(IF(ÚverNieJeSplatený*ÚverJeDobrý,SumaÚrokov,0), 0)","v":{"v":0,"d":"0.00 EUR"}},{"$f":"IFERROR(IF(ÚverNieJeSplatený*ÚverJeDobrý,KonečnýZostatok,0), 0)","v":{"v":0,"d":"0.00 EUR"}}]
[null,{"$f":"IFERROR(IF(ÚverNieJeSplatený*ÚverJeDobrý,ČísloPlatby,\"\"), \"\")","v":""},{"$f":"IFERROR(IF(ÚverNieJeSplatený*ÚverJeDobrý,DátumPlatby,PočiatočnýDátumÚveru), PočiatočnýDátumÚveru)","v":"2019-07-17"},{"$f":"IFERROR(IF(ÚverNieJeSplatený*ÚverJeDobrý,HodnotaÚveru,\"\"), \"\")","v":""},{"$f":"IFERROR(IF(ÚverNieJeSplatený*ÚverJeDobrý,MesačnáSplátka,0), 0)","v":{"v":0,"d":"0.00 EUR"}},{"$f":"IFERROR(IF(ÚverNieJeSplatený*ÚverJeDobrý,Istina,0), 0)","v":{"v":0,"d":"0.00 EUR"}},{"$f":"IFERROR(IF(ÚverNieJeSplatený*ÚverJeDobrý,SumaÚrokov,0), 0)","v":{"v":0,"d":"0.00 EUR"}},{"$f":"IFERROR(IF(ÚverNieJeSplatený*ÚverJeDobrý,KonečnýZostatok,0), 0)","v":{"v":0,"d":"0.00 EUR"}}]
[null,{"$f":"IFERROR(IF(ÚverNieJeSplatený*ÚverJeDobrý,ČísloPlatby,\"\"), \"\")","v":""},{"$f":"IFERROR(IF(ÚverNieJeSplatený*ÚverJeDobrý,DátumPlatby,PočiatočnýDátumÚveru), PočiatočnýDátumÚveru)","v":"2019-07-17"},{"$f":"IFERROR(IF(ÚverNieJeSplatený*ÚverJeDobrý,HodnotaÚveru,\"\"), \"\")","v":""},{"$f":"IFERROR(IF(ÚverNieJeSplatený*ÚverJeDobrý,MesačnáSplátka,0), 0)","v":{"v":0,"d":"0.00 EUR"}},{"$f":"IFERROR(IF(ÚverNieJeSplatený*ÚverJeDobrý,Istina,0), 0)","v":{"v":0,"d":"0.00 EUR"}},{"$f":"IFERROR(IF(ÚverNieJeSplatený*ÚverJeDobrý,SumaÚrokov,0), 0)","v":{"v":0,"d":"0.00 EUR"}},{"$f":"IFERROR(IF(ÚverNieJeSplatený*ÚverJeDobrý,KonečnýZostatok,0), 0)","v":{"v":0,"d":"0.00 EUR"}}]
[null,{"$f":"IFERROR(IF(ÚverNieJeSplatený*ÚverJeDobrý,ČísloPlatby,\"\"), \"\")","v":""},{"$f":"IFERROR(IF(ÚverNieJeSplatený*ÚverJeDobrý,DátumPlatby,PočiatočnýDátumÚveru), PočiatočnýDátumÚveru)","v":"2019-07-17"},{"$f":"IFERROR(IF(ÚverNieJeSplatený*ÚverJeDobrý,HodnotaÚveru,\"\"), \"\")","v":""},{"$f":"IFERROR(IF(ÚverNieJeSplatený*ÚverJeDobrý,MesačnáSplátka,0), 0)","v":{"v":0,"d":"0.00 EUR"}},{"$f":"IFERROR(IF(ÚverNieJeSplatený*ÚverJeDobrý,Istina,0), 0)","v":{"v":0,"d":"0.00 EUR"}},{"$f":"IFERROR(IF(ÚverNieJeSplatený*ÚverJeDobrý,SumaÚrokov,0), 0)","v":{"v":0,"d":"0.00 EUR"}},{"$f":"IFERROR(IF(ÚverNieJeSplatený*ÚverJeDobrý,KonečnýZostatok,0), 0)","v":{"v":0,"d":"0.00 EUR"}}]
[null,{"$f":"IFERROR(IF(ÚverNieJeSplatený*ÚverJeDobrý,ČísloPlatby,\"\"), \"\")","v":""},{"$f":"IFERROR(IF(ÚverNieJeSplatený*ÚverJeDobrý,DátumPlatby,PočiatočnýDátumÚveru), PočiatočnýDátumÚveru)","v":"2019-07-17"},{"$f":"IFERROR(IF(ÚverNieJeSplatený*ÚverJeDobrý,HodnotaÚveru,\"\"), \"\")","v":""},{"$f":"IFERROR(IF(ÚverNieJeSplatený*ÚverJeDobrý,MesačnáSplátka,0), 0)","v":{"v":0,"d":"0.00 EUR"}},{"$f":"IFERROR(IF(ÚverNieJeSplatený*ÚverJeDobrý,Istina,0), 0)","v":{"v":0,"d":"0.00 EUR"}},{"$f":"IFERROR(IF(ÚverNieJeSplatený*ÚverJeDobrý,SumaÚrokov,0), 0)","v":{"v":0,"d":"0.00 EUR"}},{"$f":"IFERROR(IF(ÚverNieJeSplatený*ÚverJeDobrý,KonečnýZostatok,0), 0)","v":{"v":0,"d":"0.00 EUR"}}]
[null,{"$f":"IFERROR(IF(ÚverNieJeSplatený*ÚverJeDobrý,ČísloPlatby,\"\"), \"\")","v":""},{"$f":"IFERROR(IF(ÚverNieJeSplatený*ÚverJeDobrý,DátumPlatby,PočiatočnýDátumÚveru), PočiatočnýDátumÚveru)","v":"2019-07-17"},{"$f":"IFERROR(IF(ÚverNieJeSplatený*ÚverJeDobrý,HodnotaÚveru,\"\"), \"\")","v":""},{"$f":"IFERROR(IF(ÚverNieJeSplatený*ÚverJeDobrý,MesačnáSplátka,0), 0)","v":{"v":0,"d":"0.00 EUR"}},{"$f":"IFERROR(IF(ÚverNieJeSplatený*ÚverJeDobrý,Istina,0), 0)","v":{"v":0,"d":"0.00 EUR"}},{"$f":"IFERROR(IF(ÚverNieJeSplatený*ÚverJeDobrý,SumaÚrokov,0), 0)","v":{"v":0,"d":"0.00 EUR"}},{"$f":"IFERROR(IF(ÚverNieJeSplatený*ÚverJeDobrý,KonečnýZostatok,0), 0)","v":{"v":0,"d":"0.00 EUR"}}]
[null,{"$f":"IFERROR(IF(ÚverNieJeSplatený*ÚverJeDobrý,ČísloPlatby,\"\"), \"\")","v":""},{"$f":"IFERROR(IF(ÚverNieJeSplatený*ÚverJeDobrý,DátumPlatby,PočiatočnýDátumÚveru), PočiatočnýDátumÚveru)","v":"2019-07-17"},{"$f":"IFERROR(IF(ÚverNieJeSplatený*ÚverJeDobrý,HodnotaÚveru,\"\"), \"\")","v":""},{"$f":"IFERROR(IF(ÚverNieJeSplatený*ÚverJeDobrý,MesačnáSplátka,0), 0)","v":{"v":0,"d":"0.00 EUR"}},{"$f":"IFERROR(IF(ÚverNieJeSplatený*ÚverJeDobrý,Istina,0), 0)","v":{"v":0,"d":"0.00 EUR"}},{"$f":"IFERROR(IF(ÚverNieJeSplatený*ÚverJeDobrý,SumaÚrokov,0), 0)","v":{"v":0,"d":"0.00 EUR"}},{"$f":"IFERROR(IF(ÚverNieJeSplatený*ÚverJeDobrý,KonečnýZostatok,0), 0)","v":{"v":0,"d":"0.00 EUR"}}]
[null,{"$f":"IFERROR(IF(ÚverNieJeSplatený*ÚverJeDobrý,ČísloPlatby,\"\"), \"\")","v":""},{"$f":"IFERROR(IF(ÚverNieJeSplatený*ÚverJeDobrý,DátumPlatby,PočiatočnýDátumÚveru), PočiatočnýDátumÚveru)","v":"2019-07-17"},{"$f":"IFERROR(IF(ÚverNieJeSplatený*ÚverJeDobrý,HodnotaÚveru,\"\"), \"\")","v":""},{"$f":"IFERROR(IF(ÚverNieJeSplatený*ÚverJeDobrý,MesačnáSplátka,0), 0)","v":{"v":0,"d":"0.00 EUR"}},{"$f":"IFERROR(IF(ÚverNieJeSplatený*ÚverJeDobrý,Istina,0), 0)","v":{"v":0,"d":"0.00 EUR"}},{"$f":"IFERROR(IF(ÚverNieJeSplatený*ÚverJeDobrý,SumaÚrokov,0), 0)","v":{"v":0,"d":"0.00 EUR"}},{"$f":"IFERROR(IF(ÚverNieJeSplatený*ÚverJeDobrý,KonečnýZostatok,0), 0)","v":{"v":0,"d":"0.00 EUR"}}]
[null,{"$f":"IFERROR(IF(ÚverNieJeSplatený*ÚverJeDobrý,ČísloPlatby,\"\"), \"\")","v":""},{"$f":"IFERROR(IF(ÚverNieJeSplatený*ÚverJeDobrý,DátumPlatby,PočiatočnýDátumÚveru), PočiatočnýDátumÚveru)","v":"2019-07-17"},{"$f":"IFERROR(IF(ÚverNieJeSplatený*ÚverJeDobrý,HodnotaÚveru,\"\"), \"\")","v":""},{"$f":"IFERROR(IF(ÚverNieJeSplatený*ÚverJeDobrý,MesačnáSplátka,0), 0)","v":{"v":0,"d":"0.00 EUR"}},{"$f":"IFERROR(IF(ÚverNieJeSplatený*ÚverJeDobrý,Istina,0), 0)","v":{"v":0,"d":"0.00 EUR"}},{"$f":"IFERROR(IF(ÚverNieJeSplatený*ÚverJeDobrý,SumaÚrokov,0), 0)","v":{"v":0,"d":"0.00 EUR"}},{"$f":"IFERROR(IF(ÚverNieJeSplatený*ÚverJeDobrý,KonečnýZostatok,0), 0)","v":{"v":0,"d":"0.00 EUR"}}]
[null,{"$f":"IFERROR(IF(ÚverNieJeSplatený*ÚverJeDobrý,ČísloPlatby,\"\"), \"\")","v":""},{"$f":"IFERROR(IF(ÚverNieJeSplatený*ÚverJeDobrý,DátumPlatby,PočiatočnýDátumÚveru), PočiatočnýDátumÚveru)","v":"2019-07-17"},{"$f":"IFERROR(IF(ÚverNieJeSplatený*ÚverJeDobrý,HodnotaÚveru,\"\"), \"\")","v":""},{"$f":"IFERROR(IF(ÚverNieJeSplatený*ÚverJeDobrý,MesačnáSplátka,0), 0)","v":{"v":0,"d":"0.00 EUR"}},{"$f":"IFERROR(IF(ÚverNieJeSplatený*ÚverJeDobrý,Istina,0), 0)","v":{"v":0,"d":"0.00 EUR"}},{"$f":"IFERROR(IF(ÚverNieJeSplatený*ÚverJeDobrý,SumaÚrokov,0), 0)","v":{"v":0,"d":"0.00 EUR"}},{"$f":"IFERROR(IF(ÚverNieJeSplatený*ÚverJeDobrý,KonečnýZostatok,0), 0)","v":{"v":0,"d":"0.00 EUR"}}]
[null,{"$f":"IFERROR(IF(ÚverNieJeSplatený*ÚverJeDobrý,ČísloPlatby,\"\"), \"\")","v":""},{"$f":"IFERROR(IF(ÚverNieJeSplatený*ÚverJeDobrý,DátumPlatby,PočiatočnýDátumÚveru), PočiatočnýDátumÚveru)","v":"2019-07-17"},{"$f":"IFERROR(IF(ÚverNieJeSplatený*ÚverJeDobrý,HodnotaÚveru,\"\"), \"\")","v":""},{"$f":"IFERROR(IF(ÚverNieJeSplatený*ÚverJeDobrý,MesačnáSplátka,0), 0)","v":{"v":0,"d":"0.00 EUR"}},{"$f":"IFERROR(IF(ÚverNieJeSplatený*ÚverJeDobrý,Istina,0), 0)","v":{"v":0,"d":"0.00 EUR"}},{"$f":"IFERROR(IF(ÚverNieJeSplatený*ÚverJeDobrý,SumaÚrokov,0), 0)","v":{"v":0,"d":"0.00 EUR"}},{"$f":"IFERROR(IF(ÚverNieJeSplatený*ÚverJeDobrý,KonečnýZostatok,0), 0)","v":{"v":0,"d":"0.00 EUR"}}]
[null,{"$f":"IFERROR(IF(ÚverNieJeSplatený*ÚverJeDobrý,ČísloPlatby,\"\"), \"\")","v":""},{"$f":"IFERROR(IF(ÚverNieJeSplatený*ÚverJeDobrý,DátumPlatby,PočiatočnýDátumÚveru), PočiatočnýDátumÚveru)","v":"2019-07-17"},{"$f":"IFERROR(IF(ÚverNieJeSplatený*ÚverJeDobrý,HodnotaÚveru,\"\"), \"\")","v":""},{"$f":"IFERROR(IF(ÚverNieJeSplatený*ÚverJeDobrý,MesačnáSplátka,0), 0)","v":{"v":0,"d":"0.00 EUR"}},{"$f":"IFERROR(IF(ÚverNieJeSplatený*ÚverJeDobrý,Istina,0), 0)","v":{"v":0,"d":"0.00 EUR"}},{"$f":"IFERROR(IF(ÚverNieJeSplatený*ÚverJeDobrý,SumaÚrokov,0), 0)","v":{"v":0,"d":"0.00 EUR"}},{"$f":"IFERROR(IF(ÚverNieJeSplatený*ÚverJeDobrý,KonečnýZostatok,0), 0)","v":{"v":0,"d":"0.00 EUR"}}]
[null,{"$f":"IFERROR(IF(ÚverNieJeSplatený*ÚverJeDobrý,ČísloPlatby,\"\"), \"\")","v":""},{"$f":"IFERROR(IF(ÚverNieJeSplatený*ÚverJeDobrý,DátumPlatby,PočiatočnýDátumÚveru), PočiatočnýDátumÚveru)","v":"2019-07-17"},{"$f":"IFERROR(IF(ÚverNieJeSplatený*ÚverJeDobrý,HodnotaÚveru,\"\"), \"\")","v":""},{"$f":"IFERROR(IF(ÚverNieJeSplatený*ÚverJeDobrý,MesačnáSplátka,0), 0)","v":{"v":0,"d":"0.00 EUR"}},{"$f":"IFERROR(IF(ÚverNieJeSplatený*ÚverJeDobrý,Istina,0), 0)","v":{"v":0,"d":"0.00 EUR"}},{"$f":"IFERROR(IF(ÚverNieJeSplatený*ÚverJeDobrý,SumaÚrokov,0), 0)","v":{"v":0,"d":"0.00 EUR"}},{"$f":"IFERROR(IF(ÚverNieJeSplatený*ÚverJeDobrý,KonečnýZostatok,0), 0)","v":{"v":0,"d":"0.00 EUR"}}]
[null,{"$f":"IFERROR(IF(ÚverNieJeSplatený*ÚverJeDobrý,ČísloPlatby,\"\"), \"\")","v":""},{"$f":"IFERROR(IF(ÚverNieJeSplatený*ÚverJeDobrý,DátumPlatby,PočiatočnýDátumÚveru), PočiatočnýDátumÚveru)","v":"2019-07-17"},{"$f":"IFERROR(IF(ÚverNieJeSplatený*ÚverJeDobrý,HodnotaÚveru,\"\"), \"\")","v":""},{"$f":"IFERROR(IF(ÚverNieJeSplatený*ÚverJeDobrý,MesačnáSplátka,0), 0)","v":{"v":0,"d":"0.00 EUR"}},{"$f":"IFERROR(IF(ÚverNieJeSplatený*ÚverJeDobrý,Istina,0), 0)","v":{"v":0,"d":"0.00 EUR"}},{"$f":"IFERROR(IF(ÚverNieJeSplatený*ÚverJeDobrý,SumaÚrokov,0), 0)","v":{"v":0,"d":"0.00 EUR"}},{"$f":"IFERROR(IF(ÚverNieJeSplatený*ÚverJeDobrý,KonečnýZostatok,0), 0)","v":{"v":0,"d":"0.00 EUR"}}]
[null,{"$f":"IFERROR(IF(ÚverNieJeSplatený*ÚverJeDobrý,ČísloPlatby,\"\"), \"\")","v":""},{"$f":"IFERROR(IF(ÚverNieJeSplatený*ÚverJeDobrý,DátumPlatby,PočiatočnýDátumÚveru), PočiatočnýDátumÚveru)","v":"2019-07-17"},{"$f":"IFERROR(IF(ÚverNieJeSplatený*ÚverJeDobrý,HodnotaÚveru,\"\"), \"\")","v":""},{"$f":"IFERROR(IF(ÚverNieJeSplatený*ÚverJeDobrý,MesačnáSplátka,0), 0)","v":{"v":0,"d":"0.00 EUR"}},{"$f":"IFERROR(IF(ÚverNieJeSplatený*ÚverJeDobrý,Istina,0), 0)","v":{"v":0,"d":"0.00 EUR"}},{"$f":"IFERROR(IF(ÚverNieJeSplatený*ÚverJeDobrý,SumaÚrokov,0), 0)","v":{"v":0,"d":"0.00 EUR"}},{"$f":"IFERROR(IF(ÚverNieJeSplatený*ÚverJeDobrý,KonečnýZostatok,0), 0)","v":{"v":0,"d":"0.00 EUR"}}]
[null,{"$f":"IFERROR(IF(ÚverNieJeSplatený*ÚverJeDobrý,ČísloPlatby,\"\"), \"\")","v":""},{"$f":"IFERROR(IF(ÚverNieJeSplatený*ÚverJeDobrý,DátumPlatby,PočiatočnýDátumÚveru), PočiatočnýDátumÚveru)","v":"2019-07-17"},{"$f":"IFERROR(IF(ÚverNieJeSplatený*ÚverJeDobrý,HodnotaÚveru,\"\"), \"\")","v":""},{"$f":"IFERROR(IF(ÚverNieJeSplatený*ÚverJeDobrý,MesačnáSplátka,0), 0)","v":{"v":0,"d":"0.00 EUR"}},{"$f":"IFERROR(IF(ÚverNieJeSplatený*ÚverJeDobrý,Istina,0), 0)","v":{"v":0,"d":"0.00 EUR"}},{"$f":"IFERROR(IF(ÚverNieJeSplatený*ÚverJeDobrý,SumaÚrokov,0), 0)","v":{"v":0,"d":"0.00 EUR"}},{"$f":"IFERROR(IF(ÚverNieJeSplatený*ÚverJeDobrý,KonečnýZostatok,0), 0)","v":{"v":0,"d":"0.00 EUR"}}]
[null,{"$f":"IFERROR(IF(ÚverNieJeSplatený*ÚverJeDobrý,ČísloPlatby,\"\"), \"\")","v":""},{"$f":"IFERROR(IF(ÚverNieJeSplatený*ÚverJeDobrý,DátumPlatby,PočiatočnýDátumÚveru), PočiatočnýDátumÚveru)","v":"2019-07-17"},{"$f":"IFERROR(IF(ÚverNieJeSplatený*ÚverJeDobrý,HodnotaÚveru,\"\"), \"\")","v":""},{"$f":"IFERROR(IF(ÚverNieJeSplatený*ÚverJeDobrý,MesačnáSplátka,0), 0)","v":{"v":0,"d":"0.00 EUR"}},{"$f":"IFERROR(IF(ÚverNieJeSplatený*ÚverJeDobrý,Istina,0), 0)","v":{"v":0,"d":"0.00 EUR"}},{"$f":"IFERROR(IF(ÚverNieJeSplatený*ÚverJeDobrý,SumaÚrokov,0), 0)","v":{"v":0,"d":"0.00 EUR"}},{"$f":"IFERROR(IF(ÚverNieJeSplatený*ÚverJeDobrý,KonečnýZostatok,0), 0)","v":{"v":0,"d":"0.00 EUR"}}]
[null,{"$f":"IFERROR(IF(ÚverNieJeSplatený*ÚverJeDobrý,ČísloPlatby,\"\"), \"\")","v":""},{"$f":"IFERROR(IF(ÚverNieJeSplatený*ÚverJeDobrý,DátumPlatby,PočiatočnýDátumÚveru), PočiatočnýDátumÚveru)","v":"2019-07-17"},{"$f":"IFERROR(IF(ÚverNieJeSplatený*ÚverJeDobrý,HodnotaÚveru,\"\"), \"\")","v":""},{"$f":"IFERROR(IF(ÚverNieJeSplatený*ÚverJeDobrý,MesačnáSplátka,0), 0)","v":{"v":0,"d":"0.00 EUR"}},{"$f":"IFERROR(IF(ÚverNieJeSplatený*ÚverJeDobrý,Istina,0), 0)","v":{"v":0,"d":"0.00 EUR"}},{"$f":"IFERROR(IF(ÚverNieJeSplatený*ÚverJeDobrý,SumaÚrokov,0), 0)","v":{"v":0,"d":"0.00 EUR"}},{"$f":"IFERROR(IF(ÚverNieJeSplatený*ÚverJeDobrý,KonečnýZostatok,0), 0)","v":{"v":0,"d":"0.00 EUR"}}]
[null,{"$f":"IFERROR(IF(ÚverNieJeSplatený*ÚverJeDobrý,ČísloPlatby,\"\"), \"\")","v":""},{"$f":"IFERROR(IF(ÚverNieJeSplatený*ÚverJeDobrý,DátumPlatby,PočiatočnýDátumÚveru), PočiatočnýDátumÚveru)","v":"2019-07-17"},{"$f":"IFERROR(IF(ÚverNieJeSplatený*ÚverJeDobrý,HodnotaÚveru,\"\"), \"\")","v":""},{"$f":"IFERROR(IF(ÚverNieJeSplatený*ÚverJeDobrý,MesačnáSplátka,0), 0)","v":{"v":0,"d":"0.00 EUR"}},{"$f":"IFERROR(IF(ÚverNieJeSplatený*ÚverJeDobrý,Istina,0), 0)","v":{"v":0,"d":"0.00 EUR"}},{"$f":"IFERROR(IF(ÚverNieJeSplatený*ÚverJeDobrý,SumaÚrokov,0), 0)","v":{"v":0,"d":"0.00 EUR"}},{"$f":"IFERROR(IF(ÚverNieJeSplatený*ÚverJeDobrý,KonečnýZostatok,0), 0)","v":{"v":0,"d":"0.00 EUR"}}]
[null,{"$f":"IFERROR(IF(ÚverNieJeSplatený*ÚverJeDobrý,ČísloPlatby,\"\"), \"\")","v":""},{"$f":"IFERROR(IF(ÚverNieJeSplatený*ÚverJeDobrý,DátumPlatby,PočiatočnýDátumÚveru), PočiatočnýDátumÚveru)","v":"2019-07-17"},{"$f":"IFERROR(IF(ÚverNieJeSplatený*ÚverJeDobrý,HodnotaÚveru,\"\"), \"\")","v":""},{"$f":"IFERROR(IF(ÚverNieJeSplatený*ÚverJeDobrý,MesačnáSplátka,0), 0)","v":{"v":0,"d":"0.00 EUR"}},{"$f":"IFERROR(IF(ÚverNieJeSplatený*ÚverJeDobrý,Istina,0), 0)","v":{"v":0,"d":"0.00 EUR"}},{"$f":"IFERROR(IF(ÚverNieJeSplatený*ÚverJeDobrý,SumaÚrokov,0), 0)","v":{"v":0,"d":"0.00 EUR"}},{"$f":"IFERROR(IF(ÚverNieJeSplatený*ÚverJeDobrý,KonečnýZostatok,0), 0)","v":{"v":0,"d":"0.00 EUR"}}]
[null,{"$f":"IFERROR(IF(ÚverNieJeSplatený*ÚverJeDobrý,ČísloPlatby,\"\"), \"\")","v":""},{"$f":"IFERROR(IF(ÚverNieJeSplatený*ÚverJeDobrý,DátumPlatby,PočiatočnýDátumÚveru), PočiatočnýDátumÚveru)","v":"2019-07-17"},{"$f":"IFERROR(IF(ÚverNieJeSplatený*ÚverJeDobrý,HodnotaÚveru,\"\"), \"\")","v":""},{"$f":"IFERROR(IF(ÚverNieJeSplatený*ÚverJeDobrý,MesačnáSplátka,0), 0)","v":{"v":0,"d":"0.00 EUR"}},{"$f":"IFERROR(IF(ÚverNieJeSplatený*ÚverJeDobrý,Istina,0), 0)","v":{"v":0,"d":"0.00 EUR"}},{"$f":"IFERROR(IF(ÚverNieJeSplatený*ÚverJeDobrý,SumaÚrokov,0), 0)","v":{"v":0,"d":"0.00 EUR"}},{"$f":"IFERROR(IF(ÚverNieJeSplatený*ÚverJeDobrý,KonečnýZostatok,0), 0)","v":{"v":0,"d":"0.00 EUR"}}]
[null,{"$f":"IFERROR(IF(ÚverNieJeSplatený*ÚverJeDobrý,ČísloPlatby,\"\"), \"\")","v":""},{"$f":"IFERROR(IF(ÚverNieJeSplatený*ÚverJeDobrý,DátumPlatby,PočiatočnýDátumÚveru), PočiatočnýDátumÚveru)","v":"2019-07-17"},{"$f":"IFERROR(IF(ÚverNieJeSplatený*ÚverJeDobrý,HodnotaÚveru,\"\"), \"\")","v":""},{"$f":"IFERROR(IF(ÚverNieJeSplatený*ÚverJeDobrý,MesačnáSplátka,0), 0)","v":{"v":0,"d":"0.00 EUR"}},{"$f":"IFERROR(IF(ÚverNieJeSplatený*ÚverJeDobrý,Istina,0), 0)","v":{"v":0,"d":"0.00 EUR"}},{"$f":"IFERROR(IF(ÚverNieJeSplatený*ÚverJeDobrý,SumaÚrokov,0), 0)","v":{"v":0,"d":"0.00 EUR"}},{"$f":"IFERROR(IF(ÚverNieJeSplatený*ÚverJeDobrý,KonečnýZostatok,0), 0)","v":{"v":0,"d":"0.00 EUR"}}]
[null,{"$f":"IFERROR(IF(ÚverNieJeSplatený*ÚverJeDobrý,ČísloPlatby,\"\"), \"\")","v":""},{"$f":"IFERROR(IF(ÚverNieJeSplatený*ÚverJeDobrý,DátumPlatby,PočiatočnýDátumÚveru), PočiatočnýDátumÚveru)","v":"2019-07-17"},{"$f":"IFERROR(IF(ÚverNieJeSplatený*ÚverJeDobrý,HodnotaÚveru,\"\"), \"\")","v":""},{"$f":"IFERROR(IF(ÚverNieJeSplatený*ÚverJeDobrý,MesačnáSplátka,0), 0)","v":{"v":0,"d":"0.00 EUR"}},{"$f":"IFERROR(IF(ÚverNieJeSplatený*ÚverJeDobrý,Istina,0), 0)","v":{"v":0,"d":"0.00 EUR"}},{"$f":"IFERROR(IF(ÚverNieJeSplatený*ÚverJeDobrý,SumaÚrokov,0), 0)","v":{"v":0,"d":"0.00 EUR"}},{"$f":"IFERROR(IF(ÚverNieJeSplatený*ÚverJeDobrý,KonečnýZostatok,0), 0)","v":{"v":0,"d":"0.00 EUR"}}]
[null,{"$f":"IFERROR(IF(ÚverNieJeSplatený*ÚverJeDobrý,ČísloPlatby,\"\"), \"\")","v":""},{"$f":"IFERROR(IF(ÚverNieJeSplatený*ÚverJeDobrý,DátumPlatby,PočiatočnýDátumÚveru), PočiatočnýDátumÚveru)","v":"2019-07-17"},{"$f":"IFERROR(IF(ÚverNieJeSplatený*ÚverJeDobrý,HodnotaÚveru,\"\"), \"\")","v":""},{"$f":"IFERROR(IF(ÚverNieJeSplatený*ÚverJeDobrý,MesačnáSplátka,0), 0)","v":{"v":0,"d":"0.00 EUR"}},{"$f":"IFERROR(IF(ÚverNieJeSplatený*ÚverJeDobrý,Istina,0), 0)","v":{"v":0,"d":"0.00 EUR"}},{"$f":"IFERROR(IF(ÚverNieJeSplatený*ÚverJeDobrý,SumaÚrokov,0), 0)","v":{"v":0,"d":"0.00 EUR"}},{"$f":"IFERROR(IF(ÚverNieJeSplatený*ÚverJeDobrý,KonečnýZostatok,0), 0)","v":{"v":0,"d":"0.00 EUR"}}]
[null,{"$f":"IFERROR(IF(ÚverNieJeSplatený*ÚverJeDobrý,ČísloPlatby,\"\"), \"\")","v":""},{"$f":"IFERROR(IF(ÚverNieJeSplatený*ÚverJeDobrý,DátumPlatby,PočiatočnýDátumÚveru), PočiatočnýDátumÚveru)","v":"2019-07-17"},{"$f":"IFERROR(IF(ÚverNieJeSplatený*ÚverJeDobrý,HodnotaÚveru,\"\"), \"\")","v":""},{"$f":"IFERROR(IF(ÚverNieJeSplatený*ÚverJeDobrý,MesačnáSplátka,0), 0)","v":{"v":0,"d":"0.00 EUR"}},{"$f":"IFERROR(IF(ÚverNieJeSplatený*ÚverJeDobrý,Istina,0), 0)","v":{"v":0,"d":"0.00 EUR"}},{"$f":"IFERROR(IF(ÚverNieJeSplatený*ÚverJeDobrý,SumaÚrokov,0), 0)","v":{"v":0,"d":"0.00 EUR"}},{"$f":"IFERROR(IF(ÚverNieJeSplatený*ÚverJeDobrý,KonečnýZostatok,0), 0)","v":{"v":0,"d":"0.00 EUR"}}]
[null,{"$f":"IFERROR(IF(ÚverNieJeSplatený*ÚverJeDobrý,ČísloPlatby,\"\"), \"\")","v":""},{"$f":"IFERROR(IF(ÚverNieJeSplatený*ÚverJeDobrý,DátumPlatby,PočiatočnýDátumÚveru), PočiatočnýDátumÚveru)","v":"2019-07-17"},{"$f":"IFERROR(IF(ÚverNieJeSplatený*ÚverJeDobrý,HodnotaÚveru,\"\"), \"\")","v":""},{"$f":"IFERROR(IF(ÚverNieJeSplatený*ÚverJeDobrý,MesačnáSplátka,0), 0)","v":{"v":0,"d":"0.00 EUR"}},{"$f":"IFERROR(IF(ÚverNieJeSplatený*ÚverJeDobrý,Istina,0), 0)","v":{"v":0,"d":"0.00 EUR"}},{"$f":"IFERROR(IF(ÚverNieJeSplatený*ÚverJeDobrý,SumaÚrokov,0), 0)","v":{"v":0,"d":"0.00 EUR"}},{"$f":"IFERROR(IF(ÚverNieJeSplatený*ÚverJeDobrý,KonečnýZostatok,0), 0)","v":{"v":0,"d":"0.00 EUR"}}]
[null,{"$f":"IFERROR(IF(ÚverNieJeSplatený*ÚverJeDobrý,ČísloPlatby,\"\"), \"\")","v":""},{"$f":"IFERROR(IF(ÚverNieJeSplatený*ÚverJeDobrý,DátumPlatby,PočiatočnýDátumÚveru), PočiatočnýDátumÚveru)","v":"2019-07-17"},{"$f":"IFERROR(IF(ÚverNieJeSplatený*ÚverJeDobrý,HodnotaÚveru,\"\"), \"\")","v":""},{"$f":"IFERROR(IF(ÚverNieJeSplatený*ÚverJeDobrý,MesačnáSplátka,0), 0)","v":{"v":0,"d":"0.00 EUR"}},{"$f":"IFERROR(IF(ÚverNieJeSplatený*ÚverJeDobrý,Istina,0), 0)","v":{"v":0,"d":"0.00 EUR"}},{"$f":"IFERROR(IF(ÚverNieJeSplatený*ÚverJeDobrý,SumaÚrokov,0), 0)","v":{"v":0,"d":"0.00 EUR"}},{"$f":"IFERROR(IF(ÚverNieJeSplatený*ÚverJeDobrý,KonečnýZostatok,0), 0)","v":{"v":0,"d":"0.00 EUR"}}]
[null,{"$f":"IFERROR(IF(ÚverNieJeSplatený*ÚverJeDobrý,ČísloPlatby,\"\"), \"\")","v":""},{"$f":"IFERROR(IF(ÚverNieJeSplatený*ÚverJeDobrý,DátumPlatby,PočiatočnýDátumÚveru), PočiatočnýDátumÚveru)","v":"2019-07-17"},{"$f":"IFERROR(IF(ÚverNieJeSplatený*ÚverJeDobrý,HodnotaÚveru,\"\"), \"\")","v":""},{"$f":"IFERROR(IF(ÚverNieJeSplatený*ÚverJeDobrý,MesačnáSplátka,0), 0)","v":{"v":0,"d":"0.00 EUR"}},{"$f":"IFERROR(IF(ÚverNieJeSplatený*ÚverJeDobrý,Istina,0), 0)","v":{"v":0,"d":"0.00 EUR"}},{"$f":"IFERROR(IF(ÚverNieJeSplatený*ÚverJeDobrý,SumaÚrokov,0), 0)","v":{"v":0,"d":"0.00 EUR"}},{"$f":"IFERROR(IF(ÚverNieJeSplatený*ÚverJeDobrý,KonečnýZostatok,0), 0)","v":{"v":0,"d":"0.00 EUR"}}]
[null,{"$f":"IFERROR(IF(ÚverNieJeSplatený*ÚverJeDobrý,ČísloPlatby,\"\"), \"\")","v":""},{"$f":"IFERROR(IF(ÚverNieJeSplatený*ÚverJeDobrý,DátumPlatby,PočiatočnýDátumÚveru), PočiatočnýDátumÚveru)","v":"2019-07-17"},{"$f":"IFERROR(IF(ÚverNieJeSplatený*ÚverJeDobrý,HodnotaÚveru,\"\"), \"\")","v":""},{"$f":"IFERROR(IF(ÚverNieJeSplatený*ÚverJeDobrý,MesačnáSplátka,0), 0)","v":{"v":0,"d":"0.00 EUR"}},{"$f":"IFERROR(IF(ÚverNieJeSplatený*ÚverJeDobrý,Istina,0), 0)","v":{"v":0,"d":"0.00 EUR"}},{"$f":"IFERROR(IF(ÚverNieJeSplatený*ÚverJeDobrý,SumaÚrokov,0), 0)","v":{"v":0,"d":"0.00 EUR"}},{"$f":"IFERROR(IF(ÚverNieJeSplatený*ÚverJeDobrý,KonečnýZostatok,0), 0)","v":{"v":0,"d":"0.00 EUR"}}]
[null,{"$f":"IFERROR(IF(ÚverNieJeSplatený*ÚverJeDobrý,ČísloPlatby,\"\"), \"\")","v":""},{"$f":"IFERROR(IF(ÚverNieJeSplatený*ÚverJeDobrý,DátumPlatby,PočiatočnýDátumÚveru), PočiatočnýDátumÚveru)","v":"2019-07-17"},{"$f":"IFERROR(IF(ÚverNieJeSplatený*ÚverJeDobrý,HodnotaÚveru,\"\"), \"\")","v":""},{"$f":"IFERROR(IF(ÚverNieJeSplatený*ÚverJeDobrý,MesačnáSplátka,0), 0)","v":{"v":0,"d":"0.00 EUR"}},{"$f":"IFERROR(IF(ÚverNieJeSplatený*ÚverJeDobrý,Istina,0), 0)","v":{"v":0,"d":"0.00 EUR"}},{"$f":"IFERROR(IF(ÚverNieJeSplatený*ÚverJeDobrý,SumaÚrokov,0), 0)","v":{"v":0,"d":"0.00 EUR"}},{"$f":"IFERROR(IF(ÚverNieJeSplatený*ÚverJeDobrý,KonečnýZostatok,0), 0)","v":{"v":0,"d":"0.00 EUR"}}]
[null,{"$f":"IFERROR(IF(ÚverNieJeSplatený*ÚverJeDobrý,ČísloPlatby,\"\"), \"\")","v":""},{"$f":"IFERROR(IF(ÚverNieJeSplatený*ÚverJeDobrý,DátumPlatby,PočiatočnýDátumÚveru), PočiatočnýDátumÚveru)","v":"2019-07-17"},{"$f":"IFERROR(IF(ÚverNieJeSplatený*ÚverJeDobrý,HodnotaÚveru,\"\"), \"\")","v":""},{"$f":"IFERROR(IF(ÚverNieJeSplatený*ÚverJeDobrý,MesačnáSplátka,0), 0)","v":{"v":0,"d":"0.00 EUR"}},{"$f":"IFERROR(IF(ÚverNieJeSplatený*ÚverJeDobrý,Istina,0), 0)","v":{"v":0,"d":"0.00 EUR"}},{"$f":"IFERROR(IF(ÚverNieJeSplatený*ÚverJeDobrý,SumaÚrokov,0), 0)","v":{"v":0,"d":"0.00 EUR"}},{"$f":"IFERROR(IF(ÚverNieJeSplatený*ÚverJeDobrý,KonečnýZostatok,0), 0)","v":{"v":0,"d":"0.00 EUR"}}]
[null,{"$f":"IFERROR(IF(ÚverNieJeSplatený*ÚverJeDobrý,ČísloPlatby,\"\"), \"\")","v":""},{"$f":"IFERROR(IF(ÚverNieJeSplatený*ÚverJeDobrý,DátumPlatby,PočiatočnýDátumÚveru), PočiatočnýDátumÚveru)","v":"2019-07-17"},{"$f":"IFERROR(IF(ÚverNieJeSplatený*ÚverJeDobrý,HodnotaÚveru,\"\"), \"\")","v":""},{"$f":"IFERROR(IF(ÚverNieJeSplatený*ÚverJeDobrý,MesačnáSplátka,0), 0)","v":{"v":0,"d":"0.00 EUR"}},{"$f":"IFERROR(IF(ÚverNieJeSplatený*ÚverJeDobrý,Istina,0), 0)","v":{"v":0,"d":"0.00 EUR"}},{"$f":"IFERROR(IF(ÚverNieJeSplatený*ÚverJeDobrý,SumaÚrokov,0), 0)","v":{"v":0,"d":"0.00 EUR"}},{"$f":"IFERROR(IF(ÚverNieJeSplatený*ÚverJeDobrý,KonečnýZostatok,0), 0)","v":{"v":0,"d":"0.00 EUR"}}]
[null,{"$f":"IFERROR(IF(ÚverNieJeSplatený*ÚverJeDobrý,ČísloPlatby,\"\"), \"\")","v":""},{"$f":"IFERROR(IF(ÚverNieJeSplatený*ÚverJeDobrý,DátumPlatby,PočiatočnýDátumÚveru), PočiatočnýDátumÚveru)","v":"2019-07-17"},{"$f":"IFERROR(IF(ÚverNieJeSplatený*ÚverJeDobrý,HodnotaÚveru,\"\"), \"\")","v":""},{"$f":"IFERROR(IF(ÚverNieJeSplatený*ÚverJeDobrý,MesačnáSplátka,0), 0)","v":{"v":0,"d":"0.00 EUR"}},{"$f":"IFERROR(IF(ÚverNieJeSplatený*ÚverJeDobrý,Istina,0), 0)","v":{"v":0,"d":"0.00 EUR"}},{"$f":"IFERROR(IF(ÚverNieJeSplatený*ÚverJeDobrý,SumaÚrokov,0), 0)","v":{"v":0,"d":"0.00 EUR"}},{"$f":"IFERROR(IF(ÚverNieJeSplatený*ÚverJeDobrý,KonečnýZostatok,0), 0)","v":{"v":0,"d":"0.00 EUR"}}]
[null,{"$f":"IFERROR(IF(ÚverNieJeSplatený*ÚverJeDobrý,ČísloPlatby,\"\"), \"\")","v":""},{"$f":"IFERROR(IF(ÚverNieJeSplatený*ÚverJeDobrý,DátumPlatby,PočiatočnýDátumÚveru), PočiatočnýDátumÚveru)","v":"2019-07-17"},{"$f":"IFERROR(IF(ÚverNieJeSplatený*ÚverJeDobrý,HodnotaÚveru,\"\"), \"\")","v":""},{"$f":"IFERROR(IF(ÚverNieJeSplatený*ÚverJeDobrý,MesačnáSplátka,0), 0)","v":{"v":0,"d":"0.00 EUR"}},{"$f":"IFERROR(IF(ÚverNieJeSplatený*ÚverJeDobrý,Istina,0), 0)","v":{"v":0,"d":"0.00 EUR"}},{"$f":"IFERROR(IF(ÚverNieJeSplatený*ÚverJeDobrý,SumaÚrokov,0), 0)","v":{"v":0,"d":"0.00 EUR"}},{"$f":"IFERROR(IF(ÚverNieJeSplatený*ÚverJeDobrý,KonečnýZostatok,0), 0)","v":{"v":0,"d":"0.00 EUR"}}]
[null,{"$f":"IFERROR(IF(ÚverNieJeSplatený*ÚverJeDobrý,ČísloPlatby,\"\"), \"\")","v":""},{"$f":"IFERROR(IF(ÚverNieJeSplatený*ÚverJeDobrý,DátumPlatby,PočiatočnýDátumÚveru), PočiatočnýDátumÚveru)","v":"2019-07-17"},{"$f":"IFERROR(IF(ÚverNieJeSplatený*ÚverJeDobrý,HodnotaÚveru,\"\"), \"\")","v":""},{"$f":"IFERROR(IF(ÚverNieJeSplatený*ÚverJeDobrý,MesačnáSplátka,0), 0)","v":{"v":0,"d":"0.00 EUR"}},{"$f":"IFERROR(IF(ÚverNieJeSplatený*ÚverJeDobrý,Istina,0), 0)","v":{"v":0,"d":"0.00 EUR"}},{"$f":"IFERROR(IF(ÚverNieJeSplatený*ÚverJeDobrý,SumaÚrokov,0), 0)","v":{"v":0,"d":"0.00 EUR"}},{"$f":"IFERROR(IF(ÚverNieJeSplatený*ÚverJeDobrý,KonečnýZostatok,0), 0)","v":{"v":0,"d":"0.00 EUR"}}]
[null,{"$f":"IFERROR(IF(ÚverNieJeSplatený*ÚverJeDobrý,ČísloPlatby,\"\"), \"\")","v":""},{"$f":"IFERROR(IF(ÚverNieJeSplatený*ÚverJeDobrý,DátumPlatby,PočiatočnýDátumÚveru), PočiatočnýDátumÚveru)","v":"2019-07-17"},{"$f":"IFERROR(IF(ÚverNieJeSplatený*ÚverJeDobrý,HodnotaÚveru,\"\"), \"\")","v":""},{"$f":"IFERROR(IF(ÚverNieJeSplatený*ÚverJeDobrý,MesačnáSplátka,0), 0)","v":{"v":0,"d":"0.00 EUR"}},{"$f":"IFERROR(IF(ÚverNieJeSplatený*ÚverJeDobrý,Istina,0), 0)","v":{"v":0,"d":"0.00 EUR"}},{"$f":"IFERROR(IF(ÚverNieJeSplatený*ÚverJeDobrý,SumaÚrokov,0), 0)","v":{"v":0,"d":"0.00 EUR"}},{"$f":"IFERROR(IF(ÚverNieJeSplatený*ÚverJeDobrý,KonečnýZostatok,0), 0)","v":{"v":0,"d":"0.00 EUR"}}]
[null,{"$f":"IFERROR(IF(ÚverNieJeSplatený*ÚverJeDobrý,ČísloPlatby,\"\"), \"\")","v":""},{"$f":"IFERROR(IF(ÚverNieJeSplatený*ÚverJeDobrý,DátumPlatby,PočiatočnýDátumÚveru), PočiatočnýDátumÚveru)","v":"2019-07-17"},{"$f":"IFERROR(IF(ÚverNieJeSplatený*ÚverJeDobrý,HodnotaÚveru,\"\"), \"\")","v":""},{"$f":"IFERROR(IF(ÚverNieJeSplatený*ÚverJeDobrý,MesačnáSplátka,0), 0)","v":{"v":0,"d":"0.00 EUR"}},{"$f":"IFERROR(IF(ÚverNieJeSplatený*ÚverJeDobrý,Istina,0), 0)","v":{"v":0,"d":"0.00 EUR"}},{"$f":"IFERROR(IF(ÚverNieJeSplatený*ÚverJeDobrý,SumaÚrokov,0), 0)","v":{"v":0,"d":"0.00 EUR"}},{"$f":"IFERROR(IF(ÚverNieJeSplatený*ÚverJeDobrý,KonečnýZostatok,0), 0)","v":{"v":0,"d":"0.00 EUR"}}]
[null,{"$f":"IFERROR(IF(ÚverNieJeSplatený*ÚverJeDobrý,ČísloPlatby,\"\"), \"\")","v":""},{"$f":"IFERROR(IF(ÚverNieJeSplatený*ÚverJeDobrý,DátumPlatby,PočiatočnýDátumÚveru), PočiatočnýDátumÚveru)","v":"2019-07-17"},{"$f":"IFERROR(IF(ÚverNieJeSplatený*ÚverJeDobrý,HodnotaÚveru,\"\"), \"\")","v":""},{"$f":"IFERROR(IF(ÚverNieJeSplatený*ÚverJeDobrý,MesačnáSplátka,0), 0)","v":{"v":0,"d":"0.00 EUR"}},{"$f":"IFERROR(IF(ÚverNieJeSplatený*ÚverJeDobrý,Istina,0), 0)","v":{"v":0,"d":"0.00 EUR"}},{"$f":"IFERROR(IF(ÚverNieJeSplatený*ÚverJeDobrý,SumaÚrokov,0), 0)","v":{"v":0,"d":"0.00 EUR"}},{"$f":"IFERROR(IF(ÚverNieJeSplatený*ÚverJeDobrý,KonečnýZostatok,0), 0)","v":{"v":0,"d":"0.00 EUR"}}]
[null,{"$f":"IFERROR(IF(ÚverNieJeSplatený*ÚverJeDobrý,ČísloPlatby,\"\"), \"\")","v":""},{"$f":"IFERROR(IF(ÚverNieJeSplatený*ÚverJeDobrý,DátumPlatby,PočiatočnýDátumÚveru), PočiatočnýDátumÚveru)","v":"2019-07-17"},{"$f":"IFERROR(IF(ÚverNieJeSplatený*ÚverJeDobrý,HodnotaÚveru,\"\"), \"\")","v":""},{"$f":"IFERROR(IF(ÚverNieJeSplatený*ÚverJeDobrý,MesačnáSplátka,0), 0)","v":{"v":0,"d":"0.00 EUR"}},{"$f":"IFERROR(IF(ÚverNieJeSplatený*ÚverJeDobrý,Istina,0), 0)","v":{"v":0,"d":"0.00 EUR"}},{"$f":"IFERROR(IF(ÚverNieJeSplatený*ÚverJeDobrý,SumaÚrokov,0), 0)","v":{"v":0,"d":"0.00 EUR"}},{"$f":"IFERROR(IF(ÚverNieJeSplatený*ÚverJeDobrý,KonečnýZostatok,0), 0)","v":{"v":0,"d":"0.00 EUR"}}]
[null,{"$f":"IFERROR(IF(ÚverNieJeSplatený*ÚverJeDobrý,ČísloPlatby,\"\"), \"\")","v":""},{"$f":"IFERROR(IF(ÚverNieJeSplatený*ÚverJeDobrý,DátumPlatby,PočiatočnýDátumÚveru), PočiatočnýDátumÚveru)","v":"2019-07-17"},{"$f":"IFERROR(IF(ÚverNieJeSplatený*ÚverJeDobrý,HodnotaÚveru,\"\"), \"\")","v":""},{"$f":"IFERROR(IF(ÚverNieJeSplatený*ÚverJeDobrý,MesačnáSplátka,0), 0)","v":{"v":0,"d":"0.00 EUR"}},{"$f":"IFERROR(IF(ÚverNieJeSplatený*ÚverJeDobrý,Istina,0), 0)","v":{"v":0,"d":"0.00 EUR"}},{"$f":"IFERROR(IF(ÚverNieJeSplatený*ÚverJeDobrý,SumaÚrokov,0), 0)","v":{"v":0,"d":"0.00 EUR"}},{"$f":"IFERROR(IF(ÚverNieJeSplatený*ÚverJeDobrý,KonečnýZostatok,0), 0)","v":{"v":0,"d":"0.00 EUR"}}]
[null,{"$f":"IFERROR(IF(ÚverNieJeSplatený*ÚverJeDobrý,ČísloPlatby,\"\"), \"\")","v":""},{"$f":"IFERROR(IF(ÚverNieJeSplatený*ÚverJeDobrý,DátumPlatby,PočiatočnýDátumÚveru), PočiatočnýDátumÚveru)","v":"2019-07-17"},{"$f":"IFERROR(IF(ÚverNieJeSplatený*ÚverJeDobrý,HodnotaÚveru,\"\"), \"\")","v":""},{"$f":"IFERROR(IF(ÚverNieJeSplatený*ÚverJeDobrý,MesačnáSplátka,0), 0)","v":{"v":0,"d":"0.00 EUR"}},{"$f":"IFERROR(IF(ÚverNieJeSplatený*ÚverJeDobrý,Istina,0), 0)","v":{"v":0,"d":"0.00 EUR"}},{"$f":"IFERROR(IF(ÚverNieJeSplatený*ÚverJeDobrý,SumaÚrokov,0), 0)","v":{"v":0,"d":"0.00 EUR"}},{"$f":"IFERROR(IF(ÚverNieJeSplatený*ÚverJeDobrý,KonečnýZostatok,0), 0)","v":{"v":0,"d":"0.00 EUR"}}]
[null,{"$f":"IFERROR(IF(ÚverNieJeSplatený*ÚverJeDobrý,ČísloPlatby,\"\"), \"\")","v":""},{"$f":"IFERROR(IF(ÚverNieJeSplatený*ÚverJeDobrý,DátumPlatby,PočiatočnýDátumÚveru), PočiatočnýDátumÚveru)","v":"2019-07-17"},{"$f":"IFERROR(IF(ÚverNieJeSplatený*ÚverJeDobrý,HodnotaÚveru,\"\"), \"\")","v":""},{"$f":"IFERROR(IF(ÚverNieJeSplatený*ÚverJeDobrý,MesačnáSplátka,0), 0)","v":{"v":0,"d":"0.00 EUR"}},{"$f":"IFERROR(IF(ÚverNieJeSplatený*ÚverJeDobrý,Istina,0), 0)","v":{"v":0,"d":"0.00 EUR"}},{"$f":"IFERROR(IF(ÚverNieJeSplatený*ÚverJeDobrý,SumaÚrokov,0), 0)","v":{"v":0,"d":"0.00 EUR"}},{"$f":"IFERROR(IF(ÚverNieJeSplatený*ÚverJeDobrý,KonečnýZostatok,0), 0)","v":{"v":0,"d":"0.00 EUR"}}]
[null,{"$f":"IFERROR(IF(ÚverNieJeSplatený*ÚverJeDobrý,ČísloPlatby,\"\"), \"\")","v":""},{"$f":"IFERROR(IF(ÚverNieJeSplatený*ÚverJeDobrý,DátumPlatby,PočiatočnýDátumÚveru), PočiatočnýDátumÚveru)","v":"2019-07-17"},{"$f":"IFERROR(IF(ÚverNieJeSplatený*ÚverJeDobrý,HodnotaÚveru,\"\"), \"\")","v":""},{"$f":"IFERROR(IF(ÚverNieJeSplatený*ÚverJeDobrý,MesačnáSplátka,0), 0)","v":{"v":0,"d":"0.00 EUR"}},{"$f":"IFERROR(IF(ÚverNieJeSplatený*ÚverJeDobrý,Istina,0), 0)","v":{"v":0,"d":"0.00 EUR"}},{"$f":"IFERROR(IF(ÚverNieJeSplatený*ÚverJeDobrý,SumaÚrokov,0), 0)","v":{"v":0,"d":"0.00 EUR"}},{"$f":"IFERROR(IF(ÚverNieJeSplatený*ÚverJeDobrý,KonečnýZostatok,0), 0)","v":{"v":0,"d":"0.00 EUR"}}]
[null,{"$f":"IFERROR(IF(ÚverNieJeSplatený*ÚverJeDobrý,ČísloPlatby,\"\"), \"\")","v":""},{"$f":"IFERROR(IF(ÚverNieJeSplatený*ÚverJeDobrý,DátumPlatby,PočiatočnýDátumÚveru), PočiatočnýDátumÚveru)","v":"2019-07-17"},{"$f":"IFERROR(IF(ÚverNieJeSplatený*ÚverJeDobrý,HodnotaÚveru,\"\"), \"\")","v":""},{"$f":"IFERROR(IF(ÚverNieJeSplatený*ÚverJeDobrý,MesačnáSplátka,0), 0)","v":{"v":0,"d":"0.00 EUR"}},{"$f":"IFERROR(IF(ÚverNieJeSplatený*ÚverJeDobrý,Istina,0), 0)","v":{"v":0,"d":"0.00 EUR"}},{"$f":"IFERROR(IF(ÚverNieJeSplatený*ÚverJeDobrý,SumaÚrokov,0), 0)","v":{"v":0,"d":"0.00 EUR"}},{"$f":"IFERROR(IF(ÚverNieJeSplatený*ÚverJeDobrý,KonečnýZostatok,0), 0)","v":{"v":0,"d":"0.00 EUR"}}]
[null,{"$f":"IFERROR(IF(ÚverNieJeSplatený*ÚverJeDobrý,ČísloPlatby,\"\"), \"\")","v":""},{"$f":"IFERROR(IF(ÚverNieJeSplatený*ÚverJeDobrý,DátumPlatby,PočiatočnýDátumÚveru), PočiatočnýDátumÚveru)","v":"2019-07-17"},{"$f":"IFERROR(IF(ÚverNieJeSplatený*ÚverJeDobrý,HodnotaÚveru,\"\"), \"\")","v":""},{"$f":"IFERROR(IF(ÚverNieJeSplatený*ÚverJeDobrý,MesačnáSplátka,0), 0)","v":{"v":0,"d":"0.00 EUR"}},{"$f":"IFERROR(IF(ÚverNieJeSplatený*ÚverJeDobrý,Istina,0), 0)","v":{"v":0,"d":"0.00 EUR"}},{"$f":"IFERROR(IF(ÚverNieJeSplatený*ÚverJeDobrý,SumaÚrokov,0), 0)","v":{"v":0,"d":"0.00 EUR"}},{"$f":"IFERROR(IF(ÚverNieJeSplatený*ÚverJeDobrý,KonečnýZostatok,0), 0)","v":{"v":0,"d":"0.00 EUR"}}]
[null,{"$f":"IFERROR(IF(ÚverNieJeSplatený*ÚverJeDobrý,ČísloPlatby,\"\"), \"\")","v":""},{"$f":"IFERROR(IF(ÚverNieJeSplatený*ÚverJeDobrý,DátumPlatby,PočiatočnýDátumÚveru), PočiatočnýDátumÚveru)","v":"2019-07-17"},{"$f":"IFERROR(IF(ÚverNieJeSplatený*ÚverJeDobrý,HodnotaÚveru,\"\"), \"\")","v":""},{"$f":"IFERROR(IF(ÚverNieJeSplatený*ÚverJeDobrý,MesačnáSplátka,0), 0)","v":{"v":0,"d":"0.00 EUR"}},{"$f":"IFERROR(IF(ÚverNieJeSplatený*ÚverJeDobrý,Istina,0), 0)","v":{"v":0,"d":"0.00 EUR"}},{"$f":"IFERROR(IF(ÚverNieJeSplatený*ÚverJeDobrý,SumaÚrokov,0), 0)","v":{"v":0,"d":"0.00 EUR"}},{"$f":"IFERROR(IF(ÚverNieJeSplatený*ÚverJeDobrý,KonečnýZostatok,0), 0)","v":{"v":0,"d":"0.00 EUR"}}]
[null,{"$f":"IFERROR(IF(ÚverNieJeSplatený*ÚverJeDobrý,ČísloPlatby,\"\"), \"\")","v":""},{"$f":"IFERROR(IF(ÚverNieJeSplatený*ÚverJeDobrý,DátumPlatby,PočiatočnýDátumÚveru), PočiatočnýDátumÚveru)","v":"2019-07-17"},{"$f":"IFERROR(IF(ÚverNieJeSplatený*ÚverJeDobrý,HodnotaÚveru,\"\"), \"\")","v":""},{"$f":"IFERROR(IF(ÚverNieJeSplatený*ÚverJeDobrý,MesačnáSplátka,0), 0)","v":{"v":0,"d":"0.00 EUR"}},{"$f":"IFERROR(IF(ÚverNieJeSplatený*ÚverJeDobrý,Istina,0), 0)","v":{"v":0,"d":"0.00 EUR"}},{"$f":"IFERROR(IF(ÚverNieJeSplatený*ÚverJeDobrý,SumaÚrokov,0), 0)","v":{"v":0,"d":"0.00 EUR"}},{"$f":"IFERROR(IF(ÚverNieJeSplatený*ÚverJeDobrý,KonečnýZostatok,0), 0)","v":{"v":0,"d":"0.00 EUR"}}]
[null,{"$f":"IFERROR(IF(ÚverNieJeSplatený*ÚverJeDobrý,ČísloPlatby,\"\"), \"\")","v":""},{"$f":"IFERROR(IF(ÚverNieJeSplatený*ÚverJeDobrý,DátumPlatby,PočiatočnýDátumÚveru), PočiatočnýDátumÚveru)","v":"2019-07-17"},{"$f":"IFERROR(IF(ÚverNieJeSplatený*ÚverJeDobrý,HodnotaÚveru,\"\"), \"\")","v":""},{"$f":"IFERROR(IF(ÚverNieJeSplatený*ÚverJeDobrý,MesačnáSplátka,0), 0)","v":{"v":0,"d":"0.00 EUR"}},{"$f":"IFERROR(IF(ÚverNieJeSplatený*ÚverJeDobrý,Istina,0), 0)","v":{"v":0,"d":"0.00 EUR"}},{"$f":"IFERROR(IF(ÚverNieJeSplatený*ÚverJeDobrý,SumaÚrokov,0), 0)","v":{"v":0,"d":"0.00 EUR"}},{"$f":"IFERROR(IF(ÚverNieJeSplatený*ÚverJeDobrý,KonečnýZostatok,0), 0)","v":{"v":0,"d":"0.00 EUR"}}]
[null,{"$f":"IFERROR(IF(ÚverNieJeSplatený*ÚverJeDobrý,ČísloPlatby,\"\"), \"\")","v":""},{"$f":"IFERROR(IF(ÚverNieJeSplatený*ÚverJeDobrý,DátumPlatby,PočiatočnýDátumÚveru), PočiatočnýDátumÚveru)","v":"2019-07-17"},{"$f":"IFERROR(IF(ÚverNieJeSplatený*ÚverJeDobrý,HodnotaÚveru,\"\"), \"\")","v":""},{"$f":"IFERROR(IF(ÚverNieJeSplatený*ÚverJeDobrý,MesačnáSplátka,0), 0)","v":{"v":0,"d":"0.00 EUR"}},{"$f":"IFERROR(IF(ÚverNieJeSplatený*ÚverJeDobrý,Istina,0), 0)","v":{"v":0,"d":"0.00 EUR"}},{"$f":"IFERROR(IF(ÚverNieJeSplatený*ÚverJeDobrý,SumaÚrokov,0), 0)","v":{"v":0,"d":"0.00 EUR"}},{"$f":"IFERROR(IF(ÚverNieJeSplatený*ÚverJeDobrý,KonečnýZostatok,0), 0)","v":{"v":0,"d":"0.00 EUR"}}]
[null,{"$f":"IFERROR(IF(ÚverNieJeSplatený*ÚverJeDobrý,ČísloPlatby,\"\"), \"\")","v":""},{"$f":"IFERROR(IF(ÚverNieJeSplatený*ÚverJeDobrý,DátumPlatby,PočiatočnýDátumÚveru), PočiatočnýDátumÚveru)","v":"2019-07-17"},{"$f":"IFERROR(IF(ÚverNieJeSplatený*ÚverJeDobrý,HodnotaÚveru,\"\"), \"\")","v":""},{"$f":"IFERROR(IF(ÚverNieJeSplatený*ÚverJeDobrý,MesačnáSplátka,0), 0)","v":{"v":0,"d":"0.00 EUR"}},{"$f":"IFERROR(IF(ÚverNieJeSplatený*ÚverJeDobrý,Istina,0), 0)","v":{"v":0,"d":"0.00 EUR"}},{"$f":"IFERROR(IF(ÚverNieJeSplatený*ÚverJeDobrý,SumaÚrokov,0), 0)","v":{"v":0,"d":"0.00 EUR"}},{"$f":"IFERROR(IF(ÚverNieJeSplatený*ÚverJeDobrý,KonečnýZostatok,0), 0)","v":{"v":0,"d":"0.00 EUR"}}]
[null,{"$f":"IFERROR(IF(ÚverNieJeSplatený*ÚverJeDobrý,ČísloPlatby,\"\"), \"\")","v":""},{"$f":"IFERROR(IF(ÚverNieJeSplatený*ÚverJeDobrý,DátumPlatby,PočiatočnýDátumÚveru), PočiatočnýDátumÚveru)","v":"2019-07-17"},{"$f":"IFERROR(IF(ÚverNieJeSplatený*ÚverJeDobrý,HodnotaÚveru,\"\"), \"\")","v":""},{"$f":"IFERROR(IF(ÚverNieJeSplatený*ÚverJeDobrý,MesačnáSplátka,0), 0)","v":{"v":0,"d":"0.00 EUR"}},{"$f":"IFERROR(IF(ÚverNieJeSplatený*ÚverJeDobrý,Istina,0), 0)","v":{"v":0,"d":"0.00 EUR"}},{"$f":"IFERROR(IF(ÚverNieJeSplatený*ÚverJeDobrý,SumaÚrokov,0), 0)","v":{"v":0,"d":"0.00 EUR"}},{"$f":"IFERROR(IF(ÚverNieJeSplatený*ÚverJeDobrý,KonečnýZostatok,0), 0)","v":{"v":0,"d":"0.00 EUR"}}]
[null,{"$f":"IFERROR(IF(ÚverNieJeSplatený*ÚverJeDobrý,ČísloPlatby,\"\"), \"\")","v":""},{"$f":"IFERROR(IF(ÚverNieJeSplatený*ÚverJeDobrý,DátumPlatby,PočiatočnýDátumÚveru), PočiatočnýDátumÚveru)","v":"2019-07-17"},{"$f":"IFERROR(IF(ÚverNieJeSplatený*ÚverJeDobrý,HodnotaÚveru,\"\"), \"\")","v":""},{"$f":"IFERROR(IF(ÚverNieJeSplatený*ÚverJeDobrý,MesačnáSplátka,0), 0)","v":{"v":0,"d":"0.00 EUR"}},{"$f":"IFERROR(IF(ÚverNieJeSplatený*ÚverJeDobrý,Istina,0), 0)","v":{"v":0,"d":"0.00 EUR"}},{"$f":"IFERROR(IF(ÚverNieJeSplatený*ÚverJeDobrý,SumaÚrokov,0), 0)","v":{"v":0,"d":"0.00 EUR"}},{"$f":"IFERROR(IF(ÚverNieJeSplatený*ÚverJeDobrý,KonečnýZostatok,0), 0)","v":{"v":0,"d":"0.00 EUR"}}]
[null,{"$f":"IFERROR(IF(ÚverNieJeSplatený*ÚverJeDobrý,ČísloPlatby,\"\"), \"\")","v":""},{"$f":"IFERROR(IF(ÚverNieJeSplatený*ÚverJeDobrý,DátumPlatby,PočiatočnýDátumÚveru), PočiatočnýDátumÚveru)","v":"2019-07-17"},{"$f":"IFERROR(IF(ÚverNieJeSplatený*ÚverJeDobrý,HodnotaÚveru,\"\"), \"\")","v":""},{"$f":"IFERROR(IF(ÚverNieJeSplatený*ÚverJeDobrý,MesačnáSplátka,0), 0)","v":{"v":0,"d":"0.00 EUR"}},{"$f":"IFERROR(IF(ÚverNieJeSplatený*ÚverJeDobrý,Istina,0), 0)","v":{"v":0,"d":"0.00 EUR"}},{"$f":"IFERROR(IF(ÚverNieJeSplatený*ÚverJeDobrý,SumaÚrokov,0), 0)","v":{"v":0,"d":"0.00 EUR"}},{"$f":"IFERROR(IF(ÚverNieJeSplatený*ÚverJeDobrý,KonečnýZostatok,0), 0)","v":{"v":0,"d":"0.00 EUR"}}]
[null,{"$f":"IFERROR(IF(ÚverNieJeSplatený*ÚverJeDobrý,ČísloPlatby,\"\"), \"\")","v":""},{"$f":"IFERROR(IF(ÚverNieJeSplatený*ÚverJeDobrý,DátumPlatby,PočiatočnýDátumÚveru), PočiatočnýDátumÚveru)","v":"2019-07-17"},{"$f":"IFERROR(IF(ÚverNieJeSplatený*ÚverJeDobrý,HodnotaÚveru,\"\"), \"\")","v":""},{"$f":"IFERROR(IF(ÚverNieJeSplatený*ÚverJeDobrý,MesačnáSplátka,0), 0)","v":{"v":0,"d":"0.00 EUR"}},{"$f":"IFERROR(IF(ÚverNieJeSplatený*ÚverJeDobrý,Istina,0), 0)","v":{"v":0,"d":"0.00 EUR"}},{"$f":"IFERROR(IF(ÚverNieJeSplatený*ÚverJeDobrý,SumaÚrokov,0), 0)","v":{"v":0,"d":"0.00 EUR"}},{"$f":"IFERROR(IF(ÚverNieJeSplatený*ÚverJeDobrý,KonečnýZostatok,0), 0)","v":{"v":0,"d":"0.00 EUR"}}]
[null,{"$f":"IFERROR(IF(ÚverNieJeSplatený*ÚverJeDobrý,ČísloPlatby,\"\"), \"\")","v":""},{"$f":"IFERROR(IF(ÚverNieJeSplatený*ÚverJeDobrý,DátumPlatby,PočiatočnýDátumÚveru), PočiatočnýDátumÚveru)","v":"2019-07-17"},{"$f":"IFERROR(IF(ÚverNieJeSplatený*ÚverJeDobrý,HodnotaÚveru,\"\"), \"\")","v":""},{"$f":"IFERROR(IF(ÚverNieJeSplatený*ÚverJeDobrý,MesačnáSplátka,0), 0)","v":{"v":0,"d":"0.00 EUR"}},{"$f":"IFERROR(IF(ÚverNieJeSplatený*ÚverJeDobrý,Istina,0), 0)","v":{"v":0,"d":"0.00 EUR"}},{"$f":"IFERROR(IF(ÚverNieJeSplatený*ÚverJeDobrý,SumaÚrokov,0), 0)","v":{"v":0,"d":"0.00 EUR"}},{"$f":"IFERROR(IF(ÚverNieJeSplatený*ÚverJeDobrý,KonečnýZostatok,0), 0)","v":{"v":0,"d":"0.00 EUR"}}]
[null,{"$f":"IFERROR(IF(ÚverNieJeSplatený*ÚverJeDobrý,ČísloPlatby,\"\"), \"\")","v":""},{"$f":"IFERROR(IF(ÚverNieJeSplatený*ÚverJeDobrý,DátumPlatby,PočiatočnýDátumÚveru), PočiatočnýDátumÚveru)","v":"2019-07-17"},{"$f":"IFERROR(IF(ÚverNieJeSplatený*ÚverJeDobrý,HodnotaÚveru,\"\"), \"\")","v":""},{"$f":"IFERROR(IF(ÚverNieJeSplatený*ÚverJeDobrý,MesačnáSplátka,0), 0)","v":{"v":0,"d":"0.00 EUR"}},{"$f":"IFERROR(IF(ÚverNieJeSplatený*ÚverJeDobrý,Istina,0), 0)","v":{"v":0,"d":"0.00 EUR"}},{"$f":"IFERROR(IF(ÚverNieJeSplatený*ÚverJeDobrý,SumaÚrokov,0), 0)","v":{"v":0,"d":"0.00 EUR"}},{"$f":"IFERROR(IF(ÚverNieJeSplatený*ÚverJeDobrý,KonečnýZostatok,0), 0)","v":{"v":0,"d":"0.00 EUR"}}]
[null,{"$f":"IFERROR(IF(ÚverNieJeSplatený*ÚverJeDobrý,ČísloPlatby,\"\"), \"\")","v":""},{"$f":"IFERROR(IF(ÚverNieJeSplatený*ÚverJeDobrý,DátumPlatby,PočiatočnýDátumÚveru), PočiatočnýDátumÚveru)","v":"2019-07-17"},{"$f":"IFERROR(IF(ÚverNieJeSplatený*ÚverJeDobrý,HodnotaÚveru,\"\"), \"\")","v":""},{"$f":"IFERROR(IF(ÚverNieJeSplatený*ÚverJeDobrý,MesačnáSplátka,0), 0)","v":{"v":0,"d":"0.00 EUR"}},{"$f":"IFERROR(IF(ÚverNieJeSplatený*ÚverJeDobrý,Istina,0), 0)","v":{"v":0,"d":"0.00 EUR"}},{"$f":"IFERROR(IF(ÚverNieJeSplatený*ÚverJeDobrý,SumaÚrokov,0), 0)","v":{"v":0,"d":"0.00 EUR"}},{"$f":"IFERROR(IF(ÚverNieJeSplatený*ÚverJeDobrý,KonečnýZostatok,0), 0)","v":{"v":0,"d":"0.00 EUR"}}]
[null,{"$f":"IFERROR(IF(ÚverNieJeSplatený*ÚverJeDobrý,ČísloPlatby,\"\"), \"\")","v":""},{"$f":"IFERROR(IF(ÚverNieJeSplatený*ÚverJeDobrý,DátumPlatby,PočiatočnýDátumÚveru), PočiatočnýDátumÚveru)","v":"2019-07-17"},{"$f":"IFERROR(IF(ÚverNieJeSplatený*ÚverJeDobrý,HodnotaÚveru,\"\"), \"\")","v":""},{"$f":"IFERROR(IF(ÚverNieJeSplatený*ÚverJeDobrý,MesačnáSplátka,0), 0)","v":{"v":0,"d":"0.00 EUR"}},{"$f":"IFERROR(IF(ÚverNieJeSplatený*ÚverJeDobrý,Istina,0), 0)","v":{"v":0,"d":"0.00 EUR"}},{"$f":"IFERROR(IF(ÚverNieJeSplatený*ÚverJeDobrý,SumaÚrokov,0), 0)","v":{"v":0,"d":"0.00 EUR"}},{"$f":"IFERROR(IF(ÚverNieJeSplatený*ÚverJeDobrý,KonečnýZostatok,0), 0)","v":{"v":0,"d":"0.00 EUR"}}]
[null,{"$f":"IFERROR(IF(ÚverNieJeSplatený*ÚverJeDobrý,ČísloPlatby,\"\"), \"\")","v":""},{"$f":"IFERROR(IF(ÚverNieJeSplatený*ÚverJeDobrý,DátumPlatby,PočiatočnýDátumÚveru), PočiatočnýDátumÚveru)","v":"2019-07-17"},{"$f":"IFERROR(IF(ÚverNieJeSplatený*ÚverJeDobrý,HodnotaÚveru,\"\"), \"\")","v":""},{"$f":"IFERROR(IF(ÚverNieJeSplatený*ÚverJeDobrý,MesačnáSplátka,0), 0)","v":{"v":0,"d":"0.00 EUR"}},{"$f":"IFERROR(IF(ÚverNieJeSplatený*ÚverJeDobrý,Istina,0), 0)","v":{"v":0,"d":"0.00 EUR"}},{"$f":"IFERROR(IF(ÚverNieJeSplatený*ÚverJeDobrý,SumaÚrokov,0), 0)","v":{"v":0,"d":"0.00 EUR"}},{"$f":"IFERROR(IF(ÚverNieJeSplatený*ÚverJeDobrý,KonečnýZostatok,0), 0)","v":{"v":0,"d":"0.00 EUR"}}]
[null,{"$f":"IFERROR(IF(ÚverNieJeSplatený*ÚverJeDobrý,ČísloPlatby,\"\"), \"\")","v":""},{"$f":"IFERROR(IF(ÚverNieJeSplatený*ÚverJeDobrý,DátumPlatby,PočiatočnýDátumÚveru), PočiatočnýDátumÚveru)","v":"2019-07-17"},{"$f":"IFERROR(IF(ÚverNieJeSplatený*ÚverJeDobrý,HodnotaÚveru,\"\"), \"\")","v":""},{"$f":"IFERROR(IF(ÚverNieJeSplatený*ÚverJeDobrý,MesačnáSplátka,0), 0)","v":{"v":0,"d":"0.00 EUR"}},{"$f":"IFERROR(IF(ÚverNieJeSplatený*ÚverJeDobrý,Istina,0), 0)","v":{"v":0,"d":"0.00 EUR"}},{"$f":"IFERROR(IF(ÚverNieJeSplatený*ÚverJeDobrý,SumaÚrokov,0), 0)","v":{"v":0,"d":"0.00 EUR"}},{"$f":"IFERROR(IF(ÚverNieJeSplatený*ÚverJeDobrý,KonečnýZostatok,0), 0)","v":{"v":0,"d":"0.00 EUR"}}]
[null,{"$f":"IFERROR(IF(ÚverNieJeSplatený*ÚverJeDobrý,ČísloPlatby,\"\"), \"\")","v":""},{"$f":"IFERROR(IF(ÚverNieJeSplatený*ÚverJeDobrý,DátumPlatby,PočiatočnýDátumÚveru), PočiatočnýDátumÚveru)","v":"2019-07-17"},{"$f":"IFERROR(IF(ÚverNieJeSplatený*ÚverJeDobrý,HodnotaÚveru,\"\"), \"\")","v":""},{"$f":"IFERROR(IF(ÚverNieJeSplatený*ÚverJeDobrý,MesačnáSplátka,0), 0)","v":{"v":0,"d":"0.00 EUR"}},{"$f":"IFERROR(IF(ÚverNieJeSplatený*ÚverJeDobrý,Istina,0), 0)","v":{"v":0,"d":"0.00 EUR"}},{"$f":"IFERROR(IF(ÚverNieJeSplatený*ÚverJeDobrý,SumaÚrokov,0), 0)","v":{"v":0,"d":"0.00 EUR"}},{"$f":"IFERROR(IF(ÚverNieJeSplatený*ÚverJeDobrý,KonečnýZostatok,0), 0)","v":{"v":0,"d":"0.00 EUR"}}]
[null,{"$f":"IFERROR(IF(ÚverNieJeSplatený*ÚverJeDobrý,ČísloPlatby,\"\"), \"\")","v":""},{"$f":"IFERROR(IF(ÚverNieJeSplatený*ÚverJeDobrý,DátumPlatby,PočiatočnýDátumÚveru), PočiatočnýDátumÚveru)","v":"2019-07-17"},{"$f":"IFERROR(IF(ÚverNieJeSplatený*ÚverJeDobrý,HodnotaÚveru,\"\"), \"\")","v":""},{"$f":"IFERROR(IF(ÚverNieJeSplatený*ÚverJeDobrý,MesačnáSplátka,0), 0)","v":{"v":0,"d":"0.00 EUR"}},{"$f":"IFERROR(IF(ÚverNieJeSplatený*ÚverJeDobrý,Istina,0), 0)","v":{"v":0,"d":"0.00 EUR"}},{"$f":"IFERROR(IF(ÚverNieJeSplatený*ÚverJeDobrý,SumaÚrokov,0), 0)","v":{"v":0,"d":"0.00 EUR"}},{"$f":"IFERROR(IF(ÚverNieJeSplatený*ÚverJeDobrý,KonečnýZostatok,0), 0)","v":{"v":0,"d":"0.00 EUR"}}]
[null,{"$f":"IFERROR(IF(ÚverNieJeSplatený*ÚverJeDobrý,ČísloPlatby,\"\"), \"\")","v":""},{"$f":"IFERROR(IF(ÚverNieJeSplatený*ÚverJeDobrý,DátumPlatby,PočiatočnýDátumÚveru), PočiatočnýDátumÚveru)","v":"2019-07-17"},{"$f":"IFERROR(IF(ÚverNieJeSplatený*ÚverJeDobrý,HodnotaÚveru,\"\"), \"\")","v":""},{"$f":"IFERROR(IF(ÚverNieJeSplatený*ÚverJeDobrý,MesačnáSplátka,0), 0)","v":{"v":0,"d":"0.00 EUR"}},{"$f":"IFERROR(IF(ÚverNieJeSplatený*ÚverJeDobrý,Istina,0), 0)","v":{"v":0,"d":"0.00 EUR"}},{"$f":"IFERROR(IF(ÚverNieJeSplatený*ÚverJeDobrý,SumaÚrokov,0), 0)","v":{"v":0,"d":"0.00 EUR"}},{"$f":"IFERROR(IF(ÚverNieJeSplatený*ÚverJeDobrý,KonečnýZostatok,0), 0)","v":{"v":0,"d":"0.00 EUR"}}]
[null,{"$f":"IFERROR(IF(ÚverNieJeSplatený*ÚverJeDobrý,ČísloPlatby,\"\"), \"\")","v":""},{"$f":"IFERROR(IF(ÚverNieJeSplatený*ÚverJeDobrý,DátumPlatby,PočiatočnýDátumÚveru), PočiatočnýDátumÚveru)","v":"2019-07-17"},{"$f":"IFERROR(IF(ÚverNieJeSplatený*ÚverJeDobrý,HodnotaÚveru,\"\"), \"\")","v":""},{"$f":"IFERROR(IF(ÚverNieJeSplatený*ÚverJeDobrý,MesačnáSplátka,0), 0)","v":{"v":0,"d":"0.00 EUR"}},{"$f":"IFERROR(IF(ÚverNieJeSplatený*ÚverJeDobrý,Istina,0), 0)","v":{"v":0,"d":"0.00 EUR"}},{"$f":"IFERROR(IF(ÚverNieJeSplatený*ÚverJeDobrý,SumaÚrokov,0), 0)","v":{"v":0,"d":"0.00 EUR"}},{"$f":"IFERROR(IF(ÚverNieJeSplatený*ÚverJeDobrý,KonečnýZostatok,0), 0)","v":{"v":0,"d":"0.00 EUR"}}]
[null,{"$f":"IFERROR(IF(ÚverNieJeSplatený*ÚverJeDobrý,ČísloPlatby,\"\"), \"\")","v":""},{"$f":"IFERROR(IF(ÚverNieJeSplatený*ÚverJeDobrý,DátumPlatby,PočiatočnýDátumÚveru), PočiatočnýDátumÚveru)","v":"2019-07-17"},{"$f":"IFERROR(IF(ÚverNieJeSplatený*ÚverJeDobrý,HodnotaÚveru,\"\"), \"\")","v":""},{"$f":"IFERROR(IF(ÚverNieJeSplatený*ÚverJeDobrý,MesačnáSplátka,0), 0)","v":{"v":0,"d":"0.00 EUR"}},{"$f":"IFERROR(IF(ÚverNieJeSplatený*ÚverJeDobrý,Istina,0), 0)","v":{"v":0,"d":"0.00 EUR"}},{"$f":"IFERROR(IF(ÚverNieJeSplatený*ÚverJeDobrý,SumaÚrokov,0), 0)","v":{"v":0,"d":"0.00 EUR"}},{"$f":"IFERROR(IF(ÚverNieJeSplatený*ÚverJeDobrý,KonečnýZostatok,0), 0)","v":{"v":0,"d":"0.00 EUR"}}]
[null,{"$f":"IFERROR(IF(ÚverNieJeSplatený*ÚverJeDobrý,ČísloPlatby,\"\"), \"\")","v":""},{"$f":"IFERROR(IF(ÚverNieJeSplatený*ÚverJeDobrý,DátumPlatby,PočiatočnýDátumÚveru), PočiatočnýDátumÚveru)","v":"2019-07-17"},{"$f":"IFERROR(IF(ÚverNieJeSplatený*ÚverJeDobrý,HodnotaÚveru,\"\"), \"\")","v":""},{"$f":"IFERROR(IF(ÚverNieJeSplatený*ÚverJeDobrý,MesačnáSplátka,0), 0)","v":{"v":0,"d":"0.00 EUR"}},{"$f":"IFERROR(IF(ÚverNieJeSplatený*ÚverJeDobrý,Istina,0), 0)","v":{"v":0,"d":"0.00 EUR"}},{"$f":"IFERROR(IF(ÚverNieJeSplatený*ÚverJeDobrý,SumaÚrokov,0), 0)","v":{"v":0,"d":"0.00 EUR"}},{"$f":"IFERROR(IF(ÚverNieJeSplatený*ÚverJeDobrý,KonečnýZostatok,0), 0)","v":{"v":0,"d":"0.00 EUR"}}]
[null,{"$f":"IFERROR(IF(ÚverNieJeSplatený*ÚverJeDobrý,ČísloPlatby,\"\"), \"\")","v":""},{"$f":"IFERROR(IF(ÚverNieJeSplatený*ÚverJeDobrý,DátumPlatby,PočiatočnýDátumÚveru), PočiatočnýDátumÚveru)","v":"2019-07-17"},{"$f":"IFERROR(IF(ÚverNieJeSplatený*ÚverJeDobrý,HodnotaÚveru,\"\"), \"\")","v":""},{"$f":"IFERROR(IF(ÚverNieJeSplatený*ÚverJeDobrý,MesačnáSplátka,0), 0)","v":{"v":0,"d":"0.00 EUR"}},{"$f":"IFERROR(IF(ÚverNieJeSplatený*ÚverJeDobrý,Istina,0), 0)","v":{"v":0,"d":"0.00 EUR"}},{"$f":"IFERROR(IF(ÚverNieJeSplatený*ÚverJeDobrý,SumaÚrokov,0), 0)","v":{"v":0,"d":"0.00 EUR"}},{"$f":"IFERROR(IF(ÚverNieJeSplatený*ÚverJeDobrý,KonečnýZostatok,0), 0)","v":{"v":0,"d":"0.00 EUR"}}]
[null,{"$f":"IFERROR(IF(ÚverNieJeSplatený*ÚverJeDobrý,ČísloPlatby,\"\"), \"\")","v":""},{"$f":"IFERROR(IF(ÚverNieJeSplatený*ÚverJeDobrý,DátumPlatby,PočiatočnýDátumÚveru), PočiatočnýDátumÚveru)","v":"2019-07-17"},{"$f":"IFERROR(IF(ÚverNieJeSplatený*ÚverJeDobrý,HodnotaÚveru,\"\"), \"\")","v":""},{"$f":"IFERROR(IF(ÚverNieJeSplatený*ÚverJeDobrý,MesačnáSplátka,0), 0)","v":{"v":0,"d":"0.00 EUR"}},{"$f":"IFERROR(IF(ÚverNieJeSplatený*ÚverJeDobrý,Istina,0), 0)","v":{"v":0,"d":"0.00 EUR"}},{"$f":"IFERROR(IF(ÚverNieJeSplatený*ÚverJeDobrý,SumaÚrokov,0), 0)","v":{"v":0,"d":"0.00 EUR"}},{"$f":"IFERROR(IF(ÚverNieJeSplatený*ÚverJeDobrý,KonečnýZostatok,0), 0)","v":{"v":0,"d":"0.00 EUR"}}]
[null,{"$f":"IFERROR(IF(ÚverNieJeSplatený*ÚverJeDobrý,ČísloPlatby,\"\"), \"\")","v":""},{"$f":"IFERROR(IF(ÚverNieJeSplatený*ÚverJeDobrý,DátumPlatby,PočiatočnýDátumÚveru), PočiatočnýDátumÚveru)","v":"2019-07-17"},{"$f":"IFERROR(IF(ÚverNieJeSplatený*ÚverJeDobrý,HodnotaÚveru,\"\"), \"\")","v":""},{"$f":"IFERROR(IF(ÚverNieJeSplatený*ÚverJeDobrý,MesačnáSplátka,0), 0)","v":{"v":0,"d":"0.00 EUR"}},{"$f":"IFERROR(IF(ÚverNieJeSplatený*ÚverJeDobrý,Istina,0), 0)","v":{"v":0,"d":"0.00 EUR"}},{"$f":"IFERROR(IF(ÚverNieJeSplatený*ÚverJeDobrý,SumaÚrokov,0), 0)","v":{"v":0,"d":"0.00 EUR"}},{"$f":"IFERROR(IF(ÚverNieJeSplatený*ÚverJeDobrý,KonečnýZostatok,0), 0)","v":{"v":0,"d":"0.00 EUR"}}]
[null,{"$f":"IFERROR(IF(ÚverNieJeSplatený*ÚverJeDobrý,ČísloPlatby,\"\"), \"\")","v":""},{"$f":"IFERROR(IF(ÚverNieJeSplatený*ÚverJeDobrý,DátumPlatby,PočiatočnýDátumÚveru), PočiatočnýDátumÚveru)","v":"2019-07-17"},{"$f":"IFERROR(IF(ÚverNieJeSplatený*ÚverJeDobrý,HodnotaÚveru,\"\"), \"\")","v":""},{"$f":"IFERROR(IF(ÚverNieJeSplatený*ÚverJeDobrý,MesačnáSplátka,0), 0)","v":{"v":0,"d":"0.00 EUR"}},{"$f":"IFERROR(IF(ÚverNieJeSplatený*ÚverJeDobrý,Istina,0), 0)","v":{"v":0,"d":"0.00 EUR"}},{"$f":"IFERROR(IF(ÚverNieJeSplatený*ÚverJeDobrý,SumaÚrokov,0), 0)","v":{"v":0,"d":"0.00 EUR"}},{"$f":"IFERROR(IF(ÚverNieJeSplatený*ÚverJeDobrý,KonečnýZostatok,0), 0)","v":{"v":0,"d":"0.00 EUR"}}]
[null,{"$f":"IFERROR(IF(ÚverNieJeSplatený*ÚverJeDobrý,ČísloPlatby,\"\"), \"\")","v":""},{"$f":"IFERROR(IF(ÚverNieJeSplatený*ÚverJeDobrý,DátumPlatby,PočiatočnýDátumÚveru), PočiatočnýDátumÚveru)","v":"2019-07-17"},{"$f":"IFERROR(IF(ÚverNieJeSplatený*ÚverJeDobrý,HodnotaÚveru,\"\"), \"\")","v":""},{"$f":"IFERROR(IF(ÚverNieJeSplatený*ÚverJeDobrý,MesačnáSplátka,0), 0)","v":{"v":0,"d":"0.00 EUR"}},{"$f":"IFERROR(IF(ÚverNieJeSplatený*ÚverJeDobrý,Istina,0), 0)","v":{"v":0,"d":"0.00 EUR"}},{"$f":"IFERROR(IF(ÚverNieJeSplatený*ÚverJeDobrý,SumaÚrokov,0), 0)","v":{"v":0,"d":"0.00 EUR"}},{"$f":"IFERROR(IF(ÚverNieJeSplatený*ÚverJeDobrý,KonečnýZostatok,0), 0)","v":{"v":0,"d":"0.00 EUR"}}]
[null,{"$f":"IFERROR(IF(ÚverNieJeSplatený*ÚverJeDobrý,ČísloPlatby,\"\"), \"\")","v":""},{"$f":"IFERROR(IF(ÚverNieJeSplatený*ÚverJeDobrý,DátumPlatby,PočiatočnýDátumÚveru), PočiatočnýDátumÚveru)","v":"2019-07-17"},{"$f":"IFERROR(IF(ÚverNieJeSplatený*ÚverJeDobrý,HodnotaÚveru,\"\"), \"\")","v":""},{"$f":"IFERROR(IF(ÚverNieJeSplatený*ÚverJeDobrý,MesačnáSplátka,0), 0)","v":{"v":0,"d":"0.00 EUR"}},{"$f":"IFERROR(IF(ÚverNieJeSplatený*ÚverJeDobrý,Istina,0), 0)","v":{"v":0,"d":"0.00 EUR"}},{"$f":"IFERROR(IF(ÚverNieJeSplatený*ÚverJeDobrý,SumaÚrokov,0), 0)","v":{"v":0,"d":"0.00 EUR"}},{"$f":"IFERROR(IF(ÚverNieJeSplatený*ÚverJeDobrý,KonečnýZostatok,0), 0)","v":{"v":0,"d":"0.00 EUR"}}]
[null,{"$f":"IFERROR(IF(ÚverNieJeSplatený*ÚverJeDobrý,ČísloPlatby,\"\"), \"\")","v":""},{"$f":"IFERROR(IF(ÚverNieJeSplatený*ÚverJeDobrý,DátumPlatby,PočiatočnýDátumÚveru), PočiatočnýDátumÚveru)","v":"2019-07-17"},{"$f":"IFERROR(IF(ÚverNieJeSplatený*ÚverJeDobrý,HodnotaÚveru,\"\"), \"\")","v":""},{"$f":"IFERROR(IF(ÚverNieJeSplatený*ÚverJeDobrý,MesačnáSplátka,0), 0)","v":{"v":0,"d":"0.00 EUR"}},{"$f":"IFERROR(IF(ÚverNieJeSplatený*ÚverJeDobrý,Istina,0), 0)","v":{"v":0,"d":"0.00 EUR"}},{"$f":"IFERROR(IF(ÚverNieJeSplatený*ÚverJeDobrý,SumaÚrokov,0), 0)","v":{"v":0,"d":"0.00 EUR"}},{"$f":"IFERROR(IF(ÚverNieJeSplatený*ÚverJeDobrý,KonečnýZostatok,0), 0)","v":{"v":0,"d":"0.00 EUR"}}]
[null,{"$f":"IFERROR(IF(ÚverNieJeSplatený*ÚverJeDobrý,ČísloPlatby,\"\"), \"\")","v":""},{"$f":"IFERROR(IF(ÚverNieJeSplatený*ÚverJeDobrý,DátumPlatby,PočiatočnýDátumÚveru), PočiatočnýDátumÚveru)","v":"2019-07-17"},{"$f":"IFERROR(IF(ÚverNieJeSplatený*ÚverJeDobrý,HodnotaÚveru,\"\"), \"\")","v":""},{"$f":"IFERROR(IF(ÚverNieJeSplatený*ÚverJeDobrý,MesačnáSplátka,0), 0)","v":{"v":0,"d":"0.00 EUR"}},{"$f":"IFERROR(IF(ÚverNieJeSplatený*ÚverJeDobrý,Istina,0), 0)","v":{"v":0,"d":"0.00 EUR"}},{"$f":"IFERROR(IF(ÚverNieJeSplatený*ÚverJeDobrý,SumaÚrokov,0), 0)","v":{"v":0,"d":"0.00 EUR"}},{"$f":"IFERROR(IF(ÚverNieJeSplatený*ÚverJeDobrý,KonečnýZostatok,0), 0)","v":{"v":0,"d":"0.00 EUR"}}]
[null,{"$f":"IFERROR(IF(ÚverNieJeSplatený*ÚverJeDobrý,ČísloPlatby,\"\"), \"\")","v":""},{"$f":"IFERROR(IF(ÚverNieJeSplatený*ÚverJeDobrý,DátumPlatby,PočiatočnýDátumÚveru), PočiatočnýDátumÚveru)","v":"2019-07-17"},{"$f":"IFERROR(IF(ÚverNieJeSplatený*ÚverJeDobrý,HodnotaÚveru,\"\"), \"\")","v":""},{"$f":"IFERROR(IF(ÚverNieJeSplatený*ÚverJeDobrý,MesačnáSplátka,0), 0)","v":{"v":0,"d":"0.00 EUR"}},{"$f":"IFERROR(IF(ÚverNieJeSplatený*ÚverJeDobrý,Istina,0), 0)","v":{"v":0,"d":"0.00 EUR"}},{"$f":"IFERROR(IF(ÚverNieJeSplatený*ÚverJeDobrý,SumaÚrokov,0), 0)","v":{"v":0,"d":"0.00 EUR"}},{"$f":"IFERROR(IF(ÚverNieJeSplatený*ÚverJeDobrý,KonečnýZostatok,0), 0)","v":{"v":0,"d":"0.00 EUR"}}]
[null,{"$f":"IFERROR(IF(ÚverNieJeSplatený*ÚverJeDobrý,ČísloPlatby,\"\"), \"\")","v":""},{"$f":"IFERROR(IF(ÚverNieJeSplatený*ÚverJeDobrý,DátumPlatby,PočiatočnýDátumÚveru), PočiatočnýDátumÚveru)","v":"2019-07-17"},{"$f":"IFERROR(IF(ÚverNieJeSplatený*ÚverJeDobrý,HodnotaÚveru,\"\"), \"\")","v":""},{"$f":"IFERROR(IF(ÚverNieJeSplatený*ÚverJeDobrý,MesačnáSplátka,0), 0)","v":{"v":0,"d":"0.00 EUR"}},{"$f":"IFERROR(IF(ÚverNieJeSplatený*ÚverJeDobrý,Istina,0), 0)","v":{"v":0,"d":"0.00 EUR"}},{"$f":"IFERROR(IF(ÚverNieJeSplatený*ÚverJeDobrý,SumaÚrokov,0), 0)","v":{"v":0,"d":"0.00 EUR"}},{"$f":"IFERROR(IF(ÚverNieJeSplatený*ÚverJeDobrý,KonečnýZostatok,0), 0)","v":{"v":0,"d":"0.00 EUR"}}]
[null,{"$f":"IFERROR(IF(ÚverNieJeSplatený*ÚverJeDobrý,ČísloPlatby,\"\"), \"\")","v":""},{"$f":"IFERROR(IF(ÚverNieJeSplatený*ÚverJeDobrý,DátumPlatby,PočiatočnýDátumÚveru), PočiatočnýDátumÚveru)","v":"2019-07-17"},{"$f":"IFERROR(IF(ÚverNieJeSplatený*ÚverJeDobrý,HodnotaÚveru,\"\"), \"\")","v":""},{"$f":"IFERROR(IF(ÚverNieJeSplatený*ÚverJeDobrý,MesačnáSplátka,0), 0)","v":{"v":0,"d":"0.00 EUR"}},{"$f":"IFERROR(IF(ÚverNieJeSplatený*ÚverJeDobrý,Istina,0), 0)","v":{"v":0,"d":"0.00 EUR"}},{"$f":"IFERROR(IF(ÚverNieJeSplatený*ÚverJeDobrý,SumaÚrokov,0), 0)","v":{"v":0,"d":"0.00 EUR"}},{"$f":"IFERROR(IF(ÚverNieJeSplatený*ÚverJeDobrý,KonečnýZostatok,0), 0)","v":{"v":0,"d":"0.00 EUR"}}]
[null,{"$f":"IFERROR(IF(ÚverNieJeSplatený*ÚverJeDobrý,ČísloPlatby,\"\"), \"\")","v":""},{"$f":"IFERROR(IF(ÚverNieJeSplatený*ÚverJeDobrý,DátumPlatby,PočiatočnýDátumÚveru), PočiatočnýDátumÚveru)","v":"2019-07-17"},{"$f":"IFERROR(IF(ÚverNieJeSplatený*ÚverJeDobrý,HodnotaÚveru,\"\"), \"\")","v":""},{"$f":"IFERROR(IF(ÚverNieJeSplatený*ÚverJeDobrý,MesačnáSplátka,0), 0)","v":{"v":0,"d":"0.00 EUR"}},{"$f":"IFERROR(IF(ÚverNieJeSplatený*ÚverJeDobrý,Istina,0), 0)","v":{"v":0,"d":"0.00 EUR"}},{"$f":"IFERROR(IF(ÚverNieJeSplatený*ÚverJeDobrý,SumaÚrokov,0), 0)","v":{"v":0,"d":"0.00 EUR"}},{"$f":"IFERROR(IF(ÚverNieJeSplatený*ÚverJeDobrý,KonečnýZostatok,0), 0)","v":{"v":0,"d":"0.00 EUR"}}]
[null,{"$f":"IFERROR(IF(ÚverNieJeSplatený*ÚverJeDobrý,ČísloPlatby,\"\"), \"\")","v":""},{"$f":"IFERROR(IF(ÚverNieJeSplatený*ÚverJeDobrý,DátumPlatby,PočiatočnýDátumÚveru), PočiatočnýDátumÚveru)","v":"2019-07-17"},{"$f":"IFERROR(IF(ÚverNieJeSplatený*ÚverJeDobrý,HodnotaÚveru,\"\"), \"\")","v":""},{"$f":"IFERROR(IF(ÚverNieJeSplatený*ÚverJeDobrý,MesačnáSplátka,0), 0)","v":{"v":0,"d":"0.00 EUR"}},{"$f":"IFERROR(IF(ÚverNieJeSplatený*ÚverJeDobrý,Istina,0), 0)","v":{"v":0,"d":"0.00 EUR"}},{"$f":"IFERROR(IF(ÚverNieJeSplatený*ÚverJeDobrý,SumaÚrokov,0), 0)","v":{"v":0,"d":"0.00 EUR"}},{"$f":"IFERROR(IF(ÚverNieJeSplatený*ÚverJeDobrý,KonečnýZostatok,0), 0)","v":{"v":0,"d":"0.00 EUR"}}]
[null,{"$f":"IFERROR(IF(ÚverNieJeSplatený*ÚverJeDobrý,ČísloPlatby,\"\"), \"\")","v":""},{"$f":"IFERROR(IF(ÚverNieJeSplatený*ÚverJeDobrý,DátumPlatby,PočiatočnýDátumÚveru), PočiatočnýDátumÚveru)","v":"2019-07-17"},{"$f":"IFERROR(IF(ÚverNieJeSplatený*ÚverJeDobrý,HodnotaÚveru,\"\"), \"\")","v":""},{"$f":"IFERROR(IF(ÚverNieJeSplatený*ÚverJeDobrý,MesačnáSplátka,0), 0)","v":{"v":0,"d":"0.00 EUR"}},{"$f":"IFERROR(IF(ÚverNieJeSplatený*ÚverJeDobrý,Istina,0), 0)","v":{"v":0,"d":"0.00 EUR"}},{"$f":"IFERROR(IF(ÚverNieJeSplatený*ÚverJeDobrý,SumaÚrokov,0), 0)","v":{"v":0,"d":"0.00 EUR"}},{"$f":"IFERROR(IF(ÚverNieJeSplatený*ÚverJeDobrý,KonečnýZostatok,0), 0)","v":{"v":0,"d":"0.00 EUR"}}]
[null,{"$f":"IFERROR(IF(ÚverNieJeSplatený*ÚverJeDobrý,ČísloPlatby,\"\"), \"\")","v":""},{"$f":"IFERROR(IF(ÚverNieJeSplatený*ÚverJeDobrý,DátumPlatby,PočiatočnýDátumÚveru), PočiatočnýDátumÚveru)","v":"2019-07-17"},{"$f":"IFERROR(IF(ÚverNieJeSplatený*ÚverJeDobrý,HodnotaÚveru,\"\"), \"\")","v":""},{"$f":"IFERROR(IF(ÚverNieJeSplatený*ÚverJeDobrý,MesačnáSplátka,0), 0)","v":{"v":0,"d":"0.00 EUR"}},{"$f":"IFERROR(IF(ÚverNieJeSplatený*ÚverJeDobrý,Istina,0), 0)","v":{"v":0,"d":"0.00 EUR"}},{"$f":"IFERROR(IF(ÚverNieJeSplatený*ÚverJeDobrý,SumaÚrokov,0), 0)","v":{"v":0,"d":"0.00 EUR"}},{"$f":"IFERROR(IF(ÚverNieJeSplatený*ÚverJeDobrý,KonečnýZostatok,0), 0)","v":{"v":0,"d":"0.00 EUR"}}]
[null,{"$f":"IFERROR(IF(ÚverNieJeSplatený*ÚverJeDobrý,ČísloPlatby,\"\"), \"\")","v":""},{"$f":"IFERROR(IF(ÚverNieJeSplatený*ÚverJeDobrý,DátumPlatby,PočiatočnýDátumÚveru), PočiatočnýDátumÚveru)","v":"2019-07-17"},{"$f":"IFERROR(IF(ÚverNieJeSplatený*ÚverJeDobrý,HodnotaÚveru,\"\"), \"\")","v":""},{"$f":"IFERROR(IF(ÚverNieJeSplatený*ÚverJeDobrý,MesačnáSplátka,0), 0)","v":{"v":0,"d":"0.00 EUR"}},{"$f":"IFERROR(IF(ÚverNieJeSplatený*ÚverJeDobrý,Istina,0), 0)","v":{"v":0,"d":"0.00 EUR"}},{"$f":"IFERROR(IF(ÚverNieJeSplatený*ÚverJeDobrý,SumaÚrokov,0), 0)","v":{"v":0,"d":"0.00 EUR"}},{"$f":"IFERROR(IF(ÚverNieJeSplatený*ÚverJeDobrý,KonečnýZostatok,0), 0)","v":{"v":0,"d":"0.00 EUR"}}]
[null,{"$f":"IFERROR(IF(ÚverNieJeSplatený*ÚverJeDobrý,ČísloPlatby,\"\"), \"\")","v":""},{"$f":"IFERROR(IF(ÚverNieJeSplatený*ÚverJeDobrý,DátumPlatby,PočiatočnýDátumÚveru), PočiatočnýDátumÚveru)","v":"2019-07-17"},{"$f":"IFERROR(IF(ÚverNieJeSplatený*ÚverJeDobrý,HodnotaÚveru,\"\"), \"\")","v":""},{"$f":"IFERROR(IF(ÚverNieJeSplatený*ÚverJeDobrý,MesačnáSplátka,0), 0)","v":{"v":0,"d":"0.00 EUR"}},{"$f":"IFERROR(IF(ÚverNieJeSplatený*ÚverJeDobrý,Istina,0), 0)","v":{"v":0,"d":"0.00 EUR"}},{"$f":"IFERROR(IF(ÚverNieJeSplatený*ÚverJeDobrý,SumaÚrokov,0), 0)","v":{"v":0,"d":"0.00 EUR"}},{"$f":"IFERROR(IF(ÚverNieJeSplatený*ÚverJeDobrý,KonečnýZostatok,0), 0)","v":{"v":0,"d":"0.00 EUR"}}]
[null,{"$f":"IFERROR(IF(ÚverNieJeSplatený*ÚverJeDobrý,ČísloPlatby,\"\"), \"\")","v":""},{"$f":"IFERROR(IF(ÚverNieJeSplatený*ÚverJeDobrý,DátumPlatby,PočiatočnýDátumÚveru), PočiatočnýDátumÚveru)","v":"2019-07-17"},{"$f":"IFERROR(IF(ÚverNieJeSplatený*ÚverJeDobrý,HodnotaÚveru,\"\"), \"\")","v":""},{"$f":"IFERROR(IF(ÚverNieJeSplatený*ÚverJeDobrý,MesačnáSplátka,0), 0)","v":{"v":0,"d":"0.00 EUR"}},{"$f":"IFERROR(IF(ÚverNieJeSplatený*ÚverJeDobrý,Istina,0), 0)","v":{"v":0,"d":"0.00 EUR"}},{"$f":"IFERROR(IF(ÚverNieJeSplatený*ÚverJeDobrý,SumaÚrokov,0), 0)","v":{"v":0,"d":"0.00 EUR"}},{"$f":"IFERROR(IF(ÚverNieJeSplatený*ÚverJeDobrý,KonečnýZostatok,0), 0)","v":{"v":0,"d":"0.00 EUR"}}]
[null,{"$f":"IFERROR(IF(ÚverNieJeSplatený*ÚverJeDobrý,ČísloPlatby,\"\"), \"\")","v":""},{"$f":"IFERROR(IF(ÚverNieJeSplatený*ÚverJeDobrý,DátumPlatby,PočiatočnýDátumÚveru), PočiatočnýDátumÚveru)","v":"2019-07-17"},{"$f":"IFERROR(IF(ÚverNieJeSplatený*ÚverJeDobrý,HodnotaÚveru,\"\"), \"\")","v":""},{"$f":"IFERROR(IF(ÚverNieJeSplatený*ÚverJeDobrý,MesačnáSplátka,0), 0)","v":{"v":0,"d":"0.00 EUR"}},{"$f":"IFERROR(IF(ÚverNieJeSplatený*ÚverJeDobrý,Istina,0), 0)","v":{"v":0,"d":"0.00 EUR"}},{"$f":"IFERROR(IF(ÚverNieJeSplatený*ÚverJeDobrý,SumaÚrokov,0), 0)","v":{"v":0,"d":"0.00 EUR"}},{"$f":"IFERROR(IF(ÚverNieJeSplatený*ÚverJeDobrý,KonečnýZostatok,0), 0)","v":{"v":0,"d":"0.00 EUR"}}]
[null,{"$f":"IFERROR(IF(ÚverNieJeSplatený*ÚverJeDobrý,ČísloPlatby,\"\"), \"\")","v":""},{"$f":"IFERROR(IF(ÚverNieJeSplatený*ÚverJeDobrý,DátumPlatby,PočiatočnýDátumÚveru), PočiatočnýDátumÚveru)","v":"2019-07-17"},{"$f":"IFERROR(IF(ÚverNieJeSplatený*ÚverJeDobrý,HodnotaÚveru,\"\"), \"\")","v":""},{"$f":"IFERROR(IF(ÚverNieJeSplatený*ÚverJeDobrý,MesačnáSplátka,0), 0)","v":{"v":0,"d":"0.00 EUR"}},{"$f":"IFERROR(IF(ÚverNieJeSplatený*ÚverJeDobrý,Istina,0), 0)","v":{"v":0,"d":"0.00 EUR"}},{"$f":"IFERROR(IF(ÚverNieJeSplatený*ÚverJeDobrý,SumaÚrokov,0), 0)","v":{"v":0,"d":"0.00 EUR"}},{"$f":"IFERROR(IF(ÚverNieJeSplatený*ÚverJeDobrý,KonečnýZostatok,0), 0)","v":{"v":0,"d":"0.00 EUR"}}]
[null,{"$f":"IFERROR(IF(ÚverNieJeSplatený*ÚverJeDobrý,ČísloPlatby,\"\"), \"\")","v":""},{"$f":"IFERROR(IF(ÚverNieJeSplatený*ÚverJeDobrý,DátumPlatby,PočiatočnýDátumÚveru), PočiatočnýDátumÚveru)","v":"2019-07-17"},{"$f":"IFERROR(IF(ÚverNieJeSplatený*ÚverJeDobrý,HodnotaÚveru,\"\"), \"\")","v":""},{"$f":"IFERROR(IF(ÚverNieJeSplatený*ÚverJeDobrý,MesačnáSplátka,0), 0)","v":{"v":0,"d":"0.00 EUR"}},{"$f":"IFERROR(IF(ÚverNieJeSplatený*ÚverJeDobrý,Istina,0), 0)","v":{"v":0,"d":"0.00 EUR"}},{"$f":"IFERROR(IF(ÚverNieJeSplatený*ÚverJeDobrý,SumaÚrokov,0), 0)","v":{"v":0,"d":"0.00 EUR"}},{"$f":"IFERROR(IF(ÚverNieJeSplatený*ÚverJeDobrý,KonečnýZostatok,0), 0)","v":{"v":0,"d":"0.00 EUR"}}]
[null,{"$f":"IFERROR(IF(ÚverNieJeSplatený*ÚverJeDobrý,ČísloPlatby,\"\"), \"\")","v":""},{"$f":"IFERROR(IF(ÚverNieJeSplatený*ÚverJeDobrý,DátumPlatby,PočiatočnýDátumÚveru), PočiatočnýDátumÚveru)","v":"2019-07-17"},{"$f":"IFERROR(IF(ÚverNieJeSplatený*ÚverJeDobrý,HodnotaÚveru,\"\"), \"\")","v":""},{"$f":"IFERROR(IF(ÚverNieJeSplatený*ÚverJeDobrý,MesačnáSplátka,0), 0)","v":{"v":0,"d":"0.00 EUR"}},{"$f":"IFERROR(IF(ÚverNieJeSplatený*ÚverJeDobrý,Istina,0), 0)","v":{"v":0,"d":"0.00 EUR"}},{"$f":"IFERROR(IF(ÚverNieJeSplatený*ÚverJeDobrý,SumaÚrokov,0), 0)","v":{"v":0,"d":"0.00 EUR"}},{"$f":"IFERROR(IF(ÚverNieJeSplatený*ÚverJeDobrý,KonečnýZostatok,0), 0)","v":{"v":0,"d":"0.00 EUR"}}]
[null,{"$f":"IFERROR(IF(ÚverNieJeSplatený*ÚverJeDobrý,ČísloPlatby,\"\"), \"\")","v":""},{"$f":"IFERROR(IF(ÚverNieJeSplatený*ÚverJeDobrý,DátumPlatby,PočiatočnýDátumÚveru), PočiatočnýDátumÚveru)","v":"2019-07-17"},{"$f":"IFERROR(IF(ÚverNieJeSplatený*ÚverJeDobrý,HodnotaÚveru,\"\"), \"\")","v":""},{"$f":"IFERROR(IF(ÚverNieJeSplatený*ÚverJeDobrý,MesačnáSplátka,0), 0)","v":{"v":0,"d":"0.00 EUR"}},{"$f":"IFERROR(IF(ÚverNieJeSplatený*ÚverJeDobrý,Istina,0), 0)","v":{"v":0,"d":"0.00 EUR"}},{"$f":"IFERROR(IF(ÚverNieJeSplatený*ÚverJeDobrý,SumaÚrokov,0), 0)","v":{"v":0,"d":"0.00 EUR"}},{"$f":"IFERROR(IF(ÚverNieJeSplatený*ÚverJeDobrý,KonečnýZostatok,0), 0)","v":{"v":0,"d":"0.00 EUR"}}]
[null,{"$f":"IFERROR(IF(ÚverNieJeSplatený*ÚverJeDobrý,ČísloPlatby,\"\"), \"\")","v":""},{"$f":"IFERROR(IF(ÚverNieJeSplatený*ÚverJeDobrý,DátumPlatby,PočiatočnýDátumÚveru), PočiatočnýDátumÚveru)","v":"2019-07-17"},{"$f":"IFERROR(IF(ÚverNieJeSplatený*ÚverJeDobrý,HodnotaÚveru,\"\"), \"\")","v":""},{"$f":"IFERROR(IF(ÚverNieJeSplatený*ÚverJeDobrý,MesačnáSplátka,0), 0)","v":{"v":0,"d":"0.00 EUR"}},{"$f":"IFERROR(IF(ÚverNieJeSplatený*ÚverJeDobrý,Istina,0), 0)","v":{"v":0,"d":"0.00 EUR"}},{"$f":"IFERROR(IF(ÚverNieJeSplatený*ÚverJeDobrý,SumaÚrokov,0), 0)","v":{"v":0,"d":"0.00 EUR"}},{"$f":"IFERROR(IF(ÚverNieJeSplatený*ÚverJeDobrý,KonečnýZostatok,0), 0)","v":{"v":0,"d":"0.00 EUR"}}]
[null,{"$f":"IFERROR(IF(ÚverNieJeSplatený*ÚverJeDobrý,ČísloPlatby,\"\"), \"\")","v":""},{"$f":"IFERROR(IF(ÚverNieJeSplatený*ÚverJeDobrý,DátumPlatby,PočiatočnýDátumÚveru), PočiatočnýDátumÚveru)","v":"2019-07-17"},{"$f":"IFERROR(IF(ÚverNieJeSplatený*ÚverJeDobrý,HodnotaÚveru,\"\"), \"\")","v":""},{"$f":"IFERROR(IF(ÚverNieJeSplatený*ÚverJeDobrý,MesačnáSplátka,0), 0)","v":{"v":0,"d":"0.00 EUR"}},{"$f":"IFERROR(IF(ÚverNieJeSplatený*ÚverJeDobrý,Istina,0), 0)","v":{"v":0,"d":"0.00 EUR"}},{"$f":"IFERROR(IF(ÚverNieJeSplatený*ÚverJeDobrý,SumaÚrokov,0), 0)","v":{"v":0,"d":"0.00 EUR"}},{"$f":"IFERROR(IF(ÚverNieJeSplatený*ÚverJeDobrý,KonečnýZostatok,0), 0)","v":{"v":0,"d":"0.00 EUR"}}]
[null,{"$f":"IFERROR(IF(ÚverNieJeSplatený*ÚverJeDobrý,ČísloPlatby,\"\"), \"\")","v":""},{"$f":"IFERROR(IF(ÚverNieJeSplatený*ÚverJeDobrý,DátumPlatby,PočiatočnýDátumÚveru), PočiatočnýDátumÚveru)","v":"2019-07-17"},{"$f":"IFERROR(IF(ÚverNieJeSplatený*ÚverJeDobrý,HodnotaÚveru,\"\"), \"\")","v":""},{"$f":"IFERROR(IF(ÚverNieJeSplatený*ÚverJeDobrý,MesačnáSplátka,0), 0)","v":{"v":0,"d":"0.00 EUR"}},{"$f":"IFERROR(IF(ÚverNieJeSplatený*ÚverJeDobrý,Istina,0), 0)","v":{"v":0,"d":"0.00 EUR"}},{"$f":"IFERROR(IF(ÚverNieJeSplatený*ÚverJeDobrý,SumaÚrokov,0), 0)","v":{"v":0,"d":"0.00 EUR"}},{"$f":"IFERROR(IF(ÚverNieJeSplatený*ÚverJeDobrý,KonečnýZostatok,0), 0)","v":{"v":0,"d":"0.00 EUR"}}]
[null,{"$f":"IFERROR(IF(ÚverNieJeSplatený*ÚverJeDobrý,ČísloPlatby,\"\"), \"\")","v":""},{"$f":"IFERROR(IF(ÚverNieJeSplatený*ÚverJeDobrý,DátumPlatby,PočiatočnýDátumÚveru), PočiatočnýDátumÚveru)","v":"2019-07-17"},{"$f":"IFERROR(IF(ÚverNieJeSplatený*ÚverJeDobrý,HodnotaÚveru,\"\"), \"\")","v":""},{"$f":"IFERROR(IF(ÚverNieJeSplatený*ÚverJeDobrý,MesačnáSplátka,0), 0)","v":{"v":0,"d":"0.00 EUR"}},{"$f":"IFERROR(IF(ÚverNieJeSplatený*ÚverJeDobrý,Istina,0), 0)","v":{"v":0,"d":"0.00 EUR"}},{"$f":"IFERROR(IF(ÚverNieJeSplatený*ÚverJeDobrý,SumaÚrokov,0), 0)","v":{"v":0,"d":"0.00 EUR"}},{"$f":"IFERROR(IF(ÚverNieJeSplatený*ÚverJeDobrý,KonečnýZostatok,0), 0)","v":{"v":0,"d":"0.00 EUR"}}]
[null,{"$f":"IFERROR(IF(ÚverNieJeSplatený*ÚverJeDobrý,ČísloPlatby,\"\"), \"\")","v":""},{"$f":"IFERROR(IF(ÚverNieJeSplatený*ÚverJeDobrý,DátumPlatby,PočiatočnýDátumÚveru), PočiatočnýDátumÚveru)","v":"2019-07-17"},{"$f":"IFERROR(IF(ÚverNieJeSplatený*ÚverJeDobrý,HodnotaÚveru,\"\"), \"\")","v":""},{"$f":"IFERROR(IF(ÚverNieJeSplatený*ÚverJeDobrý,MesačnáSplátka,0), 0)","v":{"v":0,"d":"0.00 EUR"}},{"$f":"IFERROR(IF(ÚverNieJeSplatený*ÚverJeDobrý,Istina,0), 0)","v":{"v":0,"d":"0.00 EUR"}},{"$f":"IFERROR(IF(ÚverNieJeSplatený*ÚverJeDobrý,SumaÚrokov,0), 0)","v":{"v":0,"d":"0.00 EUR"}},{"$f":"IFERROR(IF(ÚverNieJeSplatený*ÚverJeDobrý,KonečnýZostatok,0), 0)","v":{"v":0,"d":"0.00 EUR"}}]
[null,{"$f":"IFERROR(IF(ÚverNieJeSplatený*ÚverJeDobrý,ČísloPlatby,\"\"), \"\")","v":""},{"$f":"IFERROR(IF(ÚverNieJeSplatený*ÚverJeDobrý,DátumPlatby,PočiatočnýDátumÚveru), PočiatočnýDátumÚveru)","v":"2019-07-17"},{"$f":"IFERROR(IF(ÚverNieJeSplatený*ÚverJeDobrý,HodnotaÚveru,\"\"), \"\")","v":""},{"$f":"IFERROR(IF(ÚverNieJeSplatený*ÚverJeDobrý,MesačnáSplátka,0), 0)","v":{"v":0,"d":"0.00 EUR"}},{"$f":"IFERROR(IF(ÚverNieJeSplatený*ÚverJeDobrý,Istina,0), 0)","v":{"v":0,"d":"0.00 EUR"}},{"$f":"IFERROR(IF(ÚverNieJeSplatený*ÚverJeDobrý,SumaÚrokov,0), 0)","v":{"v":0,"d":"0.00 EUR"}},{"$f":"IFERROR(IF(ÚverNieJeSplatený*ÚverJeDobrý,KonečnýZostatok,0), 0)","v":{"v":0,"d":"0.00 EUR"}}]
[null,{"$f":"IFERROR(IF(ÚverNieJeSplatený*ÚverJeDobrý,ČísloPlatby,\"\"), \"\")","v":""},{"$f":"IFERROR(IF(ÚverNieJeSplatený*ÚverJeDobrý,DátumPlatby,PočiatočnýDátumÚveru), PočiatočnýDátumÚveru)","v":"2019-07-17"},{"$f":"IFERROR(IF(ÚverNieJeSplatený*ÚverJeDobrý,HodnotaÚveru,\"\"), \"\")","v":""},{"$f":"IFERROR(IF(ÚverNieJeSplatený*ÚverJeDobrý,MesačnáSplátka,0), 0)","v":{"v":0,"d":"0.00 EUR"}},{"$f":"IFERROR(IF(ÚverNieJeSplatený*ÚverJeDobrý,Istina,0), 0)","v":{"v":0,"d":"0.00 EUR"}},{"$f":"IFERROR(IF(ÚverNieJeSplatený*ÚverJeDobrý,SumaÚrokov,0), 0)","v":{"v":0,"d":"0.00 EUR"}},{"$f":"IFERROR(IF(ÚverNieJeSplatený*ÚverJeDobrý,KonečnýZostatok,0), 0)","v":{"v":0,"d":"0.00 EUR"}}]
[null,{"$f":"IFERROR(IF(ÚverNieJeSplatený*ÚverJeDobrý,ČísloPlatby,\"\"), \"\")","v":""},{"$f":"IFERROR(IF(ÚverNieJeSplatený*ÚverJeDobrý,DátumPlatby,PočiatočnýDátumÚveru), PočiatočnýDátumÚveru)","v":"2019-07-17"},{"$f":"IFERROR(IF(ÚverNieJeSplatený*ÚverJeDobrý,HodnotaÚveru,\"\"), \"\")","v":""},{"$f":"IFERROR(IF(ÚverNieJeSplatený*ÚverJeDobrý,MesačnáSplátka,0), 0)","v":{"v":0,"d":"0.00 EUR"}},{"$f":"IFERROR(IF(ÚverNieJeSplatený*ÚverJeDobrý,Istina,0), 0)","v":{"v":0,"d":"0.00 EUR"}},{"$f":"IFERROR(IF(ÚverNieJeSplatený*ÚverJeDobrý,SumaÚrokov,0), 0)","v":{"v":0,"d":"0.00 EUR"}},{"$f":"IFERROR(IF(ÚverNieJeSplatený*ÚverJeDobrý,KonečnýZostatok,0), 0)","v":{"v":0,"d":"0.00 EUR"}}]
[null,{"$f":"IFERROR(IF(ÚverNieJeSplatený*ÚverJeDobrý,ČísloPlatby,\"\"), \"\")","v":""},{"$f":"IFERROR(IF(ÚverNieJeSplatený*ÚverJeDobrý,DátumPlatby,PočiatočnýDátumÚveru), PočiatočnýDátumÚveru)","v":"2019-07-17"},{"$f":"IFERROR(IF(ÚverNieJeSplatený*ÚverJeDobrý,HodnotaÚveru,\"\"), \"\")","v":""},{"$f":"IFERROR(IF(ÚverNieJeSplatený*ÚverJeDobrý,MesačnáSplátka,0), 0)","v":{"v":0,"d":"0.00 EUR"}},{"$f":"IFERROR(IF(ÚverNieJeSplatený*ÚverJeDobrý,Istina,0), 0)","v":{"v":0,"d":"0.00 EUR"}},{"$f":"IFERROR(IF(ÚverNieJeSplatený*ÚverJeDobrý,SumaÚrokov,0), 0)","v":{"v":0,"d":"0.00 EUR"}},{"$f":"IFERROR(IF(ÚverNieJeSplatený*ÚverJeDobrý,KonečnýZostatok,0), 0)","v":{"v":0,"d":"0.00 EUR"}}]
[null,{"$f":"IFERROR(IF(ÚverNieJeSplatený*ÚverJeDobrý,ČísloPlatby,\"\"), \"\")","v":""},{"$f":"IFERROR(IF(ÚverNieJeSplatený*ÚverJeDobrý,DátumPlatby,PočiatočnýDátumÚveru), PočiatočnýDátumÚveru)","v":"2019-07-17"},{"$f":"IFERROR(IF(ÚverNieJeSplatený*ÚverJeDobrý,HodnotaÚveru,\"\"), \"\")","v":""},{"$f":"IFERROR(IF(ÚverNieJeSplatený*ÚverJeDobrý,MesačnáSplátka,0), 0)","v":{"v":0,"d":"0.00 EUR"}},{"$f":"IFERROR(IF(ÚverNieJeSplatený*ÚverJeDobrý,Istina,0), 0)","v":{"v":0,"d":"0.00 EUR"}},{"$f":"IFERROR(IF(ÚverNieJeSplatený*ÚverJeDobrý,SumaÚrokov,0), 0)","v":{"v":0,"d":"0.00 EUR"}},{"$f":"IFERROR(IF(ÚverNieJeSplatený*ÚverJeDobrý,KonečnýZostatok,0), 0)","v":{"v":0,"d":"0.00 EUR"}}]
[null,{"$f":"IFERROR(IF(ÚverNieJeSplatený*ÚverJeDobrý,ČísloPlatby,\"\"), \"\")","v":""},{"$f":"IFERROR(IF(ÚverNieJeSplatený*ÚverJeDobrý,DátumPlatby,PočiatočnýDátumÚveru), PočiatočnýDátumÚveru)","v":"2019-07-17"},{"$f":"IFERROR(IF(ÚverNieJeSplatený*ÚverJeDobrý,HodnotaÚveru,\"\"), \"\")","v":""},{"$f":"IFERROR(IF(ÚverNieJeSplatený*ÚverJeDobrý,MesačnáSplátka,0), 0)","v":{"v":0,"d":"0.00 EUR"}},{"$f":"IFERROR(IF(ÚverNieJeSplatený*ÚverJeDobrý,Istina,0), 0)","v":{"v":0,"d":"0.00 EUR"}},{"$f":"IFERROR(IF(ÚverNieJeSplatený*ÚverJeDobrý,SumaÚrokov,0), 0)","v":{"v":0,"d":"0.00 EUR"}},{"$f":"IFERROR(IF(ÚverNieJeSplatený*ÚverJeDobrý,KonečnýZostatok,0), 0)","v":{"v":0,"d":"0.00 EUR"}}]
[null,{"$f":"IFERROR(IF(ÚverNieJeSplatený*ÚverJeDobrý,ČísloPlatby,\"\"), \"\")","v":""},{"$f":"IFERROR(IF(ÚverNieJeSplatený*ÚverJeDobrý,DátumPlatby,PočiatočnýDátumÚveru), PočiatočnýDátumÚveru)","v":"2019-07-17"},{"$f":"IFERROR(IF(ÚverNieJeSplatený*ÚverJeDobrý,HodnotaÚveru,\"\"), \"\")","v":""},{"$f":"IFERROR(IF(ÚverNieJeSplatený*ÚverJeDobrý,MesačnáSplátka,0), 0)","v":{"v":0,"d":"0.00 EUR"}},{"$f":"IFERROR(IF(ÚverNieJeSplatený*ÚverJeDobrý,Istina,0), 0)","v":{"v":0,"d":"0.00 EUR"}},{"$f":"IFERROR(IF(ÚverNieJeSplatený*ÚverJeDobrý,SumaÚrokov,0), 0)","v":{"v":0,"d":"0.00 EUR"}},{"$f":"IFERROR(IF(ÚverNieJeSplatený*ÚverJeDobrý,KonečnýZostatok,0), 0)","v":{"v":0,"d":"0.00 EUR"}}]
[null,{"$f":"IFERROR(IF(ÚverNieJeSplatený*ÚverJeDobrý,ČísloPlatby,\"\"), \"\")","v":""},{"$f":"IFERROR(IF(ÚverNieJeSplatený*ÚverJeDobrý,DátumPlatby,PočiatočnýDátumÚveru), PočiatočnýDátumÚveru)","v":"2019-07-17"},{"$f":"IFERROR(IF(ÚverNieJeSplatený*ÚverJeDobrý,HodnotaÚveru,\"\"), \"\")","v":""},{"$f":"IFERROR(IF(ÚverNieJeSplatený*ÚverJeDobrý,MesačnáSplátka,0), 0)","v":{"v":0,"d":"0.00 EUR"}},{"$f":"IFERROR(IF(ÚverNieJeSplatený*ÚverJeDobrý,Istina,0), 0)","v":{"v":0,"d":"0.00 EUR"}},{"$f":"IFERROR(IF(ÚverNieJeSplatený*ÚverJeDobrý,SumaÚrokov,0), 0)","v":{"v":0,"d":"0.00 EUR"}},{"$f":"IFERROR(IF(ÚverNieJeSplatený*ÚverJeDobrý,KonečnýZostatok,0), 0)","v":{"v":0,"d":"0.00 EUR"}}]
[null,{"$f":"IFERROR(IF(ÚverNieJeSplatený*ÚverJeDobrý,ČísloPlatby,\"\"), \"\")","v":""},{"$f":"IFERROR(IF(ÚverNieJeSplatený*ÚverJeDobrý,DátumPlatby,PočiatočnýDátumÚveru), PočiatočnýDátumÚveru)","v":"2019-07-17"},{"$f":"IFERROR(IF(ÚverNieJeSplatený*ÚverJeDobrý,HodnotaÚveru,\"\"), \"\")","v":""},{"$f":"IFERROR(IF(ÚverNieJeSplatený*ÚverJeDobrý,MesačnáSplátka,0), 0)","v":{"v":0,"d":"0.00 EUR"}},{"$f":"IFERROR(IF(ÚverNieJeSplatený*ÚverJeDobrý,Istina,0), 0)","v":{"v":0,"d":"0.00 EUR"}},{"$f":"IFERROR(IF(ÚverNieJeSplatený*ÚverJeDobrý,SumaÚrokov,0), 0)","v":{"v":0,"d":"0.00 EUR"}},{"$f":"IFERROR(IF(ÚverNieJeSplatený*ÚverJeDobrý,KonečnýZostatok,0), 0)","v":{"v":0,"d":"0.00 EUR"}}]
[null,{"$f":"IFERROR(IF(ÚverNieJeSplatený*ÚverJeDobrý,ČísloPlatby,\"\"), \"\")","v":""},{"$f":"IFERROR(IF(ÚverNieJeSplatený*ÚverJeDobrý,DátumPlatby,PočiatočnýDátumÚveru), PočiatočnýDátumÚveru)","v":"2019-07-17"},{"$f":"IFERROR(IF(ÚverNieJeSplatený*ÚverJeDobrý,HodnotaÚveru,\"\"), \"\")","v":""},{"$f":"IFERROR(IF(ÚverNieJeSplatený*ÚverJeDobrý,MesačnáSplátka,0), 0)","v":{"v":0,"d":"0.00 EUR"}},{"$f":"IFERROR(IF(ÚverNieJeSplatený*ÚverJeDobrý,Istina,0), 0)","v":{"v":0,"d":"0.00 EUR"}},{"$f":"IFERROR(IF(ÚverNieJeSplatený*ÚverJeDobrý,SumaÚrokov,0), 0)","v":{"v":0,"d":"0.00 EUR"}},{"$f":"IFERROR(IF(ÚverNieJeSplatený*ÚverJeDobrý,KonečnýZostatok,0), 0)","v":{"v":0,"d":"0.00 EUR"}}]
[null,{"$f":"IFERROR(IF(ÚverNieJeSplatený*ÚverJeDobrý,ČísloPlatby,\"\"), \"\")","v":""},{"$f":"IFERROR(IF(ÚverNieJeSplatený*ÚverJeDobrý,DátumPlatby,PočiatočnýDátumÚveru), PočiatočnýDátumÚveru)","v":"2019-07-17"},{"$f":"IFERROR(IF(ÚverNieJeSplatený*ÚverJeDobrý,HodnotaÚveru,\"\"), \"\")","v":""},{"$f":"IFERROR(IF(ÚverNieJeSplatený*ÚverJeDobrý,MesačnáSplátka,0), 0)","v":{"v":0,"d":"0.00 EUR"}},{"$f":"IFERROR(IF(ÚverNieJeSplatený*ÚverJeDobrý,Istina,0), 0)","v":{"v":0,"d":"0.00 EUR"}},{"$f":"IFERROR(IF(ÚverNieJeSplatený*ÚverJeDobrý,SumaÚrokov,0), 0)","v":{"v":0,"d":"0.00 EUR"}},{"$f":"IFERROR(IF(ÚverNieJeSplatený*ÚverJeDobrý,KonečnýZostatok,0), 0)","v":{"v":0,"d":"0.00 EUR"}}]
[null,{"$f":"IFERROR(IF(ÚverNieJeSplatený*ÚverJeDobrý,ČísloPlatby,\"\"), \"\")","v":""},{"$f":"IFERROR(IF(ÚverNieJeSplatený*ÚverJeDobrý,DátumPlatby,PočiatočnýDátumÚveru), PočiatočnýDátumÚveru)","v":"2019-07-17"},{"$f":"IFERROR(IF(ÚverNieJeSplatený*ÚverJeDobrý,HodnotaÚveru,\"\"), \"\")","v":""},{"$f":"IFERROR(IF(ÚverNieJeSplatený*ÚverJeDobrý,MesačnáSplátka,0), 0)","v":{"v":0,"d":"0.00 EUR"}},{"$f":"IFERROR(IF(ÚverNieJeSplatený*ÚverJeDobrý,Istina,0), 0)","v":{"v":0,"d":"0.00 EUR"}},{"$f":"IFERROR(IF(ÚverNieJeSplatený*ÚverJeDobrý,SumaÚrokov,0), 0)","v":{"v":0,"d":"0.00 EUR"}},{"$f":"IFERROR(IF(ÚverNieJeSplatený*ÚverJeDobrý,KonečnýZostatok,0), 0)","v":{"v":0,"d":"0.00 EUR"}}]
[null,{"$f":"IFERROR(IF(ÚverNieJeSplatený*ÚverJeDobrý,ČísloPlatby,\"\"), \"\")","v":""},{"$f":"IFERROR(IF(ÚverNieJeSplatený*ÚverJeDobrý,DátumPlatby,PočiatočnýDátumÚveru), PočiatočnýDátumÚveru)","v":"2019-07-17"},{"$f":"IFERROR(IF(ÚverNieJeSplatený*ÚverJeDobrý,HodnotaÚveru,\"\"), \"\")","v":""},{"$f":"IFERROR(IF(ÚverNieJeSplatený*ÚverJeDobrý,MesačnáSplátka,0), 0)","v":{"v":0,"d":"0.00 EUR"}},{"$f":"IFERROR(IF(ÚverNieJeSplatený*ÚverJeDobrý,Istina,0), 0)","v":{"v":0,"d":"0.00 EUR"}},{"$f":"IFERROR(IF(ÚverNieJeSplatený*ÚverJeDobrý,SumaÚrokov,0), 0)","v":{"v":0,"d":"0.00 EUR"}},{"$f":"IFERROR(IF(ÚverNieJeSplatený*ÚverJeDobrý,KonečnýZostatok,0), 0)","v":{"v":0,"d":"0.00 EUR"}}]
[null,{"$f":"IFERROR(IF(ÚverNieJeSplatený*ÚverJeDobrý,ČísloPlatby,\"\"), \"\")","v":""},{"$f":"IFERROR(IF(ÚverNieJeSplatený*ÚverJeDobrý,DátumPlatby,PočiatočnýDátumÚveru), PočiatočnýDátumÚveru)","v":"2019-07-17"},{"$f":"IFERROR(IF(ÚverNieJeSplatený*ÚverJeDobrý,HodnotaÚveru,\"\"), \"\")","v":""},{"$f":"IFERROR(IF(ÚverNieJeSplatený*ÚverJeDobrý,MesačnáSplátka,0), 0)","v":{"v":0,"d":"0.00 EUR"}},{"$f":"IFERROR(IF(ÚverNieJeSplatený*ÚverJeDobrý,Istina,0), 0)","v":{"v":0,"d":"0.00 EUR"}},{"$f":"IFERROR(IF(ÚverNieJeSplatený*ÚverJeDobrý,SumaÚrokov,0), 0)","v":{"v":0,"d":"0.00 EUR"}},{"$f":"IFERROR(IF(ÚverNieJeSplatený*ÚverJeDobrý,KonečnýZostatok,0), 0)","v":{"v":0,"d":"0.00 EUR"}}]
[null,{"$f":"IFERROR(IF(ÚverNieJeSplatený*ÚverJeDobrý,ČísloPlatby,\"\"), \"\")","v":""},{"$f":"IFERROR(IF(ÚverNieJeSplatený*ÚverJeDobrý,DátumPlatby,PočiatočnýDátumÚveru), PočiatočnýDátumÚveru)","v":"2019-07-17"},{"$f":"IFERROR(IF(ÚverNieJeSplatený*ÚverJeDobrý,HodnotaÚveru,\"\"), \"\")","v":""},{"$f":"IFERROR(IF(ÚverNieJeSplatený*ÚverJeDobrý,MesačnáSplátka,0), 0)","v":{"v":0,"d":"0.00 EUR"}},{"$f":"IFERROR(IF(ÚverNieJeSplatený*ÚverJeDobrý,Istina,0), 0)","v":{"v":0,"d":"0.00 EUR"}},{"$f":"IFERROR(IF(ÚverNieJeSplatený*ÚverJeDobrý,SumaÚrokov,0), 0)","v":{"v":0,"d":"0.00 EUR"}},{"$f":"IFERROR(IF(ÚverNieJeSplatený*ÚverJeDobrý,KonečnýZostatok,0), 0)","v":{"v":0,"d":"0.00 EUR"}}]
[null,{"$f":"IFERROR(IF(ÚverNieJeSplatený*ÚverJeDobrý,ČísloPlatby,\"\"), \"\")","v":""},{"$f":"IFERROR(IF(ÚverNieJeSplatený*ÚverJeDobrý,DátumPlatby,PočiatočnýDátumÚveru), PočiatočnýDátumÚveru)","v":"2019-07-17"},{"$f":"IFERROR(IF(ÚverNieJeSplatený*ÚverJeDobrý,HodnotaÚveru,\"\"), \"\")","v":""},{"$f":"IFERROR(IF(ÚverNieJeSplatený*ÚverJeDobrý,MesačnáSplátka,0), 0)","v":{"v":0,"d":"0.00 EUR"}},{"$f":"IFERROR(IF(ÚverNieJeSplatený*ÚverJeDobrý,Istina,0), 0)","v":{"v":0,"d":"0.00 EUR"}},{"$f":"IFERROR(IF(ÚverNieJeSplatený*ÚverJeDobrý,SumaÚrokov,0), 0)","v":{"v":0,"d":"0.00 EUR"}},{"$f":"IFERROR(IF(ÚverNieJeSplatený*ÚverJeDobrý,KonečnýZostatok,0), 0)","v":{"v":0,"d":"0.00 EUR"}}]
[null,{"$f":"IFERROR(IF(ÚverNieJeSplatený*ÚverJeDobrý,ČísloPlatby,\"\"), \"\")","v":""},{"$f":"IFERROR(IF(ÚverNieJeSplatený*ÚverJeDobrý,DátumPlatby,PočiatočnýDátumÚveru), PočiatočnýDátumÚveru)","v":"2019-07-17"},{"$f":"IFERROR(IF(ÚverNieJeSplatený*ÚverJeDobrý,HodnotaÚveru,\"\"), \"\")","v":""},{"$f":"IFERROR(IF(ÚverNieJeSplatený*ÚverJeDobrý,MesačnáSplátka,0), 0)","v":{"v":0,"d":"0.00 EUR"}},{"$f":"IFERROR(IF(ÚverNieJeSplatený*ÚverJeDobrý,Istina,0), 0)","v":{"v":0,"d":"0.00 EUR"}},{"$f":"IFERROR(IF(ÚverNieJeSplatený*ÚverJeDobrý,SumaÚrokov,0), 0)","v":{"v":0,"d":"0.00 EUR"}},{"$f":"IFERROR(IF(ÚverNieJeSplatený*ÚverJeDobrý,KonečnýZostatok,0), 0)","v":{"v":0,"d":"0.00 EUR"}}]
[null,{"$f":"IFERROR(IF(ÚverNieJeSplatený*ÚverJeDobrý,ČísloPlatby,\"\"), \"\")","v":""},{"$f":"IFERROR(IF(ÚverNieJeSplatený*ÚverJeDobrý,DátumPlatby,PočiatočnýDátumÚveru), PočiatočnýDátumÚveru)","v":"2019-07-17"},{"$f":"IFERROR(IF(ÚverNieJeSplatený*ÚverJeDobrý,HodnotaÚveru,\"\"), \"\")","v":""},{"$f":"IFERROR(IF(ÚverNieJeSplatený*ÚverJeDobrý,MesačnáSplátka,0), 0)","v":{"v":0,"d":"0.00 EUR"}},{"$f":"IFERROR(IF(ÚverNieJeSplatený*ÚverJeDobrý,Istina,0), 0)","v":{"v":0,"d":"0.00 EUR"}},{"$f":"IFERROR(IF(ÚverNieJeSplatený*ÚverJeDobrý,SumaÚrokov,0), 0)","v":{"v":0,"d":"0.00 EUR"}},{"$f":"IFERROR(IF(ÚverNieJeSplatený*ÚverJeDobrý,KonečnýZostatok,0), 0)","v":{"v":0,"d":"0.00 EUR"}}]
[null,{"$f":"IFERROR(IF(ÚverNieJeSplatený*ÚverJeDobrý,ČísloPlatby,\"\"), \"\")","v":""},{"$f":"IFERROR(IF(ÚverNieJeSplatený*ÚverJeDobrý,DátumPlatby,PočiatočnýDátumÚveru), PočiatočnýDátumÚveru)","v":"2019-07-17"},{"$f":"IFERROR(IF(ÚverNieJeSplatený*ÚverJeDobrý,HodnotaÚveru,\"\"), \"\")","v":""},{"$f":"IFERROR(IF(ÚverNieJeSplatený*ÚverJeDobrý,MesačnáSplátka,0), 0)","v":{"v":0,"d":"0.00 EUR"}},{"$f":"IFERROR(IF(ÚverNieJeSplatený*ÚverJeDobrý,Istina,0), 0)","v":{"v":0,"d":"0.00 EUR"}},{"$f":"IFERROR(IF(ÚverNieJeSplatený*ÚverJeDobrý,SumaÚrokov,0), 0)","v":{"v":0,"d":"0.00 EUR"}},{"$f":"IFERROR(IF(ÚverNieJeSplatený*ÚverJeDobrý,KonečnýZostatok,0), 0)","v":{"v":0,"d":"0.00 EUR"}}]
[null,{"$f":"IFERROR(IF(ÚverNieJeSplatený*ÚverJeDobrý,ČísloPlatby,\"\"), \"\")","v":""},{"$f":"IFERROR(IF(ÚverNieJeSplatený*ÚverJeDobrý,DátumPlatby,PočiatočnýDátumÚveru), PočiatočnýDátumÚveru)","v":"2019-07-17"},{"$f":"IFERROR(IF(ÚverNieJeSplatený*ÚverJeDobrý,HodnotaÚveru,\"\"), \"\")","v":""},{"$f":"IFERROR(IF(ÚverNieJeSplatený*ÚverJeDobrý,MesačnáSplátka,0), 0)","v":{"v":0,"d":"0.00 EUR"}},{"$f":"IFERROR(IF(ÚverNieJeSplatený*ÚverJeDobrý,Istina,0), 0)","v":{"v":0,"d":"0.00 EUR"}},{"$f":"IFERROR(IF(ÚverNieJeSplatený*ÚverJeDobrý,SumaÚrokov,0), 0)","v":{"v":0,"d":"0.00 EUR"}},{"$f":"IFERROR(IF(ÚverNieJeSplatený*ÚverJeDobrý,KonečnýZostatok,0), 0)","v":{"v":0,"d":"0.00 EUR"}}]
[null,{"$f":"IFERROR(IF(ÚverNieJeSplatený*ÚverJeDobrý,ČísloPlatby,\"\"), \"\")","v":""},{"$f":"IFERROR(IF(ÚverNieJeSplatený*ÚverJeDobrý,DátumPlatby,PočiatočnýDátumÚveru), PočiatočnýDátumÚveru)","v":"2019-07-17"},{"$f":"IFERROR(IF(ÚverNieJeSplatený*ÚverJeDobrý,HodnotaÚveru,\"\"), \"\")","v":""},{"$f":"IFERROR(IF(ÚverNieJeSplatený*ÚverJeDobrý,MesačnáSplátka,0), 0)","v":{"v":0,"d":"0.00 EUR"}},{"$f":"IFERROR(IF(ÚverNieJeSplatený*ÚverJeDobrý,Istina,0), 0)","v":{"v":0,"d":"0.00 EUR"}},{"$f":"IFERROR(IF(ÚverNieJeSplatený*ÚverJeDobrý,SumaÚrokov,0), 0)","v":{"v":0,"d":"0.00 EUR"}},{"$f":"IFERROR(IF(ÚverNieJeSplatený*ÚverJeDobrý,KonečnýZostatok,0), 0)","v":{"v":0,"d":"0.00 EUR"}}]
[null,{"$f":"IFERROR(IF(ÚverNieJeSplatený*ÚverJeDobrý,ČísloPlatby,\"\"), \"\")","v":""},{"$f":"IFERROR(IF(ÚverNieJeSplatený*ÚverJeDobrý,DátumPlatby,PočiatočnýDátumÚveru), PočiatočnýDátumÚveru)","v":"2019-07-17"},{"$f":"IFERROR(IF(ÚverNieJeSplatený*ÚverJeDobrý,HodnotaÚveru,\"\"), \"\")","v":""},{"$f":"IFERROR(IF(ÚverNieJeSplatený*ÚverJeDobrý,MesačnáSplátka,0), 0)","v":{"v":0,"d":"0.00 EUR"}},{"$f":"IFERROR(IF(ÚverNieJeSplatený*ÚverJeDobrý,Istina,0), 0)","v":{"v":0,"d":"0.00 EUR"}},{"$f":"IFERROR(IF(ÚverNieJeSplatený*ÚverJeDobrý,SumaÚrokov,0), 0)","v":{"v":0,"d":"0.00 EUR"}},{"$f":"IFERROR(IF(ÚverNieJeSplatený*ÚverJeDobrý,KonečnýZostatok,0), 0)","v":{"v":0,"d":"0.00 EUR"}}]
[null,{"$f":"IFERROR(IF(ÚverNieJeSplatený*ÚverJeDobrý,ČísloPlatby,\"\"), \"\")","v":""},{"$f":"IFERROR(IF(ÚverNieJeSplatený*ÚverJeDobrý,DátumPlatby,PočiatočnýDátumÚveru), PočiatočnýDátumÚveru)","v":"2019-07-17"},{"$f":"IFERROR(IF(ÚverNieJeSplatený*ÚverJeDobrý,HodnotaÚveru,\"\"), \"\")","v":""},{"$f":"IFERROR(IF(ÚverNieJeSplatený*ÚverJeDobrý,MesačnáSplátka,0), 0)","v":{"v":0,"d":"0.00 EUR"}},{"$f":"IFERROR(IF(ÚverNieJeSplatený*ÚverJeDobrý,Istina,0), 0)","v":{"v":0,"d":"0.00 EUR"}},{"$f":"IFERROR(IF(ÚverNieJeSplatený*ÚverJeDobrý,SumaÚrokov,0), 0)","v":{"v":0,"d":"0.00 EUR"}},{"$f":"IFERROR(IF(ÚverNieJeSplatený*ÚverJeDobrý,KonečnýZostatok,0), 0)","v":{"v":0,"d":"0.00 EUR"}}]
[null,{"$f":"IFERROR(IF(ÚverNieJeSplatený*ÚverJeDobrý,ČísloPlatby,\"\"), \"\")","v":""},{"$f":"IFERROR(IF(ÚverNieJeSplatený*ÚverJeDobrý,DátumPlatby,PočiatočnýDátumÚveru), PočiatočnýDátumÚveru)","v":"2019-07-17"},{"$f":"IFERROR(IF(ÚverNieJeSplatený*ÚverJeDobrý,HodnotaÚveru,\"\"), \"\")","v":""},{"$f":"IFERROR(IF(ÚverNieJeSplatený*ÚverJeDobrý,MesačnáSplátka,0), 0)","v":{"v":0,"d":"0.00 EUR"}},{"$f":"IFERROR(IF(ÚverNieJeSplatený*ÚverJeDobrý,Istina,0), 0)","v":{"v":0,"d":"0.00 EUR"}},{"$f":"IFERROR(IF(ÚverNieJeSplatený*ÚverJeDobrý,SumaÚrokov,0), 0)","v":{"v":0,"d":"0.00 EUR"}},{"$f":"IFERROR(IF(ÚverNieJeSplatený*ÚverJeDobrý,KonečnýZostatok,0), 0)","v":{"v":0,"d":"0.00 EUR"}}]
[null,{"$f":"IFERROR(IF(ÚverNieJeSplatený*ÚverJeDobrý,ČísloPlatby,\"\"), \"\")","v":""},{"$f":"IFERROR(IF(ÚverNieJeSplatený*ÚverJeDobrý,DátumPlatby,PočiatočnýDátumÚveru), PočiatočnýDátumÚveru)","v":"2019-07-17"},{"$f":"IFERROR(IF(ÚverNieJeSplatený*ÚverJeDobrý,HodnotaÚveru,\"\"), \"\")","v":""},{"$f":"IFERROR(IF(ÚverNieJeSplatený*ÚverJeDobrý,MesačnáSplátka,0), 0)","v":{"v":0,"d":"0.00 EUR"}},{"$f":"IFERROR(IF(ÚverNieJeSplatený*ÚverJeDobrý,Istina,0), 0)","v":{"v":0,"d":"0.00 EUR"}},{"$f":"IFERROR(IF(ÚverNieJeSplatený*ÚverJeDobrý,SumaÚrokov,0), 0)","v":{"v":0,"d":"0.00 EUR"}},{"$f":"IFERROR(IF(ÚverNieJeSplatený*ÚverJeDobrý,KonečnýZostatok,0), 0)","v":{"v":0,"d":"0.00 EUR"}}]
[null,{"$f":"IFERROR(IF(ÚverNieJeSplatený*ÚverJeDobrý,ČísloPlatby,\"\"), \"\")","v":""},{"$f":"IFERROR(IF(ÚverNieJeSplatený*ÚverJeDobrý,DátumPlatby,PočiatočnýDátumÚveru), PočiatočnýDátumÚveru)","v":"2019-07-17"},{"$f":"IFERROR(IF(ÚverNieJeSplatený*ÚverJeDobrý,HodnotaÚveru,\"\"), \"\")","v":""},{"$f":"IFERROR(IF(ÚverNieJeSplatený*ÚverJeDobrý,MesačnáSplátka,0), 0)","v":{"v":0,"d":"0.00 EUR"}},{"$f":"IFERROR(IF(ÚverNieJeSplatený*ÚverJeDobrý,Istina,0), 0)","v":{"v":0,"d":"0.00 EUR"}},{"$f":"IFERROR(IF(ÚverNieJeSplatený*ÚverJeDobrý,SumaÚrokov,0), 0)","v":{"v":0,"d":"0.00 EUR"}},{"$f":"IFERROR(IF(ÚverNieJeSplatený*ÚverJeDobrý,KonečnýZostatok,0), 0)","v":{"v":0,"d":"0.00 EUR"}}]
[null,{"$f":"IFERROR(IF(ÚverNieJeSplatený*ÚverJeDobrý,ČísloPlatby,\"\"), \"\")","v":""},{"$f":"IFERROR(IF(ÚverNieJeSplatený*ÚverJeDobrý,DátumPlatby,PočiatočnýDátumÚveru), PočiatočnýDátumÚveru)","v":"2019-07-17"},{"$f":"IFERROR(IF(ÚverNieJeSplatený*ÚverJeDobrý,HodnotaÚveru,\"\"), \"\")","v":""},{"$f":"IFERROR(IF(ÚverNieJeSplatený*ÚverJeDobrý,MesačnáSplátka,0), 0)","v":{"v":0,"d":"0.00 EUR"}},{"$f":"IFERROR(IF(ÚverNieJeSplatený*ÚverJeDobrý,Istina,0), 0)","v":{"v":0,"d":"0.00 EUR"}},{"$f":"IFERROR(IF(ÚverNieJeSplatený*ÚverJeDobrý,SumaÚrokov,0), 0)","v":{"v":0,"d":"0.00 EUR"}},{"$f":"IFERROR(IF(ÚverNieJeSplatený*ÚverJeDobrý,KonečnýZostatok,0), 0)","v":{"v":0,"d":"0.00 EUR"}}]
[null,{"$f":"IFERROR(IF(ÚverNieJeSplatený*ÚverJeDobrý,ČísloPlatby,\"\"), \"\")","v":""},{"$f":"IFERROR(IF(ÚverNieJeSplatený*ÚverJeDobrý,DátumPlatby,PočiatočnýDátumÚveru), PočiatočnýDátumÚveru)","v":"2019-07-17"},{"$f":"IFERROR(IF(ÚverNieJeSplatený*ÚverJeDobrý,HodnotaÚveru,\"\"), \"\")","v":""},{"$f":"IFERROR(IF(ÚverNieJeSplatený*ÚverJeDobrý,MesačnáSplátka,0), 0)","v":{"v":0,"d":"0.00 EUR"}},{"$f":"IFERROR(IF(ÚverNieJeSplatený*ÚverJeDobrý,Istina,0), 0)","v":{"v":0,"d":"0.00 EUR"}},{"$f":"IFERROR(IF(ÚverNieJeSplatený*ÚverJeDobrý,SumaÚrokov,0), 0)","v":{"v":0,"d":"0.00 EUR"}},{"$f":"IFERROR(IF(ÚverNieJeSplatený*ÚverJeDobrý,KonečnýZostatok,0), 0)","v":{"v":0,"d":"0.00 EUR"}}]
[null,{"$f":"IFERROR(IF(ÚverNieJeSplatený*ÚverJeDobrý,ČísloPlatby,\"\"), \"\")","v":""},{"$f":"IFERROR(IF(ÚverNieJeSplatený*ÚverJeDobrý,DátumPlatby,PočiatočnýDátumÚveru), PočiatočnýDátumÚveru)","v":"2019-07-17"},{"$f":"IFERROR(IF(ÚverNieJeSplatený*ÚverJeDobrý,HodnotaÚveru,\"\"), \"\")","v":""},{"$f":"IFERROR(IF(ÚverNieJeSplatený*ÚverJeDobrý,MesačnáSplátka,0), 0)","v":{"v":0,"d":"0.00 EUR"}},{"$f":"IFERROR(IF(ÚverNieJeSplatený*ÚverJeDobrý,Istina,0), 0)","v":{"v":0,"d":"0.00 EUR"}},{"$f":"IFERROR(IF(ÚverNieJeSplatený*ÚverJeDobrý,SumaÚrokov,0), 0)","v":{"v":0,"d":"0.00 EUR"}},{"$f":"IFERROR(IF(ÚverNieJeSplatený*ÚverJeDobrý,KonečnýZostatok,0), 0)","v":{"v":0,"d":"0.00 EUR"}}]
[null,{"$f":"IFERROR(IF(ÚverNieJeSplatený*ÚverJeDobrý,ČísloPlatby,\"\"), \"\")","v":""},{"$f":"IFERROR(IF(ÚverNieJeSplatený*ÚverJeDobrý,DátumPlatby,PočiatočnýDátumÚveru), PočiatočnýDátumÚveru)","v":"2019-07-17"},{"$f":"IFERROR(IF(ÚverNieJeSplatený*ÚverJeDobrý,HodnotaÚveru,\"\"), \"\")","v":""},{"$f":"IFERROR(IF(ÚverNieJeSplatený*ÚverJeDobrý,MesačnáSplátka,0), 0)","v":{"v":0,"d":"0.00 EUR"}},{"$f":"IFERROR(IF(ÚverNieJeSplatený*ÚverJeDobrý,Istina,0), 0)","v":{"v":0,"d":"0.00 EUR"}},{"$f":"IFERROR(IF(ÚverNieJeSplatený*ÚverJeDobrý,SumaÚrokov,0), 0)","v":{"v":0,"d":"0.00 EUR"}},{"$f":"IFERROR(IF(ÚverNieJeSplatený*ÚverJeDobrý,KonečnýZostatok,0), 0)","v":{"v":0,"d":"0.00 EUR"}}]
[null,{"$f":"IFERROR(IF(ÚverNieJeSplatený*ÚverJeDobrý,ČísloPlatby,\"\"), \"\")","v":""},{"$f":"IFERROR(IF(ÚverNieJeSplatený*ÚverJeDobrý,DátumPlatby,PočiatočnýDátumÚveru), PočiatočnýDátumÚveru)","v":"2019-07-17"},{"$f":"IFERROR(IF(ÚverNieJeSplatený*ÚverJeDobrý,HodnotaÚveru,\"\"), \"\")","v":""},{"$f":"IFERROR(IF(ÚverNieJeSplatený*ÚverJeDobrý,MesačnáSplátka,0), 0)","v":{"v":0,"d":"0.00 EUR"}},{"$f":"IFERROR(IF(ÚverNieJeSplatený*ÚverJeDobrý,Istina,0), 0)","v":{"v":0,"d":"0.00 EUR"}},{"$f":"IFERROR(IF(ÚverNieJeSplatený*ÚverJeDobrý,SumaÚrokov,0), 0)","v":{"v":0,"d":"0.00 EUR"}},{"$f":"IFERROR(IF(ÚverNieJeSplatený*ÚverJeDobrý,KonečnýZostatok,0), 0)","v":{"v":0,"d":"0.00 EUR"}}]
[null,{"$f":"IFERROR(IF(ÚverNieJeSplatený*ÚverJeDobrý,ČísloPlatby,\"\"), \"\")","v":""},{"$f":"IFERROR(IF(ÚverNieJeSplatený*ÚverJeDobrý,DátumPlatby,PočiatočnýDátumÚveru), PočiatočnýDátumÚveru)","v":"2019-07-17"},{"$f":"IFERROR(IF(ÚverNieJeSplatený*ÚverJeDobrý,HodnotaÚveru,\"\"), \"\")","v":""},{"$f":"IFERROR(IF(ÚverNieJeSplatený*ÚverJeDobrý,MesačnáSplátka,0), 0)","v":{"v":0,"d":"0.00 EUR"}},{"$f":"IFERROR(IF(ÚverNieJeSplatený*ÚverJeDobrý,Istina,0), 0)","v":{"v":0,"d":"0.00 EUR"}},{"$f":"IFERROR(IF(ÚverNieJeSplatený*ÚverJeDobrý,SumaÚrokov,0), 0)","v":{"v":0,"d":"0.00 EUR"}},{"$f":"IFERROR(IF(ÚverNieJeSplatený*ÚverJeDobrý,KonečnýZostatok,0), 0)","v":{"v":0,"d":"0.00 EUR"}}]
[null,{"$f":"IFERROR(IF(ÚverNieJeSplatený*ÚverJeDobrý,ČísloPlatby,\"\"), \"\")","v":""},{"$f":"IFERROR(IF(ÚverNieJeSplatený*ÚverJeDobrý,DátumPlatby,PočiatočnýDátumÚveru), PočiatočnýDátumÚveru)","v":"2019-07-17"},{"$f":"IFERROR(IF(ÚverNieJeSplatený*ÚverJeDobrý,HodnotaÚveru,\"\"), \"\")","v":""},{"$f":"IFERROR(IF(ÚverNieJeSplatený*ÚverJeDobrý,MesačnáSplátka,0), 0)","v":{"v":0,"d":"0.00 EUR"}},{"$f":"IFERROR(IF(ÚverNieJeSplatený*ÚverJeDobrý,Istina,0), 0)","v":{"v":0,"d":"0.00 EUR"}},{"$f":"IFERROR(IF(ÚverNieJeSplatený*ÚverJeDobrý,SumaÚrokov,0), 0)","v":{"v":0,"d":"0.00 EUR"}},{"$f":"IFERROR(IF(ÚverNieJeSplatený*ÚverJeDobrý,KonečnýZostatok,0), 0)","v":{"v":0,"d":"0.00 EUR"}}]
[null,{"$f":"IFERROR(IF(ÚverNieJeSplatený*ÚverJeDobrý,ČísloPlatby,\"\"), \"\")","v":""},{"$f":"IFERROR(IF(ÚverNieJeSplatený*ÚverJeDobrý,DátumPlatby,PočiatočnýDátumÚveru), PočiatočnýDátumÚveru)","v":"2019-07-17"},{"$f":"IFERROR(IF(ÚverNieJeSplatený*ÚverJeDobrý,HodnotaÚveru,\"\"), \"\")","v":""},{"$f":"IFERROR(IF(ÚverNieJeSplatený*ÚverJeDobrý,MesačnáSplátka,0), 0)","v":{"v":0,"d":"0.00 EUR"}},{"$f":"IFERROR(IF(ÚverNieJeSplatený*ÚverJeDobrý,Istina,0), 0)","v":{"v":0,"d":"0.00 EUR"}},{"$f":"IFERROR(IF(ÚverNieJeSplatený*ÚverJeDobrý,SumaÚrokov,0), 0)","v":{"v":0,"d":"0.00 EUR"}},{"$f":"IFERROR(IF(ÚverNieJeSplatený*ÚverJeDobrý,KonečnýZostatok,0), 0)","v":{"v":0,"d":"0.00 EUR"}}]
[null,{"$f":"IFERROR(IF(ÚverNieJeSplatený*ÚverJeDobrý,ČísloPlatby,\"\"), \"\")","v":""},{"$f":"IFERROR(IF(ÚverNieJeSplatený*ÚverJeDobrý,DátumPlatby,PočiatočnýDátumÚveru), PočiatočnýDátumÚveru)","v":"2019-07-17"},{"$f":"IFERROR(IF(ÚverNieJeSplatený*ÚverJeDobrý,HodnotaÚveru,\"\"), \"\")","v":""},{"$f":"IFERROR(IF(ÚverNieJeSplatený*ÚverJeDobrý,MesačnáSplátka,0), 0)","v":{"v":0,"d":"0.00 EUR"}},{"$f":"IFERROR(IF(ÚverNieJeSplatený*ÚverJeDobrý,Istina,0), 0)","v":{"v":0,"d":"0.00 EUR"}},{"$f":"IFERROR(IF(ÚverNieJeSplatený*ÚverJeDobrý,SumaÚrokov,0), 0)","v":{"v":0,"d":"0.00 EUR"}},{"$f":"IFERROR(IF(ÚverNieJeSplatený*ÚverJeDobrý,KonečnýZostatok,0), 0)","v":{"v":0,"d":"0.00 EUR"}}]
[null,{"$f":"IFERROR(IF(ÚverNieJeSplatený*ÚverJeDobrý,ČísloPlatby,\"\"), \"\")","v":""},{"$f":"IFERROR(IF(ÚverNieJeSplatený*ÚverJeDobrý,DátumPlatby,PočiatočnýDátumÚveru), PočiatočnýDátumÚveru)","v":"2019-07-17"},{"$f":"IFERROR(IF(ÚverNieJeSplatený*ÚverJeDobrý,HodnotaÚveru,\"\"), \"\")","v":""},{"$f":"IFERROR(IF(ÚverNieJeSplatený*ÚverJeDobrý,MesačnáSplátka,0), 0)","v":{"v":0,"d":"0.00 EUR"}},{"$f":"IFERROR(IF(ÚverNieJeSplatený*ÚverJeDobrý,Istina,0), 0)","v":{"v":0,"d":"0.00 EUR"}},{"$f":"IFERROR(IF(ÚverNieJeSplatený*ÚverJeDobrý,SumaÚrokov,0), 0)","v":{"v":0,"d":"0.00 EUR"}},{"$f":"IFERROR(IF(ÚverNieJeSplatený*ÚverJeDobrý,KonečnýZostatok,0), 0)","v":{"v":0,"d":"0.00 EUR"}}]
[null,{"$f":"IFERROR(IF(ÚverNieJeSplatený*ÚverJeDobrý,ČísloPlatby,\"\"), \"\")","v":""},{"$f":"IFERROR(IF(ÚverNieJeSplatený*ÚverJeDobrý,DátumPlatby,PočiatočnýDátumÚveru), PočiatočnýDátumÚveru)","v":"2019-07-17"},{"$f":"IFERROR(IF(ÚverNieJeSplatený*ÚverJeDobrý,HodnotaÚveru,\"\"), \"\")","v":""},{"$f":"IFERROR(IF(ÚverNieJeSplatený*ÚverJeDobrý,MesačnáSplátka,0), 0)","v":{"v":0,"d":"0.00 EUR"}},{"$f":"IFERROR(IF(ÚverNieJeSplatený*ÚverJeDobrý,Istina,0), 0)","v":{"v":0,"d":"0.00 EUR"}},{"$f":"IFERROR(IF(ÚverNieJeSplatený*ÚverJeDobrý,SumaÚrokov,0), 0)","v":{"v":0,"d":"0.00 EUR"}},{"$f":"IFERROR(IF(ÚverNieJeSplatený*ÚverJeDobrý,KonečnýZostatok,0), 0)","v":{"v":0,"d":"0.00 EUR"}}]
[null,{"$f":"IFERROR(IF(ÚverNieJeSplatený*ÚverJeDobrý,ČísloPlatby,\"\"), \"\")","v":""},{"$f":"IFERROR(IF(ÚverNieJeSplatený*ÚverJeDobrý,DátumPlatby,PočiatočnýDátumÚveru), PočiatočnýDátumÚveru)","v":"2019-07-17"},{"$f":"IFERROR(IF(ÚverNieJeSplatený*ÚverJeDobrý,HodnotaÚveru,\"\"), \"\")","v":""},{"$f":"IFERROR(IF(ÚverNieJeSplatený*ÚverJeDobrý,MesačnáSplátka,0), 0)","v":{"v":0,"d":"0.00 EUR"}},{"$f":"IFERROR(IF(ÚverNieJeSplatený*ÚverJeDobrý,Istina,0), 0)","v":{"v":0,"d":"0.00 EUR"}},{"$f":"IFERROR(IF(ÚverNieJeSplatený*ÚverJeDobrý,SumaÚrokov,0), 0)","v":{"v":0,"d":"0.00 EUR"}},{"$f":"IFERROR(IF(ÚverNieJeSplatený*ÚverJeDobrý,KonečnýZostatok,0), 0)","v":{"v":0,"d":"0.00 EUR"}}]
[null,{"$f":"IFERROR(IF(ÚverNieJeSplatený*ÚverJeDobrý,ČísloPlatby,\"\"), \"\")","v":""},{"$f":"IFERROR(IF(ÚverNieJeSplatený*ÚverJeDobrý,DátumPlatby,PočiatočnýDátumÚveru), PočiatočnýDátumÚveru)","v":"2019-07-17"},{"$f":"IFERROR(IF(ÚverNieJeSplatený*ÚverJeDobrý,HodnotaÚveru,\"\"), \"\")","v":""},{"$f":"IFERROR(IF(ÚverNieJeSplatený*ÚverJeDobrý,MesačnáSplátka,0), 0)","v":{"v":0,"d":"0.00 EUR"}},{"$f":"IFERROR(IF(ÚverNieJeSplatený*ÚverJeDobrý,Istina,0), 0)","v":{"v":0,"d":"0.00 EUR"}},{"$f":"IFERROR(IF(ÚverNieJeSplatený*ÚverJeDobrý,SumaÚrokov,0), 0)","v":{"v":0,"d":"0.00 EUR"}},{"$f":"IFERROR(IF(ÚverNieJeSplatený*ÚverJeDobrý,KonečnýZostatok,0), 0)","v":{"v":0,"d":"0.00 EUR"}}]
[null,{"$f":"IFERROR(IF(ÚverNieJeSplatený*ÚverJeDobrý,ČísloPlatby,\"\"), \"\")","v":""},{"$f":"IFERROR(IF(ÚverNieJeSplatený*ÚverJeDobrý,DátumPlatby,PočiatočnýDátumÚveru), PočiatočnýDátumÚveru)","v":"2019-07-17"},{"$f":"IFERROR(IF(ÚverNieJeSplatený*ÚverJeDobrý,HodnotaÚveru,\"\"), \"\")","v":""},{"$f":"IFERROR(IF(ÚverNieJeSplatený*ÚverJeDobrý,MesačnáSplátka,0), 0)","v":{"v":0,"d":"0.00 EUR"}},{"$f":"IFERROR(IF(ÚverNieJeSplatený*ÚverJeDobrý,Istina,0), 0)","v":{"v":0,"d":"0.00 EUR"}},{"$f":"IFERROR(IF(ÚverNieJeSplatený*ÚverJeDobrý,SumaÚrokov,0), 0)","v":{"v":0,"d":"0.00 EUR"}},{"$f":"IFERROR(IF(ÚverNieJeSplatený*ÚverJeDobrý,KonečnýZostatok,0), 0)","v":{"v":0,"d":"0.00 EUR"}}]
[null,{"$f":"IFERROR(IF(ÚverNieJeSplatený*ÚverJeDobrý,ČísloPlatby,\"\"), \"\")","v":""},{"$f":"IFERROR(IF(ÚverNieJeSplatený*ÚverJeDobrý,DátumPlatby,PočiatočnýDátumÚveru), PočiatočnýDátumÚveru)","v":"2019-07-17"},{"$f":"IFERROR(IF(ÚverNieJeSplatený*ÚverJeDobrý,HodnotaÚveru,\"\"), \"\")","v":""},{"$f":"IFERROR(IF(ÚverNieJeSplatený*ÚverJeDobrý,MesačnáSplátka,0), 0)","v":{"v":0,"d":"0.00 EUR"}},{"$f":"IFERROR(IF(ÚverNieJeSplatený*ÚverJeDobrý,Istina,0), 0)","v":{"v":0,"d":"0.00 EUR"}},{"$f":"IFERROR(IF(ÚverNieJeSplatený*ÚverJeDobrý,SumaÚrokov,0), 0)","v":{"v":0,"d":"0.00 EUR"}},{"$f":"IFERROR(IF(ÚverNieJeSplatený*ÚverJeDobrý,KonečnýZostatok,0), 0)","v":{"v":0,"d":"0.00 EUR"}}]
[null,{"$f":"IFERROR(IF(ÚverNieJeSplatený*ÚverJeDobrý,ČísloPlatby,\"\"), \"\")","v":""},{"$f":"IFERROR(IF(ÚverNieJeSplatený*ÚverJeDobrý,DátumPlatby,PočiatočnýDátumÚveru), PočiatočnýDátumÚveru)","v":"2019-07-17"},{"$f":"IFERROR(IF(ÚverNieJeSplatený*ÚverJeDobrý,HodnotaÚveru,\"\"), \"\")","v":""},{"$f":"IFERROR(IF(ÚverNieJeSplatený*ÚverJeDobrý,MesačnáSplátka,0), 0)","v":{"v":0,"d":"0.00 EUR"}},{"$f":"IFERROR(IF(ÚverNieJeSplatený*ÚverJeDobrý,Istina,0), 0)","v":{"v":0,"d":"0.00 EUR"}},{"$f":"IFERROR(IF(ÚverNieJeSplatený*ÚverJeDobrý,SumaÚrokov,0), 0)","v":{"v":0,"d":"0.00 EUR"}},{"$f":"IFERROR(IF(ÚverNieJeSplatený*ÚverJeDobrý,KonečnýZostatok,0), 0)","v":{"v":0,"d":"0.00 EUR"}}]
[null,{"$f":"IFERROR(IF(ÚverNieJeSplatený*ÚverJeDobrý,ČísloPlatby,\"\"), \"\")","v":""},{"$f":"IFERROR(IF(ÚverNieJeSplatený*ÚverJeDobrý,DátumPlatby,PočiatočnýDátumÚveru), PočiatočnýDátumÚveru)","v":"2019-07-17"},{"$f":"IFERROR(IF(ÚverNieJeSplatený*ÚverJeDobrý,HodnotaÚveru,\"\"), \"\")","v":""},{"$f":"IFERROR(IF(ÚverNieJeSplatený*ÚverJeDobrý,MesačnáSplátka,0), 0)","v":{"v":0,"d":"0.00 EUR"}},{"$f":"IFERROR(IF(ÚverNieJeSplatený*ÚverJeDobrý,Istina,0), 0)","v":{"v":0,"d":"0.00 EUR"}},{"$f":"IFERROR(IF(ÚverNieJeSplatený*ÚverJeDobrý,SumaÚrokov,0), 0)","v":{"v":0,"d":"0.00 EUR"}},{"$f":"IFERROR(IF(ÚverNieJeSplatený*ÚverJeDobrý,KonečnýZostatok,0), 0)","v":{"v":0,"d":"0.00 EUR"}}]
[null,{"$f":"IFERROR(IF(ÚverNieJeSplatený*ÚverJeDobrý,ČísloPlatby,\"\"), \"\")","v":""},{"$f":"IFERROR(IF(ÚverNieJeSplatený*ÚverJeDobrý,DátumPlatby,PočiatočnýDátumÚveru), PočiatočnýDátumÚveru)","v":"2019-07-17"},{"$f":"IFERROR(IF(ÚverNieJeSplatený*ÚverJeDobrý,HodnotaÚveru,\"\"), \"\")","v":""},{"$f":"IFERROR(IF(ÚverNieJeSplatený*ÚverJeDobrý,MesačnáSplátka,0), 0)","v":{"v":0,"d":"0.00 EUR"}},{"$f":"IFERROR(IF(ÚverNieJeSplatený*ÚverJeDobrý,Istina,0), 0)","v":{"v":0,"d":"0.00 EUR"}},{"$f":"IFERROR(IF(ÚverNieJeSplatený*ÚverJeDobrý,SumaÚrokov,0), 0)","v":{"v":0,"d":"0.00 EUR"}},{"$f":"IFERROR(IF(ÚverNieJeSplatený*ÚverJeDobrý,KonečnýZostatok,0), 0)","v":{"v":0,"d":"0.00 EUR"}}]
[null,{"$f":"IFERROR(IF(ÚverNieJeSplatený*ÚverJeDobrý,ČísloPlatby,\"\"), \"\")","v":""},{"$f":"IFERROR(IF(ÚverNieJeSplatený*ÚverJeDobrý,DátumPlatby,PočiatočnýDátumÚveru), PočiatočnýDátumÚveru)","v":"2019-07-17"},{"$f":"IFERROR(IF(ÚverNieJeSplatený*ÚverJeDobrý,HodnotaÚveru,\"\"), \"\")","v":""},{"$f":"IFERROR(IF(ÚverNieJeSplatený*ÚverJeDobrý,MesačnáSplátka,0), 0)","v":{"v":0,"d":"0.00 EUR"}},{"$f":"IFERROR(IF(ÚverNieJeSplatený*ÚverJeDobrý,Istina,0), 0)","v":{"v":0,"d":"0.00 EUR"}},{"$f":"IFERROR(IF(ÚverNieJeSplatený*ÚverJeDobrý,SumaÚrokov,0), 0)","v":{"v":0,"d":"0.00 EUR"}},{"$f":"IFERROR(IF(ÚverNieJeSplatený*ÚverJeDobrý,KonečnýZostatok,0), 0)","v":{"v":0,"d":"0.00 EUR"}}]
[null,{"$f":"IFERROR(IF(ÚverNieJeSplatený*ÚverJeDobrý,ČísloPlatby,\"\"), \"\")","v":""},{"$f":"IFERROR(IF(ÚverNieJeSplatený*ÚverJeDobrý,DátumPlatby,PočiatočnýDátumÚveru), PočiatočnýDátumÚveru)","v":"2019-07-17"},{"$f":"IFERROR(IF(ÚverNieJeSplatený*ÚverJeDobrý,HodnotaÚveru,\"\"), \"\")","v":""},{"$f":"IFERROR(IF(ÚverNieJeSplatený*ÚverJeDobrý,MesačnáSplátka,0), 0)","v":{"v":0,"d":"0.00 EUR"}},{"$f":"IFERROR(IF(ÚverNieJeSplatený*ÚverJeDobrý,Istina,0), 0)","v":{"v":0,"d":"0.00 EUR"}},{"$f":"IFERROR(IF(ÚverNieJeSplatený*ÚverJeDobrý,SumaÚrokov,0), 0)","v":{"v":0,"d":"0.00 EUR"}},{"$f":"IFERROR(IF(ÚverNieJeSplatený*ÚverJeDobrý,KonečnýZostatok,0), 0)","v":{"v":0,"d":"0.00 EUR"}}]
[null,{"$f":"IFERROR(IF(ÚverNieJeSplatený*ÚverJeDobrý,ČísloPlatby,\"\"), \"\")","v":""},{"$f":"IFERROR(IF(ÚverNieJeSplatený*ÚverJeDobrý,DátumPlatby,PočiatočnýDátumÚveru), PočiatočnýDátumÚveru)","v":"2019-07-17"},{"$f":"IFERROR(IF(ÚverNieJeSplatený*ÚverJeDobrý,HodnotaÚveru,\"\"), \"\")","v":""},{"$f":"IFERROR(IF(ÚverNieJeSplatený*ÚverJeDobrý,MesačnáSplátka,0), 0)","v":{"v":0,"d":"0.00 EUR"}},{"$f":"IFERROR(IF(ÚverNieJeSplatený*ÚverJeDobrý,Istina,0), 0)","v":{"v":0,"d":"0.00 EUR"}},{"$f":"IFERROR(IF(ÚverNieJeSplatený*ÚverJeDobrý,SumaÚrokov,0), 0)","v":{"v":0,"d":"0.00 EUR"}},{"$f":"IFERROR(IF(ÚverNieJeSplatený*ÚverJeDobrý,KonečnýZostatok,0), 0)","v":{"v":0,"d":"0.00 EUR"}}]
[null,{"$f":"IFERROR(IF(ÚverNieJeSplatený*ÚverJeDobrý,ČísloPlatby,\"\"), \"\")","v":""},{"$f":"IFERROR(IF(ÚverNieJeSplatený*ÚverJeDobrý,DátumPlatby,PočiatočnýDátumÚveru), PočiatočnýDátumÚveru)","v":"2019-07-17"},{"$f":"IFERROR(IF(ÚverNieJeSplatený*ÚverJeDobrý,HodnotaÚveru,\"\"), \"\")","v":""},{"$f":"IFERROR(IF(ÚverNieJeSplatený*ÚverJeDobrý,MesačnáSplátka,0), 0)","v":{"v":0,"d":"0.00 EUR"}},{"$f":"IFERROR(IF(ÚverNieJeSplatený*ÚverJeDobrý,Istina,0), 0)","v":{"v":0,"d":"0.00 EUR"}},{"$f":"IFERROR(IF(ÚverNieJeSplatený*ÚverJeDobrý,SumaÚrokov,0), 0)","v":{"v":0,"d":"0.00 EUR"}},{"$f":"IFERROR(IF(ÚverNieJeSplatený*ÚverJeDobrý,KonečnýZostatok,0), 0)","v":{"v":0,"d":"0.00 EUR"}}]
[null,{"$f":"IFERROR(IF(ÚverNieJeSplatený*ÚverJeDobrý,ČísloPlatby,\"\"), \"\")","v":""},{"$f":"IFERROR(IF(ÚverNieJeSplatený*ÚverJeDobrý,DátumPlatby,PočiatočnýDátumÚveru), PočiatočnýDátumÚveru)","v":"2019-07-17"},{"$f":"IFERROR(IF(ÚverNieJeSplatený*ÚverJeDobrý,HodnotaÚveru,\"\"), \"\")","v":""},{"$f":"IFERROR(IF(ÚverNieJeSplatený*ÚverJeDobrý,MesačnáSplátka,0), 0)","v":{"v":0,"d":"0.00 EUR"}},{"$f":"IFERROR(IF(ÚverNieJeSplatený*ÚverJeDobrý,Istina,0), 0)","v":{"v":0,"d":"0.00 EUR"}},{"$f":"IFERROR(IF(ÚverNieJeSplatený*ÚverJeDobrý,SumaÚrokov,0), 0)","v":{"v":0,"d":"0.00 EUR"}},{"$f":"IFERROR(IF(ÚverNieJeSplatený*ÚverJeDobrý,KonečnýZostatok,0), 0)","v":{"v":0,"d":"0.00 EUR"}}]
[null,{"$f":"IFERROR(IF(ÚverNieJeSplatený*ÚverJeDobrý,ČísloPlatby,\"\"), \"\")","v":""},{"$f":"IFERROR(IF(ÚverNieJeSplatený*ÚverJeDobrý,DátumPlatby,PočiatočnýDátumÚveru), PočiatočnýDátumÚveru)","v":"2019-07-17"},{"$f":"IFERROR(IF(ÚverNieJeSplatený*ÚverJeDobrý,HodnotaÚveru,\"\"), \"\")","v":""},{"$f":"IFERROR(IF(ÚverNieJeSplatený*ÚverJeDobrý,MesačnáSplátka,0), 0)","v":{"v":0,"d":"0.00 EUR"}},{"$f":"IFERROR(IF(ÚverNieJeSplatený*ÚverJeDobrý,Istina,0), 0)","v":{"v":0,"d":"0.00 EUR"}},{"$f":"IFERROR(IF(ÚverNieJeSplatený*ÚverJeDobrý,SumaÚrokov,0), 0)","v":{"v":0,"d":"0.00 EUR"}},{"$f":"IFERROR(IF(ÚverNieJeSplatený*ÚverJeDobrý,KonečnýZostatok,0), 0)","v":{"v":0,"d":"0.00 EUR"}}]
[null,{"$f":"IFERROR(IF(ÚverNieJeSplatený*ÚverJeDobrý,ČísloPlatby,\"\"), \"\")","v":""},{"$f":"IFERROR(IF(ÚverNieJeSplatený*ÚverJeDobrý,DátumPlatby,PočiatočnýDátumÚveru), PočiatočnýDátumÚveru)","v":"2019-07-17"},{"$f":"IFERROR(IF(ÚverNieJeSplatený*ÚverJeDobrý,HodnotaÚveru,\"\"), \"\")","v":""},{"$f":"IFERROR(IF(ÚverNieJeSplatený*ÚverJeDobrý,MesačnáSplátka,0), 0)","v":{"v":0,"d":"0.00 EUR"}},{"$f":"IFERROR(IF(ÚverNieJeSplatený*ÚverJeDobrý,Istina,0), 0)","v":{"v":0,"d":"0.00 EUR"}},{"$f":"IFERROR(IF(ÚverNieJeSplatený*ÚverJeDobrý,SumaÚrokov,0), 0)","v":{"v":0,"d":"0.00 EUR"}},{"$f":"IFERROR(IF(ÚverNieJeSplatený*ÚverJeDobrý,KonečnýZostatok,0), 0)","v":{"v":0,"d":"0.00 EUR"}}]
[null,{"$f":"IFERROR(IF(ÚverNieJeSplatený*ÚverJeDobrý,ČísloPlatby,\"\"), \"\")","v":""},{"$f":"IFERROR(IF(ÚverNieJeSplatený*ÚverJeDobrý,DátumPlatby,PočiatočnýDátumÚveru), PočiatočnýDátumÚveru)","v":"2019-07-17"},{"$f":"IFERROR(IF(ÚverNieJeSplatený*ÚverJeDobrý,HodnotaÚveru,\"\"), \"\")","v":""},{"$f":"IFERROR(IF(ÚverNieJeSplatený*ÚverJeDobrý,MesačnáSplátka,0), 0)","v":{"v":0,"d":"0.00 EUR"}},{"$f":"IFERROR(IF(ÚverNieJeSplatený*ÚverJeDobrý,Istina,0), 0)","v":{"v":0,"d":"0.00 EUR"}},{"$f":"IFERROR(IF(ÚverNieJeSplatený*ÚverJeDobrý,SumaÚrokov,0), 0)","v":{"v":0,"d":"0.00 EUR"}},{"$f":"IFERROR(IF(ÚverNieJeSplatený*ÚverJeDobrý,KonečnýZostatok,0), 0)","v":{"v":0,"d":"0.00 EUR"}}]
[null,{"$f":"IFERROR(IF(ÚverNieJeSplatený*ÚverJeDobrý,ČísloPlatby,\"\"), \"\")","v":""},{"$f":"IFERROR(IF(ÚverNieJeSplatený*ÚverJeDobrý,DátumPlatby,PočiatočnýDátumÚveru), PočiatočnýDátumÚveru)","v":"2019-07-17"},{"$f":"IFERROR(IF(ÚverNieJeSplatený*ÚverJeDobrý,HodnotaÚveru,\"\"), \"\")","v":""},{"$f":"IFERROR(IF(ÚverNieJeSplatený*ÚverJeDobrý,MesačnáSplátka,0), 0)","v":{"v":0,"d":"0.00 EUR"}},{"$f":"IFERROR(IF(ÚverNieJeSplatený*ÚverJeDobrý,Istina,0), 0)","v":{"v":0,"d":"0.00 EUR"}},{"$f":"IFERROR(IF(ÚverNieJeSplatený*ÚverJeDobrý,SumaÚrokov,0), 0)","v":{"v":0,"d":"0.00 EUR"}},{"$f":"IFERROR(IF(ÚverNieJeSplatený*ÚverJeDobrý,KonečnýZostatok,0), 0)","v":{"v":0,"d":"0.00 EUR"}}]
[null,{"$f":"IFERROR(IF(ÚverNieJeSplatený*ÚverJeDobrý,ČísloPlatby,\"\"), \"\")","v":""},{"$f":"IFERROR(IF(ÚverNieJeSplatený*ÚverJeDobrý,DátumPlatby,PočiatočnýDátumÚveru), PočiatočnýDátumÚveru)","v":"2019-07-17"},{"$f":"IFERROR(IF(ÚverNieJeSplatený*ÚverJeDobrý,HodnotaÚveru,\"\"), \"\")","v":""},{"$f":"IFERROR(IF(ÚverNieJeSplatený*ÚverJeDobrý,MesačnáSplátka,0), 0)","v":{"v":0,"d":"0.00 EUR"}},{"$f":"IFERROR(IF(ÚverNieJeSplatený*ÚverJeDobrý,Istina,0), 0)","v":{"v":0,"d":"0.00 EUR"}},{"$f":"IFERROR(IF(ÚverNieJeSplatený*ÚverJeDobrý,SumaÚrokov,0), 0)","v":{"v":0,"d":"0.00 EUR"}},{"$f":"IFERROR(IF(ÚverNieJeSplatený*ÚverJeDobrý,KonečnýZostatok,0), 0)","v":{"v":0,"d":"0.00 EUR"}}]
[null,{"$f":"IFERROR(IF(ÚverNieJeSplatený*ÚverJeDobrý,ČísloPlatby,\"\"), \"\")","v":""},{"$f":"IFERROR(IF(ÚverNieJeSplatený*ÚverJeDobrý,DátumPlatby,PočiatočnýDátumÚveru), PočiatočnýDátumÚveru)","v":"2019-07-17"},{"$f":"IFERROR(IF(ÚverNieJeSplatený*ÚverJeDobrý,HodnotaÚveru,\"\"), \"\")","v":""},{"$f":"IFERROR(IF(ÚverNieJeSplatený*ÚverJeDobrý,MesačnáSplátka,0), 0)","v":{"v":0,"d":"0.00 EUR"}},{"$f":"IFERROR(IF(ÚverNieJeSplatený*ÚverJeDobrý,Istina,0), 0)","v":{"v":0,"d":"0.00 EUR"}},{"$f":"IFERROR(IF(ÚverNieJeSplatený*ÚverJeDobrý,SumaÚrokov,0), 0)","v":{"v":0,"d":"0.00 EUR"}},{"$f":"IFERROR(IF(ÚverNieJeSplatený*ÚverJeDobrý,KonečnýZostatok,0), 0)","v":{"v":0,"d":"0.00 EUR"}}]
[null,{"$f":"IFERROR(IF(ÚverNieJeSplatený*ÚverJeDobrý,ČísloPlatby,\"\"), \"\")","v":""},{"$f":"IFERROR(IF(ÚverNieJeSplatený*ÚverJeDobrý,DátumPlatby,PočiatočnýDátumÚveru), PočiatočnýDátumÚveru)","v":"2019-07-17"},{"$f":"IFERROR(IF(ÚverNieJeSplatený*ÚverJeDobrý,HodnotaÚveru,\"\"), \"\")","v":""},{"$f":"IFERROR(IF(ÚverNieJeSplatený*ÚverJeDobrý,MesačnáSplátka,0), 0)","v":{"v":0,"d":"0.00 EUR"}},{"$f":"IFERROR(IF(ÚverNieJeSplatený*ÚverJeDobrý,Istina,0), 0)","v":{"v":0,"d":"0.00 EUR"}},{"$f":"IFERROR(IF(ÚverNieJeSplatený*ÚverJeDobrý,SumaÚrokov,0), 0)","v":{"v":0,"d":"0.00 EUR"}},{"$f":"IFERROR(IF(ÚverNieJeSplatený*ÚverJeDobrý,KonečnýZostatok,0), 0)","v":{"v":0,"d":"0.00 EUR"}}]
[null,{"$f":"IFERROR(IF(ÚverNieJeSplatený*ÚverJeDobrý,ČísloPlatby,\"\"), \"\")","v":""},{"$f":"IFERROR(IF(ÚverNieJeSplatený*ÚverJeDobrý,DátumPlatby,PočiatočnýDátumÚveru), PočiatočnýDátumÚveru)","v":"2019-07-17"},{"$f":"IFERROR(IF(ÚverNieJeSplatený*ÚverJeDobrý,HodnotaÚveru,\"\"), \"\")","v":""},{"$f":"IFERROR(IF(ÚverNieJeSplatený*ÚverJeDobrý,MesačnáSplátka,0), 0)","v":{"v":0,"d":"0.00 EUR"}},{"$f":"IFERROR(IF(ÚverNieJeSplatený*ÚverJeDobrý,Istina,0), 0)","v":{"v":0,"d":"0.00 EUR"}},{"$f":"IFERROR(IF(ÚverNieJeSplatený*ÚverJeDobrý,SumaÚrokov,0), 0)","v":{"v":0,"d":"0.00 EUR"}},{"$f":"IFERROR(IF(ÚverNieJeSplatený*ÚverJeDobrý,KonečnýZostatok,0), 0)","v":{"v":0,"d":"0.00 EUR"}}]
[null,{"$f":"IFERROR(IF(ÚverNieJeSplatený*ÚverJeDobrý,ČísloPlatby,\"\"), \"\")","v":""},{"$f":"IFERROR(IF(ÚverNieJeSplatený*ÚverJeDobrý,DátumPlatby,PočiatočnýDátumÚveru), PočiatočnýDátumÚveru)","v":"2019-07-17"},{"$f":"IFERROR(IF(ÚverNieJeSplatený*ÚverJeDobrý,HodnotaÚveru,\"\"), \"\")","v":""},{"$f":"IFERROR(IF(ÚverNieJeSplatený*ÚverJeDobrý,MesačnáSplátka,0), 0)","v":{"v":0,"d":"0.00 EUR"}},{"$f":"IFERROR(IF(ÚverNieJeSplatený*ÚverJeDobrý,Istina,0), 0)","v":{"v":0,"d":"0.00 EUR"}},{"$f":"IFERROR(IF(ÚverNieJeSplatený*ÚverJeDobrý,SumaÚrokov,0), 0)","v":{"v":0,"d":"0.00 EUR"}},{"$f":"IFERROR(IF(ÚverNieJeSplatený*ÚverJeDobrý,KonečnýZostatok,0), 0)","v":{"v":0,"d":"0.00 EUR"}}]
[null,{"$f":"IFERROR(IF(ÚverNieJeSplatený*ÚverJeDobrý,ČísloPlatby,\"\"), \"\")","v":""},{"$f":"IFERROR(IF(ÚverNieJeSplatený*ÚverJeDobrý,DátumPlatby,PočiatočnýDátumÚveru), PočiatočnýDátumÚveru)","v":"2019-07-17"},{"$f":"IFERROR(IF(ÚverNieJeSplatený*ÚverJeDobrý,HodnotaÚveru,\"\"), \"\")","v":""},{"$f":"IFERROR(IF(ÚverNieJeSplatený*ÚverJeDobrý,MesačnáSplátka,0), 0)","v":{"v":0,"d":"0.00 EUR"}},{"$f":"IFERROR(IF(ÚverNieJeSplatený*ÚverJeDobrý,Istina,0), 0)","v":{"v":0,"d":"0.00 EUR"}},{"$f":"IFERROR(IF(ÚverNieJeSplatený*ÚverJeDobrý,SumaÚrokov,0), 0)","v":{"v":0,"d":"0.00 EUR"}},{"$f":"IFERROR(IF(ÚverNieJeSplatený*ÚverJeDobrý,KonečnýZostatok,0), 0)","v":{"v":0,"d":"0.00 EUR"}}]
[null,{"$f":"IFERROR(IF(ÚverNieJeSplatený*ÚverJeDobrý,ČísloPlatby,\"\"), \"\")","v":""},{"$f":"IFERROR(IF(ÚverNieJeSplatený*ÚverJeDobrý,DátumPlatby,PočiatočnýDátumÚveru), PočiatočnýDátumÚveru)","v":"2019-07-17"},{"$f":"IFERROR(IF(ÚverNieJeSplatený*ÚverJeDobrý,HodnotaÚveru,\"\"), \"\")","v":""},{"$f":"IFERROR(IF(ÚverNieJeSplatený*ÚverJeDobrý,MesačnáSplátka,0), 0)","v":{"v":0,"d":"0.00 EUR"}},{"$f":"IFERROR(IF(ÚverNieJeSplatený*ÚverJeDobrý,Istina,0), 0)","v":{"v":0,"d":"0.00 EUR"}},{"$f":"IFERROR(IF(ÚverNieJeSplatený*ÚverJeDobrý,SumaÚrokov,0), 0)","v":{"v":0,"d":"0.00 EUR"}},{"$f":"IFERROR(IF(ÚverNieJeSplatený*ÚverJeDobrý,KonečnýZostatok,0), 0)","v":{"v":0,"d":"0.00 EUR"}}]
[null,{"$f":"IFERROR(IF(ÚverNieJeSplatený*ÚverJeDobrý,ČísloPlatby,\"\"), \"\")","v":""},{"$f":"IFERROR(IF(ÚverNieJeSplatený*ÚverJeDobrý,DátumPlatby,PočiatočnýDátumÚveru), PočiatočnýDátumÚveru)","v":"2019-07-17"},{"$f":"IFERROR(IF(ÚverNieJeSplatený*ÚverJeDobrý,HodnotaÚveru,\"\"), \"\")","v":""},{"$f":"IFERROR(IF(ÚverNieJeSplatený*ÚverJeDobrý,MesačnáSplátka,0), 0)","v":{"v":0,"d":"0.00 EUR"}},{"$f":"IFERROR(IF(ÚverNieJeSplatený*ÚverJeDobrý,Istina,0), 0)","v":{"v":0,"d":"0.00 EUR"}},{"$f":"IFERROR(IF(ÚverNieJeSplatený*ÚverJeDobrý,SumaÚrokov,0), 0)","v":{"v":0,"d":"0.00 EUR"}},{"$f":"IFERROR(IF(ÚverNieJeSplatený*ÚverJeDobrý,KonečnýZostatok,0), 0)","v":{"v":0,"d":"0.00 EUR"}}]
[null,{"$f":"IFERROR(IF(ÚverNieJeSplatený*ÚverJeDobrý,ČísloPlatby,\"\"), \"\")","v":""},{"$f":"IFERROR(IF(ÚverNieJeSplatený*ÚverJeDobrý,DátumPlatby,PočiatočnýDátumÚveru), PočiatočnýDátumÚveru)","v":"2019-07-17"},{"$f":"IFERROR(IF(ÚverNieJeSplatený*ÚverJeDobrý,HodnotaÚveru,\"\"), \"\")","v":""},{"$f":"IFERROR(IF(ÚverNieJeSplatený*ÚverJeDobrý,MesačnáSplátka,0), 0)","v":{"v":0,"d":"0.00 EUR"}},{"$f":"IFERROR(IF(ÚverNieJeSplatený*ÚverJeDobrý,Istina,0), 0)","v":{"v":0,"d":"0.00 EUR"}},{"$f":"IFERROR(IF(ÚverNieJeSplatený*ÚverJeDobrý,SumaÚrokov,0), 0)","v":{"v":0,"d":"0.00 EUR"}},{"$f":"IFERROR(IF(ÚverNieJeSplatený*ÚverJeDobrý,KonečnýZostatok,0), 0)","v":{"v":0,"d":"0.00 EUR"}}]
[null,{"$f":"IFERROR(IF(ÚverNieJeSplatený*ÚverJeDobrý,ČísloPlatby,\"\"), \"\")","v":""},{"$f":"IFERROR(IF(ÚverNieJeSplatený*ÚverJeDobrý,DátumPlatby,PočiatočnýDátumÚveru), PočiatočnýDátumÚveru)","v":"2019-07-17"},{"$f":"IFERROR(IF(ÚverNieJeSplatený*ÚverJeDobrý,HodnotaÚveru,\"\"), \"\")","v":""},{"$f":"IFERROR(IF(ÚverNieJeSplatený*ÚverJeDobrý,MesačnáSplátka,0), 0)","v":{"v":0,"d":"0.00 EUR"}},{"$f":"IFERROR(IF(ÚverNieJeSplatený*ÚverJeDobrý,Istina,0), 0)","v":{"v":0,"d":"0.00 EUR"}},{"$f":"IFERROR(IF(ÚverNieJeSplatený*ÚverJeDobrý,SumaÚrokov,0), 0)","v":{"v":0,"d":"0.00 EUR"}},{"$f":"IFERROR(IF(ÚverNieJeSplatený*ÚverJeDobrý,KonečnýZostatok,0), 0)","v":{"v":0,"d":"0.00 EUR"}}]
[null,{"$f":"IFERROR(IF(ÚverNieJeSplatený*ÚverJeDobrý,ČísloPlatby,\"\"), \"\")","v":""},{"$f":"IFERROR(IF(ÚverNieJeSplatený*ÚverJeDobrý,DátumPlatby,PočiatočnýDátumÚveru), PočiatočnýDátumÚveru)","v":"2019-07-17"},{"$f":"IFERROR(IF(ÚverNieJeSplatený*ÚverJeDobrý,HodnotaÚveru,\"\"), \"\")","v":""},{"$f":"IFERROR(IF(ÚverNieJeSplatený*ÚverJeDobrý,MesačnáSplátka,0), 0)","v":{"v":0,"d":"0.00 EUR"}},{"$f":"IFERROR(IF(ÚverNieJeSplatený*ÚverJeDobrý,Istina,0), 0)","v":{"v":0,"d":"0.00 EUR"}},{"$f":"IFERROR(IF(ÚverNieJeSplatený*ÚverJeDobrý,SumaÚrokov,0), 0)","v":{"v":0,"d":"0.00 EUR"}},{"$f":"IFERROR(IF(ÚverNieJeSplatený*ÚverJeDobrý,KonečnýZostatok,0), 0)","v":{"v":0,"d":"0.00 EUR"}}]
[null,{"$f":"IFERROR(IF(ÚverNieJeSplatený*ÚverJeDobrý,ČísloPlatby,\"\"), \"\")","v":""},{"$f":"IFERROR(IF(ÚverNieJeSplatený*ÚverJeDobrý,DátumPlatby,PočiatočnýDátumÚveru), PočiatočnýDátumÚveru)","v":"2019-07-17"},{"$f":"IFERROR(IF(ÚverNieJeSplatený*ÚverJeDobrý,HodnotaÚveru,\"\"), \"\")","v":""},{"$f":"IFERROR(IF(ÚverNieJeSplatený*ÚverJeDobrý,MesačnáSplátka,0), 0)","v":{"v":0,"d":"0.00 EUR"}},{"$f":"IFERROR(IF(ÚverNieJeSplatený*ÚverJeDobrý,Istina,0), 0)","v":{"v":0,"d":"0.00 EUR"}},{"$f":"IFERROR(IF(ÚverNieJeSplatený*ÚverJeDobrý,SumaÚrokov,0), 0)","v":{"v":0,"d":"0.00 EUR"}},{"$f":"IFERROR(IF(ÚverNieJeSplatený*ÚverJeDobrý,KonečnýZostatok,0), 0)","v":{"v":0,"d":"0.00 EUR"}}]
[null,{"$f":"IFERROR(IF(ÚverNieJeSplatený*ÚverJeDobrý,ČísloPlatby,\"\"), \"\")","v":""},{"$f":"IFERROR(IF(ÚverNieJeSplatený*ÚverJeDobrý,DátumPlatby,PočiatočnýDátumÚveru), PočiatočnýDátumÚveru)","v":"2019-07-17"},{"$f":"IFERROR(IF(ÚverNieJeSplatený*ÚverJeDobrý,HodnotaÚveru,\"\"), \"\")","v":""},{"$f":"IFERROR(IF(ÚverNieJeSplatený*ÚverJeDobrý,MesačnáSplátka,0), 0)","v":{"v":0,"d":"0.00 EUR"}},{"$f":"IFERROR(IF(ÚverNieJeSplatený*ÚverJeDobrý,Istina,0), 0)","v":{"v":0,"d":"0.00 EUR"}},{"$f":"IFERROR(IF(ÚverNieJeSplatený*ÚverJeDobrý,SumaÚrokov,0), 0)","v":{"v":0,"d":"0.00 EUR"}},{"$f":"IFERROR(IF(ÚverNieJeSplatený*ÚverJeDobrý,KonečnýZostatok,0), 0)","v":{"v":0,"d":"0.00 EUR"}}]
[null,{"$f":"IFERROR(IF(ÚverNieJeSplatený*ÚverJeDobrý,ČísloPlatby,\"\"), \"\")","v":""},{"$f":"IFERROR(IF(ÚverNieJeSplatený*ÚverJeDobrý,DátumPlatby,PočiatočnýDátumÚveru), PočiatočnýDátumÚveru)","v":"2019-07-17"},{"$f":"IFERROR(IF(ÚverNieJeSplatený*ÚverJeDobrý,HodnotaÚveru,\"\"), \"\")","v":""},{"$f":"IFERROR(IF(ÚverNieJeSplatený*ÚverJeDobrý,MesačnáSplátka,0), 0)","v":{"v":0,"d":"0.00 EUR"}},{"$f":"IFERROR(IF(ÚverNieJeSplatený*ÚverJeDobrý,Istina,0), 0)","v":{"v":0,"d":"0.00 EUR"}},{"$f":"IFERROR(IF(ÚverNieJeSplatený*ÚverJeDobrý,SumaÚrokov,0), 0)","v":{"v":0,"d":"0.00 EUR"}},{"$f":"IFERROR(IF(ÚverNieJeSplatený*ÚverJeDobrý,KonečnýZostatok,0), 0)","v":{"v":0,"d":"0.00 EUR"}}]
[null,{"$f":"IFERROR(IF(ÚverNieJeSplatený*ÚverJeDobrý,ČísloPlatby,\"\"), \"\")","v":""},{"$f":"IFERROR(IF(ÚverNieJeSplatený*ÚverJeDobrý,DátumPlatby,PočiatočnýDátumÚveru), PočiatočnýDátumÚveru)","v":"2019-07-17"},{"$f":"IFERROR(IF(ÚverNieJeSplatený*ÚverJeDobrý,HodnotaÚveru,\"\"), \"\")","v":""},{"$f":"IFERROR(IF(ÚverNieJeSplatený*ÚverJeDobrý,MesačnáSplátka,0), 0)","v":{"v":0,"d":"0.00 EUR"}},{"$f":"IFERROR(IF(ÚverNieJeSplatený*ÚverJeDobrý,Istina,0), 0)","v":{"v":0,"d":"0.00 EUR"}},{"$f":"IFERROR(IF(ÚverNieJeSplatený*ÚverJeDobrý,SumaÚrokov,0), 0)","v":{"v":0,"d":"0.00 EUR"}},{"$f":"IFERROR(IF(ÚverNieJeSplatený*ÚverJeDobrý,KonečnýZostatok,0), 0)","v":{"v":0,"d":"0.00 EUR"}}]
[null,{"$f":"IFERROR(IF(ÚverNieJeSplatený*ÚverJeDobrý,ČísloPlatby,\"\"), \"\")","v":""},{"$f":"IFERROR(IF(ÚverNieJeSplatený*ÚverJeDobrý,DátumPlatby,PočiatočnýDátumÚveru), PočiatočnýDátumÚveru)","v":"2019-07-17"},{"$f":"IFERROR(IF(ÚverNieJeSplatený*ÚverJeDobrý,HodnotaÚveru,\"\"), \"\")","v":""},{"$f":"IFERROR(IF(ÚverNieJeSplatený*ÚverJeDobrý,MesačnáSplátka,0), 0)","v":{"v":0,"d":"0.00 EUR"}},{"$f":"IFERROR(IF(ÚverNieJeSplatený*ÚverJeDobrý,Istina,0), 0)","v":{"v":0,"d":"0.00 EUR"}},{"$f":"IFERROR(IF(ÚverNieJeSplatený*ÚverJeDobrý,SumaÚrokov,0), 0)","v":{"v":0,"d":"0.00 EUR"}},{"$f":"IFERROR(IF(ÚverNieJeSplatený*ÚverJeDobrý,KonečnýZostatok,0), 0)","v":{"v":0,"d":"0.00 EUR"}}]
[null,{"$f":"IFERROR(IF(ÚverNieJeSplatený*ÚverJeDobrý,ČísloPlatby,\"\"), \"\")","v":""},{"$f":"IFERROR(IF(ÚverNieJeSplatený*ÚverJeDobrý,DátumPlatby,PočiatočnýDátumÚveru), PočiatočnýDátumÚveru)","v":"2019-07-17"},{"$f":"IFERROR(IF(ÚverNieJeSplatený*ÚverJeDobrý,HodnotaÚveru,\"\"), \"\")","v":""},{"$f":"IFERROR(IF(ÚverNieJeSplatený*ÚverJeDobrý,MesačnáSplátka,0), 0)","v":{"v":0,"d":"0.00 EUR"}},{"$f":"IFERROR(IF(ÚverNieJeSplatený*ÚverJeDobrý,Istina,0), 0)","v":{"v":0,"d":"0.00 EUR"}},{"$f":"IFERROR(IF(ÚverNieJeSplatený*ÚverJeDobrý,SumaÚrokov,0), 0)","v":{"v":0,"d":"0.00 EUR"}},{"$f":"IFERROR(IF(ÚverNieJeSplatený*ÚverJeDobrý,KonečnýZostatok,0), 0)","v":{"v":0,"d":"0.00 EUR"}}]
[null,{"$f":"IFERROR(IF(ÚverNieJeSplatený*ÚverJeDobrý,ČísloPlatby,\"\"), \"\")","v":""},{"$f":"IFERROR(IF(ÚverNieJeSplatený*ÚverJeDobrý,DátumPlatby,PočiatočnýDátumÚveru), PočiatočnýDátumÚveru)","v":"2019-07-17"},{"$f":"IFERROR(IF(ÚverNieJeSplatený*ÚverJeDobrý,HodnotaÚveru,\"\"), \"\")","v":""},{"$f":"IFERROR(IF(ÚverNieJeSplatený*ÚverJeDobrý,MesačnáSplátka,0), 0)","v":{"v":0,"d":"0.00 EUR"}},{"$f":"IFERROR(IF(ÚverNieJeSplatený*ÚverJeDobrý,Istina,0), 0)","v":{"v":0,"d":"0.00 EUR"}},{"$f":"IFERROR(IF(ÚverNieJeSplatený*ÚverJeDobrý,SumaÚrokov,0), 0)","v":{"v":0,"d":"0.00 EUR"}},{"$f":"IFERROR(IF(ÚverNieJeSplatený*ÚverJeDobrý,KonečnýZostatok,0), 0)","v":{"v":0,"d":"0.00 EUR"}}]
[null,{"$f":"IFERROR(IF(ÚverNieJeSplatený*ÚverJeDobrý,ČísloPlatby,\"\"), \"\")","v":""},{"$f":"IFERROR(IF(ÚverNieJeSplatený*ÚverJeDobrý,DátumPlatby,PočiatočnýDátumÚveru), PočiatočnýDátumÚveru)","v":"2019-07-17"},{"$f":"IFERROR(IF(ÚverNieJeSplatený*ÚverJeDobrý,HodnotaÚveru,\"\"), \"\")","v":""},{"$f":"IFERROR(IF(ÚverNieJeSplatený*ÚverJeDobrý,MesačnáSplátka,0), 0)","v":{"v":0,"d":"0.00 EUR"}},{"$f":"IFERROR(IF(ÚverNieJeSplatený*ÚverJeDobrý,Istina,0), 0)","v":{"v":0,"d":"0.00 EUR"}},{"$f":"IFERROR(IF(ÚverNieJeSplatený*ÚverJeDobrý,SumaÚrokov,0), 0)","v":{"v":0,"d":"0.00 EUR"}},{"$f":"IFERROR(IF(ÚverNieJeSplatený*ÚverJeDobrý,KonečnýZostatok,0), 0)","v":{"v":0,"d":"0.00 EUR"}}]
[null,{"$f":"IFERROR(IF(ÚverNieJeSplatený*ÚverJeDobrý,ČísloPlatby,\"\"), \"\")","v":""},{"$f":"IFERROR(IF(ÚverNieJeSplatený*ÚverJeDobrý,DátumPlatby,PočiatočnýDátumÚveru), PočiatočnýDátumÚveru)","v":"2019-07-17"},{"$f":"IFERROR(IF(ÚverNieJeSplatený*ÚverJeDobrý,HodnotaÚveru,\"\"), \"\")","v":""},{"$f":"IFERROR(IF(ÚverNieJeSplatený*ÚverJeDobrý,MesačnáSplátka,0), 0)","v":{"v":0,"d":"0.00 EUR"}},{"$f":"IFERROR(IF(ÚverNieJeSplatený*ÚverJeDobrý,Istina,0), 0)","v":{"v":0,"d":"0.00 EUR"}},{"$f":"IFERROR(IF(ÚverNieJeSplatený*ÚverJeDobrý,SumaÚrokov,0), 0)","v":{"v":0,"d":"0.00 EUR"}},{"$f":"IFERROR(IF(ÚverNieJeSplatený*ÚverJeDobrý,KonečnýZostatok,0), 0)","v":{"v":0,"d":"0.00 EUR"}}]
[null,{"$f":"IFERROR(IF(ÚverNieJeSplatený*ÚverJeDobrý,ČísloPlatby,\"\"), \"\")","v":""},{"$f":"IFERROR(IF(ÚverNieJeSplatený*ÚverJeDobrý,DátumPlatby,PočiatočnýDátumÚveru), PočiatočnýDátumÚveru)","v":"2019-07-17"},{"$f":"IFERROR(IF(ÚverNieJeSplatený*ÚverJeDobrý,HodnotaÚveru,\"\"), \"\")","v":""},{"$f":"IFERROR(IF(ÚverNieJeSplatený*ÚverJeDobrý,MesačnáSplátka,0), 0)","v":{"v":0,"d":"0.00 EUR"}},{"$f":"IFERROR(IF(ÚverNieJeSplatený*ÚverJeDobrý,Istina,0), 0)","v":{"v":0,"d":"0.00 EUR"}},{"$f":"IFERROR(IF(ÚverNieJeSplatený*ÚverJeDobrý,SumaÚrokov,0), 0)","v":{"v":0,"d":"0.00 EUR"}},{"$f":"IFERROR(IF(ÚverNieJeSplatený*ÚverJeDobrý,KonečnýZostatok,0), 0)","v":{"v":0,"d":"0.00 EUR"}}]
[null,{"$f":"IFERROR(IF(ÚverNieJeSplatený*ÚverJeDobrý,ČísloPlatby,\"\"), \"\")","v":""},{"$f":"IFERROR(IF(ÚverNieJeSplatený*ÚverJeDobrý,DátumPlatby,PočiatočnýDátumÚveru), PočiatočnýDátumÚveru)","v":"2019-07-17"},{"$f":"IFERROR(IF(ÚverNieJeSplatený*ÚverJeDobrý,HodnotaÚveru,\"\"), \"\")","v":""},{"$f":"IFERROR(IF(ÚverNieJeSplatený*ÚverJeDobrý,MesačnáSplátka,0), 0)","v":{"v":0,"d":"0.00 EUR"}},{"$f":"IFERROR(IF(ÚverNieJeSplatený*ÚverJeDobrý,Istina,0), 0)","v":{"v":0,"d":"0.00 EUR"}},{"$f":"IFERROR(IF(ÚverNieJeSplatený*ÚverJeDobrý,SumaÚrokov,0), 0)","v":{"v":0,"d":"0.00 EUR"}},{"$f":"IFERROR(IF(ÚverNieJeSplatený*ÚverJeDobrý,KonečnýZostatok,0), 0)","v":{"v":0,"d":"0.00 EUR"}}]
[null,{"$f":"IFERROR(IF(ÚverNieJeSplatený*ÚverJeDobrý,ČísloPlatby,\"\"), \"\")","v":""},{"$f":"IFERROR(IF(ÚverNieJeSplatený*ÚverJeDobrý,DátumPlatby,PočiatočnýDátumÚveru), PočiatočnýDátumÚveru)","v":"2019-07-17"},{"$f":"IFERROR(IF(ÚverNieJeSplatený*ÚverJeDobrý,HodnotaÚveru,\"\"), \"\")","v":""},{"$f":"IFERROR(IF(ÚverNieJeSplatený*ÚverJeDobrý,MesačnáSplátka,0), 0)","v":{"v":0,"d":"0.00 EUR"}},{"$f":"IFERROR(IF(ÚverNieJeSplatený*ÚverJeDobrý,Istina,0), 0)","v":{"v":0,"d":"0.00 EUR"}},{"$f":"IFERROR(IF(ÚverNieJeSplatený*ÚverJeDobrý,SumaÚrokov,0), 0)","v":{"v":0,"d":"0.00 EUR"}},{"$f":"IFERROR(IF(ÚverNieJeSplatený*ÚverJeDobrý,KonečnýZostatok,0), 0)","v":{"v":0,"d":"0.00 EUR"}}]
[null,{"$f":"IFERROR(IF(ÚverNieJeSplatený*ÚverJeDobrý,ČísloPlatby,\"\"), \"\")","v":""},{"$f":"IFERROR(IF(ÚverNieJeSplatený*ÚverJeDobrý,DátumPlatby,PočiatočnýDátumÚveru), PočiatočnýDátumÚveru)","v":"2019-07-17"},{"$f":"IFERROR(IF(ÚverNieJeSplatený*ÚverJeDobrý,HodnotaÚveru,\"\"), \"\")","v":""},{"$f":"IFERROR(IF(ÚverNieJeSplatený*ÚverJeDobrý,MesačnáSplátka,0), 0)","v":{"v":0,"d":"0.00 EUR"}},{"$f":"IFERROR(IF(ÚverNieJeSplatený*ÚverJeDobrý,Istina,0), 0)","v":{"v":0,"d":"0.00 EUR"}},{"$f":"IFERROR(IF(ÚverNieJeSplatený*ÚverJeDobrý,SumaÚrokov,0), 0)","v":{"v":0,"d":"0.00 EUR"}},{"$f":"IFERROR(IF(ÚverNieJeSplatený*ÚverJeDobrý,KonečnýZostatok,0), 0)","v":{"v":0,"d":"0.00 EUR"}}]
[null,{"$f":"IFERROR(IF(ÚverNieJeSplatený*ÚverJeDobrý,ČísloPlatby,\"\"), \"\")","v":""},{"$f":"IFERROR(IF(ÚverNieJeSplatený*ÚverJeDobrý,DátumPlatby,PočiatočnýDátumÚveru), PočiatočnýDátumÚveru)","v":"2019-07-17"},{"$f":"IFERROR(IF(ÚverNieJeSplatený*ÚverJeDobrý,HodnotaÚveru,\"\"), \"\")","v":""},{"$f":"IFERROR(IF(ÚverNieJeSplatený*ÚverJeDobrý,MesačnáSplátka,0), 0)","v":{"v":0,"d":"0.00 EUR"}},{"$f":"IFERROR(IF(ÚverNieJeSplatený*ÚverJeDobrý,Istina,0), 0)","v":{"v":0,"d":"0.00 EUR"}},{"$f":"IFERROR(IF(ÚverNieJeSplatený*ÚverJeDobrý,SumaÚrokov,0), 0)","v":{"v":0,"d":"0.00 EUR"}},{"$f":"IFERROR(IF(ÚverNieJeSplatený*ÚverJeDobrý,KonečnýZostatok,0), 0)","v":{"v":0,"d":"0.00 EUR"}}]
[null,{"$f":"IFERROR(IF(ÚverNieJeSplatený*ÚverJeDobrý,ČísloPlatby,\"\"), \"\")","v":""},{"$f":"IFERROR(IF(ÚverNieJeSplatený*ÚverJeDobrý,DátumPlatby,PočiatočnýDátumÚveru), PočiatočnýDátumÚveru)","v":"2019-07-17"},{"$f":"IFERROR(IF(ÚverNieJeSplatený*ÚverJeDobrý,HodnotaÚveru,\"\"), \"\")","v":""},{"$f":"IFERROR(IF(ÚverNieJeSplatený*ÚverJeDobrý,MesačnáSplátka,0), 0)","v":{"v":0,"d":"0.00 EUR"}},{"$f":"IFERROR(IF(ÚverNieJeSplatený*ÚverJeDobrý,Istina,0), 0)","v":{"v":0,"d":"0.00 EUR"}},{"$f":"IFERROR(IF(ÚverNieJeSplatený*ÚverJeDobrý,SumaÚrokov,0), 0)","v":{"v":0,"d":"0.00 EUR"}},{"$f":"IFERROR(IF(ÚverNieJeSplatený*ÚverJeDobrý,KonečnýZostatok,0), 0)","v":{"v":0,"d":"0.00 EUR"}}]
[null,{"$f":"IFERROR(IF(ÚverNieJeSplatený*ÚverJeDobrý,ČísloPlatby,\"\"), \"\")","v":""},{"$f":"IFERROR(IF(ÚverNieJeSplatený*ÚverJeDobrý,DátumPlatby,PočiatočnýDátumÚveru), PočiatočnýDátumÚveru)","v":"2019-07-17"},{"$f":"IFERROR(IF(ÚverNieJeSplatený*ÚverJeDobrý,HodnotaÚveru,\"\"), \"\")","v":""},{"$f":"IFERROR(IF(ÚverNieJeSplatený*ÚverJeDobrý,MesačnáSplátka,0), 0)","v":{"v":0,"d":"0.00 EUR"}},{"$f":"IFERROR(IF(ÚverNieJeSplatený*ÚverJeDobrý,Istina,0), 0)","v":{"v":0,"d":"0.00 EUR"}},{"$f":"IFERROR(IF(ÚverNieJeSplatený*ÚverJeDobrý,SumaÚrokov,0), 0)","v":{"v":0,"d":"0.00 EUR"}},{"$f":"IFERROR(IF(ÚverNieJeSplatený*ÚverJeDobrý,KonečnýZostatok,0), 0)","v":{"v":0,"d":"0.00 EUR"}}]
[null,{"$f":"IFERROR(IF(ÚverNieJeSplatený*ÚverJeDobrý,ČísloPlatby,\"\"), \"\")","v":""},{"$f":"IFERROR(IF(ÚverNieJeSplatený*ÚverJeDobrý,DátumPlatby,PočiatočnýDátumÚveru), PočiatočnýDátumÚveru)","v":"2019-07-17"},{"$f":"IFERROR(IF(ÚverNieJeSplatený*ÚverJeDobrý,HodnotaÚveru,\"\"), \"\")","v":""},{"$f":"IFERROR(IF(ÚverNieJeSplatený*ÚverJeDobrý,MesačnáSplátka,0), 0)","v":{"v":0,"d":"0.00 EUR"}},{"$f":"IFERROR(IF(ÚverNieJeSplatený*ÚverJeDobrý,Istina,0), 0)","v":{"v":0,"d":"0.00 EUR"}},{"$f":"IFERROR(IF(ÚverNieJeSplatený*ÚverJeDobrý,SumaÚrokov,0), 0)","v":{"v":0,"d":"0.00 EUR"}},{"$f":"IFERROR(IF(ÚverNieJeSplatený*ÚverJeDobrý,KonečnýZostatok,0), 0)","v":{"v":0,"d":"0.00 EUR"}}]
[null,{"$f":"IFERROR(IF(ÚverNieJeSplatený*ÚverJeDobrý,ČísloPlatby,\"\"), \"\")","v":""},{"$f":"IFERROR(IF(ÚverNieJeSplatený*ÚverJeDobrý,DátumPlatby,PočiatočnýDátumÚveru), PočiatočnýDátumÚveru)","v":"2019-07-17"},{"$f":"IFERROR(IF(ÚverNieJeSplatený*ÚverJeDobrý,HodnotaÚveru,\"\"), \"\")","v":""},{"$f":"IFERROR(IF(ÚverNieJeSplatený*ÚverJeDobrý,MesačnáSplátka,0), 0)","v":{"v":0,"d":"0.00 EUR"}},{"$f":"IFERROR(IF(ÚverNieJeSplatený*ÚverJeDobrý,Istina,0), 0)","v":{"v":0,"d":"0.00 EUR"}},{"$f":"IFERROR(IF(ÚverNieJeSplatený*ÚverJeDobrý,SumaÚrokov,0), 0)","v":{"v":0,"d":"0.00 EUR"}},{"$f":"IFERROR(IF(ÚverNieJeSplatený*ÚverJeDobrý,KonečnýZostatok,0), 0)","v":{"v":0,"d":"0.00 EUR"}}]